Workbook

Sheet START
A1: =muni -> GT485 Batho Pele City

Sheet Instructions
D2: 2020
X4: Yes
X5: No
W7: Type of Entities Range: | X7: Parent Municipality
X8: Consolidated Information
W17: MTREF Range: | X17: 2008
X18: 2009
X19: 2010
X20: 2011
X21: 2012
X22: 2013
X23: 2014
X24: 2015
X25: 2016
X26: 2017
X27: 2018
X28: 2019
X29: 2020
X30: 2021
X31: 2022
W33: MTREF Linked: | X33: 4
W34: MTREF: | X34: =INDEX(X17:X31,X33,1) -> 2011
W36: Fin Year: | X36: =MTREF&"/"&RIGHT(MTREF,2)+1 -> 2011/12

Sheet Template names (hidden)
A1: Common sheet headings
A2: Head1 | B2: =HLOOKUP(MTREF,Headings,2) -> 2009/10 | C2: Prior year -1
A3: Head1A | B3: =HLOOKUP(MTREF,Headings,3) -> 2008/9 | C3: Prior year -2
A4: Head1B | B4: =HLOOKUP(MTREF,Headings,4) -> 2007/8 | C4: Prior year -3
A5: Head2 | B5: =HLOOKUP(MTREF,Headings,5) -> Current Year 2010/11 | C5: Year in which budget is being prepared
A6: Head2A | B6: =HLOOKUP(MTREF,Headings,6) -> 2010/11 | C6: Year in which budget is being prepared
A7: Head3 | B7: =HLOOKUP(MTREF,Headings,7) -> 2011/12 Medium Term Revenue & Expenditure Framework | C7: MTREF name
A8: Head4 | B8: LTFS | C8: Long term financial strategy
A9: Head5 | B9: Audited Outcome
A10: Head5A | B10: Outcome
A11: Head5B | B11: Pre-audit outcome
A12: Head6 | B12: Original Budget
A13: Head7 | B13: Adjusted Budget
A14: Head8 | B14: Full Year Forecast
A15: Head9 | B15: =HLOOKUP(MTREF,Headings,8) -> Budget Year 2011/12 | C15: 1st year of MTREF | D15: Year1
A16: Head10 | B16: =HLOOKUP(MTREF,Headings,9) -> Budget Year +1 2012/13 | C16: 2nd year of MTREF | D16: Year2
A17: Head11 | B17: =HLOOKUP(MTREF,Headings,10) -> Budget Year +2 2013/14 | C17: 3rd year of MTREF | D17: Year3
A18: Head12 | B18: =HLOOKUP(MTREF,Headings,11) -> Forecast 2014/15 | C18: 1st yr of long term forecast | D18: Year4
A19: Head13 | B19: =HLOOKUP(MTREF,Headings,12) -> Forecast 2015/16 | C19: Next yr of long term forecast | D19: Year5
A20: Head14 | B20: =HLOOKUP(MTREF,Headings,13) -> Forecast 2016/17 | C20: Next yr of long term forecast | D20: Year6
A21: Head15 | B21: =HLOOKUP(MTREF,Headings,14) -> Forecast 2017/18 | C21: Next yr of long term forecast | D21: Year7
A22: Head16 | B22: =HLOOKUP(MTREF,Headings,15) -> Forecast 2018/19 | C22: Next yr of long term forecast | D22: Year8
A23: Head17 | B23: =HLOOKUP(MTREF,Headings,16) -> Forecast 2019/20 | C23: Next yr of long term forecast | D23: Year9
A24: Head18 | B24: =HLOOKUP(MTREF,Headings,17) -> Forecast 2020/21 | C24: Next yr of long term forecast | D24: Year10
A25: Head19 | B25: =HLOOKUP(MTREF,Headings,18) -> Forecast 2021/22 | C25: Next yr of long term forecast | D25: Year11
A26: Head20 | B26: =HLOOKUP(MTREF,Headings,19) -> Forecast 2022/23 | C26: Next yr of long term forecast | D26: Year12
A27: Head21 | B27: =HLOOKUP(MTREF,Headings,20) -> Forecast 2023/24 | C27: Next yr of long term forecast | D27: Year13
A28: Head22 | B28: =HLOOKUP(MTREF,Headings,21) -> Forecast 2024/25 | C28: Next yr of long term forecast | D28: Year14
A29: Head23 | B29: =HLOOKUP(MTREF,Headings,22) -> Forecast 2025/26 | C29: Next yr of long term forecast | D29: Year15
A30: Head24 | B30: Description
A31: Head25
A32: Head26 | B32: Vote Description
A33: Head27 | B33: Ref
A34: Head27a | B34: References
A35: Head28 | B35: Surplus/(Deficit) for the year | D35: Result
A36: Head29 | B36: =HLOOKUP(MTREF,Headings,23) -> Annual target 2011/12
A37: Head30 | B37: =HLOOKUP(MTREF,Headings,24) -> Revised target 2011/12
A38: Head31 | B38: Quarter ended 30 September
A39: Head32 | B39: Quarter ended 31 December
A40: Head33 | B40: Quarter ended 31 March
A41: Head34 | B41: Quarter ended 30 June
A42: Head35 | B42: Variance explanation
A43: Head36 | B43: YTD Actual 31 Dec
A44: Head37 | B44: YTD Budget 31 Dec
A45: Head38 | B45: Monthly actual
A46: Head39 | B46: YTD actual
A47: Head40 | B47: YTD budget
A48: Head41 | B48: YTD variance
A49: Head42 | B49: Surplus/ (Deficit) for the yr/period
A50: Head43 | B50: =Head3&" Summary" -> 2011/12 Medium Term Revenue & Expenditure Framework Summary
A51: Head44 | B51: 1996 Census
A52: Head45 | B52: 2001 Census
A53: Head46 | B53: - Adjustments Budget - January 2007
A54: Head47 | B54: Previous target year to complete
A55: Head48 | B55: Present value
A56: Head49
A57: Head50 | B57: Other Adjusts.
A58: Head51 | B58: Accum. Funds
A59: Head52 | B59: Multi-year capital
A60: Head53 | B60: Unfore. Unavoid.
A61: Head54 | B61: Prior Adjusted
A62: Head55 | B62: Nat. or Prov. Govt
A63: Head56 | B63: Total Adjusts.
A64: SFPerf1 | B64: Budgeted Financial Performance
A65: SFPerf2 | B65: Forecast Financial Performance
A66: SFPos1 | B66: Budgeted Financial Position
A67: SFPos2 | B67: Forecast Financial Position
A68: Cash1 | B68: Budget Cash Flow
A69: Cash2 | B69: Forecast Cash Flow
A70: RandM | B70: Expenditure includes repairs & maintenance of R'000
A71: Depart1 | B71: Department 1 - | D71: DEP1
A72: Depart2 | B72: Department 2 - | D72: DEP2
A73: Depart3 | B73: Department 3 - | D73: DEP3
A74: Depart4 | B74: Department 4 - | D74: DEP4
A75: Depart5 | B75: Department 5 - | D75: DEP5
A76: Depart6 | B76: Department 6 - | D76: DEP6
A77: Depart7 | B77: Department 7 - | D77: DEP7
A78: Depart8 | B78: Department 8 - | D78: DEP8
A79: Depart9 | B79: Department 9 - | D79: DEP9
A80: Depart10 | B80: Department 10 - | D80: DEP10
A81: Depart11 | B81: Department 11 - | D81: DEP11
A82: Depart12 | B82: Department 12 - | D82: DEP12
A83: Depart13 | B83: Department 13 - | D83: DEP13
A84: Depart14 | B84: Department 14 - | D84: DEP14
A87: Base year of forecast column selection names
A88: Choose | B88: ACT
B89: APP
B90: ADJ
A92: Standard nomenclature
A93: Muni | B93: ='Lookup and lists'!B28 -> GT485 Batho Pele City
A94: Municipal Entities | B94: 2 | C94: Type of report: | D94: 1
A95: =IF((MuniEntities=1)*(MuniType=2),"YES","NO") -> NO | B95: Does this municipality have entities (consolidated budget and entity budgets required)? YES/NO
A96: Entity 1 | B96: (Pty) Ltd Example 1 - Municipal entity - | D96: Ent1
A97: Entity 2 | B97: (Pty) Ltd Example 2 - Municipal entity - | D97: Ent2
A98: Entity 3 | B98: Municipal Entity Example 3 | D98: Ent3
A99: Budget approval tables | C99: Chart x-ref | D99: Sch/Tab/Ch | E99: Alternative for municipalities without entities | F99: Alternative for municipalities without entities
B100: =IF(Consolques="YES",E100,F100) -> Table A1 Budget Summary | D100: Table A1 | E100: =D100&"Consolidated Budget Summary" -> Table A1 Consolidated Budget Summary | F100: =D100&"Budget Summary" -> Table A1 Budget Summary
B101: Table A2 Budgeted Financial Performance (revenue and expenditure by standard classification) | C101: Charts 5, 6 | D101: Table A2 | E101: =D101&"Consolidated Budgeted Financial Performance (revenue and expenditure by standard classification)" -> Table A2 Consolidated Budgeted Financial Performance (revenue and expenditure by standard classification) | F101: =D101&"Budgeted Financial Performance (revenue and expenditure by standard classification)" -> Table A2 Budgeted Financial Performance (revenue and expenditure by standard classification)
B102: Table A3 Budgeted Financial Performance (revenue and expenditure by municipal vote) | D102: Table A3 | E102: =D102&"Consolidated Budgeted Financial Performance (revenue and expenditure by municipal vote)" -> Table A3 Consolidated Budgeted Financial Performance (revenue and expenditure by municipal vote) | F102: =D102&"Budgeted Financial Performance (revenue and expenditure by municipal vote)" -> Table A3 Budgeted Financial Performance (revenue and expenditure by municipal vote)
B103: Table A4 Budgeted Financial Performance (revenue and expenditure) | C103: Charts 1, 2, 3, 4 | D103: Table A4 | E103: =D103&"Consolidated Budgeted Financial Performance (revenue and expenditure)" -> Table A4 Consolidated Budgeted Financial Performance (revenue and expenditure) | F103: =D103&"Budgeted Financial Performance (revenue and expenditure)" -> Table A4 Budgeted Financial Performance (revenue and expenditure)
B104: Table A5 Budgeted Capital Expenditure by vote, standard classification and funding | C104: Charts 7, 8, 9, 10, 20 | D104: Table A5 | E104: =D104&"Consolidated Budgeted Capital Expenditure by vote, standard classification and funding" -> Table A5 Consolidated Budgeted Capital Expenditure by vote, standard classification and funding | F104: =D104&"Budgeted Capital Expenditure by vote, standard classification and funding" -> Table A5 Budgeted Capital Expenditure by vote, standard classification and funding
B105: Table A6 Budgeted Financial Position | D105: Table A6 | E105: =D105&"Consolidated Budgeted Financial Position" -> Table A6 Consolidated Budgeted Financial Position | F105: =D105&"Budgeted Financial Position" -> Table A6 Budgeted Financial Position
B106: Table A7 Budgeted Cash Flows | D106: Table A7 | E106: =D106&"Consolidated Budgeted Cash Flows" -> Table A7 Consolidated Budgeted Cash Flows | F106: =D106&"Budgeted Cash Flows" -> Table A7 Budgeted Cash Flows
B107: Table A8 Cash backed reserves/accumulated surplus reconciliation | D107: Table A8 | E107: =D107&"Consolidated Cash backed reserves/accumulated surplus reconciliation" -> Table A8 Consolidated Cash backed reserves/accumulated surplus reconciliation | F107: =D107&"Cash backed reserves/accumulated surplus reconciliation" -> Table A8 Cash backed reserves/accumulated surplus reconciliation
B108: Table A9 Asset Management | D108: Table A9 | E108: =D108&"Consolidated Asset Management" -> Table A9 Consolidated Asset Management | F108: =D108&"Asset Management" -> Table A9 Asset Management
B109: Table A10 Basic service delivery measurement | D109: Table A10 | E109: =D109&"Consolidated basic service delivery measurement" -> Table A10 Consolidated basic service delivery measurement | F109: =D109&"Basic service delivery measurement" -> Table A10 Basic service delivery measurement
A110: Supportinging Tables to the Budget Approval Tables | C110: =$C$99 -> Chart x-ref | D110: =$D$99 -> Sch/Tab/Ch
A111: Supporting Table SA1 | B111: =A111&" Supportinging detail to 'Budgeted Financial Performance'" -> Supporting Table SA1 Supportinging detail to 'Budgeted Financial Performance'
A112: Supporting Table SA2 | B112: =IF(Consolques="YES",E112,F112) -> Supporting Table SA2 Matrix Financial Performance Budget (revenue source/expenditure type and dept.) | E112: =A112&"Consolidated Matrix Financial Performance Budget (revenue source/expenditure type & dept.)" -> Supporting Table SA2 Consolidated Matrix Financial Performance Budget (revenue source/expenditure type & dept.) | F112: =A112&"Matrix Financial Performance Budget (revenue source/expenditure type and dept.)" -> Supporting Table SA2 Matrix Financial Performance Budget (revenue source/expenditure type and dept.)
A113: Supporting Table SA3 | B113: =A113&"Supportinging detail to 'Budgeted Financial Position'" -> Supporting Table SA3 Supportinging detail to 'Budgeted Financial Position'
A114: Supporting Table SA4 | B114: =A114&"Reconciliation of IDP strategic objectives and budget (revenue)" -> Supporting Table SA4 Reconciliation of IDP strategic objectives and budget (revenue) | C114: Chart 11
A115: Supporting Table SA5 | B115: =A115&"Reconciliation of IDP strategic objectives and budget (operating expenditure)" -> Supporting Table SA5 Reconciliation of IDP strategic objectives and budget (operating expenditure) | C115: Chart 12
A116: Supporting Table SA6 | B116: =A116&"Reconciliation of IDP strategic objectives and budget (capital expenditure)" -> Supporting Table SA6 Reconciliation of IDP strategic objectives and budget (capital expenditure) | C116: Chart 13
A117: Supporting Table SA7 | B117: =A117&" Measureable performance objectives" -> Supporting Table SA7 Measureable performance objectives
A118: Supporting Table SA8 | B118: =A118&" Performance indicators and benchmarks" -> Supporting Table SA8 Performance indicators and benchmarks | C118: Chts 15-19
A119: Supporting Table SA9 | B119: =A119&" Social, economic and demographic statistics and assumptions" -> Supporting Table SA9 Social, economic and demographic statistics and assumptions
A120: Supporting Table SA10 | B120: =A120&" Funding measurement" -> Supporting Table SA10 Funding measurement | C120: Chart 14
A121: Supporting Table SA11 | B121: =A121&" Property rates summary" -> Supporting Table SA11 Property rates summary
A122: Supporting Table SA12 | B122: =A122&" Property rates by category (current year)" -> Supporting Table SA12 Property rates by category (current year)
A123: Supporting Table SA13 | B123: =A123&" Property rates by category (budget year)" -> Supporting Table SA13 Property rates by category (budget year)
A124: Supporting Table SA14 | B124: =A124&" Household bills" -> Supporting Table SA14 Household bills
A125: Supporting Table SA15 | B125: =A125&" Investment particulars by type" -> Supporting Table SA15 Investment particulars by type
A126: Supporting Table SA16 | B126: =A126&" Investment particulars by maturity" -> Supporting Table SA16 Investment particulars by maturity
A127: Supporting Table SA17 | B127: =A127&" Borrowing" -> Supporting Table SA17 Borrowing
A128: Supporting Table SA18 | B128: =A128&" Transfers and grant receipts" -> Supporting Table SA18 Transfers and grant receipts
A129: Supporting Table SA19 | B129: =A129&" Expenditure on transfers and grant programme" -> Supporting Table SA19 Expenditure on transfers and grant programme
A130: Supporting Table SA20 | B130: =A130&" Reconciliation of transfers, grant receipts and unspent funds" -> Supporting Table SA20 Reconciliation of transfers, grant receipts and unspent funds
A131: Supporting Table SA21 | B131: =A131&" Transfers and grants made by the municipality" -> Supporting Table SA21 Transfers and grants made by the municipality
A132: Supporting Table SA22 | B132: =A132&" Summary councillor and staff benefits" -> Supporting Table SA22 Summary councillor and staff benefits
A133: Supporting Table SA23 | B133: =A133&" Salaries, allowances & benefits (political office bearers/councillors/senior managers)" -> Supporting Table SA23 Salaries, allowances & benefits (political office bearers/councillors/senior managers)
A134: Supporting Table SA24 | B134: =A134&" Summary of personnel numbers" -> Supporting Table SA24 Summary of personnel numbers
A135: Supporting Table SA25 | B135: =IF(Consolques="YES",E135,F135) -> Supporting Table SA25 Budgeted monthly revenue and expenditure | E135: =A135&" Consolidated budgeted monthly revenue and expenditure" -> Supporting Table SA25 Consolidated budgeted monthly revenue and expenditure | F135: =A135&" Budgeted monthly revenue and expenditure" -> Supporting Table SA25 Budgeted monthly revenue and expenditure
A136: Supporting Table SA26 | B136: Supporting Table SA26 Budgeted monthly revenue and expenditure (municipal vote) | E136: =A136&" Consolidated budgeted monthly revenue and expenditure (municipal vote)" -> Supporting Table SA26 Consolidated budgeted monthly revenue and expenditure (municipal vote) | F136: =A136&" Budgeted monthly revenue and expenditure (municipal vote)" -> Supporting Table SA26 Budgeted monthly revenue and expenditure (municipal vote)
A137: Supporting Table SA27 | B137: Supporting Table SA27 Budgeted monthly revenue and expenditure (standard classification) | E137: =A137&" Consolidated budgeted monthly revenue and expenditure (standard classification)" -> Supporting Table SA27 Consolidated budgeted monthly revenue and expenditure (standard classification) | F137: =A137&" Budgeted monthly revenue and expenditure (standard classification)" -> Supporting Table SA27 Budgeted monthly revenue and expenditure (standard classification)
A138: Supporting Table SA28 | B138: Supporting Table SA28 Budgeted monthly capital expenditure (municipal vote) | E138: =A138&" Consolidated budgeted monthly capital expenditure (municipal vote)" -> Supporting Table SA28 Consolidated budgeted monthly capital expenditure (municipal vote) | F138: =A138&" Budgeted monthly capital expenditure (municipal vote)" -> Supporting Table SA28 Budgeted monthly capital expenditure (municipal vote)
A139: Supporting Table SA29 | B139: Supporting Table SA29 Budgeted monthly capital expenditure (standard classification) | E139: =A139&" Consolidated budgeted monthly capital expenditure (standard classification)" -> Supporting Table SA29 Consolidated budgeted monthly capital expenditure (standard classification) | F139: =A139&" Budgeted monthly capital expenditure (standard classification)" -> Supporting Table SA29 Budgeted monthly capital expenditure (standard classification)
A140: Supporting Table SA30 | B140: Supporting Table SA30 Budgeted monthly cash flow | E140: =A140&" Consolidated budgeted monthly cash flow" -> Supporting Table SA30 Consolidated budgeted monthly cash flow | F140: =A140&" Budgeted monthly cash flow" -> Supporting Table SA30 Budgeted monthly cash flow
A141: Supporting Table SA31 | B141: NOT REQUIRED - municipality does not have entities | E141: =A141&" Aggregated entity budget" -> Supporting Table SA31 Aggregated entity budget | F141: NOT REQUIRED - municipality does not have entities
A142: Supporting Table SA32 | B142: =A142&" List of external mechanisms" -> Supporting Table SA32 List of external mechanisms
A143: Supporting Table SA33 | B143: =A143&" Contracts having future budgetary implications" -> Supporting Table SA33 Contracts having future budgetary implications
A144: Supporting Table SA34a | B144: =IF(Consolques="YES",E144,F144) -> Supporting Table SA34a Capital expenditure on new assets by asset class | E144: =A144&" Consolidated capital expenditure on new assets by asset class" -> Supporting Table SA34a Consolidated capital expenditure on new assets by asset class | F144: =A144&" Capital expenditure on new assets by asset class" -> Supporting Table SA34a Capital expenditure on new assets by asset class
A145: Supporting Table SA34b | B145: Supporting Table SA34b Capital expenditure on the renewal of existing assets by asset class | E145: =A145&" Consolidated capital expenditure on existing assets by asset class" -> Supporting Table SA34b Consolidated capital expenditure on existing assets by asset class | F145: =A145&" Capital expenditure on the renewal of existing assets by asset class" -> Supporting Table SA34b Capital expenditure on the renewal of existing assets by asset class
A146: Supporting Table SA34c | B146: Supporting Table SA34c Repairs and maintenance expenditure by asset class | E146: =A146&" Consolidated repairs and maintenance by asset class" -> Supporting Table SA34c Consolidated repairs and maintenance by asset class | F146: =A146&" Repairs and maintenance expenditure by asset class" -> Supporting Table SA34c Repairs and maintenance expenditure by asset class
A147: Supporting Table SA35 | B147: Supporting Table SA35 Future financial implications of the capital budget | E147: =A147&" Consolidated future financial implications of the capital budget" -> Supporting Table SA35 Consolidated future financial implications of the capital budget | F147: =A147& " Future financial implications of the capital budget" -> Supporting Table SA35 Future financial implications of the capital budget
A148: Supporting Table SA36 | B148: Supporting Table SA36 Detailed capital budget | E148: =A148&" Consolidated detailed capital budget" -> Supporting Table SA36 Consolidated detailed capital budget | F148: =A148& " Detailed capital budget" -> Supporting Table SA36 Detailed capital budget
A149: Supporting Table SA37 | B149: Supporting Table SA37 Projects delayed from previous financial year/s | E149: =A149&" Consolidated projects delayed from previous financial year/s" -> Supporting Table SA37 Consolidated projects delayed from previous financial year/s | F149: =A149& " Projects delayed from previous financial year/s" -> Supporting Table SA37 Projects delayed from previous financial year/s
A150: Budget Charts | B150: Charts | C150: Cross reference
A151: Chart A1 | B151: =A151&"Revenue by Municipal Vote" -> Chart A1 Revenue by Municipal Vote
A152: Chart A2 | B152: =A152&"Expenditure by Municipal Vote" -> Chart A2 Expenditure by Municipal Vote
A153: Chart A3 | B153: =A153&"Revenue by Standard Classification" -> Chart A3 Revenue by Standard Classification | C153: A2
A154: Chart A4 | B154: =A154&"Expenditure by Standard Classification" -> Chart A4 Expenditure by Standard Classification | C154: A2
A155: Chart A5 | B155: =A155&"Revenue by Major Source (refer 'Minor' source for 'Other Revenue' allocation" -> Chart A5 Revenue by Major Source (refer 'Minor' source for 'Other Revenue' allocation | C155: A3
A156: Chart A6 | B156: =A156&"Revenue by Minor Source (Other)" -> Chart A6 Revenue by Minor Source (Other) | C156: A3
A157: Chart A7 | B157: =A157&"Expenditure by Major Type" -> Chart A7 Expenditure by Major Type | C157: A3
A158: Chart A8 | B158: =A158&"Expenditure by Minor Type (Other)" -> Chart A8 Expenditure by Minor Type (Other) | C158: A3
A159: Chart A9 | B159: =A159&"Capital Expenditure by Municipal Vote/Appropriation (Major)" -> Chart A9 Capital Expenditure by Municipal Vote/Appropriation (Major) | C159: A5
A160: Chart A10 | B160: =A160&"Capital Expenditure by Municipal Vote/Appropriation (Minor)" -> Chart A10 Capital Expenditure by Municipal Vote/Appropriation (Minor) | C160: A5
A161: Chart A11 | B161: =A160&"Capital Expenditure by Standard Classification" -> Chart A10 Capital Expenditure by Standard Classification | C161: A5
A162: Chart A12 | B162: =A162&"Capital expenditure performance trend" -> Chart A12 Capital expenditure performance trend | C162: A5
A163: Chart A13 | B163: =A163&"Capital funding by Source" -> Chart A13 Capital funding by Source | C163: A5
A164: Chart A14 | B164: =A164&"Cash flow trend" -> Chart A14 Cash flow trend | C164: A7
A165: Chart A15 | B165: =A165&"IDP Strategic Objective - Revenue" -> Chart A15 IDP Strategic Objective - Revenue | C165: Table A4
A166: Chart A16 | B166: =A166&"IDP Strategic Objective - Expenditure" -> Chart A16 IDP Strategic Objective - Expenditure | C166: Table A5
A167: Chart A17 | B167: =A167&"IDP Strategic Objective - Capital Expenditure" -> Chart A17 IDP Strategic Objective - Capital Expenditure | C167: Table A6
A168: Chart A18 | B168: =A168&"Debt (borrowing to Total Revenue)" -> Chart A18 Debt (borrowing to Total Revenue) | C168: Table A8
A169: Chart A19 | B169: =A169&"Debtors' trend analysis" -> Chart A19 Debtors' trend analysis | C169: Table A8
A170: Chart A20 | B170: =A170&"Distribution losses" -> Chart A20 Distribution losses | C170: Table A8
A171: Chart A21 | B171: =A171&"Borrowed funding of capital expenditure" -> Chart A21 Borrowed funding of capital expenditure | C171: Table A8
A172: Chart A22 | B172: =A172&"Expenditure analysis (% of Revenue)" -> Chart A22 Expenditure analysis (% of Revenue) | C172: Table A8
A173: Chart A23 | B173: =A173&"Increases in service charges" -> Chart A23 Increases in service charges | C173: Table A10

Sheet Lookup and lists (hidden)
A1: Description | B1: 2007 | C1: 2008 | D1: 2009 | E1: 2010 | F1: 2011 | G1: 2012 | H1: 2013 | I1: 2014 | J1: 2015 | K1: 2016 | L1: 2017 | M1: 2018 | N1: 2019 | O1: 2020 | Q1: Lists | Y1: Grants: | Z1: National - opex | AA1: Provincial - opex | AB1: National - capex | AC1: Provincial - capex
A2: ='Template names'!C2 -> Prior year -1 | B2: 2005/06 | C2: 2006/07 | D2: 2007/08 | E2: =E1-2&"/"&RIGHT(E1,2)-1 -> 2008/9 | F2: 2009/10 | G2: 2010/11 | H2: 2011/12 | I2: 2012/13 | J2: 2013/14 | K2: 2014/15 | L2: 2015/16 | M2: 2016/17 | N2: 2017/18 | O2: 2018/19 | Q2: Yes | R2: <1 | S2: <4 | T2: Market | U2: Land & impr. | V2: Yes | W2: Uniform | X2: Yrs | Z2: Local Government Equitable Share | AA2: Health subsidy | AB2: Municipal Infrastructure Grant (MIG) | AC2: Agriculture
A3: ='Template names'!C3 -> Prior year -2 | B3: 2004/05 | C3: 2005/06 | D3: 2006/07 | E3: =E1-3&"/"&RIGHT(E1,2)-2 -> 2007/8 | F3: 2008/9 | G3: 2009/10 | H3: 2010/11 | I3: 2011/12 | J3: 2012/13 | K3: 2013/14 | L3: 2014/15 | M3: 2015/16 | N3: 2016/17 | O3: 2017/18 | Q3: No | R3: 1 | S3: 4 | T3: Dep.Replace | U3: Land only | V3: No | W3: Variable | X3: Mths | Z3: RSC Levy Replacement | AA3: Ambulance subsidy | AB3: Public Transport and Systems | AC3: Education
A4: ='Template names'!C4 -> Prior year -3 | B4: 2003/04 | C4: 2004/05 | D4: 2005/06 | E4: =E1-4&"/"&RIGHT(E1,2)-3 -> 2006/7 | F4: 2007/8 | G4: 2008/9 | H4: 2009/10 | I4: 2010/11 | J4: 2011/12 | K4: 2012/13 | L4: 2013/14 | M4: 2014/15 | N4: 2015/16 | O4: 2016/17 | R4: 2 | S4: 5 | T4: Other | U4: Other | Z4: Finance Management | AA4: Housing | AB4: Rural Transport Services and Infrastructure | AC4: Health
A5: ='Template names'!C5 -> Year in which budget is being prepared | B5: Current Year 2006/07 | C5: Current Year 2007/08 | D5: Current Year 2008/09 | E5: ="Current Year "& E1-1&"/"&RIGHT(E1,2) -> Current Year 2009/10 | F5: Current Year 2010/11 | G5: Current Year 2011/12 | H5: Current Year 2012/13 | I5: Current Year 2013/14 | J5: Current Year 2014/15 | K5: Current Year 2015/16 | L5: Current Year 2016/17 | M5: Current Year 2017/18 | N5: Current Year 2018/19 | O5: Current Year 2019/20 | R5: 3 | S5: 6 | Z5: Municipal Systems Improvement | AA5: Sport and Recreation | AB5: Regional Bulk Infrastructure | AC5: Housing and Local Government
A6: ='Template names'!C6 -> Year in which budget is being prepared | B6: 2006/07 | C6: 2007/08 | D6: 2008/09 | E6: =E1-1&"/"&RIGHT(E1,2) -> 2009/10 | F6: 2010/11 | G6: 2011/12 | H6: 2012/13 | I6: 2013/14 | J6: 2014/15 | K6: 2015/16 | L6: 2016/17 | M6: 2017/18 | N6: 2018/19 | O6: 2019/20 | R6: 4 | S6: 6-10 | Z6: Water Services Operating Subsidy | AB6: Rural Households Infrastructure | AC6: Other Departments
A7: ='Template names'!C7 -> MTREF name | B7: 2007/08 Medium Term Revenue & Expenditure Framework | C7: 2008/09 Medium Term Revenue & Expenditure Framework | D7: 2009/10 Medium Term Revenue & Expenditure Framework | E7: =E1&"/"&RIGHT(E1,2)+1&" Medium Term Revenue & Expenditure Framework" -> 2010/11 Medium Term Revenue & Expenditure Framework | F7: 2011/12 Medium Term Revenue & Expenditure Framework | G7: 2012/13 Medium Term Revenue & Expenditure Framework | H7: 2013/14 Medium Term Revenue & Expenditure Framework | I7: 2014/15 Medium Term Revenue & Expenditure Framework | J7: 2015/16 Medium Term Revenue & Expenditure Framework | K7: 2016/17 Medium Term Revenue & Expenditure Framework | L7: 2017/18 Medium Term Revenue & Expenditure Framework | M7: 2018/19 Medium Term Revenue & Expenditure Framework | N7: 2019/20 Medium Term Revenue & Expenditure Framework | O7: 2020/21 Medium Term Revenue & Expenditure Framework | R7: 5 | S7: >10 | Z7: Energy Efficiency and Demand Management | AB7: Neighbourhood Development Partnership | AC7: Public Works, Roads, Transport
A8: ='Template names'!C15 -> 1st year of MTREF | B8: Budget Year 2007/08 | C8: Budget Year 2008/09 | D8: Budget Year 2009/10 | E8: ="Budget Year "&E1&"/"&RIGHT(E1,2)+1 -> Budget Year 2010/11 | F8: Budget Year 2011/12 | G8: Budget Year 2012/13 | H8: Budget Year 2013/14 | I8: Budget Year 2014/15 | J8: Budget Year 2015/16 | K8: Budget Year 2016/17 | L8: Budget Year 2017/18 | M8: Budget Year 2018/19 | N8: Budget Year 2019/20 | O8: Budget Year 2020/21 | R8: >5 | Z8: Integrated National Electrification Programme | AB8: 2010 FIFA World Cup Stadiums Development | AC8: Sport and Recreation
A9: ='Template names'!C16 -> 2nd year of MTREF | B9: Budget Year +1 2008/09 | C9: Budget Year +1 2009/10 | D9: Budget Year +1 2010/11 | E9: ="Budget Year +1 "&E1+1&"/"&RIGHT(E1,2)+2 -> Budget Year +1 2011/12 | F9: Budget Year +1 2012/13 | G9: Budget Year +1 2013/14 | H9: Budget Year +1 2014/15 | I9: Budget Year +1 2015/16 | J9: Budget Year +1 2016/17 | K9: Budget Year +1 2017/18 | L9: Budget Year +1 2018/19 | M9: Budget Year +1 2019/20 | N9: Budget Year +1 2020/21 | O9: Budget Year +1 2021/22 | Z9: Municipal Drought Relief
A10: ='Template names'!C17 -> 3rd year of MTREF | B10: Budget Year +2 2009/10 | C10: Budget Year +2 2010/11 | D10: Budget Year +2 2011/12 | E10: ="Budget Year +2 "&E1+2&"/"&RIGHT(E1,2)+3 -> Budget Year +2 2012/13 | F10: Budget Year +2 2013/14 | G10: Budget Year +2 2014/15 | H10: Budget Year +2 2015/16 | I10: Budget Year +2 2016/17 | J10: Budget Year +2 2017/18 | K10: Budget Year +2 2018/19 | L10: Budget Year +2 2019/20 | M10: Budget Year +2 2020/21 | N10: Budget Year +2 2021/22 | O10: Budget Year +2 2022/23 | Z10: 2010 FIFA World Cup Operating
A11: ='Template names'!C18 -> 1st yr of long term forecast | B11: Forecast 2010/11 | C11: Forecast 2011/12 | D11: Forecast 2012/13 | E11: ="Forecast "&E1+3&"/"&RIGHT(E1,2)+4 -> Forecast 2013/14 | F11: Forecast 2014/15 | G11: Forecast 2015/16 | H11: Forecast 2016/17 | I11: Forecast 2017/18 | J11: Forecast 2018/19 | K11: Forecast 2019/20 | L11: Forecast 2020/21 | M11: Forecast 2021/22 | N11: Forecast 2022/23 | O11: Forecast 2023/24 | Z11: Electricity Demand Side Management
A12: ='Template names'!C19 -> Next yr of long term forecast | B12: Forecast 2011/12 | C12: Forecast 2012/13 | D12: Forecast 2013/14 | E12: ="Forecast "&E1+4&"/"&RIGHT(E1,2)+5 -> Forecast 2014/15 | F12: Forecast 2015/16 | G12: Forecast 2016/17 | H12: Forecast 2017/18 | I12: Forecast 2018/19 | J12: Forecast 2019/20 | K12: Forecast 2020/21 | L12: Forecast 2021/22 | M12: Forecast 2022/23 | N12: Forecast 2023/24 | O12: Forecast 2024/25 | Z12: EPWP Incentive
A13: ='Template names'!C20 -> Next yr of long term forecast | B13: Forecast 2012/13 | C13: Forecast 2013/14 | D13: Forecast 2014/15 | E13: ="Forecast "&E1+5&"/"&RIGHT(E1,2)+6 -> Forecast 2015/16 | F13: Forecast 2016/17 | G13: Forecast 2017/18 | H13: Forecast 2018/19 | I13: Forecast 2019/20 | J13: Forecast 2020/21 | K13: Forecast 2021/22 | L13: Forecast 2022/23 | M13: Forecast 2023/24 | N13: Forecast 2024/25 | O13: Forecast 2025/26
A14: ='Template names'!C21 -> Next yr of long term forecast | B14: Forecast 2013/14 | C14: Forecast 2014/15 | D14: Forecast 2015/16 | E14: ="Forecast "&E1+6&"/"&RIGHT(E1,2)+7 -> Forecast 2016/17 | F14: Forecast 2017/18 | G14: Forecast 2018/19 | H14: Forecast 2019/20 | I14: Forecast 2020/21 | J14: Forecast 2021/22 | K14: Forecast 2022/23 | L14: Forecast 2023/24 | M14: Forecast 2024/25 | N14: Forecast 2025/26 | O14: Forecast 2026/27
A15: ='Template names'!C22 -> Next yr of long term forecast | B15: Forecast 2014/15 | C15: Forecast 2015/16 | D15: Forecast 2016/17 | E15: ="Forecast "&E1+7&"/"&RIGHT(E1,2)+8 -> Forecast 2017/18 | F15: Forecast 2018/19 | G15: Forecast 2019/20 | H15: Forecast 2020/21 | I15: Forecast 2021/22 | J15: Forecast 2022/23 | K15: Forecast 2023/24 | L15: Forecast 2024/25 | M15: Forecast 2025/26 | N15: Forecast 2026/27 | O15: Forecast 2027/28
A16: ='Template names'!C23 -> Next yr of long term forecast | B16: Forecast 2015/16 | C16: Forecast 2016/17 | D16: Forecast 2017/18 | E16: ="Forecast "&E1+8&"/"&RIGHT(E1,2)+9 -> Forecast 2018/19 | F16: Forecast 2019/20 | G16: Forecast 2020/21 | H16: Forecast 2021/22 | I16: Forecast 2022/23 | J16: Forecast 2023/24 | K16: Forecast 2024/25 | L16: Forecast 2025/26 | M16: Forecast 2026/27 | N16: Forecast 2027/28 | O16: Forecast 2028/29
A17: ='Template names'!C24 -> Next yr of long term forecast | B17: Forecast 2016/17 | C17: Forecast 2017/18 | D17: Forecast 2018/19 | E17: ="Forecast "&E1+9&"/"&RIGHT(E1,2)+10 -> Forecast 2019/20 | F17: Forecast 2020/21 | G17: Forecast 2021/22 | H17: Forecast 2022/23 | I17: Forecast 2023/24 | J17: Forecast 2024/25 | K17: Forecast 2025/26 | L17: Forecast 2026/27 | M17: Forecast 2027/28 | N17: Forecast 2028/29 | O17: Forecast 2029/30
A18: ='Template names'!C25 -> Next yr of long term forecast | B18: Forecast 2017/18 | C18: Forecast 2018/19 | D18: Forecast 2019/20 | E18: ="Forecast "&E1+10&"/"&RIGHT(E1,2)+11 -> Forecast 2020/21 | F18: Forecast 2021/22 | G18: Forecast 2022/23 | H18: Forecast 2023/24 | I18: Forecast 2024/25 | J18: Forecast 2025/26 | K18: Forecast 2026/27 | L18: Forecast 2027/28 | M18: Forecast 2028/29 | N18: Forecast 2029/30 | O18: Forecast 2030/31
A19: ='Template names'!C26 -> Next yr of long term forecast | B19: Forecast 2018/19 | C19: Forecast 2019/20 | D19: Forecast 2020/21 | E19: ="Forecast "&E1+11&"/"&RIGHT(E1,2)+12 -> Forecast 2021/22 | F19: Forecast 2022/23 | G19: Forecast 2023/24 | H19: Forecast 2024/25 | I19: Forecast 2025/26 | J19: Forecast 2026/27 | K19: Forecast 2027/28 | L19: Forecast 2028/29 | M19: Forecast 2029/30 | N19: Forecast 2030/31 | O19: Forecast 2031/32
A20: ='Template names'!C27 -> Next yr of long term forecast | B20: Forecast 2019/20 | C20: Forecast 2020/21 | D20: Forecast 2021/22 | E20: ="Forecast "&E1+12&"/"&RIGHT(E1,2)+13 -> Forecast 2022/23 | F20: Forecast 2023/24 | G20: Forecast 2024/25 | H20: Forecast 2025/26 | I20: Forecast 2026/27 | J20: Forecast 2027/28 | K20: Forecast 2028/29 | L20: Forecast 2029/30 | M20: Forecast 2030/31 | N20: Forecast 2031/32 | O20: Forecast 2032/33
A21: ='Template names'!C28 -> Next yr of long term forecast | B21: Forecast 2020/21 | C21: Forecast 2021/22 | D21: Forecast 2022/23 | E21: ="Forecast "&E1+13&"/"&RIGHT(E1,2)+14 -> Forecast 2023/24 | F21: Forecast 2024/25 | G21: Forecast 2025/26 | H21: Forecast 2026/27 | I21: Forecast 2027/28 | J21: Forecast 2028/29 | K21: Forecast 2029/30 | L21: Forecast 2030/31 | M21: Forecast 2031/32 | N21: Forecast 2032/33 | O21: Forecast 2033/34
A22: ='Template names'!C29 -> Next yr of long term forecast | B22: Forecast 2021/22 | C22: Forecast 2022/23 | D22: Forecast 2023/24 | E22: ="Forecast "&E1+14&"/"&RIGHT(E1,2)+15 -> Forecast 2024/25 | F22: Forecast 2025/26 | G22: Forecast 2026/27 | H22: Forecast 2027/28 | I22: Forecast 2028/29 | J22: Forecast 2029/30 | K22: Forecast 2030/31 | L22: Forecast 2031/32 | M22: Forecast 2032/33 | N22: Forecast 2033/34 | O22: Forecast 2034/35
A23: Adjustments Budget | B23: Annual target 2007/08 | C23: Annual target 2008/09 | D23: Annual target 2009/10 | E23: ="Annual target " & E1&"/"&RIGHT(E1,2)+1 -> Annual target 2010/11 | F23: Annual target 2011/12 | G23: Annual target 2012/13 | H23: Annual target 2013/14 | I23: Annual target 2014/15 | J23: Annual target 2015/16 | K23: Annual target 2016/17 | L23: Annual target 2017/18 | M23: Annual target 2018/19 | N23: Annual target 2019/20 | O23: Annual target 2020/21
A24: =A23 -> Adjustments Budget | B24: Revised target 2007/08 | C24: Revised target 2008/09 | D24: Revised target 2009/10 | E24: ="Revised target "& E1&"/"&RIGHT(E1,2)+1 -> Revised target 2010/11 | F24: Revised target 2011/12 | G24: Revised target 2012/13 | H24: Revised target 2013/14 | I24: Revised target 2014/15 | J24: Revised target 2015/16 | K24: Revised target 2016/17 | L24: Revised target 2017/18 | M24: Revised target 2018/19 | N24: Revised target 2019/20 | O24: Revised target 2020/21
A25: NOTE: This sheet should not be directly amended - select headings from sheet 'S'
A27: Name link | B27: 119
A28: Name of Muni | B28: =INDEX(B29:B313,B27,1) -> GT485 Batho Pele City
B29: Choose name from list | C29: Set name on 'Instructions' sheet
B30: DC1 West Coast | C30: WC WESTERN CAPE
B31: DC10 Cacadu | C31: EC EASTERN CAPE
B32: DC12 Amathole | C32: EC EASTERN CAPE
B33: DC13 Chris Hani | C33: EC EASTERN CAPE
B34: DC14 Joe Gqabi | C34: EC EASTERN CAPE
B35: DC15 O .R. Tambo | C35: EC EASTERN CAPE
B36: DC16 Xhariep | C36: FS FREE STATE
B37: DC17 Motheo | C37: FS FREE STATE
B38: DC18 Lejweleputswa | C38: FS FREE STATE
B39: DC19 Thabo Mofutsanyana | C39: FS FREE STATE
B40: DC2 Cape Winelands | C40: WC WESTERN CAPE
B41: DC20 Fezile Dabi | C41: FS FREE STATE
B42: DC21 Ugu | C42: KZN KWAZULU-NATAL
B43: DC22 uMgungundlovu | C43: KZN KWAZULU-NATAL
B44: DC23 Uthukela | C44: KZN KWAZULU-NATAL
B45: DC24 Umzinyathi | C45: KZN KWAZULU-NATAL
B46: DC25 Amajuba | C46: KZN KWAZULU-NATAL
B47: DC26 Zululand | C47: KZN KWAZULU-NATAL
B48: DC27 Umkhanyakude | C48: KZN KWAZULU-NATAL
B49: DC28 uThungulu | C49: KZN KWAZULU-NATAL
B50: DC29 iLembe | C50: KZN KWAZULU-NATAL
B51: DC3 Overberg | C51: WC WESTERN CAPE
B52: DC30 Gert Sibande | C52: MP MPUMALANGA
B53: DC31 Nkangala | C53: MP MPUMALANGA
B54: DC32 Ehlanzeni | C54: MP MPUMALANGA
B55: DC33 Mopani | C55: LP LIMPOPO
B56: DC34 Vhembe | C56: LP LIMPOPO
B57: DC35 Capricorn | C57: LP LIMPOPO
B58: DC36 Waterberg | C58: LP LIMPOPO
B59: DC37 Bojanala Platinum | C59: NW NORTH WEST
B60: DC38 Ngaka Modiri Molema | C60: NW NORTH WEST
B61: DC39 Dr Ruth Segomotsi Mompati | C61: NW NORTH WEST
B62: DC4 Eden | C62: WC WESTERN CAPE
B63: DC40 Dr Kenneth Kaunda | C63: NW NORTH WEST
B64: DC42 Sedibeng | C64: GT GAUTENG
B65: DC43 Sisonke | C65: KZN KWAZULU-NATAL
B66: DC44 Alfred Nzo | C66: EC EASTERN CAPE
B67: DC45 John Taolo Gaetsewe | C67: NC NORTHERN CAPE
B68: DC46 Metsweding | C68: GT GAUTENG
B69: DC47 Greater Sekhukhune | C69: LP LIMPOPO
B70: DC48 West Rand | C70: GT GAUTENG
B71: DC5 Central Karoo | C71: WC WESTERN CAPE
B72: DC6 Namakwa | C72: NC NORTHERN CAPE
B73: DC7 Pixley Ka Seme (NC) | C73: NC NORTHERN CAPE
B74: DC8 Siyanda | C74: NC NORTHERN CAPE
B75: DC9 Frances Baard | C75: NC NORTHERN CAPE
B76: EC000 Nelson Mandela Bay | C76: EC EASTERN CAPE
B77: EC101 Camdeboo | C77: EC EASTERN CAPE
B78: EC102 Blue Crane Route | C78: EC EASTERN CAPE
B79: EC103 Ikwezi | C79: EC EASTERN CAPE
B80: EC104 Makana | C80: EC EASTERN CAPE
B81: EC105 Ndlambe | C81: EC EASTERN CAPE
B82: EC106 Sundays River Valley | C82: EC EASTERN CAPE
B83: EC107 Baviaans | C83: EC EASTERN CAPE
B84: EC108 Kouga | C84: EC EASTERN CAPE
B85: EC109 Kou-Kamma | C85: EC EASTERN CAPE
B86: EC121 Mbhashe | C86: EC EASTERN CAPE
B87: EC122 Mnquma | C87: EC EASTERN CAPE
B88: EC123 Great Kei | C88: EC EASTERN CAPE
B89: EC124 Amahlathi | C89: EC EASTERN CAPE
B90: EC125 Buffalo City | C90: EC EASTERN CAPE
B91: EC126 Ngqushwa | C91: EC EASTERN CAPE
B92: EC127 Nkonkobe | C92: EC EASTERN CAPE
B93: EC128 Nxuba | C93: EC EASTERN CAPE
B94: EC131 Inxuba Yethemba | C94: EC EASTERN CAPE
B95: EC132 Tsolwana | C95: EC EASTERN CAPE
B96: EC133 Inkwanca | C96: EC EASTERN CAPE
B97: EC134 Lukhanji | C97: EC EASTERN CAPE
B98: EC135 Intsika Yethu | C98: EC EASTERN CAPE
B99: EC136 Emalahleni (Ec) | C99: EC EASTERN CAPE
B100: EC137 Engcobo | C100: EC EASTERN CAPE
B101: EC138 Sakhisizwe | C101: EC EASTERN CAPE
B102: EC141 Elundini | C102: EC EASTERN CAPE
B103: EC142 Senqu | C103: EC EASTERN CAPE
B104: EC143 Maletswai | C104: EC EASTERN CAPE
B105: EC144 Gariep | C105: EC EASTERN CAPE
B106: EC151 Mbizana | C106: EC EASTERN CAPE
B107: EC152 Ntabankulu | C107: EC EASTERN CAPE
B108: EC153 Ngquza Hills | C108: EC EASTERN CAPE
B109: EC154 Port St Johns | C109: EC EASTERN CAPE
B110: EC155 Nyandeni | C110: EC EASTERN CAPE
B111: EC156 Mhlontlo | C111: EC EASTERN CAPE
B112: EC157 King Sabata Dalindyebo | C112: EC EASTERN CAPE
B113: EC441 Matatiele | C113: EC EASTERN CAPE
B114: EC442 Umzimvubu | C114: EC EASTERN CAPE
B115: FS161 Letsemeng | C115: FS FREE STATE
B116: FS162 Kopanong | C116: FS FREE STATE
B117: FS163 Mohokare | C117: FS FREE STATE
B118: FS171 Naledi (Fs) | C118: FS FREE STATE
B119: FS172 Mangaung | C119: FS FREE STATE
B120: FS173 Mantsopa | C120: FS FREE STATE
B121: FS181 Masilonyana | C121: FS FREE STATE
B122: FS182 Tokologo | C122: FS FREE STATE
B123: FS183 Tswelopele | C123: FS FREE STATE
B124: FS184 Matjhabeng | C124: FS FREE STATE
B125: FS185 Nala | C125: FS FREE STATE
B126: FS191 Setsoto | C126: FS FREE STATE
B127: FS192 Dihlabeng | C127: FS FREE STATE
B128: FS193 Nketoana | C128: FS FREE STATE
B129: FS194 Maluti-a-Phofung | C129: FS FREE STATE
B130: FS195 Phumelela | C130: FS FREE STATE
B131: FS201 Moqhaka | C131: FS FREE STATE
B132: FS203 Ngwathe | C132: FS FREE STATE
B133: FS204 Metsimaholo | C133: FS FREE STATE
B134: FS205 Mafube | C134: FS FREE STATE
B135: GT000 Ekurhuleni Metro | C135: GT GAUTENG
B136: GT001 City Of Johannesburg | C136: GT GAUTENG
B137: GT002 City Of Tshwane | C137: GT GAUTENG
B138: GT421 Emfuleni | C138: GT GAUTENG
B139: GT422 Midvaal | C139: GT GAUTENG
B140: GT423 Lesedi | C140: GT GAUTENG
B141: GT461 Nokeng Tsa Taemane | C141: GT GAUTENG
B142: GT462 Kungwini | C142: GT GAUTENG
B143: GT481 Mogale City | C143: GT GAUTENG
B144: GT482 Randfontein | C144: GT GAUTENG
B145: GT483 Westonaria | C145: GT GAUTENG
B146: GT484 Merafong City | C146: GT GAUTENG
B147: GT485 Batho Pele City | C147: GT GAUTENG
B148: KZN000 eThekwini | C148: KZN KWAZULU-NATAL
B149: KZN211 Vulamehlo | C149: KZN KWAZULU-NATAL
B150: KZN212 Umdoni | C150: KZN KWAZULU-NATAL
B151: KZN213 Umzumbe | C151: KZN KWAZULU-NATAL
B152: KZN214 uMuziwabantu | C152: KZN KWAZULU-NATAL
B153: KZN215 Ezinqoleni | C153: KZN KWAZULU-NATAL
B154: KZN216 Hibiscus Coast | C154: KZN KWAZULU-NATAL
B155: KZN221 uMshwathi | C155: KZN KWAZULU-NATAL
B156: KZN222 uMngeni | C156: KZN KWAZULU-NATAL
B157: KZN223 Mpofana | C157: KZN KWAZULU-NATAL
B158: KZN224 Impendle | C158: KZN KWAZULU-NATAL
B159: KZN225 Msunduzi | C159: KZN KWAZULU-NATAL
B160: KZN226 Mkhambathini | C160: KZN KWAZULU-NATAL
B161: KZN227 Richmond | C161: KZN KWAZULU-NATAL
B162: KZN232 Emnambithi/Ladysmith | C162: KZN KWAZULU-NATAL
B163: KZN233 Indaka | C163: KZN KWAZULU-NATAL
B164: KZN234 Umtshezi | C164: KZN KWAZULU-NATAL
B165: KZN235 Okhahlamba | C165: KZN KWAZULU-NATAL
B166: KZN236 Imbabazane | C166: KZN KWAZULU-NATAL
B167: KZN241 Endumeni | C167: KZN KWAZULU-NATAL
B168: KZN242 Nquthu | C168: KZN KWAZULU-NATAL
B169: KZN244 Msinga | C169: KZN KWAZULU-NATAL
B170: KZN245 Umvoti | C170: KZN KWAZULU-NATAL
B171: KZN252 Newcastle | C171: KZN KWAZULU-NATAL
B172: KZN253 eMadlangeni | C172: KZN KWAZULU-NATAL
B173: KZN254 Dannhauser | C173: KZN KWAZULU-NATAL
B174: KZN261 eDumbe | C174: KZN KWAZULU-NATAL
B175: KZN262 uPhongolo | C175: KZN KWAZULU-NATAL
B176: KZN263 Abaqulusi | C176: KZN KWAZULU-NATAL
B177: KZN265 Nongoma | C177: KZN KWAZULU-NATAL
B178: KZN266 Ulundi | C178: KZN KWAZULU-NATAL
B179: KZN271 Umhlabuyalingana | C179: KZN KWAZULU-NATAL
B180: KZN272 Jozini | C180: KZN KWAZULU-NATAL
B181: KZN273 The Big 5 False Bay | C181: KZN KWAZULU-NATAL
B182: KZN274 Hlabisa | C182: KZN KWAZULU-NATAL
B183: KZN275 Mtubatuba | C183: KZN KWAZULU-NATAL
B184: KZN281 Mfolozi | C184: KZN KWAZULU-NATAL
B185: KZN282 uMhlathuze | C185: KZN KWAZULU-NATAL
B186: KZN283 Ntambanana | C186: KZN KWAZULU-NATAL
B187: KZN284 uMlalazi | C187: KZN KWAZULU-NATAL
B188: KZN285 Mthonjaneni | C188: KZN KWAZULU-NATAL
B189: KZN286 Nkandla | C189: KZN KWAZULU-NATAL
B190: KZN291 Mandeni | C190: KZN KWAZULU-NATAL
B191: KZN292 KwaDukuza | C191: KZN KWAZULU-NATAL
B192: KZN293 Ndwedwe | C192: KZN KWAZULU-NATAL
B193: KZN294 Maphumulo | C193: KZN KWAZULU-NATAL
B194: KZN431 Ingwe | C194: KZN KWAZULU-NATAL
B195: KZN432 Kwa Sani | C195: KZN KWAZULU-NATAL
B196: KZN433 Greater Kokstad | C196: KZN KWAZULU-NATAL
B197: KZN434 Ubuhlebezwe | C197: KZN KWAZULU-NATAL
B198: KZN435 Umzimkhulu | C198: KZN KWAZULU-NATAL
B199: LIM331 Greater Giyani | C199: LP LIMPOPO
B200: LIM332 Greater Letaba | C200: LP LIMPOPO
B201: LIM333 Greater Tzaneen | C201: LP LIMPOPO
... 112 more rows

Sheet Org structure
A1: Organisational structure votes (if required) | B1: Organisational structure sub-votes (if required)
A2: =C2&" - "&B2 -> Vote1 - Governance and Administration | B2: Governance and Administration | C2: Vote1
A3: =C13&" - "& B13 -> Vote2 - Corporate Services | B3: Political Office
A4: =C31&" - "&B31 -> Vote3 - Assessment Rates and Other | B4: Marketing
A5: =C42&" - "&B42 -> Vote4 - Finance Services | B5: Operations (COO)
A6: =C53&" - "&B53 -> Vote5 - Safety and Security | B6: Administrative Services
A7: =C64&" - "&B64 -> Vote6 - Planning and Economic Development | B7: Secretarial Services
A8: =C75&" - "&B75 -> Vote7 - Health and Social Development | B8: Human Resources
A9: =C86&" - "&B86 -> Vote8 - Sport, Recreation and Community Services | B9: Municipal Manager
A10: =C98&" - "&B98 -> Vote9 - Housing | B10: Internal Audit
A11: =C109&" - "&B109 -> Vote10 - Environmental Management and Agriculture
A12: =C120&" - "&B120 -> Vote11 - Transport and Roads
A13: =C131&" - "&B131 -> Vote12 - Electricity | B13: Corporate Services | C13: Vote2
A14: =C149&" - "&B149 -> Vote13 - Waste Water | B14: ICT Services
A15: =C160&" - "&B160 -> Vote14 - Water | B15: Administrative Services
A16: =C171&" - "&B171 -> Vote15 - Example 15 | B16: Legal Services
B17: Office of the Strategic Executive
B18: Human Resources
B19: Customer Care
B20: Catering
B21: Property Services
B22: Municipal Headquarters
B23: Property Management Administration
B24: Logistical Services
B25: Management and Administration Municipal Training Centre
B26: Administrative Services
B27: Building Management
B31: Assessment Rates and Other | C31: Vote3
B32: Assessment Rates and Other
B42: Finance Services | C42: Vote4
B43: Finance Department
B44: Logistical Services
B45: Provisioning Services
B46: Property Valuation
B53: Safety and Security | C53: Vote5
B54: Fire Brigade
B55: Operational Support and Support Services
B56: Disaster Management
B57: Metropolitan Police Services
B58: Parking Garages and Areas
B64: Planning and Economic Development | C64: Vote6
B65: Operations
B66: Economic Development
B67: Mechanical Maintenance
B68: City Planning
B69: Quantity Surveying
B70: Architectural Services
B75: Health and Social Development | C75: Vote7
B76: Emergency Medical and Ambulance Services
B77: Integrated Community Develompent
B78: Health Services and Clinics
B86: Sport, Recreation and Community Services | C86: Vote8
B87: Library
B88: Culture
B89: Sport and Recreation
B90: Educational Services
B91: Events and Special Projects
B92: Education and Development
B98: Housing | C98: Vote9
B99: Urban Development Projects
B100: Housing Administration
B101: Assisted Housing
B102: Economic Housing
B103: Housing: Selling Schemes
B104: Housing Taken Over From Government
B109: Environmental Management and Agriculture | C109: Vote10
B110: Environmental Health
B111: Waste Management
B112: Solid Waste Services
B113: Culture and Recreation
B114: Horticulture
B115: Conservation and Resorts
B116: Cemetries
B117: Fresh-Produce Market
B120: Transport and Roads | C120: Vote11
B121: Roads and Storm Water
B122: Transport Infrastructure
B123: Transport Services
B124: Airport
B131: Electricity | C131: Vote12
B132: Electricity Distribution Systmes
B133: Electro Technical
B134: Specialist Engineering
B135: Technical Support Services
B136: Power Stations and Opearations
B137: Primary Power Distribution
B138: Electricity Eskom Areas
B149: Waste Water | C149: Vote13
B150: Waste Water Treatment
B151: Waste Water Collection
B160: Water | C160: Vote14
B161: Water Supply
B171: Example 15 | C171: Vote15
B172: Subvote example 15
B173: Subvote example 15
B174: Subvote example 15
B175: Subvote example 15
B176: Subvote example 15
B177: Subvote example 15
B178: Subvote example 15
B179: Subvote example 15
B180: Subvote example 15
B181: Subvote example 15

Sheet Contacts
A1: =muni&" - "&" Contact Information" -> GT485 Batho Pele City - Contact Information
A3: A. GENERAL INFORMATION
A4: Municipality | B4: =muni -> GT485 Batho Pele City | C4: Set name on 'Instructions' sheet
A6: Grade | C6: 1 Grade in terms of the Remuneration of Public Office Bearers Act.
A8: Province | B8: =IF(B4>" ",VLOOKUP(B4,'Lookup and lists'!B29:C313,2)," ") -> GT GAUTENG
A10: Web Address
A12: e-mail Address
A14: B. CONTACT INFORMATION
A15: Postal address:
A16: P.O. Box
A17: City / Town
A18: Postal Code
A20: Street address
A21: Building
A22: Street No. & Name
A23: City / Town
A24: Postal Code
A26: General Contacts
A27: Telephone number
A28: Fax number
A30: C. POLITICAL LEADERSHIP
A31: Speaker: | C31: Secretary/PA to the Speaker:
A32: Name | C32: Name
A33: Telephone number | C33: Telephone number
A34: Cell number | C34: Cell number
A35: Fax number | C35: Fax number
A36: E-mail address | C36: E-mail address
A38: Mayor/Executive Mayor: | C38: Secretary/PA to the Mayor/Executive Mayor:
A39: Name | C39: Name
A40: Telephone number | C40: Telephone number
A41: Cell number | C41: Cell number
A42: Fax number | C42: Fax number
A43: E-mail address | C43: E-mail address
A45: Deputy Mayor/Executive Mayor: | C45: Secretary/PA to the Deputy Mayor/Executive Mayor:
A46: Name | C46: Name
A47: Telephone number | C47: Telephone number
A48: Cell number | C48: Cell number
A49: Fax number | C49: Fax number
A50: E-mail address | C50: E-mail address
A52: D. MANAGEMENT LEADERSHIP
A53: Municipal Manager: | C53: Secretary/PA to the Municipal Manager:
A54: Name | C54: Name
A55: Telephone number | C55: Telephone number
A56: Cell number | C56: Cell number
A57: Fax number | C57: Fax number
A58: E-mail address | C58: E-mail address
A60: Chief Financial Officer | C60: Secretary/PA to the Chief Financial Officer
A61: Name | C61: Name
A62: Telephone number | C62: Telephone number
A63: Cell number | C63: Cell number
A64: Fax number | C64: Fax number
A65: E-mail address | C65: E-mail address
A67: Official responsible for submitting financial information
A68: Name
A69: Telephone number
A70: Cell number
A71: Fax number
A72: E-mail address
A73: Official responsible for submitting financial information
A74: Name
A75: Telephone number
A76: Cell number
A77: Fax number
A78: E-mail address
A79: Official responsible for submitting financial information
A80: Name
A81: Telephone number
A82: Cell number
A83: Fax number
A84: E-mail address

Sheet A1-Sum
A1: =muni&" - "&Approve1 -> GT485 Batho Pele City - Table A1 Budget Summary
A2: =desc -> Description | B2: =head1b -> 2007/8 | C2: =head1A -> 2008/9 | D2: =Head1 -> 2009/10 | E2: =Head2 -> Current Year 2010/11 | I2: =Head3 -> 2011/12 Medium Term Revenue & Expenditure Framework
A3: R thousands | B3: =Head5 -> Audited Outcome | C3: =Head5 -> Audited Outcome | D3: =Head5 -> Audited Outcome | E3: =Head6 -> Original Budget | F3: =Head7 -> Adjusted Budget | G3: =Head8 -> Full Year Forecast | H3: =Head5b -> Pre-audit outcome | I3: =Head9 -> Budget Year 2011/12 | J3: =Head10 -> Budget Year +1 2012/13 | K3: =Head11 -> Budget Year +2 2013/14
A4: Financial Performance
A5: Property rates | B5: ='A4-FinPerf RE'!C5+'A4-FinPerf RE'!C6 -> 1751889721 | C5: ='A4-FinPerf RE'!D5+'A4-FinPerf RE'!D6 -> 2228766026 | D5: ='A4-FinPerf RE'!E5+'A4-FinPerf RE'!E6 -> 2357114548 | E5: ='A4-FinPerf RE'!F5+'A4-FinPerf RE'!F6 -> 2982851000 | F5: ='A4-FinPerf RE'!G5+'A4-FinPerf RE'!G6 -> 2851600789 | G5: ='A4-FinPerf RE'!H5+'A4-FinPerf RE'!H6 -> 2851600789 | H5: ='A4-FinPerf RE'!I5+'A4-FinPerf RE'!I6 -> 0 | I5: ='A4-FinPerf RE'!J5+'A4-FinPerf RE'!J6 -> 3088355894 | J5: ='A4-FinPerf RE'!K5+'A4-FinPerf RE'!K6 -> 3440147418 | K5: ='A4-FinPerf RE'!L5+'A4-FinPerf RE'!L6 -> 3835764374
A6: Service charges | B6: =SUM('A4-FinPerf RE'!C7:C11) -> 4246218404 | C6: =SUM('A4-FinPerf RE'!D7:D11) -> 4765453911 | D6: =SUM('A4-FinPerf RE'!E7:E11) -> 5489103730 | E6: =SUM('A4-FinPerf RE'!F7:F11) -> 7182670500 | F6: =SUM('A4-FinPerf RE'!G7:G11) -> 7183538783 | G6: =SUM('A4-FinPerf RE'!H7:H11) -> 7183538783 | H6: =SUM('A4-FinPerf RE'!I7:I11) -> 0 | I6: =SUM('A4-FinPerf RE'!J7:J11) -> 8492828682 | J6: =SUM('A4-FinPerf RE'!K7:K11) -> 9866100680 | K6: =SUM('A4-FinPerf RE'!L7:L11) -> 11466027379
A7: Investment revenue | B7: ='A4-FinPerf RE'!C13 -> 134186954.6 | C7: ='A4-FinPerf RE'!D13 -> 135554610 | D7: ='A4-FinPerf RE'!E13 -> 122499554 | E7: ='A4-FinPerf RE'!F13 -> 123375534 | F7: ='A4-FinPerf RE'!G13 -> 125996273 | G7: ='A4-FinPerf RE'!H13 -> 125996273 | H7: ='A4-FinPerf RE'!I13 -> 0 | I7: ='A4-FinPerf RE'!J13 -> 120080230 | J7: ='A4-FinPerf RE'!K13 -> 64138735 | K7: ='A4-FinPerf RE'!L13 -> 71375203
A8: Transfers recognised - operational | B8: ='A4-FinPerf RE'!C19 -> 460061305 | C8: ='A4-FinPerf RE'!D19 -> 642009389 | D8: ='A4-FinPerf RE'!E19 -> 587081731 | E8: ='A4-FinPerf RE'!F19 -> 836817000 | F8: ='A4-FinPerf RE'!G19 -> 789624000 | G8: ='A4-FinPerf RE'!H19 -> 789624000 | H8: ='A4-FinPerf RE'!I19 -> 0 | I8: ='A4-FinPerf RE'!J19 -> 1001918000 | J8: ='A4-FinPerf RE'!K19 -> 1118355000 | K8: ='A4-FinPerf RE'!L19 -> 1217891000
A9: Other own revenue | B9: ='A4-FinPerf RE'!C12+'A4-FinPerf RE'!C14+'A4-FinPerf RE'!C15+'A4-FinPerf RE'!C16+'A4-FinPerf RE'!C17+'A4-FinPerf RE'!C18+'A4-FinPerf RE'!C20+'A4-FinPerf RE'!C21 -> 1566889178 | C9: ='A4-FinPerf RE'!D12+'A4-FinPerf RE'!D14+'A4-FinPerf RE'!D15+'A4-FinPerf RE'!D16+'A4-FinPerf RE'!D17+'A4-FinPerf RE'!D18+'A4-FinPerf RE'!D20+'A4-FinPerf RE'!D21 -> 1779540520 | D9: ='A4-FinPerf RE'!E12+'A4-FinPerf RE'!E14+'A4-FinPerf RE'!E15+'A4-FinPerf RE'!E16+'A4-FinPerf RE'!E17+'A4-FinPerf RE'!E18+'A4-FinPerf RE'!E20+'A4-FinPerf RE'!E21 -> 2299020203 | E9: ='A4-FinPerf RE'!F12+'A4-FinPerf RE'!F14+'A4-FinPerf RE'!F15+'A4-FinPerf RE'!F16+'A4-FinPerf RE'!F17+'A4-FinPerf RE'!F18+'A4-FinPerf RE'!F20+'A4-FinPerf RE'!F21 -> 2058736468 | F9: ='A4-FinPerf RE'!G12+'A4-FinPerf RE'!G14+'A4-FinPerf RE'!G15+'A4-FinPerf RE'!G16+'A4-FinPerf RE'!G17+'A4-FinPerf RE'!G18+'A4-FinPerf RE'!G20+'A4-FinPerf RE'!G21 -> 2160666577 | G9: ='A4-FinPerf RE'!H12+'A4-FinPerf RE'!H14+'A4-FinPerf RE'!H15+'A4-FinPerf RE'!H16+'A4-FinPerf RE'!H17+'A4-FinPerf RE'!H18+'A4-FinPerf RE'!H20+'A4-FinPerf RE'!H21 -> 2160666577 | H9: ='A4-FinPerf RE'!I12+'A4-FinPerf RE'!I14+'A4-FinPerf RE'!I15+'A4-FinPerf RE'!I16+'A4-FinPerf RE'!I17+'A4-FinPerf RE'!I18+'A4-FinPerf RE'!I20+'A4-FinPerf RE'!I21 -> 0 | I9: ='A4-FinPerf RE'!J12+'A4-FinPerf RE'!J14+'A4-FinPerf RE'!J15+'A4-FinPerf RE'!J16+'A4-FinPerf RE'!J17+'A4-FinPerf RE'!J18+'A4-FinPerf RE'!J20+'A4-FinPerf RE'!J21 -> 2435435159 | J9: ='A4-FinPerf RE'!K12+'A4-FinPerf RE'!K14+'A4-FinPerf RE'!K15+'A4-FinPerf RE'!K16+'A4-FinPerf RE'!K17+'A4-FinPerf RE'!K18+'A4-FinPerf RE'!K20+'A4-FinPerf RE'!K21 -> 2608991974 | K9: ='A4-FinPerf RE'!L12+'A4-FinPerf RE'!L14+'A4-FinPerf RE'!L15+'A4-FinPerf RE'!L16+'A4-FinPerf RE'!L17+'A4-FinPerf RE'!L18+'A4-FinPerf RE'!L20+'A4-FinPerf RE'!L21 -> 2775223451
A10: ='A4-FinPerf RE'!A22 -> Total Revenue (excluding capital transfers and contributions) | B10: =SUM(B5:B9) -> 8159245563 | C10: 9551324456 | D10: 10854819766 | E10: 1.31844505e+10 | F10: 1.311142642e+10 | G10: 1.311142642e+10 | H10: 0 | I10: 15138617965 | J10: 17097733807 | K10: 19366281407
A11: Employee costs | B11: ='A4-FinPerf RE'!C25 -> 2667809348 | C11: ='A4-FinPerf RE'!D25 -> 2999127409 | D11: ='A4-FinPerf RE'!E25 -> 3295743916 | E11: ='A4-FinPerf RE'!F25 -> 3520655209 | F11: ='A4-FinPerf RE'!G25 -> 3562429820 | G11: ='A4-FinPerf RE'!H25 -> 3562429820 | H11: ='A4-FinPerf RE'!I25 -> 0 | I11: ='A4-FinPerf RE'!J25 -> 4048486186 | J11: ='A4-FinPerf RE'!K25 -> 4354598426 | K11: ='A4-FinPerf RE'!L25 -> 4685963277
A12: Remuneration of councillors | B12: ='A4-FinPerf RE'!C26 -> 45946048.36 | C12: ='A4-FinPerf RE'!D26 -> 44201358 | D12: ='A4-FinPerf RE'!E26 -> 55350803 | E12: ='A4-FinPerf RE'!F26 -> 57962677 | F12: ='A4-FinPerf RE'!G26 -> 57962677 | G12: ='A4-FinPerf RE'!H26 -> 57962677 | H12: ='A4-FinPerf RE'!I26 -> 0 | I12: ='A4-FinPerf RE'!J26 -> 66438149 | J12: ='A4-FinPerf RE'!K26 -> 72879922 | K12: ='A4-FinPerf RE'!L26 -> 79960683
A13: Depreciation & asset impairment | B13: ='A4-FinPerf RE'!C28 -> 707591089 | C13: ='A4-FinPerf RE'!D28 -> 661291521 | D13: ='A4-FinPerf RE'!E28 -> 601797034 | E13: ='A4-FinPerf RE'!F28 -> 905625307 | F13: ='A4-FinPerf RE'!G28 -> 841709274.8 | G13: ='A4-FinPerf RE'!H28 -> 841709274.8 | H13: ='A4-FinPerf RE'!I28 -> 0 | I13: ='A4-FinPerf RE'!J28 -> 912331480 | J13: ='A4-FinPerf RE'!K28 -> 978067000 | K13: ='A4-FinPerf RE'!L28 -> 1139451218
A14: Finance charges | B14: ='A4-FinPerf RE'!C29 -> 364382987 | C14: ='A4-FinPerf RE'!D29 -> 372545321 | D14: ='A4-FinPerf RE'!E29 -> 519534660 | E14: ='A4-FinPerf RE'!F29 -> 518152933 | F14: ='A4-FinPerf RE'!G29 -> 632076067.3 | G14: ='A4-FinPerf RE'!H29 -> 632076067.3 | H14: ='A4-FinPerf RE'!I29 -> 0 | I14: ='A4-FinPerf RE'!J29 -> 715617392 | J14: ='A4-FinPerf RE'!K29 -> 762735889 | K14: ='A4-FinPerf RE'!L29 -> 805283831
A15: Materials and bulk purchases | B15: ='A4-FinPerf RE'!C30+'A4-FinPerf RE'!C31 -> 2493150218 | C15: ='A4-FinPerf RE'!D30+'A4-FinPerf RE'!D31 -> 2773509724 | D15: ='A4-FinPerf RE'!E30+'A4-FinPerf RE'!E31 -> 3074274640 | E15: ='A4-FinPerf RE'!F30+'A4-FinPerf RE'!F31 -> 3849066078 | F15: ='A4-FinPerf RE'!G30+'A4-FinPerf RE'!G31 -> 3838062417 | G15: ='A4-FinPerf RE'!H30+'A4-FinPerf RE'!H31 -> 3838062417 | H15: ='A4-FinPerf RE'!I30+'A4-FinPerf RE'!I31 -> 0 | I15: ='A4-FinPerf RE'!J30+'A4-FinPerf RE'!J31 -> 5073574847 | J15: ='A4-FinPerf RE'!K30+'A4-FinPerf RE'!K31 -> 6219415609 | K15: ='A4-FinPerf RE'!L30+'A4-FinPerf RE'!L31 -> 7615165183
A16: Transfers and grants | B16: ='A4-FinPerf RE'!C33 -> 210111137 | C16: ='A4-FinPerf RE'!D33 -> 276024938 | D16: ='A4-FinPerf RE'!E33 -> 316711311.6 | E16: ='A4-FinPerf RE'!F33 -> 416934237.2 | F16: ='A4-FinPerf RE'!G33 -> 415934237.2 | G16: ='A4-FinPerf RE'!H33 -> 415934237.2 | H16: ='A4-FinPerf RE'!I33 -> 0 | I16: ='A4-FinPerf RE'!J33 -> 443901283.8 | J16: ='A4-FinPerf RE'!K33 -> 506492753.4 | K16: ='A4-FinPerf RE'!L33 -> 585392397.3
A17: Other expenditure | B17: ='A4-FinPerf RE'!C27+'A4-FinPerf RE'!C32+'A4-FinPerf RE'!C34+'A4-FinPerf RE'!C35 -> 1679521311 | C17: ='A4-FinPerf RE'!D27+'A4-FinPerf RE'!D32+'A4-FinPerf RE'!D34+'A4-FinPerf RE'!D35 -> 2495136808 | D17: ='A4-FinPerf RE'!E27+'A4-FinPerf RE'!E32+'A4-FinPerf RE'!E34+'A4-FinPerf RE'!E35 -> 2838012013 | E17: ='A4-FinPerf RE'!F27+'A4-FinPerf RE'!F32+'A4-FinPerf RE'!F34+'A4-FinPerf RE'!F35 -> 3317720388 | F17: ='A4-FinPerf RE'!G27+'A4-FinPerf RE'!G32+'A4-FinPerf RE'!G34+'A4-FinPerf RE'!G35 -> 3169915243 | G17: ='A4-FinPerf RE'!H27+'A4-FinPerf RE'!H32+'A4-FinPerf RE'!H34+'A4-FinPerf RE'!H35 -> 3169915243 | H17: ='A4-FinPerf RE'!I27+'A4-FinPerf RE'!I32+'A4-FinPerf RE'!I34+'A4-FinPerf RE'!I35 -> 0 | I17: ='A4-FinPerf RE'!J27+'A4-FinPerf RE'!J32+'A4-FinPerf RE'!J34+'A4-FinPerf RE'!J35 -> 3419574272 | J17: ='A4-FinPerf RE'!K27+'A4-FinPerf RE'!K32+'A4-FinPerf RE'!K34+'A4-FinPerf RE'!K35 -> 3644368133 | K17: ='A4-FinPerf RE'!L27+'A4-FinPerf RE'!L32+'A4-FinPerf RE'!L34+'A4-FinPerf RE'!L35 -> 3901969972
A18: ='A4-FinPerf RE'!A36 -> Total Expenditure | B18: =SUM(B11:B17) -> 8168512138 | C18: =SUM(C11:C17) -> 9621837078 | D18: 1.070142438e+10 | E18: 1.258611683e+10 | F18: 1.251808974e+10 | G18: 1.251808974e+10 | H18: 0 | I18: 1.467992361e+10 | J18: 1.653855773e+10 | K18: 1.881318656e+10
A19: ='A4-FinPerf RE'!A38 -> Surplus/(Deficit) | B19: =B10-B18 -> -9266575.374 | C19: -70512622.3 | D19: 153395388.1 | E19: 598333673.6 | F19: 593336686.6 | G19: 593336686.6 | H19: 0 | I19: 458694354.3 | J19: 559176075.1 | K19: 553094845.8
A20: ='A4-FinPerf RE'!A39 -> Transfers recognised - capital | B20: ='A4-FinPerf RE'!C39 -> 352011000 | C20: ='A4-FinPerf RE'!D39 -> 408554000 | D20: ='A4-FinPerf RE'!E39 -> 750269000 | E20: ='A4-FinPerf RE'!F39 -> 1350317000 | F20: ='A4-FinPerf RE'!G39 -> 961204000 | G20: ='A4-FinPerf RE'!H39 -> 961204000 | H20: ='A4-FinPerf RE'!I39 -> 0 | I20: ='A4-FinPerf RE'!J39 -> 1041051000 | J20: ='A4-FinPerf RE'!K39 -> 1115022000 | K20: ='A4-FinPerf RE'!L39 -> 1201896000
A21: Contributions recognised - capital & contributed assets | B21: ='A4-FinPerf RE'!C40+'A4-FinPerf RE'!C41 -> 46833501 | C21: ='A4-FinPerf RE'!D40+'A4-FinPerf RE'!D41 -> 44440466 | D21: ='A4-FinPerf RE'!E40+'A4-FinPerf RE'!E41 -> 51609380 | E21: ='A4-FinPerf RE'!F40+'A4-FinPerf RE'!F41 -> 77589820 | F21: ='A4-FinPerf RE'!G40+'A4-FinPerf RE'!G41 -> 27750908 | G21: ='A4-FinPerf RE'!H40+'A4-FinPerf RE'!H41 -> 27750908 | H21: ='A4-FinPerf RE'!I40+'A4-FinPerf RE'!I41 -> 0 | I21: ='A4-FinPerf RE'!J40+'A4-FinPerf RE'!J41 -> 56260692 | J21: ='A4-FinPerf RE'!K40+'A4-FinPerf RE'!K41 -> 49741000 | K21: ='A4-FinPerf RE'!L40+'A4-FinPerf RE'!L41 -> 68368940
A22: ='A4-FinPerf RE'!A42 -> Surplus/(Deficit) after capital transfers & contributions | B22: =B19+SUM(B20:B21) -> 389577925.6 | C22: =C19+SUM(C20:C21) -> 382481843.7 | D22: 955273768.1 | E22: 2026240494 | F22: 1582291595 | G22: 1582291595 | H22: 0 | I22: 1556006046 | J22: 1723939075 | K22: 1823359786
A23: ='A4-FinPerf RE'!A47 -> Share of surplus/ (deficit) of associate | B23: ='A4-FinPerf RE'!C47 -> 0 | C23: ='A4-FinPerf RE'!D47 -> 0 | D23: ='A4-FinPerf RE'!E47 -> 0 | E23: ='A4-FinPerf RE'!F47 -> 0 | F23: ='A4-FinPerf RE'!G47 -> 0 | G23: ='A4-FinPerf RE'!H47 -> 0 | H23: ='A4-FinPerf RE'!I47 -> 0 | I23: ='A4-FinPerf RE'!J47 -> 0 | J23: ='A4-FinPerf RE'!K47 -> 0 | K23: ='A4-FinPerf RE'!L47 -> 0
A24: ='A4-FinPerf RE'!A48 -> Surplus/(Deficit) for the year | B24: =B22+B23 -> 389577925.6 | C24: =C22+C23 -> 382481843.7 | D24: 955273768.1 | E24: 2026240494 | F24: 1582291595 | G24: 1582291595 | H24: 0 | I24: 1556006046 | J24: 1723939075 | K24: 1823359786
A26: Capital expenditure & funds sources
A27: Capital expenditure | B27: ='A5-Capex'!C63 -> 1365843815 | C27: ='A5-Capex'!D63 -> 1757875849 | D27: ='A5-Capex'!E63 -> 2678286166 | E27: ='A5-Capex'!F63 -> 3477470114 | F27: ='A5-Capex'!G63 -> 2676933096 | G27: ='A5-Capex'!H63 -> 2676933096 | H27: ='A5-Capex'!I63 -> 0 | I27: ='A5-Capex'!J63 -> 2614448984 | J27: ='A5-Capex'!K63 -> 3136114188 | K27: ='A5-Capex'!L63 -> 2918125258
A28: Transfers recognised - capital | B28: ='A5-Capex'!C70 -> 352011000 | C28: ='A5-Capex'!D70 -> 408553749 | D28: ='A5-Capex'!E70 -> 750268642 | E28: ='A5-Capex'!F70 -> 1350317206 | F28: ='A5-Capex'!G70 -> 961204126 | G28: ='A5-Capex'!H70 -> 961204126 | H28: ='A5-Capex'!I70 -> 0 | I28: ='A5-Capex'!J70 -> 1041051120 | J28: ='A5-Capex'!K70 -> 1115022000 | K28: ='A5-Capex'!L70 -> 1201896000
A29: ='A5-Capex'!A71 -> Public contributions & donations | B29: ='A5-Capex'!C71 -> 46833501 | C29: ='A5-Capex'!D71 -> 44440466 | D29: ='A5-Capex'!E71 -> 51609380 | E29: ='A5-Capex'!F71 -> 77589820 | F29: ='A5-Capex'!G71 -> 27750908 | G29: ='A5-Capex'!H71 -> 27750908 | H29: ='A5-Capex'!I71 -> 0 | I29: ='A5-Capex'!J71 -> 56260692 | J29: ='A5-Capex'!K71 -> 49741000 | K29: ='A5-Capex'!L71 -> 68368940
A30: ='A5-Capex'!A72 -> Borrowing | B30: ='A5-Capex'!C72 -> 641450000 | C30: ='A5-Capex'!D72 -> 295900000 | D30: ='A5-Capex'!E72 -> 1606944000 | E30: ='A5-Capex'!F72 -> 800000000 | F30: ='A5-Capex'!G72 -> 1051000000 | G30: ='A5-Capex'!H72 -> 1051000000 | H30: ='A5-Capex'!I72 -> 0 | I30: ='A5-Capex'!J72 -> 1000000000 | J30: ='A5-Capex'!K72 -> 1000000000 | K30: ='A5-Capex'!L72 -> 1000000000
A31: ='A5-Capex'!A73 -> Internally generated funds | B31: ='A5-Capex'!C73 -> 325549499 | C31: ='A5-Capex'!D73 -> 1008981534 | D31: ='A5-Capex'!E73 -> 269463620 | E31: ='A5-Capex'!F73 -> 1249563180 | F31: ='A5-Capex'!G73 -> 636978092 | G31: ='A5-Capex'!H73 -> 636978092 | H31: ='A5-Capex'!I73 -> 0 | I31: ='A5-Capex'!J73 -> 517137308 | J31: ='A5-Capex'!K73 -> 971350795 | K31: ='A5-Capex'!L73 -> 647859791
A32: Total sources of capital funds | B32: =SUM(B28:B31) -> 1365844000 | C32: 1757875749 | D32: 2678285642 | E32: 3477470206 | F32: 2676933126 | G32: 2676933126 | H32: 0 | I32: 2614449120 | J32: 3136113795 | K32: 2918124731
A34: Financial position
A35: ='A6-FinPos'!A12 -> Total current assets | B35: ='A6-FinPos'!C12 -> 3050935158 | C35: ='A6-FinPos'!D12 -> 2906500543 | D35: ='A6-FinPos'!E12 -> 3729814851 | E35: ='A6-FinPos'!F12 -> 3888580747 | F35: ='A6-FinPos'!G12 -> 4718453344 | G35: ='A6-FinPos'!H12 -> 4718453344 | H35: ='A6-FinPos'!I12 -> 0 | I35: ='A6-FinPos'!J12 -> 5364536550 | J35: ='A6-FinPos'!K12 -> 5514942601 | K35: ='A6-FinPos'!L12 -> 5887511778
A36: ='A6-FinPos'!A24 -> Total non current assets | B36: ='A6-FinPos'!C24 -> 10161101503 | C36: ='A6-FinPos'!D24 -> 10728642103 | D36: ='A6-FinPos'!E24 -> 13650734067 | E36: ='A6-FinPos'!F24 -> 1.636160656e+10 | F36: ='A6-FinPos'!G24 -> 1.546126387e+10 | G36: ='A6-FinPos'!H24 -> 1.546126387e+10 | H36: ='A6-FinPos'!I24 -> 0 | I36: ='A6-FinPos'!J24 -> 1.769822363e+10 | J36: ='A6-FinPos'!K24 -> 2.018835917e+10 | K36: ='A6-FinPos'!L24 -> 2.274939445e+10
A37: ='A6-FinPos'!A34 -> Total current liabilities | B37: ='A6-FinPos'!C34 -> 2561844319 | C37: ='A6-FinPos'!D34 -> 2812736967 | D37: ='A6-FinPos'!E34 -> 3812544169 | E37: ='A6-FinPos'!F34 -> 3752374676 | F37: ='A6-FinPos'!G34 -> 3999741881 | G37: ='A6-FinPos'!H34 -> 3999741881 | H37: ='A6-FinPos'!I34 -> 0 | I37: ='A6-FinPos'!J34 -> 4569280000 | J37: ='A6-FinPos'!K34 -> 5134443500 | K37: ='A6-FinPos'!L34 -> 5600344000
A38: ='A6-FinPos'!A39 -> Total non current liabilities | B38: ='A6-FinPos'!C39 -> 2712145743 | C38: ='A6-FinPos'!D39 -> 3587628810 | D38: ='A6-FinPos'!E39 -> 5192258152 | E38: ='A6-FinPos'!F39 -> 5662584718 | F38: ='A6-FinPos'!G39 -> 6005176529 | G38: ='A6-FinPos'!H39 -> 6005176529 | H38: ='A6-FinPos'!I39 -> 0 | I38: ='A6-FinPos'!J39 -> 6422107713 | J38: ='A6-FinPos'!K39 -> 6760320457 | K38: ='A6-FinPos'!L39 -> 7053071168
A39: Community wealth/Equity | B39: ='A6-FinPos'!C48 -> 7938046313 | C39: ='A6-FinPos'!D48 -> 7234776426 | D39: ='A6-FinPos'!E48 -> 8375746494 | E39: ='A6-FinPos'!F48 -> 1.083522763e+10 | F39: ='A6-FinPos'!G48 -> 1.017479841e+10 | G39: ='A6-FinPos'!H48 -> 1.017479841e+10 | H39: ='A6-FinPos'!I48 -> 0 | I39: ='A6-FinPos'!J48 -> 1.207137181e+10 | J39: ='A6-FinPos'!K48 -> 1.380853786e+10 | K39: ='A6-FinPos'!L48 -> 1.59834913e+10
A41: Cash flows
A42: Net cash from (used) operating | B42: ='A7-CFlow'!C15 -> 997807016.1 | C42: ='A7-CFlow'!D15 -> 1407901416 | D42: ='A7-CFlow'!E15 -> 1405452926 | E42: ='A7-CFlow'!F15 -> 2737274781 | F42: ='A7-CFlow'!G15 -> 2395279016 | G42: ='A7-CFlow'!H15 -> 2395279016 | H42: ='A7-CFlow'!I15 -> 0 | I42: ='A7-CFlow'!J15 -> 2591626837 | J42: ='A7-CFlow'!K15 -> 2981571996 | K42: ='A7-CFlow'!L15 -> 3161023551
A43: Net cash from (used) investing | B43: ='A7-CFlow'!C25 -> -1299882786 | C43: ='A7-CFlow'!D25 -> -1749901260 | D43: ='A7-CFlow'!E25 -> -2741309016 | E43: ='A7-CFlow'!F25 -> -3421729131 | F43: ='A7-CFlow'!G25 -> -2570995863 | G43: ='A7-CFlow'!H25 -> -2570995863 | H43: ='A7-CFlow'!I25 -> 0 | I43: ='A7-CFlow'!J25 -> -2448450000 | J43: ='A7-CFlow'!K25 -> -3297973000 | K43: ='A7-CFlow'!L25 -> -3197382000
A44: Net cash from (used) financing | B44: ='A7-CFlow'!C34 -> 458109220 | C44: ='A7-CFlow'!D34 -> -30833012 | D44: ='A7-CFlow'!E34 -> 1343709193 | E44: ='A7-CFlow'!F34 -> 446075952 | F44: ='A7-CFlow'!G34 -> 697075952 | G44: ='A7-CFlow'!H34 -> 697075952 | H44: ='A7-CFlow'!I34 -> 0 | I44: ='A7-CFlow'!J34 -> 330632000 | J44: ='A7-CFlow'!K34 -> 244700000 | K44: ='A7-CFlow'!L34 -> 192190000
A45: =LEFT('A7-CFlow'!A38,37) -> Cash/cash equivalents at the year end | B45: ='A7-CFlow'!C38 -> 520699261.1 | C45: ='A7-CFlow'!D38 -> 147866405.1 | D45: ='A7-CFlow'!E38 -> 155719508.1 | E45: ='A7-CFlow'!F38 -> -82658889.71 | F45: ='A7-CFlow'!G38 -> 677078613.1 | G45: ='A7-CFlow'!H38 -> 677078613.1 | H45: ='A7-CFlow'!I38 -> 155719508.1 | I45: ='A7-CFlow'!J38 -> 1150887450 | J45: ='A7-CFlow'!K38 -> 1079186446 | K45: ='A7-CFlow'!L38 -> 1235017997
A47: Cash backing/surplus reconciliation
A48: ='A8-ResRecon'!A4 -> Cash and investments available | B48: ='A8-ResRecon'!C8 -> 931983169.1 | C48: ='A8-ResRecon'!D8 -> 573419474.1 | D48: ='A8-ResRecon'!E8 -> 656065882.1 | E48: ='A8-ResRecon'!F8 -> 1007620455 | F48: ='A8-ResRecon'!G8 -> 1381617613 | G48: ='A8-ResRecon'!H8 -> 1381617613 | H48: ='A8-ResRecon'!I8 -> 0 | I48: ='A8-ResRecon'!J8 -> 1755426450 | J48: ='A8-ResRecon'!K8 -> 1933725446 | K48: ='A8-ResRecon'!L8 -> 2439556997
A49: ='A8-ResRecon'!A10 -> Application of cash and investments | B49: ='A8-ResRecon'!C18 -> 1435489927 | C49: ='A8-ResRecon'!D18 -> 1601863239 | D49: ='A8-ResRecon'!E18 -> 1996730013 | E49: ='A8-ResRecon'!F18 -> 2918413933 | F49: ='A8-ResRecon'!G18 -> 2333272662 | G49: ='A8-ResRecon'!H18 -> 2333272662 | H49: ='A8-ResRecon'!I18 -> 0 | I49: ='A8-ResRecon'!J18 -> 1975552690 | J49: ='A8-ResRecon'!K18 -> 2079352951 | K49: ='A8-ResRecon'!L18 -> 2180262119
A50: Balance - surplus (shortfall) | B50: =B48-B49 -> -503506757.4 | C50: =C48-C49 -> -1028443765 | D50: -1340664131 | E50: -1910793478 | F50: -951655048.8 | G50: -951655048.8 | H50: 0 | I50: -220126240 | J50: -145627504.6 | K50: 259294877.9
A52: Asset management
A53: Asset register summary (WDV) | B53: ='A9-Asset'!C65 -> 9138300240 | C53: ='A9-Asset'!D65 -> 10024592307 | D53: ='A9-Asset'!E65 -> 12823003790 | E53: ='A9-Asset'!F65 -> 1.516632609e+10 | F53: ='A9-Asset'!G65 -> 1.447314644e+10 | G53: ='A9-Asset'!H65 -> 1.447314644e+10 | H53: ='A9-Asset'!I65 -> 1.659020628e+10 | I53: ='A9-Asset'!I65 -> 1.659020628e+10 | J53: ='A9-Asset'!J65 -> 1.873370234e+10 | K53: ='A9-Asset'!K65 -> 2.084207096e+10
A54: ='A9-Asset'!A68 -> Depreciation & asset impairment | B54: ='A9-Asset'!C68 -> 707591089 | C54: ='A9-Asset'!D68 -> 661291521 | D54: ='A9-Asset'!E68 -> 601797034 | E54: ='A9-Asset'!F68 -> 905625307 | F54: ='A9-Asset'!G68 -> 841709274.8 | G54: ='A9-Asset'!H68 -> 841709274.8 | H54: ='A9-Asset'!I68 -> 912331480 | I54: ='A9-Asset'!I68 -> 912331480 | J54: ='A9-Asset'!J68 -> 978067000 | K54: ='A9-Asset'!K68 -> 1139451218
A55: Renewal of Existing Assets | B55: ='A9-Asset'!C20 -> 1230766311 | C55: ='A9-Asset'!D20 -> 1412915523 | D55: ='A9-Asset'!E20 -> 1751341029 | E55: ='A9-Asset'!F20 -> 1790814024 | F55: ='A9-Asset'!G20 -> 1492394266 | G55: ='A9-Asset'!H20 -> 1492394266 | H55: ='A9-Asset'!I20 -> 1216814140 | I55: ='A9-Asset'!I20 -> 1216814140 | J55: ='A9-Asset'!J20 -> 1595194156 | K55: ='A9-Asset'!K20 -> 1583420009
A56: Repairs and Maintenance | B56: ='A9-Asset'!C69 -> 727352320 | C56: ='A9-Asset'!D69 -> 894628918 | D56: ='A9-Asset'!E69 -> 1125506274 | E56: ='A9-Asset'!F69 -> 1609286770 | F56: ='A9-Asset'!G69 -> 1545030020 | G56: ='A9-Asset'!H69 -> 1545030020 | H56: ='A9-Asset'!I69 -> 1690116431 | I56: ='A9-Asset'!I69 -> 1690116431 | J56: ='A9-Asset'!J69 -> 1809429886 | K56: ='A9-Asset'!K69 -> 1935894431
A58: Free services
A59: Cost of Free Basic Services provided | B59: ='A10-SerDel'!C59 -> 201819137 | C59: ='A10-SerDel'!D59 -> 264439938 | D59: ='A10-SerDel'!E59 -> 306877311.6 | E59: ='A10-SerDel'!F59 -> 403370237.2 | F59: ='A10-SerDel'!G59 -> 403370237.2 | G59: ='A10-SerDel'!H59 -> 403370237.2 | H59: ='A10-SerDel'!I59 -> 425901283.8 | I59: ='A10-SerDel'!I59 -> 425901283.8 | J59: ='A10-SerDel'!J59 -> 487492753.4 | K59: ='A10-SerDel'!K59 -> 565392397.3
A60: Revenue cost of free services provided | B60: ='A10-SerDel'!C78 -> 299414388 | C60: ='A10-SerDel'!D78 -> 369227675 | D60: ='A10-SerDel'!E78 -> 426345365.4 | E60: ='A10-SerDel'!F78 -> 637743321 | F60: ='A10-SerDel'!G78 -> 637743327 | G60: ='A10-SerDel'!H78 -> 637743321 | H60: ='A10-SerDel'!I78 -> 682441136 | I60: ='A10-SerDel'!I78 -> 682441136 | J60: ='A10-SerDel'!J78 -> 781343367 | K60: ='A10-SerDel'!K78 -> 920789628
A61: Households below minimum service level
A62: ='A10-SerDel'!A5 -> Water: | B62: ='A10-SerDel'!C14 -> 15793 | C62: ='A10-SerDel'!D14 -> 10037 | D62: ='A10-SerDel'!E14 -> 4280 | E62: ='A10-SerDel'!F14 -> 2722 | F62: ='A10-SerDel'!G14 -> 2722 | G62: ='A10-SerDel'!H14 -> 2722 | H62: ='A10-SerDel'!I14 -> 1731 | I62: ='A10-SerDel'!I14 -> 1731 | J62: ='A10-SerDel'!J14 -> 1101 | K62: ='A10-SerDel'!K14 -> 700
A63: ='A10-SerDel'!A16 -> Sanitation/sewerage: | B63: ='A10-SerDel'!C26 -> 15106 | C63: ='A10-SerDel'!D26 -> 13698 | D63: ='A10-SerDel'!E26 -> 12289 | E63: ='A10-SerDel'!F26 -> 11359 | F63: ='A10-SerDel'!G26 -> 11359 | G63: ='A10-SerDel'!H26 -> 11359 | H63: ='A10-SerDel'!I26 -> 10514 | I63: ='A10-SerDel'!I26 -> 10514 | J63: ='A10-SerDel'!J26 -> 9748 | K63: ='A10-SerDel'!K26 -> 9050
A64: ='A10-SerDel'!A28 -> Energy: | B64: ='A10-SerDel'!C35 -> 77595 | C64: ='A10-SerDel'!D35 -> 65194 | D64: ='A10-SerDel'!E35 -> 52792 | E64: ='A10-SerDel'!F35 -> 51073 | F64: ='A10-SerDel'!G35 -> 51073 | G64: ='A10-SerDel'!H35 -> 51073 | H64: ='A10-SerDel'!I35 -> 49172 | I64: ='A10-SerDel'!I35 -> 49172 | J64: ='A10-SerDel'!J35 -> 47078 | K64: ='A10-SerDel'!K35 -> 40976
A65: ='A10-SerDel'!A37 -> Refuse: | B65: ='A10-SerDel'!C45 -> 168227 | C65: ='A10-SerDel'!D45 -> 145111 | D65: ='A10-SerDel'!E45 -> 121991 | E65: ='A10-SerDel'!F45 -> 106009 | F65: ='A10-SerDel'!G45 -> 106009 | G65: ='A10-SerDel'!H45 -> 106009 | H65: ='A10-SerDel'!I45 -> 94569 | I65: ='A10-SerDel'!I45 -> 94569 | J65: ='A10-SerDel'!J45 -> 86636 | K65: ='A10-SerDel'!K45 -> 81444

Sheet A2-FinPerf SC
A1: =muni&" - "&Approve3 -> GT485 Batho Pele City - Table A2 Budgeted Financial Performance (revenue and expenditure by standard classification)
A2: ="Standard Classification "&desc -> Standard Classification Description | B2: =head27 -> Ref | C2: =head1b -> 2007/8 | D2: =head1A -> 2008/9 | E2: =Head1 -> 2009/10 | F2: =Head2 -> Current Year 2010/11 | I2: =Head3 -> 2011/12 Medium Term Revenue & Expenditure Framework
A3: R thousand | B3: 1 | C3: =Head5 -> Audited Outcome | D3: =Head5 -> Audited Outcome | E3: =Head5 -> Audited Outcome | F3: =Head6 -> Original Budget | G3: =Head7 -> Adjusted Budget | H3: =Head8 -> Full Year Forecast | I3: =Head9 -> Budget Year 2011/12 | J3: =Head10 -> Budget Year +1 2012/13 | K3: =Head11 -> Budget Year +2 2013/14
A4: Revenue - Standard
A5: Governance and administration | C5: =SUM(C6:C8) -> 3009796130 | D5: =SUM(D6:D8) -> 3125079893 | E5: 4118315218 | F5: 3497258959 | G5: 3549715798 | H5: 3549715798 | I5: 3741331604 | J5: 4649284921 | K5: 4838981614
A6: Executive and council | C6: =A2A!C6 -> 2363152.23 | D6: =A2A!D6 -> 21950112 | E6: =A2A!E6 -> 76556781 | F6: =A2A!F6 -> 56656187 | G6: =A2A!G6 -> 90551026 | H6: =A2A!H6 -> 90551026 | I6: =A2A!I6 -> 95531000 | J6: =A2A!J6 -> 101263000 | K6: =A2A!K6 -> 109161000
A7: Budget and treasury office | C7: =A2A!C9 -> 3740000 | D7: =A2A!D9 -> 33650000 | E7: =A2A!E9 -> 83058000 | F7: =A2A!F9 -> 85134000 | G7: =A2A!G9 -> 90242000 | H7: =A2A!H9 -> 90242000 | I7: =A2A!I9 -> 94625000 | J7: =A2A!J9 -> 101060000 | K7: =A2A!K9 -> 108134000
A8: Corporate services | C8: =A2A!C10 -> 3003692977 | D8: =A2A!D10 -> 3069479781 | E8: =A2A!E10 -> 3958700437 | F8: =A2A!F10 -> 3355468772 | G8: =A2A!G10 -> 3368922772 | H8: =A2A!H10 -> 3368922772 | I8: =A2A!I10 -> 3551175604 | J8: =A2A!J10 -> 4446961921 | K8: =A2A!K10 -> 4621686614
A9: Community and public safety | C9: =SUM(C10:C14) -> 183239335.3 | D9: =SUM(D10:D14) -> 337604067 | E9: 182924385 | F9: 362535926 | G9: 315104268 | H9: 315104268 | I9: 257743812 | J9: 335584524 | K9: 328722931
A10: Community and social services | C10: =A2A!C16 -> 17636966.3 | D10: =A2A!D16 -> 19975767 | E10: =A2A!E16 -> 19456878 | F10: =A2A!F16 -> 23572072 | G10: =A2A!G16 -> 22166564 | H10: =A2A!H16 -> 22166564 | I10: =A2A!I16 -> 24930358 | J10: =A2A!J16 -> 60222584 | K10: =A2A!K16 -> 38706953
A11: Sport and recreation | C11: =A2A!C25 -> 33685740.61 | D11: =A2A!D25 -> 58054937 | E11: =A2A!E25 -> 54778896 | F11: =A2A!F25 -> 87784442 | G11: =A2A!G25 -> 87934442 | H11: =A2A!H25 -> 87934442 | I11: =A2A!I25 -> 20321916 | J11: =A2A!J25 -> 51487775 | K11: =A2A!K25 -> 52668854
A12: Public safety | C12: =A2A!C26 -> 43903060.1 | D12: =A2A!D26 -> 50310114 | E12: =A2A!E26 -> 41160380 | F12: =A2A!F26 -> 70931457.96 | G12: =A2A!G26 -> 70931458 | H12: =A2A!H26 -> 70931458 | I12: =A2A!I26 -> 74632642 | J12: =A2A!J26 -> 78474235 | K12: =A2A!K26 -> 82517128
A13: Housing | C13: =A2A!C32 -> 35684000 | D13: =A2A!D32 -> 142580000 | E13: =A2A!E32 -> 0 | F13: =A2A!F32 -> 109683000 | G13: =A2A!G32 -> 62239000 | H13: =A2A!H32 -> 62239000 | I13: =A2A!I32 -> 58970000 | J13: =A2A!J32 -> 62000000 | K13: =A2A!K32 -> 64500000
A14: Health | C14: =A2A!C33 -> 52329568.34 | D14: =A2A!D33 -> 66683249 | E14: =A2A!E33 -> 67528231 | F14: =A2A!F33 -> 70564954 | G14: =A2A!G33 -> 71832803.98 | H14: =A2A!H33 -> 71832803.98 | I14: =A2A!I33 -> 78888896 | J14: =A2A!J33 -> 83399930 | K14: =A2A!K33 -> 90329996
A15: Economic and environmental services | C15: =SUM(C16:C18) -> 270345785.4 | D15: =SUM(D16:D18) -> 557805357 | E15: 873781621 | F15: 1962214112 | G15: 1378455707 | H15: 1378455707 | I15: 2147869060 | J15: 1618670274 | K15: 2218320477
A16: Planning and development | C16: =A2A!C38 -> 69190325.71 | D16: =A2A!D38 -> 126070119 | E16: =A2A!E38 -> 157484804 | F16: =A2A!F38 -> 140361519 | G16: =A2A!G38 -> 140362519 | H16: =A2A!H38 -> 140362519 | I16: =A2A!I38 -> 151638211 | J16: =A2A!J38 -> 280306824 | K16: =A2A!K38 -> 308076273
A17: Road transport | C17: =A2A!C42 -> 200965617.1 | D17: =A2A!D42 -> 431676761 | E17: =A2A!E42 -> 715766932 | F17: =A2A!F42 -> 1821752593 | G17: =A2A!G42 -> 1236429788 | H17: =A2A!H42 -> 1236429788 | I17: =A2A!I42 -> 1996070849 | J17: =A2A!J42 -> 1338195950 | K17: =A2A!K42 -> 1910069204
A18: Environmental protection | C18: =A2A!C48 -> 189842.6 | D18: =A2A!D48 -> 58477 | E18: =A2A!E48 -> 529885 | F18: =A2A!F48 -> 100000 | G18: =A2A!G48 -> 1663400 | H18: =A2A!H48 -> 1663400 | I18: =A2A!I48 -> 160000 | J18: =A2A!J48 -> 167500 | K18: =A2A!K48 -> 175000
A19: Trading services | C19: =SUM(C20:C23) -> 4995609272 | D19: =SUM(D20:D23) -> 5857353124 | E19: 6344182728 | F19: 8642880027 | G19: 8687690240 | H19: 8687690240 | I19: 9912335737 | J19: =SUM(J20:J23) -> 11471778777 | K19: 13052182642
A20: Electricity | C20: =A2A!C53 -> 2972994277 | D20: =A2A!D53 -> 3571748257 | E20: =A2A!E53 -> 3701651624 | F20: =A2A!F53 -> 5675555391 | G20: =A2A!G53 -> 5696200228 | H20: =A2A!H53 -> 5696200228 | I20: =A2A!I53 -> 6325456026 | J20: =A2A!J53 -> 7298981930 | K20: =A2A!K53 -> 8590499518
A21: Water | C21: =A2A!C56 -> 1171990823 | D21: =A2A!D56 -> 1382401896 | E21: =A2A!E56 -> 1592817831 | F21: =A2A!F56 -> 1599662464 | G21: =A2A!G56 -> 1609662010 | H21: =A2A!H56 -> 1609662010 | I21: =A2A!I56 -> 1984562558 | J21: =A2A!J56 -> 2333214594 | K21: =A2A!K56 -> 2293849629
A22: Waste water management | C22: =A2A!C59 -> 556202458 | D22: =A2A!D59 -> 596607335 | E22: =A2A!E59 -> 691552315 | F22: =A2A!F59 -> 927291855 | G22: =A2A!G59 -> 921457317 | H22: =A2A!H59 -> 921457317 | I22: =A2A!I59 -> 1095170526 | J22: =A2A!J59 -> 1251531686 | K22: =A2A!K59 -> 1485240543
A23: Waste management | C23: =A2A!C63 -> 294421714.1 | D23: =A2A!D63 -> 306595636 | E23: =A2A!E63 -> 358160958 | F23: =A2A!F63 -> 440370317 | G23: =A2A!G63 -> 460370685 | H23: =A2A!H63 -> 460370685 | I23: =A2A!I63 -> 507146627 | J23: =A2A!J63 -> 588050567 | K23: =A2A!K63 -> 682592952
A24: Other | B24: 4 | C24: =A2A!C65 -> 99099371.76 | D24: =A2A!D65 -> 126475904 | E24: =A2A!E65 -> 137493601 | F24: =A2A!F65 -> 147467358 | G24: =A2A!G65 -> 169416271 | H24: =A2A!H65 -> 169416271 | I24: =A2A!I65 -> 176649594 | J24: =A2A!J65 -> 187178400 | K24: =A2A!K65 -> 198338930
A25: ="Total "&A4 -> Total Revenue - Standard | B25: 2 | C25: =C5+C9+C15+C19+C24 -> 8558089894 | D25: =D5+D9+D15+D19+D24 -> 10004318345 | E25: =E5+E9+E15+E19+E24 -> 11656697553 | F25: 1.461235638e+10 | G25: 1.410038228e+10 | H25: 1.410038228e+10 | I25: =I5+I9+I15+I19+I24 -> 16235929807 | J25: 18262496896 | K25: 20636546594
A27: Expenditure - Standard
A28: =A5 -> Governance and administration | C28: =SUM(C29:C31) -> 1997981392 | D28: =SUM(D29:D31) -> 2614501720 | E28: 2130343054 | F28: 2862544341 | G28: 2501646423 | H28: 2501646423 | I28: 2676946630 | J28: 2873024568 | K28: 3201759843
A29: =A6 -> Executive and council | C29: =A2A!C75 -> 152998920.6 | D29: =A2A!D75 -> 198133299 | E29: =A2A!E75 -> 354279535 | F29: =A2A!F75 -> 562929725.7 | G29: =A2A!G75 -> 513221110.7 | H29: =A2A!H75 -> 513221110.7 | I29: =A2A!I75 -> 346619160.2 | J29: =A2A!J75 -> 350357726.7 | K29: =A2A!K75 -> 377276613.6
A30: Budget and treasury office | C30: =A2A!C78 -> 12768365.59 | D30: =A2A!D78 -> 13828377 | E30: =A2A!E78 -> 13858326 | F30: =A2A!F78 -> 26875227 | G30: =A2A!G78 -> 26875227 | H30: =A2A!H78 -> 26875227 | I30: =A2A!I78 -> 17289049.6 | J30: =A2A!J78 -> 18545984.24 | K30: =A2A!K78 -> 19896944.72
A31: Corporate services | C31: =A2A!C79 -> 1832214106 | D31: =A2A!D79 -> 2402540044 | E31: =A2A!E79 -> 1762205193 | F31: =A2A!F79 -> 2272739388 | G31: =A2A!G79 -> 1961550085 | H31: =A2A!H79 -> 1961550085 | I31: =A2A!I79 -> 2313038420 | J31: =A2A!J79 -> 2504120857 | K31: =A2A!K79 -> 2804586284
A32: Community and public safety | C32: =SUM(C33:C37) -> 1239680273 | D32: =SUM(D33:D37) -> 1482570720 | E32: 1632136060 | F32: 1935864553 | G32: 1936837391 | H32: 1936837391 | I32: 2181400946 | J32: 2341475076 | K32: 2509961549
A33: Community and social services | C33: =A2A!C85 -> 159856426.9 | D33: =A2A!D85 -> 187143385 | E33: =A2A!E85 -> 219218530 | F33: =A2A!F85 -> 356331446.9 | G33: =A2A!G85 -> 304341246.9 | H33: =A2A!H85 -> 304341246.9 | I33: =A2A!I85 -> 315681159.8 | J33: =A2A!J85 -> 339523061.2 | K33: =A2A!K85 -> 364536341.4
A34: Sport and recreation | C34: =A2A!C94 -> 363532922.3 | D34: =A2A!D94 -> 401350389 | E34: =A2A!E94 -> 466132016 | F34: =A2A!F94 -> 556209000.6 | G34: =A2A!G94 -> 559938683.6 | H34: =A2A!H94 -> 559938683.6 | I34: =A2A!I94 -> 604622218.9 | J34: =A2A!J94 -> 650960744.7 | K34: =A2A!K94 -> 701151684.5
A35: Public safety | C35: =A2A!C95 -> 510972152.9 | D35: =A2A!D95 -> 641040925 | E35: =A2A!E95 -> 672746197 | F35: =A2A!F95 -> 757183507.9 | G35: =A2A!G95 -> 778476270.5 | H35: =A2A!H95 -> 778476270.5 | I35: =A2A!I95 -> 934629009.5 | J35: =A2A!J95 -> 1002222647 | K35: =A2A!K95 -> 1074262741
A36: Housing | C36: =A2A!C101 -> 54321000 | D36: =A2A!D101 -> 77790000 | E36: =A2A!E101 -> 83456123 | F36: =A2A!F101 -> 92636016 | G36: =A2A!G101 -> 91302741 | H36: =A2A!H101 -> 91302741 | I36: =A2A!I101 -> 99583872 | J36: =A2A!J101 -> 104563000 | K36: =A2A!K101 -> 107700096
A37: Health | C37: =A2A!C102 -> 150997770.7 | D37: =A2A!D102 -> 175246021 | E37: =A2A!E102 -> 190583194 | F37: =A2A!F102 -> 173504582.2 | G37: =A2A!G102 -> 202778449.2 | H37: =A2A!H102 -> 202778449.2 | I37: =A2A!I102 -> 226884685.7 | J37: =A2A!J102 -> 244205622.7 | K37: =A2A!K102 -> 262310686.2
A38: Economic and environmental services | C38: =SUM(C39:C41) -> 802123044.8 | D38: =SUM(D39:D41) -> 930097608 | E38: 1185788930 | F38: 1398682146 | G38: 1425699563 | H38: 1425699563 | I38: 1601557862 | J38: 1724541857 | K38: 1850130753
A39: Planning and development | C39: =A2A!C107 -> 163217774.5 | D39: =A2A!D107 -> 191126198 | E39: =A2A!E107 -> 244167383 | F39: =A2A!F107 -> 280649635.7 | G39: =A2A!G107 -> 258171555.7 | H39: =A2A!H107 -> 258171555.7 | I39: =A2A!I107 -> 330164328.4 | J39: =A2A!J107 -> 354307324.8 | K39: =A2A!K107 -> 379940828.9
A40: Road transport | C40: =A2A!C111 -> 606108999.2 | D40: =A2A!D111 -> 702240068 | E40: =A2A!E111 -> 901481993 | F40: =A2A!F111 -> 1087672313 | G40: =A2A!G111 -> 1124804835 | H40: =A2A!H111 -> 1124804835 | I40: =A2A!I111 -> 1219331353 | J40: =A2A!J111 -> 1314432321 | K40: =A2A!K111 -> 1410548887
A41: Environmental protection | C41: =A2A!C117 -> 32796271.05 | D41: =A2A!D117 -> 36731342 | E41: =A2A!E117 -> 40139554 | F41: =A2A!F117 -> 30360198.16 | G41: =A2A!G117 -> 42723173.16 | H41: =A2A!H117 -> 42723173.16 | I41: =A2A!I117 -> 52062181.21 | J41: =A2A!J117 -> 55802211.17 | K41: =A2A!K117 -> 59641037
A42: Trading services | C42: =SUM(C43:C46) -> 4041266886 | D42: =SUM(D43:D46) -> 4484595228 | E42: 5647147959 | F42: =SUM(F43:F46) -> 6243763863 | G42: 6508933492 | H42: 6508933492 | I42: 8052416069 | J42: 9419574214 | K42: =SUM(K43:K46) -> 1.105811723e+10
A43: Electricity | C43: =A2A!C122 -> 2448438041 | D43: =A2A!D122 -> 2729798553 | E43: =A2A!E122 -> 3701651443 | F43: =A2A!F122 -> 4118599828 | G43: =A2A!G122 -> 4307348464 | H43: =A2A!H122 -> 4307348464 | I43: =A2A!I122 -> 5406036844 | J43: =A2A!J122 -> 6507438897 | K43: =A2A!K122 -> 7961178281
A44: Water | C44: =A2A!C125 -> 1040921319 | D44: =A2A!D125 -> 1072760318 | E44: =A2A!E125 -> 1142850347 | F44: =A2A!F125 -> 1315032347 | G44: =A2A!G125 -> 1351020334 | H44: =A2A!H125 -> 1351020334 | I44: =A2A!I125 -> 1493919701 | J44: =A2A!J125 -> 1679871255 | K44: =A2A!K125 -> 1780354115
A45: Waste water management | C45: =A2A!C128 -> 203037627.8 | D45: =A2A!D128 -> 260060470 | E45: =A2A!E128 -> 277451946 | F45: =A2A!F128 -> 320666383.4 | G45: =A2A!G128 -> 326601966.4 | H45: =A2A!H128 -> 326601966.4 | I45: =A2A!I128 -> 404409663.4 | J45: =A2A!J128 -> 438481250.7 | K45: =A2A!K128 -> 474543486.9
A46: Waste management | C46: =A2A!C132 -> 348869897.5 | D46: =A2A!D132 -> 421975887 | E46: =A2A!E132 -> 525194223 | F46: =A2A!F132 -> 489465304.4 | G46: =A2A!G132 -> 523962726.4 | H46: =A2A!H132 -> 523962726.4 | I46: =A2A!I132 -> 748049860.3 | J46: =A2A!J132 -> 793782811.4 | K46: =A2A!K132 -> 842041342.9
A47: Other | B47: 4 | C47: =A2A!C134 -> 87460415.45 | D47: =A2A!D134 -> 110071521 | E47: =A2A!E134 -> 106007762 | F47: =A2A!F134 -> 145261834 | G47: =A2A!G134 -> 144973167 | H47: =A2A!H134 -> 144973167 | I47: =A2A!I134 -> 167602251.3 | J47: =A2A!J134 -> 179941793.5 | K47: =A2A!K134 -> 193217438.7
A48: ="Total "&A27 -> Total Expenditure - Standard | B48: 3 | C48: =C28+C32+C38+C42+C47 -> 8168512011 | D48: =D28+D32+D38+D42+D47 -> 9621836797 | E48: =E28+E32+E38+E42+E47 -> 10701423765 | F48: =F28+F32+F38+F42+F47 -> 1.258611674e+10 | G48: 1.251809004e+10 | H48: 1.251809004e+10 | I48: 1.467992376e+10 | J48: 1.653855751e+10 | K48: 1.881318681e+10
A49: =result -> Surplus/(Deficit) for the year | C49: =C25-C48 -> 389577882.9 | D49: =D25-D48 -> 382481548 | E49: 955273788 | F49: 2026239644 | G49: 1582292248 | H49: 1582292248 | I49: 1556006049 | J49: 1723939388 | K49: 1823359785
A50: =head27a -> References
A51: 1. Government Finance Statistics Functions and Sub-functions are standardised to assist the compilation of national and international accounts for comparison purposes
A52: 2. Total Revenue by standard classification must reconcile to Total Operating Revenue shown in Budgeted Financial Performance (revenue and expenditure)
A53: 3. Total Expenditure by Standard Classification must reconcile to Total Operating Expenditure shown in Budgeted Financial Performance (revenue and expenditure)
A54: 4. All amounts must be classified under a standard classification (modified GFS). The GFS function 'Other' is only for Abbatoirs, Air Transport, Markets and Tourism - and if used must be supported by footnotes. Nothing else may be placed under 'Other'. Assign associate share to relevant classification
A57: check oprev balance | C57: =C25-'A4-FinPerf RE'!C60 -> -170.1300001 | D57: =D25-'A4-FinPerf RE'!D60 -> -577 | E57: =E25-'A4-FinPerf RE'!E60 -> -593 | F57: =F25-'A4-FinPerf RE'!F60 -> -940.1300011 | G57: =G25-'A4-FinPerf RE'!G60 -> 953.7299995 | H57: =H25-'A4-FinPerf RE'!H60 -> 953.7299995 | I57: =I25-'A4-FinPerf RE'!J60 -> 150 | J57: =J25-'A4-FinPerf RE'!K60 -> 89 | K57: =K25-'A4-FinPerf RE'!L60 -> 247
A58: check opexp balance | C58: =C48-'A4-FinPerf RE'!C36 -> -127.3636637 | D58: =D48-'A4-FinPerf RE'!D36 -> -281.3027706 | E58: =E48-'A4-FinPerf RE'!E36 -> -612.9225025 | F58: =F48-'A4-FinPerf RE'!F36 -> -90.77700233 | G58: =G48-'A4-FinPerf RE'!G36 -> 300.1120014 | H58: =H48-'A4-FinPerf RE'!H36 -> 300.1120014 | I58: =I48-'A4-FinPerf RE'!J36 -> 147.5757999 | J58: =J48-'A4-FinPerf RE'!K36 -> -223.8976288 | K58: =K48-'A4-FinPerf RE'!L36 -> 247.7867165

Sheet A2A (hidden)
A1: =muni&" - "&Approve3 -> GT485 Batho Pele City - Table A2 Budgeted Financial Performance (revenue and expenditure by standard classification)
A2: ="Standard Classification "&desc -> Standard Classification Description | B2: =head27 -> Ref | C2: =head1b -> 2007/8 | D2: =head1A -> 2008/9 | E2: =Head1 -> 2009/10 | F2: =Head2 -> Current Year 2010/11 | I2: =Head3 -> 2011/12 Medium Term Revenue & Expenditure Framework
A3: R thousand | B3: 1 | C3: =Head5 -> Audited Outcome | D3: =Head5 -> Audited Outcome | E3: =Head5 -> Audited Outcome | F3: =Head6 -> Original Budget | G3: =Head7 -> Adjusted Budget | H3: =Head8 -> Full Year Forecast | I3: =Head9 -> Budget Year 2011/12 | J3: =Head10 -> Budget Year +1 2012/13 | K3: =Head11 -> Budget Year +2 2013/14
A4: Revenue - Standard
A5: Municipal governance and administration | C5: =C6+C9+C10 -> 3009796130 | D5: =D6+D9+D10 -> 3125079893 | E5: 4118315218 | F5: 3497258959 | G5: 3549715798 | H5: 3549715798 | I5: 3741331604 | J5: 4649284921 | K5: 4838981614
A6: Executive and council | C6: =SUM(C7:C8) -> 2363152.23 | D6: 21950112 | E6: 76556781 | F6: 56656187 | G6: 90551026 | H6: 90551026 | I6: 95531000 | J6: 101263000 | K6: 109161000
A7: Mayor and Council | C7: 2051427.67 | D7: 21800173 | E7: 76307556 | F7: 56656187 | G7: 90551026 | H7: 90551026 | I7: 23038358 | J7: 1290659 | K7: 1293099
A8: Municipal Manager | C8: 311724.56 | D8: 149939 | E8: 249225 | F8: 0 | G8: 0 | H8: 0 | I8: 0 | J8: 0 | K8: 0
A9: Budget and treasury office | C9: 3740000 | D9: 33650000 | E9: 83058000 | F9: 85134000 | G9: 90242000 | H9: 90242000 | I9: 94625000 | J9: 101060000 | K9: 108134000
A10: Corporate services | C10: =SUM(C11:C14) -> 3003692977 | D10: =SUM(D11:D14) -> 3069479781 | E10: 3958700437 | F10: 3355468772 | G10: 3368922772 | H10: 3368922772 | I10: 3551175604 | J10: 4446961921 | K10: 4621686614
A11: Human Resources | C11: 12342531.17 | D11: 9993877 | E11: 15146497 | F11: 15686588 | G11: 15686588 | H11: 15686588 | I11: 16846567 | J11: 17850362 | K11: 18911382
A12: Information Technology | C12: 109923.57 | D12: 168136 | E12: -145870 | F12: 0 | G12: 0 | H12: 0 | I12: 0 | J12: 0 | K12: 0
A13: Property Services | C13: 27034522.53 | D13: 30262768 | E13: 32234810 | F13: 44021184 | G13: 44021184 | H13: 44021184 | I13: 37242037 | J13: 40594559 | K13: 43957232
A14: Other Admin | C14: =3264206000-150242000+50242000-200000000 -> 2964206000 | D14: =3693702000-493531000+28884000-200000000 -> 3029055000 | E14: =4102222000+77420000+25912000-94089000-200000000 -> 3911465000 | F14: =4397649000-594548000+6399000-87010000-426729000 -> 3295761000 | G14: =4409216000-606347000+6399000-83026000-417027000 -> 3309215000 | H14: 3309215000 | I14: =4620943000+319000-392361000+54930000-386744000-400000000 -> 3497087000 | J14: =5338517000-350000000-600000000 -> 4388517000 | K14: =5655653000-395490000-100000000-601345000 -> 4558818000
A15: Community and public safety | C15: =C16+C25+C26+C32+C33 -> 183239335.3 | D15: =D16+D25+D26+D32+D33 -> 337604067 | E15: 182924385 | F15: 362535926 | G15: 315104268 | H15: 315104268 | I15: 257743812 | J15: 335584524 | K15: 328722931
A16: Community and social services | C16: =SUM(C17:C24) -> 17636966.3 | D16: =SUM(D17:D24) -> 19975767 | E16: 19456878 | F16: 23572072 | G16: 22166564 | H16: 22166564 | I16: 24930358 | J16: 60222584 | K16: 38706953
A17: Libraries and Archives | C17: 4821698.4 | D17: 6602889 | E17: 6544930 | F17: 10567993 | G17: 9162485 | H17: 9162485 | I17: 9107557 | J17: 10437466 | K17: 10905456
A18: Museums & Art Galleries etc | C18: 967292.16 | D18: 704292 | E18: 785370 | F18: 735476 | G18: 735476 | H18: 735476 | I18: 1040034 | J18: 1123618 | K18: 1208705
A19: Community halls and Facilities | C19: 0 | D19: 0 | E19: 0 | F19: 0 | G19: 0 | H19: 0 | I19: 0 | J19: 0 | K19: 0
A20: Cemeteries & Crematoriums | C20: 10074219.24 | D20: 10583518 | E20: 11965750 | F20: 11845771 | G20: 11845771 | H20: 11845771 | I20: 14002565 | J20: 27813486 | K20: 15666497
A21: Child Care | C21: 0 | D21: 0 | E21: 0 | F21: 0 | G21: 0 | H21: 0 | I21: 0 | J21: 0 | K21: 0
A22: Aged Care | C22: 0 | D22: 0 | E22: 0 | F22: 0 | G22: 0 | H22: 0 | I22: 0 | J22: 0 | K22: 0
A23: Other Community | C23: 168677.5 | D23: 19108 | E23: 8632 | F23: 0 | G23: 0 | H23: 0 | I23: 0 | J23: 20000000 | K23: 10000000
A24: Other Social | C24: 1605079 | D24: 2065960 | E24: 152196 | F24: 422832 | G24: 422832 | H24: 422832 | I24: 780202 | J24: 848014 | K24: 926295
A25: Sport and recreation | C25: 33685740.61 | D25: 58054937 | E25: 54778896 | F25: 87784442 | G25: 87934442 | H25: 87934442 | I25: 20321916 | J25: 51487775 | K25: 52668854
A26: Public safety | C26: =SUM(C27:C31) -> 43903060.1 | D26: =SUM(D27:D31) -> 50310114 | E26: 41160380 | F26: 70931457.96 | G26: 70931458 | H26: 70931458 | I26: 74632642 | J26: 78474235 | K26: 82517128
A27: Police | C27: 41839795.49 | D27: 49061576 | E27: 39561610 | F27: 69172011.96 | G27: 69172012 | H27: 69172012 | I27: 72862642 | J27: 76579235 | K27: 80487128
A28: Fire | C28: 2063264.61 | D28: 1248538 | E28: 1598770 | F28: 1759446 | G28: 1759446 | H28: 1759446 | I28: 1770000 | J28: 1895000 | K28: 2030000
A29: Civil Defence | C29: 0 | D29: 0 | E29: 0 | F29: 0 | G29: 0 | H29: 0 | I29: 0 | J29: 0 | K29: 0
A30: Street Lighting | C30: 0 | D30: 0 | E30: 0 | F30: 0 | G30: 0 | H30: 0 | I30: 0 | J30: 0 | K30: 0
A31: Other | C31: 0 | D31: 0 | E31: 0 | F31: 0 | G31: 0 | H31: 0 | I31: 0 | J31: 0 | K31: 0
A32: Housing | C32: 35684000 | D32: 142580000 | E32: 0 | F32: 109683000 | G32: 62239000 | H32: 62239000 | I32: 58970000 | J32: 62000000 | K32: 64500000
A33: Health | C33: =SUM(C34:C36) -> 52329568.34 | D33: =SUM(D34:D36) -> 66683249 | E33: 67528231 | F33: 70564954 | G33: 71832803.98 | H33: 71832803.98 | I33: 78888896 | J33: 83399930 | K33: 90329996
A34: Clinics | C34: 18080866.16 | D34: 24897545 | E34: 24773124 | F34: 27271697 | G34: 28537697 | H34: 28537697 | I34: 29588896 | J34: 31229930 | K34: 33853996
A35: Ambulance | C35: 34248702.18 | D35: 41785704 | E35: 42755107 | F35: 43293257 | G35: 43295106.98 | H35: 43295106.98 | I35: 49300000 | J35: 52170000 | K35: 56476000
A36: Other | C36: 0 | D36: 0 | E36: 0 | F36: 0 | G36: 0 | H36: 0 | I36: 0 | J36: 0 | K36: 0
A37: Economic and environmental services | C37: =C38+C42+C48 -> 270345785.4 | D37: =D38+D42+D48 -> 557805357 | E37: 873781621 | F37: 1962214112 | G37: 1378455707 | H37: 1378455707 | I37: 2147869060 | J37: 1618670274 | K37: 2218320477
A38: Planning and development | C38: =SUM(C39:C41) -> 69190325.71 | D38: =SUM(D39:D41) -> 126070119 | E38: 157484804 | F38: 140361519 | G38: 140362519 | H38: 140362519 | I38: 151638211 | J38: 280306824 | K38: 308076273
A39: Economic Development/Planning | C39: 1345331.05 | D39: 1792910 | E39: 2780712 | F39: =3514790+6725000 -> 10239790 | G39: =3514790+6726000 -> 10240790 | H39: 10240790 | I39: =2967717+38021000 -> 40988717 | J39: =8162619+98252000 -> 106414619 | K39: =11260158+108987000 -> 120247158
A40: Town Planning/Building enforcement | C40: 67844994.66 | D40: 124277209 | E40: 154704092 | F40: 130121729 | G40: 130121729 | H40: 130121729 | I40: 110649494 | J40: 173892205 | K40: 187829115
A41: Licensing & Regulation | C41: 0 | D41: 0 | E41: 0 | F41: 0 | G41: 0 | H41: 0 | I41: 0 | J41: 0 | K41: 0
A42: Road transport | C42: =SUM(C43:C47) -> 200965617.1 | D42: =SUM(D43:D47) -> 431676761 | E42: 715766932 | F42: 1821752593 | G42: 1236429788 | H42: 1236429788 | I42: 1996070849 | J42: 1338195950 | K42: 1910069204
A43: Roads | C43: =53095993+11000000 -> 64095993 | D43: =186012971+78750000 -> 264762971 | E43: 203764056 | F43: =291777124+693254000 -> 985031124 | G43: =334983599-150000000+510244000 -> 695227599 | H43: 695227599 | I43: =163356287+804180000 -> 967536287 | J43: =223603540+440000000 -> 663603540 | K43: =184584553+740000000 -> 924584553
A44: Public Buses | C44: 56075674.06 | D44: 70847545 | E44: =145130298+266725000 -> 411855298 | F44: 728132112 | G44: =497151832-64539000 -> 432612832 | H44: 432612832 | I44: 958290268 | J44: 599753882 | K44: 905736115
A45: Parking Garages | C45: 459515.84 | D45: 327169 | E45: 145098 | F45: 200000 | G45: 200000 | H45: 200000 | I45: 150000 | J45: 162720 | K45: 176203
A46: Vehicle Licensing and Testing | C46: 80334434.17 | D46: 95739076 | E46: 100002480 | F46: 108389357 | G46: 108389357 | H46: 108389357 | I46: 70094294 | J46: 74675808 | K46: 79572333
A47: Other | C47: 0 | D47: 0 | E47: 0 | F47: 0 | G47: 0 | H47: 0 | I47: 0 | J47: 0 | K47: 0
A48: Environmental protection | C48: =SUM(C49:C51) -> 189842.6 | D48: =SUM(D49:D51) -> 58477 | E48: 529885 | F48: 100000 | G48: 1663400 | H48: 1663400 | I48: 160000 | J48: 167500 | K48: 175000
A49: Pollution Control | C49: 0 | D49: 0 | E49: 0 | F49: 0 | G49: 0 | H49: 0 | I49: 0 | J49: 0 | K49: 0
A50: Biodiversity & Landscape | C50: 0 | D50: 0 | E50: 0 | F50: 0 | G50: 0 | H50: 0 | I50: 0 | J50: 0 | K50: 0
A51: Other | C51: 189842.6 | D51: 58477 | E51: 529885 | F51: 100000 | G51: 1663400 | H51: 1663400 | I51: 160000 | J51: 167500 | K51: 175000
A52: Trading services | C52: =C53+C56+C59+C63 -> 4995609272 | D52: =D53+D56+D59+D63 -> 5857353124 | E52: 6344182728 | F52: 8642880027 | G52: 8687690240 | H52: 8687690240 | I52: 9912335737 | J52: 11471778777 | K52: =K53+K56+K59+K63 -> 13052182642
A53: Electricity | C53: =SUM(C54:C55) -> 2972994277 | D53: =SUM(D54:D55) -> 3571748257 | E53: 3701651624 | F53: 5675555391 | G53: 5696200228 | H53: 5696200228 | I53: 6325456026 | J53: 7298981930 | K53: 8590499518
A54: Electricity Distribution | C54: =13744334+36498000 -> 50242334 | D54: 28884036 | E54: 25912283 | F54: 6398641 | G54: 6398641 | H54: 6398641 | I54: =31930040+23000000 -> 54930040 | J54: =39342512+30000000 -> 69342512 | K54: =9777267+30000000 -> 39777267
A55: Electricity Generation | C55: =2775917943+46834000+150242000-50242000 -> 2922751943 | D55: =3162795221-129018000+44440000+493531000-28884000 -> 3542864221 | E55: =3956280341-228818000+51609000-77420000-25912000 -> 3675739341 | F55: =5270371750-217271000-49683000+77590000+594548000-6399000 -> 5669156750 | G55: =5312102587-250000000+27751000+606347000-6399000 -> 5689801587 | H55: 5689801587 | I55: =6496051986-400000000+56261000-219218000+392361000-54930000 -> 6270525986 | J55: =7557895418-365145000+49741000-12852000 -> 7229639418 | K55: =8834018251-400000000+68369000-347155000+395490000 -> 8550722251
A56: Water | C56: =SUM(C57:C58) -> 1171990823 | D56: =SUM(D57:D58) -> 1382401896 | E56: 1592817831 | F56: 1599662464 | G56: 1609662010 | H56: 1609662010 | I56: 1984562558 | J56: 2333214594 | K56: 2293849629
A57: Water Distribution | C57: 1171990823 | D57: 1382401896 | E57: =1498728831+94089000 -> 1592817831 | F57: =1618653464-100000000-6001000+87010000 -> 1599662464 | G57: =1626634010-100000000+2000+83026000 -> 1609662010 | H57: 1609662010 | I57: =1748137776-50000000-319218-100000000+386744000 -> 1984562558 | J57: =1983214594+350000000 -> 2333214594 | K57: =2193849629+100000000 -> 2293849629
A58: Water Storage | C58: 0 | D58: 0 | E58: 0 | F58: 0 | G58: 0 | H58: 0 | I58: 0 | J58: 0 | K58: 0
A59: Waste water management | C59: =SUM(C60:C62) -> 556202458 | D59: =SUM(D60:D62) -> 596607335 | E59: 691552315 | F59: 927291855 | G59: 921457317 | H59: 921457317 | I59: 1095170526 | J59: 1251531686 | K59: 1485240543
A60: Sewerage | C60: =349395171+200000000 -> 549395171 | D60: =383281159+200000000 -> 583281159 | E60: =481032183+200000000 -> 681032183 | F60: =483562855+426729000 -> 910291855 | G60: =491930317+417027000 -> 908957317 | H60: 908957317 | I60: =679402526+400000000 -> 1079402526 | J60: =628531686+600000000 -> 1228531686 | K60: =868795543+601345000 -> 1470140543
A61: Storm Water Management | C61: 6807287 | D61: 13326176 | E61: 10520132 | F61: 17000000 | G61: 12500000 | H61: 12500000 | I61: 15768000 | J61: 23000000 | K61: 15100000
A62: Public Toilets | C62: 0 | D62: 0 | E62: 0 | F62: 0 | G62: 0 | H62: 0 | I62: 0 | J62: 0 | K62: 0
A63: Waste management | C63: =SUM(C64) -> 294421714.1 | D63: =SUM(D64) -> 306595636 | E63: 358160958 | F63: 440370317 | G63: 460370685 | H63: 460370685 | I63: 507146627 | J63: 588050567 | K63: 682592952
A64: Solid Waste | C64: 294421714.1 | D64: 306595636 | E64: 358160958 | F64: 440370317 | G64: 460370685 | H64: 460370685 | I64: 507146627 | J64: 588050567 | K64: 682592952
A65: Other | C65: =SUM(C66:C70) -> 99099371.76 | D65: =SUM(D66:D70) -> 126475904 | E65: 137493601 | F65: 147467358 | G65: 169416271 | H65: 169416271 | I65: 176649594 | J65: 187178400 | K65: 198338930
A66: Air Transport | C66: 24789630.16 | D66: 39358975 | E66: 40417227 | F66: 50630393 | G66: 70679793 | H66: 70679793 | I66: 72208633 | J66: 76541152 | K66: 81133621
A67: Abattoirs | C67: 0 | D67: 0 | E67: 0 | F67: 0 | G67: 0 | H67: 0 | I67: 0 | J67: 0 | K67: 0
A68: Tourism | C68: 0 | D68: 0 | E68: 0 | F68: 0 | G68: 0 | H68: 0 | I68: 0 | J68: 0 | K68: 0
A69: Forestry | C69: 0 | D69: 0 | E69: 0 | F69: 0 | G69: 0 | H69: 0 | I69: 0 | J69: 0 | K69: 0
A70: Markets | C70: 74309741.6 | D70: =87115929+1000 -> 87116929 | E70: 97076374 | F70: =96837965-1000 -> 96836965 | G70: 98736478 | H70: 98736478 | I70: 104440961 | J70: 110637248 | K70: 117205309
A71: ="Total "&A4 -> Total Revenue - Standard | B71: 2 | C71: =C5+C15+C37+C52+C65 -> 8558089894 | D71: =D5+D15+D37+D52+D65 -> 10004318345 | E71: =E5+E15+E37+E52+E65 -> 11656697553 | F71: 1.461235638e+10 | G71: 1.410038228e+10 | H71: 1.410038228e+10 | I71: 16235929807 | J71: 18262496896 | K71: =K5+K15+K37+K52+K65 -> 20636546594
A73: Expenditure - Standard
A74: =A5 -> Municipal governance and administration | C74: =C75+C78+C79 -> 1997981392 | D74: 2614501720 | E74: 2130343054 | F74: 2862544341 | G74: 2501646423 | H74: 2501646423 | I74: 2676946630 | J74: 2873024568 | K74: 3201759843
A75: =A6 -> Executive and council | C75: =SUM(C76:C77) -> 152998920.6 | D75: 198133299 | E75: 354279535 | F75: 562929725.7 | G75: 513221110.7 | H75: 513221110.7 | I75: 346619160.2 | J75: 350357726.7 | K75: 377276613.6
A76: Mayor and Council | C76: 105626198.7 | D76: 112498617 | E76: 149466597 | F76: 176010531.5 | G76: 171440752.5 | H76: 171440752.5 | I76: 201874625.9 | J76: 217899170.9 | K76: 234778255.7
A77: Municipal Manager | C77: 47372721.86 | D77: 85634682 | E77: 204812938 | F77: 386919194.2 | G77: 341780358.2 | H77: 341780358.2 | I77: 144744534.2 | J77: 132458555.8 | K77: 142498357.8
A78: Budget and treasury office | C78: 12768365.59 | D78: 13828377 | E78: 13858326 | F78: 26875227 | G78: 26875227 | H78: 26875227 | I78: 17289049.6 | J78: 18545984.24 | K78: 19896944.72
A79: Corporate services | C79: =SUM(C80:C83) -> 1832214106 | D79: 2402540044 | E79: 1762205193 | F79: 2272739388 | G79: 1961550085 | H79: 1961550085 | I79: 2313038420 | J79: 2504120857 | K79: 2804586284
A80: Human Resources | C80: 102338428.3 | D80: 113805180 | E80: 115460518 | F80: 151133802.1 | G80: 148994955.1 | H80: 148994955.1 | I80: 171956935.4 | J80: 183427102.4 | K80: 195730875.1
A81: Information Technology | C81: 228878418.9 | D81: 229436944 | E81: 194823843 | F81: =293154705-40809000 -> 252345705 | G81: 251075658 | H81: 251075658 | I81: 280733967.2 | J81: 297164492.3 | K81: 316308617.5
A82: Property Services | C82: 91568182 | D82: 80062967 | E82: 63024733 | F82: 59220930.96 | G82: 58680292.96 | H82: 58680292.96 | I82: 68861207.36 | J82: 75347507.03 | K82: 82559902.79
A83: Other Admin | C83: =1328123077+118631000+8704000-54321000+8292000 -> 1409429077 | D83: =2005357953+74925000-34843000-77790000+11585000 -> 1979234953 | E83: =1462518099-83456000+9834000 -> 1388896099 | F83: =2239110950-350000000-92636000+13564000 -> 1810038950 | G83: =1640329179-58791000-91303000+12564000 -> 1502799179 | H83: 1502799179 | I83: =1773070310+50000000-99584000+68000000 -> 1791486310 | J83: =1895110755+88335000-104563000+69299000 -> 1948181755 | K83: =2014527889+213159000-107700000+90000000 -> 2209986889
A84: Community and public safety | C84: =C85+C94+C95+C101+C102 -> 1239680273 | D84: 1482570720 | E84: 1632136060 | F84: 1935864553 | G84: 1936837391 | H84: 1936837391 | I84: 2181400946 | J84: 2341475076 | K84: 2509961549
A85: Community and social services | C85: =SUM(C86:C93) -> 159856426.9 | D85: 187143385 | E85: 219218530 | F85: 356331446.9 | G85: 304341246.9 | H85: 304341246.9 | I85: 315681159.8 | J85: 339523061.2 | K85: 364536341.4
A86: Libraries and Archives | C86: 49504788.28 | D86: 53892844 | E86: 58228929 | F86: 62762779.4 | G86: 67487442.4 | H86: 67487442.4 | I86: 79634567.81 | J86: 86012730.01 | K86: 92253203.17
A87: Museums & Art Galleries etc | C87: 11679456.92 | D87: 13259318 | E87: 13896080 | F87: 13583906.4 | G87: 14280865.4 | H87: 14280865.4 | I87: 21194125.56 | J87: 22694824.78 | K87: 24334692.53
A88: Community halls and Facilities | C88: 88038.26 | D88: 40600 | E88: 50447 | F88: 170753 | G88: 313873 | H88: 313873 | I88: 65913 | J88: 70072 | K88: 77443
A89: Cemeteries & Crematoriums | C89: 28658642.02 | D89: 31688426 | E89: 26878805 | F89: 31304690.43 | G89: 30301237.43 | H89: 30301237.43 | I89: 39193671.98 | J89: 41980620.21 | K89: 44952438.29
A90: Child Care | C90: 0 | D90: 0 | E90: 0 | F90: 0 | G90: 2635481 | H90: 2635481 | I90: 2045255 | J90: 2180830 | K90: 2325852
A91: Aged Care | C91: 0 | D91: 0 | E91: 0 | F91: 0 | G91: 0 | H91: 0 | I91: 0 | J91: 0 | K91: 0
A92: Other Community | C92: 34388029.56 | D92: 47432754 | E92: 69327039 | F92: 120331399.7 | G92: 112705556.7 | H92: 112705556.7 | I92: 70794849.63 | J92: 76076196.83 | K92: 81834860.87
A93: Other Social | C93: 35537471.88 | D93: 40829443 | E93: 50837230 | F93: 128177918 | G93: 76616791 | H93: 76616791 | I93: 102752776.8 | J93: 110507787.4 | K93: 118757851.6
A94: Sport and recreation | C94: 363532922.3 | D94: 401350389 | E94: 466132016 | F94: 556209000.6 | G94: 559938683.6 | H94: 559938683.6 | I94: 604622218.9 | J94: 650960744.7 | K94: 701151684.5
A95: Public safety | C95: =SUM(C96:C100) -> 510972152.9 | D95: 641040925 | E95: 672746197 | F95: 757183507.9 | G95: 778476270.5 | H95: 778476270.5 | I95: 934629009.5 | J95: 1002222647 | K95: 1074262741
A96: Police | C96: 386378794.1 | D96: 511397517 | E96: 539663238 | F96: =631547750-50000000 -> 581547750 | G96: 613423571.6 | H96: 613423571.6 | I96: 729326778.8 | J96: 781297755.8 | K96: 836793900.4
A97: Fire | C97: 124593358.7 | D97: 129643408 | E97: 133082959 | F97: 175635757.9 | G97: 165052698.9 | H97: 165052698.9 | I97: 205302230.7 | J97: 220924891.4 | K97: 237468841
A98: Civil Defence | C98: 0 | D98: 0 | E98: 0 | F98: 0 | G98: 0 | H98: 0 | I98: 0 | J98: 0 | K98: 0
A99: Street Lighting | C99: 0 | D99: 0 | E99: 0 | F99: 0 | G99: 0 | H99: 0 | I99: 0 | J99: 0 | K99: 0
A100: Other | C100: 0 | D100: 0 | E100: 0 | F100: 0 | G100: 0 | H100: 0 | I100: 0 | J100: 0 | K100: 0
A101: Housing | C101: 54321000 | D101: 77790000 | E101: 83456123 | F101: 92636016 | G101: 91302741 | H101: 91302741 | I101: 99583872 | J101: 104563000 | K101: 107700096
A102: Health | C102: =SUM(C103:C105) -> 150997770.7 | D102: 175246021 | E102: 190583194 | F102: 173504582.2 | G102: 202778449.2 | H102: 202778449.2 | I102: 226884685.7 | J102: 244205622.7 | K102: 262310686.2
A103: Clinics | C103: 106810964 | D103: 120469381 | E103: 135379447 | F103: 117472403.1 | G103: 138211751.1 | H103: 138211751.1 | I103: 147792687 | J103: 158970186.3 | K103: 170488446.2
A104: Ambulance | C104: 44186806.65 | D104: 54776640 | E104: 55203747 | F104: 56032179.08 | G104: 64566698.08 | H104: 64566698.08 | I104: 79091998.72 | J104: 85235436.4 | K104: 91822240.04
A105: Other | C105: 0 | D105: 0 | E105: 0 | F105: 0 | G105: 0 | H105: 0 | I105: 0 | J105: 0 | K105: 0
A106: Economic and environmental services | C106: =C107+C111+C117 -> 802123044.8 | D106: 930097608 | E106: 1185788930 | F106: 1398682146 | G106: 1425699563 | H106: 1425699563 | I106: 1601557862 | J106: 1724541857 | K106: 1850130753
A107: Planning and development | C107: =SUM(C108:C110) -> 163217774.5 | D107: 191126198 | E107: 244167383 | F107: 280649635.7 | G107: 258171555.7 | H107: 258171555.7 | I107: 330164328.4 | J107: 354307324.8 | K107: 379940828.9
A108: Economic Development/Planning | C108: 39401412.81 | D108: 43437238 | E108: 67491918 | F108: 75953538.11 | G108: 63589309.11 | H108: 63589309.11 | I108: 84156423.61 | J108: 90920639.58 | K108: 97532917.01
A109: Town Planning/Building enforcement | C109: 123816361.7 | D109: 147688960 | E109: 176675465 | F109: 204696097.6 | G109: 194582246.6 | H109: 194582246.6 | I109: 246007904.8 | J109: 263386685.2 | K109: 282407911.8
A110: Licensing & Regulation | C110: 0 | D110: 0 | E110: 0 | F110: 0 | G110: 0 | H110: 0 | I110: 0 | J110: 0 | K110: 0
A111: Road transport | C111: =SUM(C112:C116) -> 606108999.2 | D111: 702240068 | E111: 901481993 | F111: 1087672313 | G111: 1124804835 | H111: 1124804835 | I111: 1219331353 | J111: 1314432321 | K111: 1410548887
A112: Roads | C112: 392605739.8 | D112: 465258773 | E112: 624756603 | F112: 723838497.5 | G112: 738810182.6 | H112: 738810182.6 | I112: 737134262 | J112: 803962576.3 | K112: 869876589.1
A113: Public Buses | C113: 164183673.6 | D113: 177937812 | E113: 216149922 | F113: =352390071-50000000 -> 302390071 | G113: 325472443.9 | H113: 325472443.9 | I113: 404597627.1 | J113: 426772793.5 | K113: 450412786.6
A114: Parking Garages | C114: 149831.76 | D114: 107442 | E114: 94036 | F114: 138316 | G114: 101112 | H114: 101112 | I114: 102842 | J114: 118011 | K114: 134185
A115: Vehicle Licensing and Testing | C115: 49169754.08 | D115: 58936041 | E115: 60481432 | F115: 61305428 | G115: 60421096 | H115: 60421096 | I115: 77496621.5 | J115: 83578939.89 | K115: 90125325.95
A116: Other | C116: 0 | D116: 0 | E116: 0 | F116: 0 | G116: 0 | H116: 0 | I116: 0 | J116: 0 | K116: 0
A117: Environmental protection | C117: =SUM(C118:C120) -> 32796271.05 | D117: 36731342 | E117: 40139554 | F117: 30360198.16 | G117: 42723173.16 | H117: 42723173.16 | I117: 52062181.21 | J117: 55802211.17 | K117: 59641037
A118: Pollution Control | C118: 864.92 | D118: 0 | E118: 0 | F118: 0 | G118: 0 | H118: 0 | I118: 0 | J118: 0 | K118: 0
A119: Biodiversity & Landscape | C119: 0 | D119: 0 | E119: 0 | F119: 0 | G119: 0 | H119: 0 | I119: 0 | J119: 0 | K119: 0
A120: Other | C120: 32795406.13 | D120: 36731342 | E120: 40139554 | F120: 30360198.16 | G120: 42723173.16 | H120: 42723173.16 | I120: 52062181.21 | J120: 55802211.17 | K120: 59641037
A121: Trading services | C121: =C122+C125+C128+C132 -> 4041266886 | D121: =D122+D125+D128+D132 -> 4484595228 | E121: 5647147959 | F121: 6243763863 | G121: 6508933492 | H121: 6508933492 | I121: 8052416069 | J121: 9419574214 | K121: 1.105811723e+10
A122: Electricity | C122: =SUM(C123:C124) -> 2448438041 | D122: 2729798553 | E122: 3701651443 | F122: 4118599828 | G122: 4307348464 | H122: 4307348464 | I122: 5406036844 | J122: 6507438897 | K122: 7961178281
A123: Electricity Distribution | C123: 527440203.4 | D123: 626906061 | E123: 723032721 | F123: 757932621.4 | G123: 763705711.4 | H123: 763705711.4 | I123: 835385448.4 | J123: 901407014.1 | K123: 971962564.2
A124: Electricity Generation | C124: 1920997838 | D124: 2102892492 | E124: =2853363722+162092000-36837000 -> 2978618722 | F124: =3500648207-100000000-39981000 -> 3360667207 | G124: =3582940753-80000000+40702000 -> 3543642753 | H124: 3543642753 | I124: =4570651396 -> 4570651396 | J124: =5605734883+297000 -> 5606031883 | K124: =6889215717+100000000 -> 6989215717
A125: Water | C125: =SUM(C126:C127) -> 1040921319 | D125: 1072760318 | E125: 1142850347 | F125: 1315032347 | G125: 1351020334 | H125: 1351020334 | I125: 1493919701 | J125: 1679871255 | K125: 1780354115
A126: Water Distribution | C126: 1040119422 | D126: 1071985358 | E126: 1142040675 | F126: =1313849623 -> 1313849623 | G126: 1349848480 | H126: 1349848480 | I126: =1434277456+58541000 -> 1492818456 | J126: =1598614377+80000000 -> 1678614377 | K126: 1778943071
A127: Water Storage | C127: 801897.74 | D127: 774960 | E127: 809672 | F127: 1182724 | G127: 1171854 | H127: 1171854 | I127: 1101245 | J127: 1256878 | K127: 1411044
A128: Waste water management | C128: =SUM(C129:C131) -> 203037627.8 | D128: 260060470 | E128: 277451946 | F128: 320666383.4 | G128: 326601966.4 | H128: 326601966.4 | I128: 404409663.4 | J128: 438481250.7 | K128: 474543486.9
A129: Sewerage | C129: 209442127.9 | D129: 259486072 | E129: 279996481 | F129: 315527450.4 | G129: 320849734.4 | H129: 320849734.4 | I129: 393963162.4 | J129: 427018959.7 | K129: 462162814.9
A130: Storm Water Management | C130: -6404500.07 | D130: 574398 | E130: -2544535 | F130: 5138933 | G130: 5752232 | H130: 5752232 | I130: 10446501 | J130: 11462291 | K130: 12380672
A131: Public Toilets | C131: 0 | D131: 0 | E131: 0 | F131: 0 | G131: 0 | H131: 0 | I131: 0 | J131: 0 | K131: 0
A132: Waste management | C132: =SUM(C133) -> 348869897.5 | D132: 421975887 | E132: 525194223 | F132: 489465304.4 | G132: 523962726.4 | H132: 523962726.4 | I132: 748049860.3 | J132: 793782811.4 | K132: 842041342.9
A133: Solid Waste | C133: 348869897.5 | D133: 421975887 | E133: 525194223 | F133: 489465304.4 | G133: 523962726.4 | H133: 523962726.4 | I133: 748049860.3 | J133: 793782811.4 | K133: 842041342.9
A134: Other | C134: =SUM(C135:C139) -> 87460415.45 | D134: 110071521 | E134: 106007762 | F134: 145261834 | G134: 144973167 | H134: 144973167 | I134: 167602251.3 | J134: 179941793.5 | K134: 193217438.7
A135: Air Transport | C135: 43845356.47 | D135: 57321923 | E135: 52859300 | F135: 86913637.04 | G135: 83949578.04 | H135: 83949578.04 | I135: 100785482.3 | J135: 108043197.9 | K135: 115779854.9
A136: Abattoirs | C136: 0 | D136: 0 | E136: 0 | F136: 0 | G136: 0 | H136: 0 | I136: 0 | J136: 0 | K136: 0
A137: Tourism | C137: 15848.63 | D137: 4504 | E137: 5547 | F137: 93696 | G137: 60640 | H137: 60640 | I137: 6550 | J137: 6561 | K137: 6568
A138: Forestry | C138: 0 | D138: 0 | E138: 0 | F138: 0 | G138: 0 | H138: 0 | I138: 0 | J138: 0 | K138: 0
A139: =A70 -> Markets | C139: 43599210.35 | D139: 52745094 | E139: 53142915 | F139: 58254500.93 | G139: 60962948.93 | H139: 60962948.93 | I139: 66810219.06 | J139: 71892034.6 | K139: 77431015.72
A140: ="Total "&A73 -> Total Expenditure - Standard | B140: 3 | C140: =C74+C84+C106+C121+C134 -> 8168512011 | D140: =D74+D84+D106+D121+D134 -> 9621836797 | E140: =E74+E84+E106+E121+E134 -> 10701423765 | F140: 1.258611674e+10 | G140: 1.251809004e+10 | H140: 1.251809004e+10 | I140: 1.467992376e+10 | J140: 1.653855751e+10 | K140: =K74+K84+K106+K121+K134 -> 1.881318681e+10
A141: =result -> Surplus/(Deficit) for the year | C141: =C71-C140 -> 389577882.9 | D141: =D71-D140 -> 382481548 | E141: 955273788 | F141: 2026239644 | G141: 1582292248 | H141: 1582292248 | I141: 1556006049 | J141: 1723939388 | K141: 1823359785
A142: =head27a -> References
A143: 1. Government Finance Statistics Functions and Sub-functions are standardised to assist national and international accounts and comparison
A144: 2. Total Revenue by Standard Classification must reconcile to total operating revenue shown in Financial Performance (revenue and expenditure)
A145: 3. Total Expenditure by Standard Classification must reconcile to total operating expenditure shown in Financial Performance (revenue and expenditure)
A146: 4. All amounts must be classified under a Standard (modified GFS) classification. The GFS function 'Other' is only for Abbatoirs, Air Transport, Markets and Tourism - and if used must be supported by footnotes. Nothing else may be placed under 'Other'. Assign associate share to relevant classification
A149: check oprev balance | C149: =C71-'A4-FinPerf RE'!C60 -> -170.1300001 | D149: =D71-'A4-FinPerf RE'!D60 -> -577 | E149: =E71-'A4-FinPerf RE'!E60 -> -593 | F149: =F71-'A4-FinPerf RE'!F60 -> -940.1300011 | G149: =G71-'A4-FinPerf RE'!G60 -> 953.7299995 | H149: =H71-'A4-FinPerf RE'!H60 -> 953.7299995 | I149: =I71-'A4-FinPerf RE'!J60 -> 150 | J149: =J71-'A4-FinPerf RE'!K60 -> 89 | K149: =K71-'A4-FinPerf RE'!L60 -> 247
A150: check opexp balance | C150: =C140-'A4-FinPerf RE'!C36 -> -127.3636637 | D150: =D140-'A4-FinPerf RE'!D36 -> -281.3027706 | E150: =E140-'A4-FinPerf RE'!E36 -> -612.9225025 | F150: =F140-'A4-FinPerf RE'!F36 -> -90.77700233 | G150: =G140-'A4-FinPerf RE'!G36 -> 300.1120014 | H150: =H140-'A4-FinPerf RE'!H36 -> 300.1120014 | I150: =I140-'A4-FinPerf RE'!J36 -> 147.5757999 | J150: =J140-'A4-FinPerf RE'!K36 -> -223.8976288 | K150: =K140-'A4-FinPerf RE'!L36 -> 247.7867165

Sheet A3-FinPerf V
A1: =muni&" - "&Approve2 -> GT485 Batho Pele City - Table A3 Budgeted Financial Performance (revenue and expenditure by municipal vote)
A2: =Vdesc -> Vote Description | B2: =head27 -> Ref | C2: =head1b -> 2007/8 | D2: =head1A -> 2008/9 | E2: =Head1 -> 2009/10 | F2: =Head2 -> Current Year 2010/11 | I2: =Head3 -> 2011/12 Medium Term Revenue & Expenditure Framework | L2: =Head4 -> LTFS
A3: R thousand | C3: =Head5 -> Audited Outcome | D3: =Head5 -> Audited Outcome | E3: =Head5 -> Audited Outcome | F3: =Head6 -> Original Budget | G3: =Head7 -> Adjusted Budget | H3: =Head8 -> Full Year Forecast | I3: =Head9 -> Budget Year 2011/12 | J3: =Head10 -> Budget Year +1 2012/13 | K3: =Head11 -> Budget Year +2 2013/14 | L3: =Head12 -> Forecast 2014/15 | M3: =Head13 -> Forecast 2015/16 | N3: =Head14 -> Forecast 2016/17 | O3: =Head15 -> Forecast 2017/18 | P3: =Head16 -> Forecast 2018/19 | Q3: =Head17 -> Forecast 2019/20 | R3: =Head18 -> Forecast 2020/21 | S3: =Head19 -> Forecast 2021/22 | T3: =Head20 -> Forecast 2022/23 | U3: =Head21 -> Forecast 2023/24 | V3: =Head22 -> Forecast 2024/25 | W3: =Head23 -> Forecast 2025/26
A4: Revenue by Vote | B4: 1
A5: =A3A!A5 -> Vote1 - Governance and Administration | C5: 502931.38 | D5: 21010144 | E5: 75635450 | F5: 55870000 | G5: 89764839 | H5: 89764839 | I5: 25500000 | J5: 3500000 | K5: 3500000
A6: =A3A!A16 -> Vote2 - Corporate Services | C6: 43209506.81 | D6: 44694744 | E6: 51222354 | F6: 66209764 | G6: 66209764 | H6: 66209764 | I6: 60978886 | J6: 65748618 | K6: 70610532
A7: =A3A!A27 -> Vote3 - Assessment Rates and Other | C7: 2368010000 | D7: 2622876600 | E7: 2857115000 | F7: 3219846000 | G7: 3199846000 | H7: 3199846000 | I7: 3408356000 | J7: 3919390000 | K7: 4635764000
A8: =A3A!A38 -> Vote4 - Finance Services | C8: 70333209.63 | D8: 63067060 | E8: 118197336 | F8: 152593406 | G8: 155904145 | H8: 155904145 | I8: 148959872 | J8: 95101601 | K8: 103042827
A9: =A3A!A49 -> Vote5 - Safety and Security | C9: =124717678+5211000 -> 129928678 | D9: =146452719+1000 -> 146453719 | E9: 141428442 | F9: =179557001-15000000-1000 -> 164556001 | G9: 179557002 | H9: 179557002 | I9: 144915294 | J9: 153353422 | K9: 162308763
A10: =A3A!A60 -> Vote6 - Planning and Economic Development | C10: =69230524+97300000 -> 166530524 | D10: 156099925 | E10: =157512694+6725000 -> 164237694 | F10: =133682735-6303000+6725000 -> 134104735 | G10: 133682735 | H10: 133682735 | I10: =110166200+38021000 -> 148187200 | J10: =178606752+98252000 -> 276858752 | K10: =195644316+108987000 -> 304631316
A11: =A3A!A71 -> Vote7 - Health and Social Development | C11: 53941713.34 | D11: 68807686 | E11: 68136439 | F11: 71087786 | G11: 79080635 | H11: =72355635+6725000 -> 79080635 | I11: =79779098+84862000 -> 164641098 | J11: 84365444 | K11: 91381291
A12: =A3A!A82 -> Vote8 - Sport, Recreation and Community Services | C12: 40902546.62 | D12: 43799676 | E12: 38456081 | F12: =63368948-20000000 -> 43368948 | G12: 61963440 | H12: 61963440 | I12: 12388127 | J12: 63933053 | K12: 54625447
A13: =A3A!A93 -> Vote9 - Housing | C13: 35684000 | D13: 142580000 | E13: 230000 | F13: 109683000 | G13: 62239000 | H13: 62239000 | I13: 58970000 | J13: 62000000 | K13: 64500000
A14: =A3A!A104 -> Vote10 - Environmental Management and Agriculture | C14: 388899806.6 | D14: 475875633 | E14: 490940522 | F14: =584773016-20000000+6000000 -> 570773016 | G14: 608385297 | H14: 608385297 | I14: 643721533 | J14: 745667107 | K14: 835672326
A15: =A3A!A115 -> Vote11 - Transport and Roads | C15: 558960000 | D15: =309545667+78750000+280000000 -> 668295667 | E15: =399831713+260000000+450000000 -> 1109831713 | F15: =1128499000+693254000 -> 1821753000 | G15: 1236430000 | H15: 1236430000 | I15: =1209623188+804180000+319000 -> 2014122188 | J15: =922898574+440000000+1000+454951000+200000000-109000000 -> 1908850574 | K15: =1186554289-215437000+740000000-89000+100000000+129892000 -> 1940920289 | L15: =A5A!L115 -> 0
A16: =A3A!A126 -> Vote12 - Electricity | C16: 2972994277 | D16: =3807711000-235963000 -> 3571748000 | E16: 4256897100 | F16: 5675556200 | G16: 5696200500 | H16: 5696200500 | I16: 6325456000 | J16: 7298981930 | K16: 8590500000 | L16: =A5A!L126 -> 0
A17: =A3A!A137 -> Vote13 - Waste Water | C17: 556202000 | D17: =396607335+200000000 -> 596607335 | E17: 691552315 | F17: =988740120-56448000-5000000 -> 927292120 | G17: 921456789 | H17: 921456789 | I17: =995170526+100000000 -> 1095170526 | J17: =651531686+600000000 -> 1251531686 | K17: 1485241000 | L17: =A5A!L137 -> 0
A18: =A3A!A148 -> Vote14 - Water | C18: 1171990823 | D18: 1382401896 | E18: =1498728831+94089000 -> 1592817831 | F18: 1599662000 | G18: 1609662010 | H18: =1726636010-116974000 -> 1609662010 | I18: 1984563000 | J18: =1983214594+350000000 -> 2333214594 | K18: 2293849629 | L18: =A5A!L148 -> 0
A19: Total Revenue by Vote | B19: 2 | C19: =SUM(C5:C18) -> 8558090016 | D19: 10004318085 | E19: 11656698277 | F19: 14612355976 | G19: 14100382156 | H19: 14100382156 | I19: 16235929724 | J19: 18262496781 | K19: 20636547420 | L19: =SUM(#REF!) ->  | M19: =SUM(#REF!) ->  | N19: =SUM(#REF!) ->  | O19: =SUM(#REF!) ->  | P19: =SUM(#REF!) ->  | Q19: =SUM(#REF!) ->  | R19: =SUM(#REF!) ->  | S19: =SUM(#REF!) ->  | T19: =SUM(#REF!) ->  | U19: =SUM(#REF!) ->  | V19: =SUM(#REF!) ->  | W19: =SUM(#REF!) -> 
A21: Expenditure by Vote to be appropriated | B21: 1
A22: =A3A!A173 -> Vote1 - Governance and Administration | C22: 176650191.6 | D22: 221747380 | E22: 382857513 | F22: 621889238.1 | G22: =564930622-100000000 -> 464930622 | H22: 464930622 | I22: 336207356.4 | J22: 343449699.3 | K22: 367395802.5
A23: =A3A!A184 -> Vote2 - Corporate Services | C23: =784908789+8292000 -> 793200789 | D23: =838438652+11585000-1000 -> 850022652 | E23: =819496211+9834000 -> 829330211 | F23: =981142742-30000000+13564000-1000 -> 964705742 | G23: =907984727-10370000+12564000 -> 910178727 | H23: 910178727 | I23: =1032200085-100000000+68000000-1000 -> 1000199085 | J23: =1099061356-71360000+69299000 -> 1097000356 | K23: =1172332665-69814000+90000000+1000 -> 1192519665
A24: =A3A!A195 -> Vote3 - Assessment Rates and Other | C24: 563828975.6 | D24: =1159113229-39050000 -> 1120063229 | E24: 474925953 | F24: =1040620014-391963000-50000000 -> 598657014 | G24: 483081279 | H24: 483081279 | I24: 504279314 | J24: 546855544.3 | K24: 593145200.8
A25: =A3A!A206 -> Vote4 - Finance Services | C25: 350768595 | D25: =409853905 -> 409853905 | E25: 431061498 | F25: =690527896-100000000 -> 590527896 | G25: 716271505.7 | H25: 716271505.7 | I25: 801453828.7 | J25: 847245253.1 | K25: 889927177.6
A26: =A3A!A217 -> Vote5 - Safety and Security | C26: 575218083.6 | D26: 714620339 | E26: 750413506 | F26: =892308082-100000000 -> 792308082 | G26: =860027603-90000000 -> 770027603 | H26: 770027603 | I26: =1036377731-177495000 -> 858882731 | J26: =1111895553-200000000 -> 911895553 | K26: =1192376686-100000000 -> 1092376686
A27: =A3A!A228 -> Vote6 - Planning and Economic Development | C27: 176263400.6 | D27: 202716449 | E27: 253264960 | F27: =280446511-20000000 -> 260446511 | G27: 262657831.3 | H27: 262657831.3 | I27: 313270632.4 | J27: 336383983.8 | K27: 362312409
A28: =A3A!A239 -> Vote7 - Health and Social Development | C28: 208374492.5 | D28: 241085752 | E28: 270428265 | F28: =325025322-50000000 -> 275025322 | G28: =316684600-70000000 -> 246684600 | H28: 246684600 | I28: =368142233-10000000 -> 358142233 | J28: 396008906.9 | K28: 425130872.9
A29: =A3A!A250 -> Vote8 - Sport, Recreation and Community Services | C29: 133082182 | D29: 152738112 | E29: 184798964 | F29: 242072766.2 | G29: =250297447-35000000 -> 215297447 | H29: 215297447 | I29: 247752798 | J29: 267133990.6 | K29: 288258026.3
A30: =A3A!A261 -> Vote9 - Housing | C30: 285814217.9 | D30: 289419193 | E30: 213521727 | F30: 341013484.6 | G30: 251355753.6 | H30: 251355753.6 | I30: 345325319.1 | J30: 367797666.1 | K30: 391505706.2
A31: =A3A!A272 -> Vote10 - Environmental Management and Agriculture | C31: 735528567.1 | D31: 852261320 | E31: 995493402 | F31: =1023687203-50000000 -> 973687203 | G31: 1056275697 | H31: 1056275697 | I31: 1355263569 | J31: 1446836133 | K31: 1544061581
A32: =A3A!A283 -> Vote11 - Transport and Roads | C32: =599318578-121811000-122000 -> 477385578 | D32: 504688741 | E32: =893079556-295000-99400000-10000 -> 793374556 | F32: 1171484043 | G32: 1156357884 | H32: 1156357884 | I32: 1254780208 | J32: 1352159092 | K32: 1450478720 | L32: =A3A!L284 -> 0
A33: =A3A!A294 -> Vote12 - Electricity | C33: 2448438041 | D33: 2729798553 | E33: 3701651443 | F33: 4118599828 | G33: 4307348464 | H33: 4307348464 | I33: 5406036844 | J33: 6507438897 | K33: 7961178281 | L33: =A3A!L295 -> 0
A34: =A3A!A305 -> Vote13 - Waste Water | C34: 203037627.8 | D34: 260060470 | E34: 277451946 | F34: 320666383.4 | G34: 326601966.4 | H34: 326601966.4 | I34: 404409663.4 | J34: 438481250.7 | K34: 474543486.9 | L34: =A3A!L306 -> 0
A35: =A3A!A316 -> Vote14 - Water | C35: 1040921319 | D35: 1072760318 | E35: 1142850347 | F35: 1315032347 | G35: 1351020334 | H35: 1351020334 | I35: 1493919701 | J35: 1679871255 | K35: 1780354115 | L35: =A3A!L317 -> 0
A36: Total Expenditure by Vote | B36: 2 | C36: =SUM(C22:C35) -> 8168512061 | D36: 9621836413 | E36: 10701424291 | F36: 1.258611586e+10 | G36: 1.251808971e+10 | H36: 1.251808971e+10 | I36: 1.467992328e+10 | J36: 1.653855758e+10 | K36: 1.881318773e+10 | L36: =SUM(L22:L28) -> 0 | M36: 0 | N36: 0 | O36: 0 | P36: 0 | Q36: 0 | R36: 0 | S36: 0 | T36: 0 | U36: 0 | V36: 0 | W36: 0
A37: =result -> Surplus/(Deficit) for the year | B37: 2 | C37: =C19-C36 -> 389577954.9 | D37: =D19-D36 -> 382481672 | E37: 955273986 | F37: 2026240115 | G37: 1582292442 | H37: 1582292442 | I37: 1556006441 | J37: 1723939200 | K37: 1823359690 | L37: =L19-L36 -> 
A38: =head27a -> References
A39: 1. Insert 'Vote'; e.g. department, if different to standard classification structure
A40: 2. Must reconcile to Budgeted Financial Performance (revenue and expenditure)
A41: 3. Assign share in 'associate' to relevant Vote
A43: ="check "&A37 -> check Surplus/(Deficit) for the year | C43: =C37-A3A!C340 -> 389577954.9 | D43: =D37-A3A!D340 -> 382481672 | E43: =E37-A3A!E340 -> 955273986 | F43: =F37-A3A!F340 -> 2026240115 | G43: =G37-A3A!G340 -> 1582292442 | H43: =H37-A3A!H340 -> 1582292442 | I43: =I37-A3A!I340 -> 1556006441 | J43: =J37-A3A!J340 -> 1723939200 | K43: =K37-A3A!K340 -> 1823359690

Sheet A3A (hidden)
A1: =muni&" - "&Approve2&"A" -> GT485 Batho Pele City - Table A3 Budgeted Financial Performance (revenue and expenditure by municipal vote)A
A2: =Vdesc -> Vote Description | B2: =head27 -> Ref | C2: =head1b -> 2007/8 | D2: =head1A -> 2008/9 | E2: =Head1 -> 2009/10 | F2: =Head2 -> Current Year 2010/11 | I2: =Head3 -> 2011/12 Medium Term Revenue & Expenditure Framework | L2: =Head4 -> LTFS
A3: R thousand | C3: =Head5 -> Audited Outcome | D3: =Head5 -> Audited Outcome | E3: =Head5 -> Audited Outcome | F3: =Head6 -> Original Budget | G3: =Head7 -> Adjusted Budget | H3: =Head8 -> Full Year Forecast | I3: =Head9 -> Budget Year 2011/12 | J3: =Head10 -> Budget Year +1 2012/13 | K3: =Head11 -> Budget Year +2 2013/14 | L3: =Head12 -> Forecast 2014/15 | M3: =Head13 -> Forecast 2015/16 | N3: =Head14 -> Forecast 2016/17 | O3: =Head15 -> Forecast 2017/18 | P3: =Head16 -> Forecast 2018/19 | Q3: =Head17 -> Forecast 2019/20 | R3: =Head18 -> Forecast 2020/21 | S3: =Head19 -> Forecast 2021/22 | T3: =Head20 -> Forecast 2022/23 | U3: =Head21 -> Forecast 2023/24 | V3: =Head22 -> Forecast 2024/25 | W3: =Head23 -> Forecast 2025/26
A4: Revenue by Vote | B4: 1
A5: Vote1 - Governance and Administration | C5: =SUM(C6:C15) -> 0 | D5: =SUM(D6:D15) -> 0 | E5: 0 | F5: 0 | G5: 0 | H5: 0 | I5: 0 | J5: 0 | K5: 0
A6: Subvote example 1
A7: Subvote example 1
A8: Subvote example 1
A16: Vote2 - Corporate Services | C16: =SUM(C17:C26) -> 0 | D16: =SUM(D17:D26) -> 0 | E16: 0 | F16: 0 | G16: 0 | H16: 0 | I16: 0 | J16: 0 | K16: 0
A17: Subvote example 2
A27: Vote3 - Assessment Rates and Other | C27: =SUM(C28:C37) -> 0 | D27: 0 | E27: 0 | F27: 0 | G27: 0 | H27: 0 | I27: 0 | J27: 0 | K27: 0
A28: Subvote example 3
A38: Vote4 - Finance Services | C38: =SUM(C39:C48) -> 0 | D38: 0 | E38: 0 | F38: 0 | G38: 0 | H38: 0 | I38: 0 | J38: 0 | K38: 0
A39: Subvote example 4
A49: Vote5 - Safety and Security | C49: =SUM(C50:C59) -> 0 | D49: =SUM(D50:D59) -> 0 | E49: 0 | F49: 0 | G49: 0 | H49: 0 | I49: 0 | J49: 0 | K49: 0
A50: Subvote example 5
A60: Vote6 - Planning and Economic Development | C60: =SUM(C61:C70) -> 0 | D60: =SUM(D61:D70) -> 0 | E60: 0 | F60: 0 | G60: 0 | H60: 0 | I60: 0 | J60: 0 | K60: 0
A61: Subvote example 6
A71: Vote7 - Health and Social Development | C71: =SUM(C72:C81) -> 0 | D71: 0 | E71: 0 | F71: 0 | G71: 0 | H71: 0 | I71: 0 | J71: 0 | K71: 0
A72: Subvote example 7
A82: Vote8 - Sport, Recreation and Community Services | C82: =SUM(C83:C92) -> 0 | D82: =SUM(D83:D92) -> 0 | E82: 0 | F82: 0 | G82: 0 | H82: 0 | I82: 0 | J82: 0 | K82: 0
A83: Subvote example 8
A93: Vote9 - Housing | C93: =SUM(C94:C103) -> 0 | D93: =SUM(D94:D103) -> 0 | E93: 0 | F93: 0 | G93: 0 | H93: 0 | I93: 0 | J93: 0 | K93: 0
A94: Subvote example 9
A104: Vote10 - Environmental Management and Agriculture | C104: =SUM(C105:C114) -> 0 | D104: =SUM(D105:D114) -> 0 | E104: 0 | F104: 0 | G104: 0 | H104: 0 | I104: 0 | J104: 0 | K104: 0
A105: Subvote example 10
A115: Vote11 - Transport and Roads | C115: =SUM(C116:C125) -> 0 | D115: =SUM(D116:D125) -> 0 | E115: 0 | F115: 0 | G115: 0 | H115: 0 | I115: 0 | J115: 0 | K115: 0
A116: Subvote example 11
A126: Vote12 - Electricity | C126: =SUM(C127:C136) -> 0 | D126: =SUM(D127:D136) -> 0 | E126: 0 | F126: 0 | G126: 0 | H126: 0 | I126: 0 | J126: 0 | K126: 0
A127: Electricity
A137: Vote13 - Waste Water | C137: =SUM(C138:C147) -> 0 | D137: =SUM(D138:D147) -> 0 | E137: 0 | F137: 0 | G137: 0 | H137: 0 | I137: 0 | J137: 0 | K137: 0
A138: Subvote example 13
A148: Vote14 - Water | C148: =SUM(C149:C158) -> 0 | D148: =SUM(D149:D158) -> 0 | E148: 0 | F148: 0 | G148: 0 | H148: 0 | I148: 0 | J148: 0 | K148: 0
A149: Subvote example 14
A159: Example 15 - Vote15 | C159: =SUM(C160:C169) -> 0 | D159: =SUM(D160:D169) -> 0 | E159: 0 | F159: 0 | G159: 0 | H159: 0 | I159: 0 | J159: 0 | K159: 0
A160: Subvote example 15
A170: Total Revenue by Vote | B170: 2 | C170: =C5+C16+C27+C38+C49+C60+C71+C82+C93+C104+C115+C126+C137+C148+C159 -> 0 | D170: =D5+D16+D27+D38+D49+D60+D71+D82+D93+D104+D115+D126+D137+D148+D159 -> 0 | E170: =E5+E16+E27+E38+E49+E60+E71+E82+E93+E104+E115+E126+E137+E148+E159 -> 0 | F170: 0 | G170: 0 | H170: 0 | I170: 0 | J170: 0 | K170: 0 | L170: =SUM(L78:L81) -> 0 | M170: 0 | N170: 0 | O170: 0 | P170: 0 | Q170: 0 | R170: 0 | S170: 0 | T170: 0 | U170: 0 | V170: 0 | W170: 0
A172: Expenditure by Vote | B172: 1
A173: =A5 -> Vote1 - Governance and Administration | C173: =SUM(C174:C183) -> 0 | D173: 0 | E173: 0 | F173: 0 | G173: 0 | H173: 0 | I173: 0 | J173: 0 | K173: 0
A174: =A6 -> Subvote example 1
A175: Subvote example 1
A176: Subvote example 1
A184: =A16 -> Vote2 - Corporate Services | C184: =SUM(C185:C194) -> 0 | D184: =SUM(D185:D194) -> 0 | E184: =SUM(E185:E194) -> 0 | F184: 0 | G184: 0 | H184: 0 | I184: 0 | J184: 0 | K184: 0
A185: =A17 -> Subvote example 2
A195: =A27 -> Vote3 - Assessment Rates and Other | C195: =SUM(C196:C205) -> 0 | D195: 0 | E195: 0 | F195: 0 | G195: 0 | H195: 0 | I195: 0 | J195: 0 | K195: 0
A196: Subvote example 3
A206: Vote4 - Finance Services | C206: =SUM(C207:C216) -> 0 | D206: 0 | E206: 0 | F206: 0 | G206: 0 | H206: 0 | I206: 0 | J206: 0 | K206: 0
A207: =A39 -> Subvote example 4
A217: =A49 -> Vote5 - Safety and Security | C217: =SUM(C218:C227) -> 0 | D217: 0 | E217: 0 | F217: 0 | G217: 0 | H217: 0 | I217: 0 | J217: 0 | K217: 0
A218: =A50 -> Subvote example 5
A228: =A60 -> Vote6 - Planning and Economic Development | C228: =SUM(C229:C238) -> 0 | D228: 0 | E228: 0 | F228: 0 | G228: 0 | H228: 0 | I228: 0 | J228: 0 | K228: 0
A229: =A61 -> Subvote example 6
A239: =A71 -> Vote7 - Health and Social Development | C239: =SUM(C240:C249) -> 0 | D239: 0 | E239: 0 | F239: 0 | G239: 0 | H239: 0 | I239: 0 | J239: 0 | K239: 0
A240: =A72 -> Subvote example 7
A250: =A82 -> Vote8 - Sport, Recreation and Community Services | C250: =SUM(C251:C260) -> 0 | D250: 0 | E250: 0 | F250: 0 | G250: 0 | H250: 0 | I250: 0 | J250: 0 | K250: 0
A251: =A83 -> Subvote example 8
A261: Vote9 - Housing | C261: =SUM(C262:C271) -> 0 | D261: 0 | E261: 0 | F261: 0 | G261: 0 | H261: 0 | I261: 0 | J261: 0 | K261: 0
A262: Subvote example 9
A272: =A104 -> Vote10 - Environmental Management and Agriculture | C272: =SUM(C273:C282) -> 0 | D272: 0 | E272: 0 | F272: 0 | G272: 0 | H272: 0 | I272: 0 | J272: 0 | K272: 0
A273: =A105 -> Subvote example 10
A274: =A106 -> 
A282: =A114 -> 
A283: =A115 -> Vote11 - Transport and Roads | C283: =SUM(C284:C293) -> 0 | D283: 0 | E283: 0 | F283: 0 | G283: 0 | H283: 0 | I283: 0 | J283: 0 | K283: 0
A284: =A116 -> Subvote example 11
A285: =A117 -> 0
A286: 0
A287: 0
A288: 0
A289: 0
A290: 0
A291: 0
A292: 0
A293: 0
A294: Vote12 - Electricity | C294: =SUM(C295:C304) -> 0 | D294: 0 | E294: 0 | F294: 0 | G294: 0 | H294: 0 | I294: 0 | J294: 0 | K294: 0
A295: Electricity
A296: 0
A297: 0
A298: 0
A299: 0
A300: 0
A301: 0
A302: 0
A303: 0
A304: 0
A305: Vote13 - Waste Water | C305: =SUM(C306:C315) -> 0 | D305: 0 | E305: 0 | F305: 0 | G305: 0 | H305: 0 | I305: 0 | J305: 0 | K305: 0
A306: Subvote example 13
A307: 0
A308: 0
A309: 0
A310: 0
A311: 0
A312: 0
A313: 0
A314: 0
A315: 0
A316: Vote14 - Water | C316: =SUM(C317:C326) -> 0 | D316: 0 | E316: 0 | F316: 0 | G316: 0 | H316: 0 | I316: 0 | J316: 0 | K316: 0
A317: Subvote example 14
A318: 0
A319: 0
A320: 0
A321: 0
A322: 0
A323: 0
A324: 0
A325: 0
A326: 0
A327: Example 15 - Vote15 | C327: =SUM(C328:C337) -> 0 | D327: 0 | E327: 0 | F327: 0 | G327: 0 | H327: 0 | I327: 0 | J327: 0 | K327: 0
A328: Subvote example 15
A329: 0
A330: 0
A331: 0
A332: 0
A333: 0
A334: 0
A335: 0
A336: 0
A337: 0
A338: Total Expenditure by Vote | B338: 2 | C338: =C173+C184+C195+C206+C217+C228+C239+C250+C261+C283+C294+C305+C316+C327+C272 -> 0 | D338: =D173+D184+D195+D206+D217+D228+D239+D250+D261+D283+D294+D305+D316+D327+D272 -> 0 | E338: =E173+E184+E195+E206+E217+E228+E239+E250+E261+E283+E294+E305+E316+E327+E272 -> 0 | F338: 0 | G338: 0 | H338: 0 | I338: 0 | J338: 0 | K338: 0 | L338: =SUM(L173:L249) -> 0 | M338: 0 | N338: 0 | O338: 0 | P338: 0 | Q338: 0 | R338: 0 | S338: 0 | T338: 0 | U338: 0 | V338: 0 | W338: 0
A340: =result -> Surplus/(Deficit) for the year | B340: 2 | C340: =C170-C338 -> 0 | D340: 0 | E340: 0 | F340: 0 | G340: 0 | H340: 0 | I340: 0 | J340: 0 | K340: 0 | L340: 0 | M340: 0 | N340: 0 | O340: 0 | P340: 0 | Q340: 0 | R340: 0 | S340: 0 | T340: 0 | U340: 0 | V340: 0 | W340: 0
A341: =head27a -> References
A342: 1. Insert 'Vote'; e.g. Department, if different to standard structure
A343: 2. Must reconcile to Financial Performance ('Revenue and Expenditure by Standard Classification' and 'Revenue and Expenditure')
A344: 3. Assign share in 'associate' to relevant Vote
A346: check revenue | C346: =C170-'A4-FinPerf RE'!C60 -> -8558090064 | D346: =D170-'A4-FinPerf RE'!D60 -> -10004318922 | E346: =E170-'A4-FinPerf RE'!E60 -> -11656698146 | F346: =F170-'A4-FinPerf RE'!F60 -> -1.461235732e+10 | G346: =G170-'A4-FinPerf RE'!G60 -> -1.410038133e+10 | H346: =H170-'A4-FinPerf RE'!H60 -> -1.410038133e+10 | I346: =I170-'A4-FinPerf RE'!J60 -> -16235929657 | J346: =J170-'A4-FinPerf RE'!K60 -> -18262496807 | K346: =K170-'A4-FinPerf RE'!L60 -> -20636546347
A347: check expenditure | C347: =C338-'A4-FinPerf RE'!C36 -> -8168512138 | D347: =D338-'A4-FinPerf RE'!D36 -> -9621837078 | E347: =E338-'A4-FinPerf RE'!E36 -> -1.070142438e+10 | F347: =F338-'A4-FinPerf RE'!F36 -> -1.258611683e+10 | G347: =G338-'A4-FinPerf RE'!G36 -> -1.251808974e+10 | H347: =H338-'A4-FinPerf RE'!H36 -> -1.251808974e+10 | I347: =I338-'A4-FinPerf RE'!J36 -> -1.467992361e+10 | J347: =J338-'A4-FinPerf RE'!K36 -> -1.653855773e+10 | K347: =K338-'A4-FinPerf RE'!L36 -> -1.881318656e+10

Sheet A4-FinPerf RE
A1: =muni&" - "&Approve4 -> GT485 Batho Pele City - Table A4 Budgeted Financial Performance (revenue and expenditure)
A2: =desc -> Description | B2: =head27 -> Ref | C2: =head1b -> 2007/8 | D2: =head1A -> 2008/9 | E2: =Head1 -> 2009/10 | F2: =Head2 -> Current Year 2010/11 | J2: =Head3 -> 2011/12 Medium Term Revenue & Expenditure Framework | M2: =Head4 -> LTFS
A3: R thousand | B3: 1 | C3: =Head5 -> Audited Outcome | D3: =Head5 -> Audited Outcome | E3: =Head5 -> Audited Outcome | F3: =Head6 -> Original Budget | G3: =Head7 -> Adjusted Budget | H3: =Head8 -> Full Year Forecast | I3: =Head5b -> Pre-audit outcome | J3: =Head9 -> Budget Year 2011/12 | K3: =Head10 -> Budget Year +1 2012/13 | L3: =Head11 -> Budget Year +2 2013/14 | M3: =Head12 -> Forecast 2014/15 | N3: =Head13 -> Forecast 2015/16 | O3: =Head14 -> Forecast 2016/17 | P3: =Head15 -> Forecast 2017/18 | Q3: =Head16 -> Forecast 2018/19 | R3: =Head17 -> Forecast 2019/20 | S3: =Head18 -> Forecast 2020/21 | T3: =Head19 -> Forecast 2021/22 | U3: =Head20 -> Forecast 2022/23 | V3: =Head21 -> Forecast 2023/24 | W3: =Head22 -> Forecast 2024/25 | X3: =Head23 -> Forecast 2025/26
A4: Revenue By Source
A5: Property rates | B5: 2 | C5: ='SA1'!C9 -> 1719224465 | D5: ='SA1'!D9 -> 2185065026 | E5: ='SA1'!E9 -> 2299623948 | F5: ='SA1'!F9 -> 2915731000 | G5: ='SA1'!G9 -> 2789465000 | H5: ='SA1'!H9 -> 2789465000 | I5: ='SA1'!I9 -> 0 | J5: ='SA1'!J9 -> 3021874644 | K5: ='SA1'!K9 -> 3369390228 | L5: ='SA1'!L9 -> 3756870104
A6: Property rates - penalties & collection charges | C6: 32665256 | D6: 43701000 | E6: 57490600 | F6: 67120000 | G6: 62135789 | H6: 62135789 | I6: 0 | J6: 66481250 | K6: 70757190 | L6: 78894270
A7: Service charges - electricity revenue | B7: 2 | C7: ='SA1'!C14 -> 2674390255 | D7: ='SA1'!D14 -> 2926493063 | E7: ='SA1'!E14 -> 3466606518 | F7: ='SA1'!F14 -> 4930000000 | G7: ='SA1'!G14 -> 4920000000 | H7: ='SA1'!H14 -> 4920000000 | I7: ='SA1'!I14 -> 0 | J7: ='SA1'!J14 -> 6010000000 | K7: ='SA1'!K14 -> 7061750000 | L7: ='SA1'!L14 -> 8297556250
A8: Service charges - water revenue | B8: 2 | C8: ='SA1'!C19 -> 1036700846 | D8: ='SA1'!D19 -> 1232886384 | E8: ='SA1'!E19 -> 1325320613 | F8: ='SA1'!F19 -> 1475000000 | G8: ='SA1'!G19 -> 1485000000 | H8: ='SA1'!H19 -> 1485000000 | I8: ='SA1'!I19 -> 0 | J8: ='SA1'!J19 -> 1618399760 | K8: ='SA1'!K19 -> 1820699730 | L8: ='SA1'!L19 -> 2048287196
A9: Service charges - sanitation revenue | B9: 2 | C9: ='SA1'!C24 -> 249566963.7 | D9: ='SA1'!D24 -> 303405994 | E9: ='SA1'!E24 -> 337752826 | F9: ='SA1'!F24 -> 354780000.1 | G9: ='SA1'!G24 -> 354780000 | H9: ='SA1'!H24 -> 354780000 | I9: ='SA1'!I24 -> 0 | J9: ='SA1'!J24 -> 392543113 | K9: ='SA1'!K24 -> 433760139 | L9: ='SA1'!L24 -> 479304954
A10: Service charges - refuse revenue | B10: 2 | C10: ='SA1'!C30 -> 266123838.6 | D10: ='SA1'!D30 -> 283925270 | E10: ='SA1'!E30 -> 335095883 | F10: ='SA1'!F30 -> 401815000 | G10: ='SA1'!G30 -> 402358983 | H10: ='SA1'!H30 -> 402358983 | I10: ='SA1'!I30 -> 0 | J10: ='SA1'!J30 -> 447779809 | K10: ='SA1'!K30 -> 524021311 | L10: ='SA1'!L30 -> 613487479
A11: Service charges - other | C11: 19436500 | D11: 18743200 | E11: 24327890 | F11: 21075500 | G11: 21399800 | H11: 21399800 | I11: 0 | J11: 24106000 | K11: 25869500 | L11: 27391500
A12: Rental of facilities and equipment | C12: 70027787.47 | D12: 84317304 | E12: 87687037 | F12: 95947913 | G12: 96268913 | H12: 96268913 | I12: 0 | J12: 105502844 | K12: 112941502 | L12: 120623123
A13: Interest earned - external investments | C13: 134186954.6 | D13: 135554610 | E13: 122499554 | F13: 123375534 | G13: 125996273 | H13: 125996273 | I13: 0 | J13: 120080230 | K13: 64138735 | L13: 71375203
A14: Interest earned - outstanding debtors | C14: 142516021.8 | D14: 179065236 | E14: 279267902 | F14: 223731556 | G14: 305398987 | H14: 305398987 | I14: 0 | J14: 351148098 | K14: 391234791 | L14: 435842667
A15: Dividends received | C15: 0 | D15: 0 | E15: 0 | F15: 0 | G15: 0 | H15: 0 | I15: 0 | J15: 0 | K15: 0 | L15: 0
A16: Fines | C16: 39526470.54 | D16: 39357453 | E16: 31241833 | F16: 62611491.96 | G16: 62611492 | H16: 62611492 | I16: 0 | J16: 65687066 | K16: 68959670 | L16: 72395780
A17: Licences and permits | C17: 21816684.16 | D17: 29498519 | E17: 28423731 | F17: 31538796 | G17: 31538796 | H17: 31538796 | I17: 0 | J17: 34783170 | K17: 36621079 | L17: 38448381
A18: Agency services | C18: 28489780 | D18: 29118010 | E18: 300123179 | F18: 30242374 | G18: 30242000 | H18: 30242000 | I18: 0 | J18: 34208170 | K18: 34842217 | L18: 35178208
A19: Transfers recognised - operational | C19: 460061305 | D19: 642009389 | E19: 587081731 | F19: 836817000 | G19: 789624000 | H19: 789624000 | I19: 0 | J19: 1001918000 | K19: 1118355000 | L19: 1217891000
A20: Other revenue | B20: 2 | C20: ='SA1'!C35 -> 1243597034 | D20: ='SA1'!D35 -> 1413247098 | E20: ='SA1'!E35 -> 1569497232 | F20: ='SA1'!F35 -> 1586756314 | G20: ='SA1'!G35 -> 1606698366 | H20: ='SA1'!H35 -> 1606698366 | I20: ='SA1'!I35 -> 0 | J20: ='SA1'!J35 -> 1839605811 | K20: ='SA1'!K35 -> 1964392715 | L20: ='SA1'!L35 -> 2072735292
A21: Gains on disposal of PPE | C21: 20915400 | D21: 4936900 | E21: 2779289 | F21: 27908023 | G21: 27908023 | H21: 27908023 | I21: 0 | J21: 4500000 | K21: 0 | L21: 0
A22: Total Revenue (excluding capital transfers and contributions) | C22: =SUM(C5:C21) -> 8159245563 | D22: 9551324456 | E22: 10854819766 | F22: 1.31844505e+10 | G22: 1.311142642e+10 | H22: 1.311142642e+10 | I22: 0 | J22: 15138617965 | K22: 17097733807 | L22: 19366281407 | M22: 0 | N22: 0 | O22: 0 | P22: 0 | Q22: 0 | R22: 0 | S22: 0 | T22: 0 | U22: 0 | V22: 0 | W22: 0 | X22: 0
A24: Expenditure By Type
A25: Employee related costs | B25: 2 | C25: ='SA1'!C50 -> 2667809348 | D25: ='SA1'!D50 -> 2999127409 | E25: ='SA1'!E50 -> 3295743916 | F25: ='SA1'!F50 -> 3520655209 | G25: ='SA1'!G50 -> 3562429820 | H25: ='SA1'!H50 -> 3562429820 | I25: ='SA1'!I50 -> 0 | J25: ='SA1'!J50 -> 4048486186 | K25: ='SA1'!K50 -> 4354598426 | L25: ='SA1'!L50 -> 4685963277
A26: Remuneration of councillors | C26: 45946048.36 | D26: 44201358 | E26: 55350803 | F26: 57962677 | G26: 57962677 | H26: 57962677 | I26: 0 | J26: 66438149 | K26: 72879922 | L26: 79960683
A27: Debt impairment | B27: 3 | C27: 193488938.5 | D27: 280647390 | E27: 376124606 | F27: 138472235 | G27: 351600712 | H27: 351600712 | I27: 0 | J27: 482386725 | K27: 533450000 | L27: 609942899
A28: Depreciation & asset impairment | B28: 2 | C28: ='SA1'!C65 -> 707591089 | D28: ='SA1'!D65 -> 661291521 | E28: ='SA1'!E65 -> 601797034 | F28: ='SA1'!F65 -> 905625307 | G28: ='SA1'!G65 -> 841709274.8 | H28: ='SA1'!H65 -> 841709274.8 | I28: ='SA1'!I65 -> 0 | J28: ='SA1'!J65 -> 912331480 | K28: ='SA1'!K65 -> 978067000 | L28: ='SA1'!L65 -> 1139451218
A29: Finance charges | C29: 364382987 | D29: 372545321 | E29: 519534660 | F29: 518152933 | G29: 632076067.3 | H29: 632076067.3 | I29: 0 | J29: 715617392 | K29: 762735889 | L29: 805283831
A30: Bulk purchases | B30: 2 | C30: ='SA1'!C70 -> 1861723106 | D30: ='SA1'!D70 -> 1953963272 | E30: ='SA1'!E70 -> 2421142640 | F30: ='SA1'!F70 -> 3106870358 | G30: ='SA1'!G70 -> 3085865697 | H30: ='SA1'!H70 -> 3085865697 | I30: ='SA1'!I70 -> 0 | J30: ='SA1'!J70 -> 4076331847 | K30: ='SA1'!K70 -> 5092531019 | L30: ='SA1'!L70 -> 6353054435
A31: Other materials | B31: 8 | C31: 631427112 | D31: 819546452 | E31: 653132000 | F31: 742195720 | G31: 752196720 | H31: 752196720 | I31: 0 | J31: 997243000 | K31: 1126884590 | L31: 1262110748
A32: Contracted services | C32: ='SA1'!C96 -> 482045503.6 | D32: ='SA1'!D96 -> 638547405 | E32: ='SA1'!E96 -> 773881969.4 | F32: ='SA1'!F96 -> 1089033479 | G32: ='SA1'!G96 -> 984669291 | H32: ='SA1'!H96 -> 984669291 | I32: ='SA1'!I96 -> 0 | J32: ='SA1'!J96 -> 1010989475 | K32: ='SA1'!K96 -> 1065104504 | L32: ='SA1'!L96 -> 1125172027
A33: Transfers and grants | C33: 210111137 | D33: 276024938 | E33: 316711311.6 | F33: 416934237.2 | G33: 415934237.2 | H33: 415934237.2 | I33: 0 | J33: 443901283.8 | K33: 506492753.4 | L33: 585392397.3
A34: Other expenditure | B34: 4, 5 | C34: ='SA1'!C120 -> 994071652.1 | D34: ='SA1'!D120 -> 1552590396 | E34: ='SA1'!E120 -> 1678936079 | F34: ='SA1'!F120 -> 2090214674 | G34: ='SA1'!G120 -> 1833645240 | H34: ='SA1'!H120 -> 1833645240 | I34: ='SA1'!I120 -> 0 | J34: ='SA1'!J120 -> 1926198072 | K34: ='SA1'!K120 -> 2045813628 | L34: ='SA1'!L120 -> 2166855047
A35: Loss on disposal of PPE | C35: 9915216.89 | D35: 23351617 | E35: 9069358 | F35: 0 | G35: 0 | H35: 0 | I35: 0 | J35: 0 | K35: 0 | L35: 0
A36: Total Expenditure | C36: =SUM(C25:C35) -> 8168512138 | D36: =SUM(D25:D35) -> 9621837078 | E36: 1.070142438e+10 | F36: 1.258611683e+10 | G36: 1.251808974e+10 | H36: 1.251808974e+10 | I36: 0 | J36: 1.467992361e+10 | K36: 1.653855773e+10 | L36: 1.881318656e+10 | M36: =SUM(M25:M35) -> 0 | N36: 0 | O36: 0 | P36: 0 | Q36: 0 | R36: 0 | S36: 0 | T36: 0 | U36: 0 | V36: 0 | W36: 0 | X36: 0
A38: Surplus/(Deficit) | C38: =C22-C36 -> -9266575.374 | D38: -70512622.3 | E38: 153395388.1 | F38: 598333673.6 | G38: 593336686.6 | H38: 593336686.6 | I38: 0 | J38: 458694354.3 | K38: 559176075.1 | L38: 553094845.8 | M38: =M22+M36 -> 0 | N38: 0 | O38: 0 | P38: 0 | Q38: 0 | R38: 0 | S38: 0 | T38: 0 | U38: 0 | V38: 0 | W38: 0 | X38: 0
A39: Transfers recognised - capital | C39: 352011000 | D39: 408554000 | E39: 750269000 | F39: 1350317000 | G39: 961204000 | H39: 961204000 | J39: 1041051000 | K39: 1115022000 | L39: 1201896000
A40: Contributions recognised - capital | B40: 6 | C40: ='SA1'!C59 -> 46833501 | D40: ='SA1'!D59 -> 44440466 | E40: ='SA1'!E59 -> 51609380 | F40: ='SA1'!F59 -> 77589820 | G40: ='SA1'!G59 -> 27750908 | H40: ='SA1'!H59 -> 27750908 | I40: ='SA1'!I59 -> 0 | J40: ='SA1'!J59 -> 56260692 | K40: ='SA1'!K59 -> 49741000 | L40: ='SA1'!L59 -> 68368940
A41: Contributed assets
A42: Surplus/(Deficit) after capital transfers & contributions | C42: =SUM(C38:C41) -> 389577925.6 | D42: 382481843.7 | E42: 955273768.1 | F42: 2026240494 | G42: 1582291595 | H42: 1582291595 | I42: 0 | J42: 1556006046 | K42: 1723939075 | L42: 1823359786
A43: Taxation
A44: Surplus/(Deficit) after taxation | C44: =C42-C43 -> 389577925.6 | D44: 382481843.7 | E44: 955273768.1 | F44: 2026240494 | G44: 1582291595 | H44: 1582291595 | I44: 0 | J44: 1556006046 | K44: 1723939075 | L44: 1823359786
A45: Attributable to minorities
A46: Surplus/(Deficit) attributable to municipality | C46: =SUM(C44:C45) -> 389577925.6 | D46: 382481843.7 | E46: 955273768.1 | F46: 2026240494 | G46: 1582291595 | H46: 1582291595 | I46: 0 | J46: 1556006046 | K46: 1723939075 | L46: 1823359786
A47: Share of surplus/ (deficit) of associate | B47: 7
A48: =result -> Surplus/(Deficit) for the year | C48: =SUM(C46:C47) -> 389577925.6 | D48: 382481843.7 | E48: 955273768.1 | F48: 2026240494 | G48: 1582291595 | H48: 1582291595 | I48: 0 | J48: 1556006046 | K48: 1723939075 | L48: 1823359786 | M48: =M26+M47 -> 0 | N48: 0 | O48: 0 | P48: 0 | Q48: 0 | R48: 0 | S48: 0 | T48: 0 | U48: 0 | V48: 0 | W48: 0 | X48: 0
A49: =head27a -> References
A50: 1. Classifications are revenue sources and expenditure type
A51: 2. Detail to be provided in Table SA1
A52: 3. Previously described as 'bad or doubtful debts' - amounts shown should reflect the change in the provision for debt impairment
A53: 4. Expenditure type components previously shown under repairs and maintenance should be allocated back to the originating expenditure group/item; e.g. employee costs
A54: 5. Repairs & maintenance detailed in Table A9 and Table SA34c
A55: 6. Contributions are funds provided by external organisations to assist with infrastructure development; e.g. developer contributions (detail to be provided in Table SA1)
A56: 7. Equity method
A57: 8. All materials not part of 'bulk' e.g road making materials, pipe, cable etc.
A58: check balance | C58: =C46-'A3-FinPerf V'!C37 -> -29.28366184 | D58: =D46-'A3-FinPerf V'!D37 -> 171.6972294 | E58: =E46-'A3-FinPerf V'!E37 -> -217.9225025 | F58: =F46-'A3-FinPerf V'!F37 -> 378.322998 | G58: =G46-'A3-FinPerf V'!G37 -> -847.2779999 | H58: =H46-'A3-FinPerf V'!H37 -> -847.2779999 | I58: =I46-'A3-FinPerf V'!I37 -> -1556006441 | J58: =J46-'A3-FinPerf V'!I37 -> -394.9441986 | K58: =K46-'A3-FinPerf V'!J37 -> -125.0476284 | L58: =L46-'A3-FinPerf V'!K37 -> 95.96671677
A60: Total revenue | C60: =C22+SUM(C39:C41) -> 8558090064 | D60: 10004318922 | E60: 11656698146 | F60: 1.461235732e+10 | G60: 1.410038133e+10 | H60: 1.410038133e+10 | I60: 0 | J60: 16235929657 | K60: 18262496807 | L60: 20636546347

Sheet A5-Capex
A1: =muni&" - "&Approve5 -> GT485 Batho Pele City - Table A5 Budgeted Capital Expenditure by vote, standard classification and funding
A2: =Vdesc -> Vote Description | B2: =head27 -> Ref | C2: =head1b -> 2007/8 | D2: =head1A -> 2008/9 | E2: =Head1 -> 2009/10 | F2: =Head2 -> Current Year 2010/11 | J2: =Head3 -> 2011/12 Medium Term Revenue & Expenditure Framework
A3: R thousand | B3: 1 | C3: =Head5 -> Audited Outcome | D3: =Head5 -> Audited Outcome | E3: =Head5 -> Audited Outcome | F3: =Head6 -> Original Budget | G3: =Head7 -> Adjusted Budget | H3: =Head8 -> Full Year Forecast | I3: =Head5b -> Pre-audit outcome | J3: =Head9 -> Budget Year 2011/12 | K3: =Head10 -> Budget Year +1 2012/13 | L3: =Head11 -> Budget Year +2 2013/14
A4: Capital expenditure - Vote
A5: Multi-year expenditure to be appropriated | B5: 2
A6: Vote1 - Governance and Administration | C6: 0 | D6: 0 | E6: 0 | F6: 1385000 | G6: 50000 | H6: 50000 | I6: 0 | J6: 286000 | K6: 180000 | L6: 275000
A7: Vote2 - Corporate Services | C7: 57735674 | D7: 48833042 | E7: 79575784.76 | F7: 90971403 | G7: 73364403 | H7: 73364403 | I7: 0 | J7: 89217000 | K7: 95351367 | L7: 91838176
A8: Vote3 - Assessment Rates and Other | C8: 0 | D8: 0 | E8: 0 | F8: 0 | G8: 0 | H8: 0 | I8: 0 | J8: 0 | K8: 0 | L8: 0
A9: Vote4 - Finance Services | C9: 916678 | D9: 10843241 | E9: 9581878 | F9: 15000000 | G9: 13800000 | H9: 13800000 | I9: 0 | J9: 15000000 | K9: 15000000 | L9: 15000000
A10: Vote5 - Safety and Security | C10: 27097050 | D10: 18767477 | E10: 21970748 | F10: 52732500 | G10: 52082500 | H10: 52082500 | I10: 0 | J10: 19310900 | K10: 23736500 | L10: 30163500
A11: Vote6 - Planning and Economic Development | C11: 3020463 | D11: 25271856 | E11: 22427996 | F11: 30184126 | G11: 22042126 | H11: 22042126 | I11: 0 | J11: 58454000 | K11: 119274000 | L11: 131022000
A12: Vote7 - Health and Social Development | C12: 393782 | D12: 6272719 | E12: 8287898 | F12: 15249489 | G12: 6156489 | H12: 6156489 | I12: 0 | J12: 11216000 | K12: 17000000 | L12: 11000000
A13: Vote8 - Sport, Recreation and Community Services | C13: 56932486 | D13: 61033266 | E13: 136303669.5 | F13: 92633000 | G13: 71514900 | H13: 71514900 | I13: 0 | J13: 25000000 | K13: 87000000 | L13: 108000000
A14: Vote9 - Housing | C14: 195462663 | D14: 186957340 | E14: 283756661.3 | F14: 431394230 | G14: 189910725 | H14: 189910725 | I14: 0 | J14: 144000000 | K14: 163630000 | L14: 166311500
A15: Vote10 - Environmental Management and Agriculture | C15: 24989774 | D15: 32946460 | E15: 72537262 | F15: 81416118 | G15: 53120000 | H15: 53120000 | I15: 0 | J15: 59544640 | K15: 81300000 | L15: 78750000
A16: Vote11 - Transport and Roads | C16: 224507826 | D16: 387700123 | E16: 511700022.9 | F16: 960974841 | G16: 633473128 | H16: 633473128 | I16: 0 | J16: =826530000-219218000 -> 607312000 | K16: =897456123-12851000 -> 884605123 | L16: =925412100-347245000 -> 578167100
A17: Vote12 - Electricity | C17: 154414000 | D17: 267844000 | E17: 380426855.4 | F17: 567642456 | G17: 478521304 | H17: 478521304 | I17: 0 | J17: =555785667-20000000 -> 535785667 | K17: 510700000 | L17: 514000000
A18: Vote13 - Waste Water | C18: 266017000 | D18: 289149000 | E18: 413071081 | F18: 475266000 | G18: 423750101 | H18: 423750101 | I18: =A5A!I138 -> 0 | J18: 410456907 | K18: 391099685 | L18: =551692509-120000000 -> 431692509
A19: Vote14 - Water | C19: 119054123 | D19: 141731000 | E19: 211529290 | F19: 167496667 | G19: 136531000 | H19: 136531000 | I19: =A5A!I149 -> 0 | J19: =228130000-50000000 -> 178130000 | K19: 311932000 | L19: 318488000
A20: =A5A!A160 -> Example 15 - Vote15 | C20: =A5A!C160 -> 0 | D20: =A5A!D160 -> 0 | E20: =A5A!E160 -> 0 | F20: =A5A!F160 -> 0 | G20: =A5A!G160 -> 0 | H20: 0 | I20: =A5A!I160 -> 0 | J20: =A5A!J160 -> 0 | K20: =A5A!K160 -> 0 | L20: =A5A!L160 -> 0
A21: Capital multi-year expenditure sub-total | B21: 7 | C21: =SUM(C6:C20) -> 1130541519 | D21: =SUM(D6:D20) -> 1477349524 | E21: 2151169147 | F21: 2982345830 | G21: 2154316676 | H21: =SUM(H6:H20) -> 2154316676 | I21: 0 | J21: 2153713114 | K21: 2700808675 | L21: 2474707785
A23: Single-year expenditure to be appropriated | B23: 2
A24: =A6 -> Vote1 - Governance and Administration | C24: 0 | D24: 0 | E24: 242411 | F24: 0 | G24: 0 | H24: 0 | I24: 0 | J24: 500000 | K24: 250000 | L24: 0
A25: =A7 -> Vote2 - Corporate Services | C25: 25063799 | D25: 1183000 | E25: 365219 | F25: 9000000 | G25: 500000 | H25: 500000 | I25: 0 | J25: 12500000 | K25: 8700000 | L25: 11250000
A26: Vote3 - Assessment Rates and Other | C26: 0 | D26: 0 | E26: 0 | F26: 0 | G26: 0 | H26: 0 | I26: 0 | J26: 0 | K26: 0 | L26: 0
A27: Vote4 - Finance Services | C27: 4079689 | D27: 288006 | E27: 2255730 | F27: 2052934 | G27: 1552934 | H27: 1552934 | I27: 0 | J27: 1259000 | K27: 1200000 | L27: 1000000
A28: Vote5 - Safety and Security | C28: =11402097+1000 -> 11403097 | D28: 2777347 | E28: 11640175 | F28: 34500000 | G28: 28100000 | H28: 28100000 | I28: 0 | J28: 19300000 | K28: 6500000 | L28: 2300000
A29: Vote6 - Planning and Economic Development | C29: 12566330 | D29: 1555985 | E29: 29151308 | F29: 19250000 | G29: 12785000 | H29: 12785000 | I29: 0 | J29: 12000000 | K29: 10000000 | L29: 10500000
A30: Vote7 - Health and Social Development | C30: 15606778 | D30: 0 | E30: 486663 | F30: 22425000 | G30: 5000000 | H30: 5000000 | I30: 0 | J30: 19000000 | K30: 14500000 | L30: 12450000
A31: Vote8 - Sport, Recreation and Community Services | C31: 22585274 | D31: 5481439 | E31: 41883271 | F31: 13548000 | G31: 15548000 | H31: 15548000 | I31: 0 | J31: 13000000 | K31: 14500000 | L31: 15000000
A32: Vote9 - Housing | C32: 0 | D32: 0 | E32: 96798 | F32: 569915 | G32: 1650000 | H32: 1650000 | I32: 0 | J32: 958500 | K32: 0 | L32: 0
A33: Vote10 - Environmental Management and Agriculture | C33: 16435006 | D33: 9735764 | E33: 7858826 | F33: 7800000 | G33: 7200000 | H33: 7200000 | I33: 0 | J33: 11200120 | K33: 11897120 | L33: 12500000
A34: Vote11 - Transport and Roads | C34: 39732609 | D34: 89377974 | E34: 274607027.9 | F34: 229987768 | G34: 278677768 | H34: 278677768 | I34: 0 | J34: =236987000-30000000 -> 206987000 | K34: 198798120 | L34: 201356450
A35: Vote12 - Electricity | C35: 11254897 | D35: 56123000 | E35: 53124456 | F35: 54123000 | G35: 74123520 | H35: 74123520 | I35: 0 | J35: 59450120 | K35: 61569870 | L35: 66544400
A36: Vote13 - Waste Water | C36: 45123456 | D36: 64123000 | E36: 88424000 | F36: 83675000 | G36: 82987412 | H36: 82987412 | I36: 0 | J36: 71237890 | K36: 80500400 | L36: 81546000
A37: Vote14 - Water | C37: 31452000 | D37: 49881000 | E37: 16981000 | F37: 18192125 | G37: 14492000 | H37: 14492000 | I37: 0 | J37: 33343000 | K37: 26890123 | L37: 28970123
A38: Example 15 - Vote15 | C38: =A5A!C329 -> 0 | D38: =A5A!D329 -> 0 | E38: =A5A!E329 -> 0 | F38: =A5A!F329 -> 0 | G38: =A5A!G329 -> 0 | H38: 0 | I38: =A5A!I329 -> 0 | J38: =A5A!J329 -> 0 | K38: =A5A!K329 -> 0 | L38: =A5A!L329 -> 0
A39: Capital single-year expenditure sub-total | C39: =SUM(C24:C38) -> 235302935 | D39: =SUM(D24:D38) -> 280526515 | E39: 527116884.9 | F39: 495123742 | G39: 522616634 | H39: 522616634 | I39: 0 | J39: 460735630 | K39: 435305633 | L39: 443416973
A40: Total Capital Expenditure - Vote | C40: =C39+C21 -> 1365844454 | D40: =D39+D21 -> 1757876039 | E40: 2678286032 | F40: 3477469572 | G40: 2676933310 | H40: 2676933310 | I40: 0 | J40: 2614448744 | K40: 3136114308 | L40: 2918124758
A42: Capital Expenditure - Standard
A43: Governance and administration | C43: =SUM(C44:C46) -> 68631956 | D43: =SUM(D44:D46) -> 67195256 | E43: 91778611.76 | F43: 117024337 | G43: 89217337 | H43: 89217337 | I43: 0 | J43: 105476000 | K43: 148398367 | L43: 155725176
A44: Executive and council | C44: 0 | D44: 0 | E44: 365219 | F44: 3771403 | G44: 733289 | H44: 733289 | J44: 1085000 | K44: 343367 | L44: 183176
A45: Budget and treasury office | C45: 0 | D45: 0 | E45: 271939 | F45: 552934 | G45: 52934 | H45: 52934 | J45: 1259000 | K45: 0 | L45: 0
A46: Corporate services | C46: 68631956 | D46: 67195256 | E46: 91141453.76 | F46: 112700000 | G46: 88431114 | H46: 88431114 | J46: 103132000 | K46: =110008000+38047000 -> 148055000 | L46: =106655000+48887000 -> 155542000
A47: Community and public safety | C47: =SUM(C48:C52) -> 344631237 | D47: =SUM(D48:D52) -> 306736917 | E47: 561856083.8 | F47: 725768252 | G47: 411582614 | H47: 411582614 | I47: 0 | J47: 294285400 | K47: 368866500 | L47: 370225000
A48: Community and social services | C48: 13417426 | D48: 11900988 | E48: 8726137 | F48: 33548000 | G48: 12048000 | H48: 12048000 | J48: 42500000 | K48: 42000000 | L48: 25000000
A49: Sport and recreation | C49: 90052917 | D49: 82637101 | E49: 229120989.5 | F49: 137349118 | G49: 118134900 | H49: 118134900 | J49: =J31+J13 -> 38000000 | K49: =K31+K13 -> 101500000 | L49: =L31+L13 -> 123000000
A50: Public safety | C50: 31353542 | D50: 20667395 | E50: 31430420 | F50: 85232500 | G50: 78682500 | H50: 78682500 | J50: =J28+J10 -> 38610900 | K50: =K28+K10 -> 30236500 | L50: =L28+L10 -> 32463500
A51: Housing | C51: 195462663 | D51: 186957340 | E51: 283853459.3 | F51: 431964145 | G51: 191560725 | H51: 191560725 | J51: 144958500 | K51: 163630000 | L51: 166311500
A52: Health | C52: 14344689 | D52: 4574093 | E52: 8725078 | F52: 37674489 | G52: 11156489 | H52: 11156489 | J52: =J30+J12 -> 30216000 | K52: =K30+K12 -> 31500000 | L52: =L30+L12 -> 23450000
A53: Economic and environmental services | C53: =SUM(C54:C56) -> 291162437 | D53: =SUM(D54:D56) -> 490313915 | E53: 688228200.8 | F53: 1233339735 | G53: 938398022 | H53: 938398022 | I53: 0 | J53: 888839000 | K53: 1207657243 | L53: 921620550
A54: Planning and development | C54: 40559076 | D54: 15649665 | E54: 30763070 | F54: 34527126 | G54: 25962126 | H54: 25962126 | J54: 70740000 | K54: 119454000 | L54: 136297000
A55: Road transport | C55: 250603361 | D55: 470624008 | E55: 656065908.8 | F55: 1193512609 | G55: 909435896 | H55: 909435896 | J55: =J16+J34 -> 814299000 | K55: =K16+K34 -> 1083403243 | L55: =L16+L34 -> 779523550
A56: Environmental protection | C56: 0 | D56: 4040242 | E56: 1399222 | F56: 5300000 | G56: 3000000 | H56: 3000000 | J56: 3800000 | K56: 4800000 | L56: 5800000
A57: Trading services | C57: =SUM(C58:C61) -> 639691947 | D57: =SUM(D58:D61) -> 881574156 | E57: 1190167980 | F57: 1385595790 | G57: 1224605123 | H57: 1224605123 | I57: 0 | J57: 1302863584 | K57: 1397692078 | L57: 1457741032
A58: Electricity | C58: 317418483 | D58: 398567457 | E58: 469907238.3 | F58: 607994987 | G58: 565561653 | H58: 565561653 | J58: =J35+J17 -> 595235787 | K58: =K35+K17 -> 572269870 | L58: =L35+L17 -> 580544400
A59: Water | C59: 151355715 | D59: 304859513 | E59: 408899410.2 | F59: 372400803 | G59: 295138803 | H59: 295138803 | J59: =J37+J19 -> 211473000 | K59: =K37+K19 -> 338822123 | L59: =L37+L19 -> 347458123
A60: Waste water management | C60: 158541829 | D60: 165423840 | E60: 291975168.1 | F60: =456038000-70038000 -> 386000000 | G60: 349704667 | H60: 349704667 | J60: =J36+J18 -> 481694797 | K60: =K36+K18 -> 471600085 | L60: =L36+L18 -> 513238509
A61: Waste management | C61: 12375920 | D61: 12723346 | E61: 19386163 | F61: 19200000 | G61: 14200000 | H61: 14200000 | J61: 14460000 | K61: 15000000 | L61: 16500000
A62: Other | C62: 21726238 | D62: 12055605 | E62: =153480290-7225000 -> 146255290 | F62: 15742000 | G62: 13130000 | H62: 13130000 | J62: =4920000+18065000 -> 22985000 | K62: 13500000 | L62: 12813500
A63: Total Capital Expenditure - Standard | B63: 3 | C63: =C43+C47+C53+C57+C62 -> 1365843815 | D63: =D43+D47+D53+D57+D62 -> 1757875849 | E63: 2678286166 | F63: 3477470114 | G63: 2676933096 | H63: 2676933096 | I63: 0 | J63: 2614448984 | K63: 3136114188 | L63: =L43+L47+L53+L57+L62 -> 2918125258
A65: Funded by:
A66: National Government | C66: 245544000 | D66: 367588749 | E66: 614101642 | F66: 1094836206 | G66: 911827126 | H66: 911827126 | J66: 991551120 | K66: 1063822000 | L66: 1149896000
A67: Provincial Government | C67: 106467000 | D67: 40965000 | E67: 136167000 | F67: 255481000 | G67: 49377000 | H67: 49377000 | J67: 49500000 | K67: 51200000 | L67: 52000000
A68: District Municipality | C68: 0 | D68: 0 | E68: 0 | F68: 0 | G68: 0 | H68: 0 | J68: 0 | K68: 0 | L68: 0
A69: Other transfers and grants | C69: 0 | D69: 0 | E69: 0 | F69: 0 | G69: 0 | H69: 0 | J69: 0 | K69: 0 | L69: 0
A70: Transfers recognised - capital | B70: 4 | C70: =SUM(C66:C69) -> 352011000 | D70: 408553749 | E70: 750268642 | F70: 1350317206 | G70: 961204126 | H70: 961204126 | I70: 0 | J70: 1041051120 | K70: 1115022000 | L70: 1201896000
A71: Public contributions & donations | B71: 5 | C71: 46833501 | D71: 44440466 | E71: 51609380 | F71: 77589820 | G71: 27750908 | H71: 27750908 | I71: 0 | J71: 56260692 | K71: 49741000 | L71: 68368940
A72: Borrowing | B72: 6 | C72: 641450000 | D72: 295900000 | E72: 1606944000 | F72: 800000000 | G72: 1051000000 | H72: 1051000000 | J72: 1000000000 | K72: 1000000000 | L72: 1000000000
A73: Internally generated funds | C73: 325549499 | D73: 1008981534 | E73: 269463620 | F73: 1249563180 | G73: 636978092 | H73: 636978092 | I73: 0 | J73: 517137308 | K73: 971350795 | L73: 647859791
A74: Total Capital Funding | B74: 7 | C74: =SUM(C70:C73) -> 1365844000 | D74: 1757875749 | E74: 2678285642 | F74: 3477470206 | G74: 2676933126 | H74: 2676933126 | I74: 0 | J74: 2614449120 | K74: 3136113795 | L74: 2918124731
A75: =head27a -> References
A76: 1. Municipalities may choose to appropriate for capital expenditure for three years or for one year (if one year appropriation projected expenditure required for yr2 and yr3).
A77: 2. Include capital component of PPP unitary payment. Note that capital transfers are only appropriated to municipalities for the budget year
A78: 3. Capital expenditure by standard classification must reconcile to the appropriations by vote
A79: 4. Must reconcile to supporting table SA20 and to Budgeted Financial Performance (revenue and expenditure)
A80: 5. Must reconcile to Budgeted Financial Performance (revenue and expenditure)
A81: 6. Include finance leases and PPP capital funding component of unitary payment - total borrowing/repayments to reconcile to changes in Table SA17
A82: 7. Total Capital Funding must balance with Total Capital Expenditure
A83: 8. Include any capitalised interest (MFMA section 46) as part of relevant capital budget
A85: check balance | C85: =C21-C74 -> -235302481 | D85: =D21-D74 -> -280526225 | E85: -527116495.2 | F85: -495124376 | G85: -522616450 | H85: -522616450 | I85: 0 | J85: =J21-J74 -> -460736006 | K85: =K21-K74 -> -435305120 | L85: =L21-L74 -> -443416946

Sheet A5A (hidden)
A1: =muni&" - "&Approve5 -> GT485 Batho Pele City - Table A5 Budgeted Capital Expenditure by vote, standard classification and funding
A2: =Vdesc -> Vote Description | B2: =head27 -> Ref | C2: =head1b -> 2007/8 | D2: =head1A -> 2008/9 | E2: =Head1 -> 2009/10 | F2: =Head2 -> Current Year 2010/11 | J2: =Head3 -> 2011/12 Medium Term Revenue & Expenditure Framework
A3: R thousand | B3: 1 | C3: =Head5 -> Audited Outcome | D3: =Head5 -> Audited Outcome | E3: =Head5 -> Audited Outcome | F3: =Head6 -> Original Budget | G3: =Head7 -> Adjusted Budget | H3: =Head8 -> Full Year Forecast | I3: =Head5b -> Pre-audit outcome | J3: =Head9 -> Budget Year 2011/12 | K3: =Head10 -> Budget Year +1 2012/13 | L3: =Head11 -> Budget Year +2 2013/14
A4: Capital expenditure - Municipal Vote
A5: Multi-year expenditure appropriation | B5: 2
A6: =A3A!A5 -> Vote1 - Governance and Administration | C6: =SUM(C7:C16) -> 0 | D6: =SUM(D7:D16) -> 0 | E6: 0 | F6: 0 | G6: 0 | H6: 0 | I6: =SUM(I7:I16) -> 0 | J6: 0 | K6: 0 | L6: 0
A7: =A3A!A6 -> Subvote example 1
A8: =A3A!A7 -> Subvote example 1
A9: =A3A!A8 -> Subvote example 1
A10: =A3A!A9 -> 
A11: =A3A!A10 -> 
A12: =A3A!A11 -> 
A13: =A3A!A12 -> 
A14: =A3A!A13 -> 
A15: =A3A!A14 -> 
A16: =A3A!A15 -> 
A17: =A3A!A16 -> Vote2 - Corporate Services | C17: =SUM(C18:C27) -> 0 | D17: =SUM(D18:D27) -> 0 | E17: 0 | F17: 0 | G17: 0 | H17: 0 | I17: =SUM(I18:I27) -> 0 | J17: 0 | K17: 0 | L17: 0
A18: =A3A!A17 -> Subvote example 2
A19: =A3A!A18 -> 
A20: =A3A!A19 -> 
A21: =A3A!A20 -> 
A22: =A3A!A21 -> 
A23: =A3A!A22 -> 
A24: =A3A!A23 -> 
A25: =A3A!A24 -> 
A26: =A3A!A25 -> 
A27: =A3A!A26 -> 
A28: =A3A!A27 -> Vote3 - Assessment Rates and Other | C28: =SUM(C29:C38) -> 0 | D28: =SUM(D29:D38) -> 0 | E28: 0 | F28: 0 | G28: 0 | H28: 0 | I28: =SUM(I29:I38) -> 0 | J28: 0 | K28: 0 | L28: 0
A29: =A3A!A28 -> Subvote example 3
A30: =A3A!A29 -> 
A31: =A3A!A30 -> 
A32: =A3A!A31 -> 
A33: =A3A!A32 -> 
A34: =A3A!A33 -> 
A35: =A3A!A34 -> 
A36: =A3A!A35 -> 
A37: =A3A!A36 -> 
A38: =A3A!A37 -> 
A39: =A3A!A38 -> Vote4 - Finance Services | C39: =SUM(C40:C49) -> 0 | D39: =SUM(D40:D49) -> 0 | E39: 0 | F39: 0 | G39: 0 | H39: 0 | I39: =SUM(I40:I49) -> 0 | J39: 0 | K39: 0 | L39: 0
A40: =A3A!A39 -> Subvote example 4
A41: =A3A!A40 -> 
A42: =A3A!A41 -> 
A43: =A3A!A42 -> 
A44: =A3A!A43 -> 
A45: =A3A!A44 -> 
A46: =A3A!A45 -> 
A47: =A3A!A46 -> 
A48: =A3A!A47 -> 
A49: =A3A!A48 -> 
A50: =A3A!A49 -> Vote5 - Safety and Security | C50: =SUM(C51:C60) -> 0 | D50: =SUM(D51:D60) -> 0 | E50: 0 | F50: 0 | G50: 0 | H50: 0 | I50: =SUM(I51:I60) -> 0 | J50: 0 | K50: 0 | L50: 0
A51: =A3A!A50 -> Subvote example 5
A52: =A3A!A51 -> 
A53: =A3A!A52 -> 
A54: =A3A!A53 -> 
A55: =A3A!A54 -> 
A56: =A3A!A55 -> 
A57: =A3A!A56 -> 
A58: =A3A!A57 -> 
A59: =A3A!A58 -> 
A60: =A3A!A59 -> 
A61: =A3A!A60 -> Vote6 - Planning and Economic Development | C61: =SUM(C62:C71) -> 0 | D61: =SUM(D62:D71) -> 0 | E61: 0 | F61: 0 | G61: 0 | H61: 0 | I61: =SUM(I62:I71) -> 0 | J61: 0 | K61: 0 | L61: 0
A62: =A3A!A61 -> Subvote example 6
A63: =A3A!A62 -> 
A64: =A3A!A63 -> 
A65: =A3A!A64 -> 
A66: =A3A!A65 -> 
A67: =A3A!A66 -> 
A68: =A3A!A67 -> 
A69: =A3A!A68 -> 
A70: =A3A!A69 -> 
A71: =A3A!A70 -> 
A72: =A3A!A71 -> Vote7 - Health and Social Development | C72: =SUM(C73:C82) -> 0 | D72: 0 | E72: 0 | F72: 0 | G72: 0 | H72: 0 | I72: 0 | J72: 0 | K72: 0 | L72: 0
A73: =A3A!A72 -> Subvote example 7
A74: =A3A!A73 -> 
A75: =A3A!A74 -> 
A76: =A3A!A75 -> 
A77: =A3A!A76 -> 
A78: =A3A!A77 -> 
A79: =A3A!A78 -> 
A80: =A3A!A79 -> 
A81: =A3A!A80 -> 
A82: =A3A!A81 -> 
A83: =A3A!A82 -> Vote8 - Sport, Recreation and Community Services | C83: =SUM(C84:C93) -> 0 | D83: 0 | E83: 0 | F83: 0 | G83: 0 | H83: 0 | I83: 0 | J83: 0 | K83: 0 | L83: 0
A84: =A3A!A83 -> Subvote example 8
A85: =A3A!A84 -> 
A86: =A3A!A85 -> 
A87: =A3A!A86 -> 
A88: =A3A!A87 -> 
A89: =A3A!A88 -> 
A90: =A3A!A89 -> 
A91: =A3A!A90 -> 
A92: =A3A!A91 -> 
A93: =A3A!A92 -> 
A94: =A3A!A93 -> Vote9 - Housing | C94: =SUM(C95:C104) -> 0 | D94: =SUM(D95:D104) -> 0 | E94: 0 | F94: 0 | G94: 0 | H94: 0 | I94: 0 | J94: 0 | K94: 0 | L94: 0
A95: =A3A!A94 -> Subvote example 9
A96: =A3A!A95 -> 
A97: =A3A!A96 -> 
A98: =A3A!A97 -> 
A99: =A3A!A98 -> 
A100: =A3A!A99 -> 
A101: =A3A!A100 -> 
A102: =A3A!A101 -> 
A103: =A3A!A102 -> 
A104: =A3A!A103 -> 
A105: =A3A!A104 -> Vote10 - Environmental Management and Agriculture | C105: =SUM(C106:C115) -> 0 | D105: =SUM(D106:D115) -> 0 | E105: 0 | F105: 0 | G105: 0 | H105: 0 | I105: 0 | J105: 0 | K105: 0 | L105: 0
A106: =A3A!A105 -> Subvote example 10
A107: =A3A!A106 -> 
A108: =A3A!A107 -> 
A109: =A3A!A108 -> 
A110: =A3A!A109 -> 
A111: =A3A!A110 -> 
A112: =A3A!A111 -> 
A113: =A3A!A112 -> 
A114: =A3A!A113 -> 
A115: =A3A!A114 -> 
A116: =A3A!A115 -> Vote11 - Transport and Roads | C116: =SUM(C117:C126) -> 0 | D116: 0 | E116: 0 | F116: 0 | G116: 0 | H116: 0 | I116: 0 | J116: 0 | K116: 0 | L116: 0
A117: =A3A!A116 -> Subvote example 11
A118: =A3A!A117 -> 0
A119: =A3A!A118 -> 0
A120: =A3A!A119 -> 0
A121: =A3A!A120 -> 0
A122: =A3A!A121 -> 0
A123: =A3A!A122 -> 0
A124: =A3A!A123 -> 0
A125: =A3A!A124 -> 0
A126: =A3A!A125 -> 0
A127: =A3A!A126 -> Vote12 - Electricity | C127: =SUM(C128:C137) -> 0 | D127: 0 | E127: 0 | F127: 0 | G127: 0 | H127: 0 | I127: 0 | J127: 0 | K127: 0 | L127: 0
A128: =A3A!A127 -> Electricity
A129: =A3A!A128 -> 0
A130: =A3A!A129 -> 0
A131: =A3A!A130 -> 0
A132: =A3A!A131 -> 0
A133: =A3A!A132 -> 0
A134: =A3A!A133 -> 0
A135: =A3A!A134 -> 0
A136: =A3A!A135 -> 0
A137: =A3A!A136 -> 0
A138: =A3A!A137 -> Vote13 - Waste Water | C138: =SUM(C139:C148) -> 0 | D138: 0 | E138: 0 | F138: 0 | G138: 0 | H138: 0 | I138: 0 | J138: 0 | K138: 0 | L138: 0
A139: =A3A!A138 -> Subvote example 13
A140: =A3A!A139 -> 0
A141: =A3A!A140 -> 0
A142: =A3A!A141 -> 0
A143: =A3A!A142 -> 0
A144: =A3A!A143 -> 0
A145: =A3A!A144 -> 0
A146: =A3A!A145 -> 0
A147: =A3A!A146 -> 0
A148: =A3A!A147 -> 0
A149: =A3A!A148 -> Vote14 - Water | C149: =SUM(C150:C159) -> 0 | D149: 0 | E149: 0 | F149: 0 | G149: 0 | H149: 0 | I149: 0 | J149: 0 | K149: 0 | L149: 0
A150: =A3A!A149 -> Subvote example 14
A151: =A3A!A150 -> 0
A152: =A3A!A151 -> 0
A153: =A3A!A152 -> 0
A154: =A3A!A153 -> 0
A155: =A3A!A154 -> 0
A156: =A3A!A155 -> 0
A157: =A3A!A156 -> 0
A158: =A3A!A157 -> 0
A159: =A3A!A158 -> 0
A160: =A3A!A159 -> Example 15 - Vote15 | C160: =SUM(C161:C170) -> 0 | D160: 0 | E160: 0 | F160: 0 | G160: 0 | H160: 0 | I160: 0 | J160: 0 | K160: 0 | L160: 0
A161: =A3A!A160 -> Subvote example 15
A162: =A3A!A161 -> 0
A163: =A3A!A162 -> 0
A164: =A3A!A163 -> 0
A165: =A3A!A164 -> 0
A166: =A3A!A165 -> 0
A167: =A3A!A166 -> 0
A168: =A3A!A167 -> 0
A169: =A3A!A168 -> 0
A170: =A3A!A169 -> 0
A171: Capital multi-year expenditure sub-total | C171: =C6+C17+C28+C39+C50+C61+C72+C83+C94+C105+C116+C127+C138+C149+C160 -> 0 | D171: =D6+D17+D28+D39+D50+D61+D72+D83+D94+D105+D116+D127+D138+D149+D160 -> 0 | E171: 0 | F171: 0 | G171: 0 | H171: 0 | I171: 0 | J171: 0 | K171: 0 | L171: 0
A173: Capital expenditure - Municipal Vote
A174: Single-year expenditure appropriation | B174: 2
A175: =A3A!A5 -> Vote1 - Governance and Administration | C175: =SUM(C176:C185) -> 0 | D175: 0 | E175: 0 | F175: 0 | G175: 0 | H175: 0 | I175: 0 | J175: 0 | K175: 0 | L175: 0
A176: =A3A!A6 -> Subvote example 1
A177: =A3A!A7 -> Subvote example 1
A178: =A3A!A8 -> Subvote example 1
A179: =A3A!A9 -> 
A180: =A3A!A10 -> 
A181: =A3A!A11 -> 
A182: =A3A!A12 -> 
A183: =A3A!A13 -> 
A184: =A3A!A14 -> 
A185: =A3A!A15 -> 
A186: =A3A!A16 -> Vote2 - Corporate Services | C186: =SUM(C187:C196) -> 0 | D186: 0 | E186: 0 | F186: 0 | G186: 0 | H186: 0 | I186: 0 | J186: 0 | K186: 0 | L186: 0
A187: =A3A!A17 -> Subvote example 2
A188: =A3A!A18 -> 
A189: =A3A!A19 -> 
A190: =A3A!A20 -> 
A191: =A3A!A21 -> 
A192: =A3A!A22 -> 
A193: =A3A!A23 -> 
A194: =A3A!A24 -> 
A195: =A3A!A25 -> 
A196: =A3A!A26 -> 
A197: =A3A!A27 -> Vote3 - Assessment Rates and Other | C197: =SUM(C198:C207) -> 0 | D197: 0 | E197: 0 | F197: 0 | G197: 0 | H197: 0 | I197: 0 | J197: 0 | K197: 0 | L197: 0
A198: =A3A!A28 -> Subvote example 3
A199: =A3A!A29 -> 
A200: =A3A!A30 -> 
A201: =A3A!A31 -> 
... 140 more rows

Sheet A6-FinPos
A1: =muni&" - "&Approve6 -> GT485 Batho Pele City - Table A6 Budgeted Financial Position
A2: =desc -> Description | B2: =head27 -> Ref | C2: =head1b -> 2007/8 | D2: =head1A -> 2008/9 | E2: =Head1 -> 2009/10 | F2: =Head2 -> Current Year 2010/11 | J2: =Head3 -> 2011/12 Medium Term Revenue & Expenditure Framework
A3: R thousand | C3: =Head5 -> Audited Outcome | D3: =Head5 -> Audited Outcome | E3: =Head5 -> Audited Outcome | F3: =Head6 -> Original Budget | G3: =Head7 -> Adjusted Budget | H3: =Head8 -> Full Year Forecast | I3: =Head5b -> Pre-audit outcome | J3: =Head9 -> Budget Year 2011/12 | K3: =Head10 -> Budget Year +1 2012/13 | L3: =Head11 -> Budget Year +2 2013/14
A4: ASSETS
A5: Current assets
A6: Cash | C6: 69349269 | D6: 43235693 | E6: 89560594 | F6: 0 | G6: 232592000 | H6: 232592000 | J6: 761567000 | K6: =367839000+233194000 -> 601033000 | L6: =938891000-432026000 -> 506865000
A7: Call investment deposits | B7: 1 | C7: ='SA3'!C9 -> 451350000 | D7: ='SA3'!D9 -> 104631000 | E7: ='SA3'!E9 -> 66159000 | F7: ='SA3'!F9 -> 287038455.5 | G7: ='SA3'!G9 -> 444487000 | H7: ='SA3'!H9 -> 444487000 | I7: ='SA3'!I9 -> 0 | J7: ='SA3'!J9 -> 389320000 | K7: ='SA3'!K9 -> 478153000 | L7: ='SA3'!L9 -> 728153000
A8: Consumer debtors | B8: 1 | C8: ='SA3'!C14 -> 1901782397 | D8: ='SA3'!D14 -> 2145141422 | E8: ='SA3'!E14 -> 2469648308 | F8: ='SA3'!F14 -> 2603506336 | G8: ='SA3'!G14 -> 2920272302 | H8: ='SA3'!H14 -> 2920272302 | I8: ='SA3'!I14 -> 0 | J8: ='SA3'!J14 -> 3009545023 | K8: ='SA3'!K14 -> 3182970323 | L8: ='SA3'!L14 -> 3360090323
A9: Other debtors | C9: 434668931 | D9: 293512862 | E9: 738309929 | F9: 745870000 | G9: 749780123 | H9: =G9 -> 749780123 | J9: 817042000 | K9: 842500000 | L9: 857500000
A10: Current portion of long-term receivables | C10: 27840367 | D10: 103377148 | E10: 123832808 | F10: 128975000 | G10: 130001400 | H10: 130001400 | J10: 131262776.5 | K10: 139138543.1 | L10: 147486855.7
A11: Inventory | B11: 2 | C11: 165944194 | D11: 216602418 | E11: 242304212 | F11: 123190956 | G11: 241320519 | H11: 241320519 | J11: 255799750.1 | K11: 271147735.1 | L11: 287416599.3
A12: Total current assets | C12: =SUM(C6:C11) -> 3050935158 | D12: 2906500543 | E12: 3729814851 | F12: 3888580747 | G12: 4718453344 | H12: 4718453344 | I12: 0 | J12: 5364536550 | K12: 5514942601 | L12: 5887511778
A14: Non current assets
A15: Long-term receivables | C15: 172456000 | D15: 155149000 | E15: 146158000 | F15: 141512000 | G15: 130372000 | H15: 130372000 | J15: 121620000 | K15: 96202000 | L15: 83822000
A16: Investments | C16: 411283908 | D16: 425553069 | E16: 500346374 | F16: 720582000 | G16: 704539000 | H16: 704539000 | J16: 604539000 | K16: 854539000 | L16: 1204539000
A17: Investment property | C17: 306474263 | D17: 10571024 | E17: 8027162 | F17: 318445578.9 | G17: 136198527.9 | H17: 136198527.9 | J17: 233707818.3 | K17: 344538878.6 | L17: 451562627.5
A18: Investment in Associate | C18: 0 | D18: 0 | E18: 0 | F18: 0 | G18: 0 | H18: 0 | J18: 0 | K18: 0 | L18: 0
A19: Property, plant and equipment | B19: 3 | C19: ='SA3'!C26 -> 9138300468 | D19: ='SA3'!D26 -> 10024592644 | E19: ='SA3'!E26 -> 12823003785 | F19: ='SA3'!F26 -> 1.516632598e+10 | G19: ='SA3'!G26 -> 1.447314635e+10 | H19: ='SA3'!H26 -> 1.447314635e+10 | I19: ='SA3'!I26 -> 0 | J19: ='SA3'!J26 -> 1.659020581e+10 | K19: ='SA3'!K26 -> 1.873370229e+10 | L19: ='SA3'!L26 -> 2.084207082e+10
A20: Agricultural | C20: 0 | D20: 0 | E20: 0 | F20: 0 | G20: 0 | H20: 0 | J20: 0 | K20: 0 | L20: 0
A21: Biological | C21: 11014558 | D21: 14741255 | E21: 17007999 | F21: 14741000 | G21: 17007999 | H21: 17007999 | J21: 16345000 | K21: 18377000 | L21: 21400000
A22: Intangible | C22: 121572306 | D22: 98035111 | E22: 156190747 | F22: 0 | G22: 0 | H22: 0 | J22: 131806000 | K22: 141000000 | L22: 146000000
A23: Other non-current assets | C23: 0 | D23: 0 | E23: 0 | F23: 0 | G23: 0 | H23: 0 | J23: 0 | K23: 0 | L23: 0
A24: Total non current assets | C24: =SUM(C15:C23) -> 10161101503 | D24: =SUM(D15:D23) -> 10728642103 | E24: =SUM(E15:E23) -> 13650734067 | F24: 1.636160656e+10 | G24: 1.546126387e+10 | H24: 1.546126387e+10 | I24: 0 | J24: 1.769822363e+10 | K24: 2.018835917e+10 | L24: 2.274939445e+10
A25: TOTAL ASSETS | C25: =C12+C24 -> 13212036661 | D25: =D12+D24 -> 13635142646 | E25: =E12+E24 -> 17380548918 | F25: =F12+F24 -> 2.025018731e+10 | G25: 2.017971722e+10 | H25: 2.017971722e+10 | I25: 0 | J25: 2.306276018e+10 | K25: 2.570330177e+10 | L25: 2.863690623e+10
A27: LIABILITIES
A28: Current liabilities
A29: Bank overdraft | B29: 1 | C29: 0 | D29: 0 | E29: 0 | F29: 0 | G29: 0 | H29: 0 | J29: 0 | K29: 0 | L29: 0
A30: Borrowing | B30: 4 | C30: ='SA3'!C32 -> 204827000 | D30: ='SA3'!D32 -> 346522000 | E30: ='SA3'!E32 -> 285390000 | F30: ='SA3'!F32 -> 392520000 | G30: ='SA3'!G32 -> 392520000 | H30: ='SA3'!H32 -> 392520000 | I30: ='SA3'!I32 -> 0 | J30: ='SA3'!J32 -> 706348000 | K30: ='SA3'!K32 -> 792800000 | L30: ='SA3'!L32 -> 845810000
A31: Consumer deposits | C31: 257579090 | D31: 277368000 | E31: 299523000 | F31: 338119000 | G31: 338119000 | H31: 338119000 | J31: 375099000 | K31: 412599000 | L31: 450599000
A32: Trade and other payables | B32: 4 | C32: ='SA3'!C38 -> 2099438229 | D32: ='SA3'!D38 -> 2188846967 | E32: ='SA3'!E38 -> 3227631169 | F32: ='SA3'!F38 -> 3021735676 | G32: ='SA3'!G38 -> 3269102881 | H32: ='SA3'!H38 -> 3269102881 | I32: ='SA3'!I38 -> 0 | J32: ='SA3'!J38 -> 3487833000 | K32: ='SA3'!K38 -> 3929044500 | L32: ='SA3'!L38 -> 4303935000
A33: Provisions | C33: 0 | D33: 0 | E33: 0 | F33: 0 | G33: 0 | H33: 0 | J33: 0 | K33: 0 | L33: 0
A34: Total current liabilities | C34: =SUM(C29:C33) -> 2561844319 | D34: 2812736967 | E34: 3812544169 | F34: 3752374676 | G34: 3999741881 | H34: 3999741881 | I34: 0 | J34: 4569280000 | K34: 5134443500 | L34: 5600344000
A36: Non current liabilities
A37: Borrowing | C37: ='SA3'!C43 -> 2712145743 | D37: ='SA3'!D43 -> 2661524361 | E37: ='SA3'!E43 -> 3983077619 | F37: ='SA3'!F43 -> 4390557773 | G37: ='SA3'!G43 -> 4641558421 | H37: ='SA3'!H43 -> 4641558421 | I37: ='SA3'!I43 -> 0 | J37: ='SA3'!J43 -> 4935210278 | K37: ='SA3'!K43 -> 5142409969 | L37: ='SA3'!L43 -> 5296600327
A38: Provisions | C38: ='SA3'!C50 -> 0 | D38: ='SA3'!D50 -> 926104449 | E38: ='SA3'!E50 -> 1209180533 | F38: ='SA3'!F50 -> 1272026945 | G38: ='SA3'!G50 -> 1363618108 | H38: ='SA3'!H50 -> 1363618108 | I38: ='SA3'!I50 -> 0 | J38: ='SA3'!J50 -> 1486897435 | K38: ='SA3'!K50 -> 1617910489 | L38: ='SA3'!L50 -> 1756470841
A39: Total non current liabilities | C39: =SUM(C37:C38) -> 2712145743 | D39: =SUM(D37:D38) -> 3587628810 | E39: =SUM(E37:E38) -> 5192258152 | F39: =SUM(F37:F38) -> 5662584718 | G39: 6005176529 | H39: 6005176529 | I39: 0 | J39: 6422107713 | K39: =SUM(K37:K38) -> 6760320457 | L39: 7053071168
A40: TOTAL LIABILITIES | C40: =C34+C39 -> 5273990062 | D40: =D34+D39 -> 6400365777 | E40: =E34+E39 -> 9004802321 | F40: =F34+F39 -> 9414959394 | G40: 1.000491841e+10 | H40: 1.000491841e+10 | I40: 0 | J40: 1.099138771e+10 | K40: =K34+K39 -> 1.189476396e+10 | L40: 1.265341517e+10
A42: NET ASSETS | B42: 5 | C42: =C25-C40 -> 7938046599 | D42: 7234776869 | E42: 8375746597 | F42: 1.083522791e+10 | G42: 1.017479881e+10 | H42: 1.017479881e+10 | I42: 0 | J42: 1.207137246e+10 | K42: 1.380853781e+10 | L42: 1.598349106e+10
A44: COMMUNITY WEALTH/EQUITY
A45: Accumulated Surplus/(Deficit) | C45: 1652212887 | D45: 457509747.7 | E45: 1038916878 | F45: 2805942125 | G45: 1835404859 | H45: 1835404859 | I45: 0 | J45: 4002751091 | K45: 4912441140 | L45: 6170286583
A46: Reserves | B46: 4 | C46: ='SA3'!C72 -> 6285833426 | D46: ='SA3'!D72 -> 6777266678 | E46: ='SA3'!E72 -> 7336829616 | F46: ='SA3'!F72 -> 8029285500 | G46: ='SA3'!G72 -> 8339393554 | H46: ='SA3'!H72 -> 8339393554 | I46: ='SA3'!I72 -> 0 | J46: ='SA3'!J72 -> 8068620720 | K46: ='SA3'!K72 -> 8896096720 | L46: ='SA3'!L72 -> 9813204720
A47: Minorities' interests
A48: TOTAL COMMUNITY WEALTH/EQUITY | B48: 5 | C48: =SUM(C45:C47) -> 7938046313 | D48: =SUM(D45:D47) -> 7234776426 | E48: 8375746494 | F48: 1.083522763e+10 | G48: 1.017479841e+10 | H48: 1.017479841e+10 | I48: 0 | J48: 1.207137181e+10 | K48: 1.380853786e+10 | L48: 1.59834913e+10
A49: =head27a -> References
A50: 1. Detail to be provided in Table SA3
A51: 2. Include completed low cost housing to be transferred to beneficiaries within 12 months
A52: 3. Include 'Construction-work-in-progress' (disclosed separately in annual financial statements)
A53: 4. Detail to be provided in Table SA3. Includes reserves to be funded by statute.
A54: 5. Net assets must balance with Total Community Wealth/Equity
A55: check balance | C55: =C42-C48 -> 286.373662 | D55: 443.3027706 | E55: 102.9225025 | F55: 286.7757149 | G55: 397.2846794 | H55: 397.2846794 | I55: 0 | J55: 652.9256325 | K55: -50.31422806 | L55: -241.2018433
I70: =I42-I46 -> 0

Sheet A7-CFlow
A1: =muni&" - "&Approve7 -> GT485 Batho Pele City - Table A7 Budgeted Cash Flows
A2: =desc -> Description | B2: =head27 -> Ref | C2: =head1b -> 2007/8 | D2: =head1A -> 2008/9 | E2: =Head1 -> 2009/10 | F2: =Head2 -> Current Year 2010/11 | J2: =Head3 -> 2011/12 Medium Term Revenue & Expenditure Framework
A3: R thousand | C3: =Head5 -> Audited Outcome | D3: =Head5 -> Audited Outcome | E3: =Head5 -> Audited Outcome | F3: =Head6 -> Original Budget | G3: =Head7 -> Adjusted Budget | H3: =Head8 -> Full Year Forecast | I3: =Head5b -> Pre-audit outcome | J3: =Head9 -> Budget Year 2011/12 | K3: =Head10 -> Budget Year +1 2012/13 | L3: =Head11 -> Budget Year +2 2013/14
A4: CASH FLOW FROM OPERATING ACTIVITIES
A5: Receipts
A6: Ratepayers and other | C6: 7412773000 | D6: 8522134400 | E6: =9527541480 -> 9527541480 | F6: 11735287560 | G6: 11829931990 | H6: 11829931990 | I6: 0 | J6: =13388851000+56261000 -> 13445112000 | K6: =15145567000+59741000+100000000+60000000-395000000 -> 14970308000 | L6: =17200915000+68369000+220000000-450000000 -> 17039284000
A7: Government - operating | B7: 1 | C7: 460061305 | D7: 642009389 | E7: 587081731 | F7: 836817000 | G7: 789624000 | H7: 789624000 | I7: 0 | J7: 1001918000 | K7: 1118355000 | L7: 1217891000
A8: Government - capital | B8: 1 | C8: 352011000 | D8: 408554000 | E8: 750269000 | F8: 1350317000 | G8: 961204000 | H8: 961204000 | J8: 1041051000 | K8: 1115022000 | L8: 1201896000
A9: Interest | C9: 134186954.6 | D9: 135554610 | E9: 122499554 | F9: 123375534 | G9: 125996273 | H9: 125996273 | I9: 0 | J9: 120080230 | K9: 64138735 | L9: 71375203
A10: Dividends | C10: 0 | D10: 0 | E10: 0 | F10: 0 | G10: 0 | H10: 0 | I10: 0 | J10: 0 | K10: 0 | L10: 0
A11: Payments
A12: Suppliers and employees | C12: =-6988450000 -> -6988450000 | D12: -7916220982 | E12: =-9082570342+30000000 -> -9052570342 | F12: =-10776805200 -> -10776805200 | G12: =-10666837000 -> -10666837000 | H12: -10666837000 | I12: 0 | J12: =-12282917000 -> -12282917000 | K12: =-13799515850+295000000 -> -13504515850 | L12: =-15894138820+350000000 -> -15544138820
A13: Finance charges | C13: -364382987 | D13: -372545321 | E13: -519534660 | F13: -518152933 | G13: -632076067.3 | H13: -632076067.3 | I13: 0 | J13: -715617392 | K13: -762735889 | L13: -805283831
A14: Transfers and Grants | B14: 1 | C14: -8392256.53 | D14: -11584680 | E14: -9833837 | F14: -13564180 | G14: -12564180 | H14: -12564180 | I14: 0 | J14: -18000001 | K14: -19000000 | L14: -20000001
A15: NET CASH FROM/(USED) OPERATING ACTIVITIES | C15: =SUM(C6:C10)+SUM(C12:C14) -> 997807016.1 | D15: =SUM(D6:D10)+SUM(D12:D14) -> 1407901416 | E15: 1405452926 | F15: 2737274781 | G15: 2395279016 | H15: 2395279016 | I15: 0 | J15: 2591626837 | K15: 2981571996 | L15: 3161023551
A17: CASH FLOWS FROM INVESTING ACTIVITIES
A18: Receipts
A19: Proceeds on disposal of PPE | C19: 20915400 | D19: 4936900 | E19: 2779289 | F19: 27908023 | G19: 27908023 | H19: 27908023 | I19: 0 | J19: 4500000 | K19: 0 | L19: 0
A20: Decrease (Increase) in non-current debtors | C20: 0 | D20: 0 | E20: 0 | F20: 0 | G20: =212897456 -> 212897456 | H20: 212897456 | I20: 0 | J20: 0 | K20: 0 | L20: 0
A21: Decrease (increase) other non-current receivables | C21: 14560123 | D21: 17307000 | E21: 8991000 | F21: 4646000 | G21: 15786000 | H21: 15786000 | I21: 0 | J21: 9210000 | K21: 25418000 | L21: 12380000
A22: Decrease (increase) in non-current investments | C22: 30485691 | D22: -14269160 | E22: -74793305 | F22: -220236053.8 | G22: -204192907.6 | H22: -204192907.6 | I22: 0 | J22: =100000000 -> 100000000 | K22: =-250000000 -> -250000000 | L22: =-350000000 -> -350000000
A23: Payments
A24: Capital assets | C24: =-1365844000 -> -1365844000 | D24: =-1757876000 -> -1757876000 | E24: =-2678286000 -> -2678286000 | F24: =-3234047100 -> -3234047100 | G24: -2623394434 | H24: -2623394434 | I24: 0 | J24: =-2562160000 -> -2562160000 | K24: =-3073391000 -> -3073391000 | L24: =-2859762000 -> -2859762000
A25: NET CASH FROM/(USED) INVESTING ACTIVITIES | C25: =SUM(C19:C22)+C24 -> -1299882786 | D25: =SUM(D19:D22)+D24 -> -1749901260 | E25: -2741309016 | F25: -3421729131 | G25: -2570995863 | H25: -2570995863 | I25: 0 | J25: -2448450000 | K25: -3297973000 | L25: -3197382000
A27: CASH FLOWS FROM FINANCING ACTIVITIES
A28: Receipts
A29: Short term loans | C29: 0 | D29: 0 | E29: 0 | F29: 0 | G29: 0 | H29: 0 | I29: 0 | J29: 0 | K29: 0 | L29: 0
A30: Borrowing long term/refinancing | C30: 641450000 | D30: 295900000 | E30: 1606944000 | F30: 800000000 | G30: 1051000000 | H30: 1051000000 | I30: 0 | J30: 1000000000 | K30: 1000000000 | L30: 1000000000
A31: Increase (decrease) in consumer deposits | C31: 21486701 | D31: =19789123 -> 19789123 | E31: 22154789 | F31: 38595552 | G31: 38595552 | H31: 38595552 | I31: 0 | J31: 36980000 | K31: 37500000 | L31: 38000000
A32: Payments
A33: Repayment of borrowing | C33: -204827481 | D33: -346522135 | E33: -285389596 | F33: =-392519600 -> -392519600 | G33: =-392519600 -> -392519600 | H33: =-392519600 -> -392519600 | I33: 0 | J33: =-706348000 -> -706348000 | K33: =-792800000 -> -792800000 | L33: =-845810000 -> -845810000
A34: NET CASH FROM/(USED) FINANCING ACTIVITIES | C34: =SUM(C29:C31)+C33 -> 458109220 | D34: =SUM(D29:D31)+D33 -> -30833012 | E34: 1343709193 | F34: 446075952 | G34: 697075952 | H34: 697075952 | I34: 0 | J34: 330632000 | K34: 244700000 | L34: 192190000
A36: NET INCREASE/ (DECREASE) IN CASH HELD | C36: =C15+C25+C34 -> 156033450.1 | D36: =D15+D25+D34 -> -372832856 | E36: 7853103 | F36: -238378397.8 | G36: 521359105 | H36: 521359105 | I36: 0 | J36: 473808837 | K36: -71701004 | L36: 155831551
A37: Cash/cash equivalents at the year begin: | B37: 2 | C37: 364665811 | D37: =C38 -> 520699261.1 | E37: =D38 -> 147866405.1 | F37: =E38 -> 155719508.1 | G37: =E38 -> 155719508.1 | H37: =E38 -> 155719508.1 | I37: =G37 -> 155719508.1 | J37: =H38 -> 677078613.1 | K37: =J38 -> 1150887450 | L37: =K38 -> 1079186446
A38: Cash/cash equivalents at the year end: | B38: 2 | C38: =C36+C37 -> 520699261.1 | D38: =D36+D37 -> 147866405.1 | E38: =E36+E37 -> 155719508.1 | F38: =F36+F37 -> -82658889.71 | G38: 677078613.1 | H38: 677078613.1 | I38: 155719508.1 | J38: 1150887450 | K38: 1079186446 | L38: 1235017997
A39: =head27a -> References
A40: 1. Local/District municipalities to include transfers from/to District/Local Municipalities
A41: 2. Cash equivalents includes investments with maturities of 3 months or less
A43: Total receipts | C43: =SUM(C6:C10)+SUM(C19:C21) -> 8394507783 | D43: =SUM(D6:D10)+SUM(D19:D21) -> 9730496299 | E43: 10999162054 | F43: 14078351117 | G43: 13963347742 | H43: 13963347742 | I43: 0 | J43: 15621871230 | K43: 17293241735 | L43: 19542826203
A44: Total payments | C44: =SUM(C12:C14)+C24 -> -8727069244 | D44: =SUM(D12:D14)+D24 -> -10058226983 | E44: -12260224839 | F44: -14542569413 | G44: -1.393487168e+10 | H44: -1.393487168e+10 | I44: 0 | J44: -15578694393 | K44: -17359642739 | L44: -19229184652
C45: =C43+C44 -> -332561460.9 | D45: =D43+D44 -> -327730684 | E45: -1261062785 | F45: -464218296 | G45: 28476060.6 | H45: 28476060.6 | I45: 0 | J45: 43176837 | K45: -66401004 | L45: 313641551
A46: Borrowings & investments & c.deposits | C46: =C22+C30+C31 -> 693422392 | D46: =D22+D30+D31 -> 301419963 | E46: 1554305484 | F46: 618359498.2 | G46: 885402644.4 | H46: 885402644.4 | I46: 0 | J46: 1136980000 | K46: 787500000 | L46: 688000000
A47: =A33 -> Repayment of borrowing | C47: =C33 -> -204827481 | D47: =D33 -> -346522135 | E47: -285389596 | F47: -392519600 | G47: -392519600 | H47: -392519600 | I47: =I33 -> 0 | J47: -706348000 | K47: -792800000 | L47: -845810000
C48: =C45+C46+C47 -> 156033450.1 | D48: =D45+D46+D47 -> -372832856 | E48: 7853103 | F48: -238378397.8 | G48: 521359105 | H48: 521359105 | I48: 0 | J48: 473808837 | K48: -71701004 | L48: 155831551
C49: =C36-C48 -> 9.536743164e-07 | D49: 0 | E49: 0 | F49: 0 | G49: 0 | H49: 0 | I49: 0 | J49: 0 | K49: 0 | L49: 0

Sheet A8-ResRecon
A1: =muni&" - "&Approve8 -> GT485 Batho Pele City - Table A8 Cash backed reserves/accumulated surplus reconciliation
A2: =desc -> Description | B2: =head27 -> Ref | C2: =head1b -> 2007/8 | D2: =head1A -> 2008/9 | E2: =Head1 -> 2009/10 | F2: =Head2 -> Current Year 2010/11 | J2: =Head3 -> 2011/12 Medium Term Revenue & Expenditure Framework
A3: R thousand | C3: =Head5 -> Audited Outcome | D3: =Head5 -> Audited Outcome | E3: =Head5 -> Audited Outcome | F3: =Head6 -> Original Budget | G3: =Head7 -> Adjusted Budget | H3: =Head8 -> Full Year Forecast | I3: =Head5b -> Pre-audit outcome | J3: =Head9 -> Budget Year 2011/12 | K3: =Head10 -> Budget Year +1 2012/13 | L3: =Head11 -> Budget Year +2 2013/14
A4: Cash and investments available
A5: =LEFT('A7-CFlow'!A38,37) -> Cash/cash equivalents at the year end | B5: 1 | C5: ='A7-CFlow'!C38 -> 520699261.1 | D5: ='A7-CFlow'!D38 -> 147866405.1 | E5: ='A7-CFlow'!E38 -> 155719508.1 | F5: ='A7-CFlow'!F38 -> -82658889.71 | G5: ='A7-CFlow'!G38 -> 677078613.1 | H5: ='A7-CFlow'!H38 -> 677078613.1 | I5: ='A7-CFlow'!I38 -> 155719508.1 | J5: ='A7-CFlow'!J38 -> 1150887450 | K5: ='A7-CFlow'!K38 -> 1079186446 | L5: ='A7-CFlow'!L38 -> 1235017997
A6: Other current investments > 90 days | C6: 0 | D6: 0 | E6: 0 | F6: ='A6-FinPos'!F6+'A6-FinPos'!F7-'A6-FinPos'!F29-'A8-ResRecon'!F5 -> 369697345.2 | G6: 0 | H6: 0 | I6: ='A6-FinPos'!I6+'A6-FinPos'!I7-'A6-FinPos'!I29-'A8-ResRecon'!I5 -> -155719508.1 | J6: 0 | K6: 0 | L6: 0
A7: ='A6-FinPos'!A14&" - "&'A6-FinPos'!A16 -> Non current assets - Investments | B7: 1 | C7: ='A6-FinPos'!C16 -> 411283908 | D7: ='A6-FinPos'!D16 -> 425553069 | E7: ='A6-FinPos'!E16 -> 500346374 | F7: ='A6-FinPos'!F16 -> 720582000 | G7: ='A6-FinPos'!G16 -> 704539000 | H7: ='A6-FinPos'!H16 -> 704539000 | I7: ='A6-FinPos'!I16 -> 0 | J7: ='A6-FinPos'!J16 -> 604539000 | K7: ='A6-FinPos'!K16 -> 854539000 | L7: ='A6-FinPos'!L16 -> 1204539000
A8: Cash and investments available: | C8: =SUM(C5:C7) -> 931983169.1 | D8: =SUM(D5:D7) -> 573419474.1 | E8: 656065882.1 | F8: 1007620455 | G8: 1381617613 | H8: 1381617613 | I8: 0 | J8: 1755426450 | K8: 1933725446 | L8: 2439556997
A10: Application of cash and investments
A11: ='SA3'!A36 -> Unspent conditional transfers | C11: ='SA3'!C36 -> 210990931 | D11: ='SA3'!D36 -> 328760232 | E11: ='SA3'!E36 -> 420555629 | F11: ='SA3'!F36 -> 407786572 | G11: ='SA3'!G36 -> 407786572 | H11: ='SA3'!H36 -> 407786572 | I11: ='SA3'!I36 -> 0 | J11: ='SA3'!J36 -> 0 | K11: ='SA3'!K36 -> 0 | L11: ='SA3'!L36 -> 0
A12: Unspent borrowing | C12: 0 | D12: 0 | E12: 0 | F12: 0 | G12: 0 | H12: 0 | J12: 0 | K12: 0 | L12: 0
A13: Statutory requirements | B13: 2 | C13: 123438750 | D13: 164585000 | E13: 215689066 | F13: 195620000 | G13: 224316560 | H13: 224316560 | J13: 236654435 | K13: 250853701 | L13: 258370000
A14: Other working capital requirements | B14: 3 | C14: 599907439.5 | D14: 714149078.6 | E14: 810909538.4 | F14: 936838916 | G14: 939661695.6 | H14: 939661695.6 | J14: 1021456800 | K14: 1041886140 | L14: 1062723000
A15: Other provisions | C15: 0 | D15: 87211449 | E15: 204984533 | F15: 221327945 | G15: 259335107.9 | H15: 259335107.9 | J15: 316357455.1 | K15: 377138109.7 | L15: 441252119.2
A16: Long term investments committed | B16: 4 | C16: =C52 -> 0 | D16: =D52 -> 0 | E16: 125000000 | F16: 150000000 | G16: 150000000 | H16: 150000000 | I16: 0 | J16: 175000000 | K16: 180000000 | L16: 185000000
A17: Reserves to be backed by cash/investments | B17: 5 | C17: 501152806 | D17: 307157479 | E17: 219591247 | F17: 1006840500 | G17: 352172726.4 | H17: 352172726.4 | I17: 0 | J17: 226084000 | K17: 229475000 | L17: 232917000
A18: ="Total "&A10&":" -> Total Application of cash and investments: | C18: =SUM(C11:C17) -> 1435489927 | D18: =SUM(D11:D17) -> 1601863239 | E18: 1996730013 | F18: 2918413933 | G18: 2333272662 | H18: 2333272662 | I18: 0 | J18: 1975552690 | K18: 2079352951 | L18: 2180262119
A19: Surplus(shortfall) | C19: =C8-C18 -> -503506757.4 | D19: =D8-D18 -> -1028443765 | E19: -1340664131 | F19: -1910793478 | G19: -951655048.8 | H19: -951655048.8 | I19: 0 | J19: -220126240 | K19: -145627504.6 | L19: 259294877.9
A20: =head27a -> References
A21: 1. Must reconcile with Budgeted Cash Flows
A22: 2. For example: VAT, taxation
A23: 3. Council approval for policy required - include sufficient working capital (e.g. allowing for a % of current debtors > 90 days as uncollectable)
A24: 4. For example: sinking fund requirements for borrowing
A25: 5. Council approval required for each reserve created and basis of cash backing of reserves
A27: Example supporting calculations only below (municipalities to adjust to suit their circumstances)
A28: Other working capital estimate
A29: Current debtors collected in 30 days | C29: =IF(ISERROR(ROUND(C35*C36,-3)),0,(ROUND(C35*C36,-3))) -> 1683246000 | D29: 2089232000 | E29: 2210613000 | F29: 2522004000 | G29: 2855738000 | H29: 2855738000 | I29: 0 | J29: 2865582000 | K29: 3034002000 | L29: 3211212000
A30: Other debtors collected in 30 days | C30: =ROUND(C37*(1-C38),-3) -> 434669000 | D30: =ROUND(D37*(1-D38),-3) -> 293513000 | E30: 738310000 | F30: 745870000 | G30: 749780000 | H30: 749780000 | I30: 0 | J30: 817042000 | K30: 842500000 | L30: 857500000
A31: Creditors due in 30 days | C31: =-'A6-FinPos'!C32 -> -2099438229 | D31: =-'A6-FinPos'!D32 -> -2188846967 | E31: =-'A6-FinPos'!E32 -> -3227631169 | F31: =-'A6-FinPos'!F32 -> -3021735676 | G31: =-'A6-FinPos'!G32 -> -3269102881 | H31: =-'A6-FinPos'!H32 -> -3269102881 | I31: =-'A6-FinPos'!I32 -> 0 | J31: =-'A6-FinPos'!J32 -> -3487833000 | K31: =-'A6-FinPos'!K32 -> -3929044500 | L31: =-'A6-FinPos'!L32 -> -4303935000
A32: Total | C32: =IF(ISERROR(SUM(C29:C31)),0,(SUM(C29:C31))) -> 18476771 | D32: =SUM(D29:D31) -> 193898033 | E32: -278708169 | F32: 246138324 | G32: 336415119 | H32: 336415119 | I32: 0 | J32: 194791000 | K32: -52542500 | L32: -235223000
A34: Debtors collection assumptions
A35: Balance outstanding - consumer debtors | C35: ='A6-FinPos'!C8 -> 1901782397 | D35: ='A6-FinPos'!D8 -> 2145141422 | E35: ='A6-FinPos'!E8 -> 2469648308 | F35: ='A6-FinPos'!F8 -> 2603506336 | G35: ='A6-FinPos'!G8 -> 2920272302 | H35: ='A6-FinPos'!H8 -> 2920272302 | I35: ='A6-FinPos'!I8 -> 0 | J35: ='A6-FinPos'!J8 -> 3009545023 | K35: ='A6-FinPos'!K8 -> 3182970323 | L35: ='A6-FinPos'!L8 -> 3360090323
A36: Estimate of consumers debtors collection rate | C36: =IF(ISERROR('SA10'!D10),0,('SA10'!D10)) -> 0.8850888132 | D36: =IF(ISERROR('SA10'!E10),0,('SA10'!E10)) -> 0.973936951 | E36: =IF(ISERROR('SA10'!F10),0,('SA10'!F10)) -> 0.8951124926 | F36: =IF(ISERROR('SA10'!G10),0,('SA10'!G10)) -> 0.9686950269 | G36: =IF(ISERROR('SA10'!H10),0,('SA10'!H10)) -> 0.977901177 | H36: =IF(ISERROR('SA10'!I10),0,('SA10'!I10)) -> 0.977901177 | I36: =IF(ISERROR('SA10'!J10),0,('SA10'!J10)) -> 0 | J36: =IF(ISERROR('SA10'!K10),0,('SA10'!K10)) -> 0.952164416 | K36: =IF(ISERROR('SA10'!L10),0,('SA10'!L10)) -> 0.9531982083 | L36: =IF(ISERROR('SA10'!M10),0,('SA10'!M10)) -> 0.9556921144
A37: Balance outstanding - other debtors | C37: ='A6-FinPos'!C9 -> 434668931 | D37: ='A6-FinPos'!D9 -> 293512862 | E37: ='A6-FinPos'!E9 -> 738309929 | F37: ='A6-FinPos'!F9 -> 745870000 | G37: ='A6-FinPos'!G9 -> 749780123 | H37: ='A6-FinPos'!H9 -> 749780123 | I37: ='A6-FinPos'!I9 -> 0 | J37: ='A6-FinPos'!J9 -> 817042000 | K37: ='A6-FinPos'!K9 -> 842500000 | L37: ='A6-FinPos'!L9 -> 857500000
A38: Estimate of other debtors > 90 days | C38: 0 | D38: =$C$38 -> 0 | E38: =$C$38 -> 0 | F38: 0 | G38: 0 | H38: 0 | I38: 0 | J38: 0 | K38: 0 | L38: 0
A40: =A16 -> Long term investments committed
A41: Balance (Insert description; eg sinking fund) | C41: 0 | D41: 0 | E41: 125000000 | F41: 150000000 | G41: 150000000 | H41: 150000000 | J41: 175000000 | K41: 180000000 | L41: 185000000
C52: =SUM(C41:C51) -> 0 | D52: =SUM(D41:D51) -> 0 | E52: 125000000 | F52: 150000000 | G52: 150000000 | H52: 150000000 | I52: 0 | J52: 175000000 | K52: 180000000 | L52: 185000000
A53: =A17 -> Reserves to be backed by cash/investments
A54: ='SA3'!A64 -> Housing Development Fund | C54: ='SA3'!C64 -> 141152353 | D54: ='SA3'!D64 -> 128919887 | E54: ='SA3'!E64 -> 128849720 | F54: ='SA3'!F64 -> 128920000 | G54: ='SA3'!G64 -> 128849720 | H54: ='SA3'!H64 -> 128849720 | I54: ='SA3'!I64 -> 0 | J54: ='SA3'!J64 -> 128849720 | K54: ='SA3'!K64 -> 128849720 | L54: ='SA3'!L64 -> 128849720
A55: ='SA3'!A65 -> Capital replacement
A56: ='SA3'!A69 -> Self-insurance
A57: Other (list)
C67: =SUM(C54:C65) -> 141152353 | D67: 128919887 | E67: 128849720 | F67: 128920000 | G67: 128849720 | H67: 128849720 | I67: 0 | J67: 128849720 | K67: 128849720 | L67: 128849720

Sheet A9-Asset
A1: =muni&" - "&Approve9 -> GT485 Batho Pele City - Table A9 Asset Management
A2: =desc -> Description | B2: =head27 -> Ref | C2: =head1b -> 2007/8 | D2: =head1A -> 2008/9 | E2: =Head1 -> 2009/10 | F2: =Head2 -> Current Year 2010/11 | I2: =Head3 -> 2011/12 Medium Term Revenue & Expenditure Framework
A3: R thousand | C3: =Head5 -> Audited Outcome | D3: =Head5 -> Audited Outcome | E3: =Head5 -> Audited Outcome | F3: =Head6 -> Original Budget | G3: =Head7 -> Adjusted Budget | H3: =Head8 -> Full Year Forecast | I3: =Head9 -> Budget Year 2011/12 | J3: =Head10 -> Budget Year +1 2012/13 | K3: =Head11 -> Budget Year +2 2013/14
A4: CAPITAL EXPENDITURE
A5: Total New Assets | B5: 1 | C5: =SUM(C11:C18) -> 135077694 | D5: =SUM(D11:D18) -> 344960326 | E5: =SUM(E11:E18) -> 926945385.3 | F5: 1686656090 | G5: 1184538830 | H5: 1184538830 | I5: 1397634807 | J5: 1540919567 | K5: 1334705242
A6: Infrastructure - Road transport | C6: =SA34a!C7 -> 89791268 | D6: =SA34a!D7 -> 218821529 | E6: =SA34a!E7 -> 329310951.6 | F6: =SA34a!F7 -> 353186800 | G6: =SA34a!G7 -> 341648467 | H6: =SA34a!H7 -> 341648467 | I6: =SA34a!I7 -> 383330667 | J6: =SA34a!J7 -> 518458000 | K6: =SA34a!K7 -> 445250806
A7: Infrastructure - Electricity | C7: =SA34a!C10 -> 5995418 | D7: =SA34a!D10 -> 30503260 | E7: =SA34a!E10 -> 43382940.81 | F7: =SA34a!F10 -> 248285000 | G7: =SA34a!G10 -> 258720000 | H7: =SA34a!H10 -> 258720000 | I7: =SA34a!I10 -> 293450000 | J7: =SA34a!J10 -> 213311000 | K7: =SA34a!K10 -> 208000000
A8: Infrastructure - Water | C8: =SA34a!C14 -> 0 | D8: =SA34a!D14 -> 14043231 | E8: =SA34a!E14 -> 20214696 | F8: =SA34a!F14 -> 80225000 | G8: =SA34a!G14 -> 55500000 | H8: =SA34a!H14 -> 55500000 | I8: =SA34a!I14 -> 55500000 | J8: =SA34a!J14 -> 54000000 | K8: =SA34a!K14 -> 55500000
A9: Infrastructure - Sanitation | C9: =SA34a!C18 -> 0 | D9: =SA34a!D18 -> 3522583 | E9: =SA34a!E18 -> 158075000 | F9: =SA34a!F18 -> 177670000 | G9: =SA34a!G18 -> 74708000 | H9: =SA34a!H18 -> 74708000 | I9: =SA34a!I18 -> 229363000 | J9: =SA34a!J18 -> 81916000 | K9: =SA34a!K18 -> 168974000
A10: Infrastructure - Other | C10: =SA34a!C21 -> 446604 | D10: =SA34a!D21 -> 9444248 | E10: =SA34a!E21 -> 156347465 | F10: =SA34a!F21 -> 600482512 | G10: =SA34a!G21 -> 304773832 | H10: =SA34a!H21 -> 304773832 | I10: =SA34a!I21 -> 340609000 | J10: =SA34a!J21 -> 555800000 | K10: =SA34a!K21 -> 315292000
A11: Infrastructure | C11: =SUM(C6:C10) -> 96233290 | D11: =SUM(D6:D10) -> 276334851 | E11: =SUM(E6:E10) -> 707331053.4 | F11: 1459849312 | G11: 1035350299 | H11: 1035350299 | I11: 1302252667 | J11: 1423485000 | K11: 1193016806
A12: =$A$42 -> Community | C12: =SA34a!C27 -> 38844404 | D12: =SA34a!D27 -> 57074340 | E12: =SA34a!E27 -> 162652425.9 | F12: =SA34a!F27 -> 162663000 | G12: =SA34a!G27 -> 119414900 | H12: =SA34a!H27 -> 119414900 | I12: =SA34a!I27 -> 76950000 | J12: =SA34a!J27 -> 103100000 | K12: =SA34a!K27 -> 124702140
A13: =$A$43 -> Heritage assets | C13: =SA34a!C43 -> 0 | D13: =SA34a!D43 -> 0 | E13: =SA34a!E43 -> 0 | F13: =SA34a!F43 -> 0 | G13: =SA34a!G43 -> 0 | H13: =SA34a!H43 -> 0 | I13: =SA34a!I43 -> 0 | J13: =SA34a!J43 -> 0 | K13: =SA34a!K43 -> 0
A14: =$A$44 -> Investment properties | C14: =SA34a!C47 -> 0 | D14: =SA34a!D47 -> 0 | E14: =SA34a!E47 -> 19360288 | F14: =SA34a!F47 -> 30000000 | G14: =SA34a!G47 -> 14000000 | H14: =SA34a!H47 -> 14000000 | I14: =SA34a!I47 -> 0 | J14: =SA34a!J47 -> 0 | K14: =SA34a!K47 -> 0
A15: =$A$45 -> Other assets | B15: 6 | C15: =SA34a!C51 -> 0 | D15: =SA34a!D51 -> 11551135 | E15: =SA34a!E51 -> 37601618 | F15: =SA34a!F51 -> 34143778 | G15: =SA34a!G51 -> 15773631 | H15: =SA34a!H51 -> 15773631 | I15: =SA34a!I51 -> 18432140 | J15: =SA34a!J51 -> 14334567 | K15: =SA34a!K51 -> 16986296
A16: Agricultural Assets | C16: =SA34a!C65 -> 0 | D16: =SA34a!D65 -> 0 | E16: =SA34a!E65 -> 0 | F16: =SA34a!F65 -> 0 | G16: =SA34a!G65 -> 0 | H16: =SA34a!H65 -> 0 | I16: =SA34a!I65 -> 0 | J16: =SA34a!J65 -> 0 | K16: =SA34a!K65 -> 0
A17: =SA34a!A69 -> Biological assets | C17: =SA34a!C69 -> 0 | D17: =SA34a!D69 -> 0 | E17: =SA34a!E69 -> 0 | F17: =SA34a!F69 -> 0 | G17: =SA34a!G69 -> 0 | H17: =SA34a!H69 -> 0 | I17: =SA34a!I69 -> 0 | J17: =SA34a!J69 -> 0 | K17: =SA34a!K69 -> 0
A18: =SA34a!A73 -> Intangibles | C18: =SA34a!C73 -> 0 | D18: =SA34a!D73 -> 0 | E18: =SA34a!E73 -> 0 | F18: =SA34a!F73 -> 0 | G18: =SA34a!G73 -> 0 | H18: =SA34a!H73 -> 0 | I18: =SA34a!I73 -> 0 | J18: =SA34a!J73 -> 0 | K18: =SA34a!K73 -> 0
A20: Total Renewal of Existing Assets | B20: 2 | C20: =SUM(C26:C33) -> 1230766311 | D20: =SUM(D26:D33) -> 1412915523 | E20: =SUM(E26:E33) -> 1751341029 | F20: 1790814024 | G20: 1492394266 | H20: 1492394266 | I20: 1216814140 | J20: 1595194156 | K20: 1583420009
A21: Infrastructure - Road transport | C21: =SA34b!C7 -> 148181446 | D21: =SA34b!D7 -> 227202106 | E21: =SA34b!E7 -> 219599829.2 | F21: =SA34b!F7 -> 210310368 | G21: =SA34b!G7 -> 197962768 | H21: =SA34b!H7 -> 197962768 | I21: =SA34b!I7 -> 101734000 | J21: =SA34b!J7 -> 79741000 | K21: =SA34b!K7 -> 76150000
A22: Infrastructure - Electricity | C22: =SA34b!C10 -> 311422473 | D22: =SA34b!D10 -> 368064197 | E22: =SA34b!E10 -> 426524320 | F22: =SA34b!F10 -> 359710000 | G22: =SA34b!G10 -> 306841666 | H22: =SA34b!H10 -> 306841666 | I22: =SA34b!I10 -> 301785667 | J22: =SA34b!J10 -> 358959000 | K22: =SA34b!K10 -> 372544000
A23: Infrastructure - Water | C23: =SA34b!C14 -> 151355670 | D23: =SA34b!D14 -> 290816547 | E23: =SA34b!E14 -> 388684726 | F23: =SA34b!F14 -> 292176000 | G23: =SA34b!G14 -> 239639000 | H23: =SA34b!H14 -> 239639000 | I23: =SA34b!I14 -> 155972907 | J23: =SA34b!J14 -> 284821685 | K23: =SA34b!K14 -> 291957509
A24: Infrastructure - Sanitation | C24: =SA34b!C18 -> 158541854 | D24: =SA34b!D18 -> 161901492 | E24: =SA34b!E18 -> 133899566 | F24: =SA34b!F18 -> 208330000 | G24: =SA34b!G18 -> 274996667 | H24: =SA34b!H18 -> 274996667 | I24: =SA34b!I18 -> 252331666 | J24: =SA34b!J18 -> 389683571 | K24: =SA34b!K18 -> 344265000
A25: Infrastructure - Other | C25: =SA34b!C21 -> 77964565 | D25: =SA34b!D21 -> 50101130 | E25: =SA34b!E21 -> 114641835.7 | F25: =SA34b!F21 -> 89490300 | G25: =SA34b!G21 -> 112814200 | H25: =SA34b!H21 -> 112814200 | I25: =SA34b!I21 -> 37460000 | J25: =SA34b!J21 -> 38500000 | K25: =SA34b!K21 -> 40500000
A26: =$A$11 -> Infrastructure | C26: =SUM(C21:C25) -> 847466008 | D26: =SUM(D21:D25) -> 1098085472 | E26: =SUM(E21:E25) -> 1283350277 | F26: 1160016668 | G26: 1132254301 | H26: 1132254301 | I26: 849284240 | J26: 1151705256 | K26: 1125416509
A27: =A12 -> Community | C27: =SA34b!C27 -> 120294900 | D27: =SA34b!D27 -> 63740165 | E27: =SA34b!E27 -> 112627828.6 | F27: =SA34b!F27 -> 145707126 | G27: =SA34b!G27 -> 114302126 | H27: =SA34b!H27 -> 114302126 | I27: =SA34b!I27 -> 130091000 | J27: =SA34b!J27 -> 173014400 | K27: =SA34b!K27 -> 183787000
A28: =A13 -> Heritage assets | C28: =SA34b!C43 -> 0 | D28: =SA34b!D43 -> 0 | E28: =SA34b!E43 -> 0 | F28: =SA34b!F43 -> 0 | G28: =SA34b!G43 -> 0 | H28: =SA34b!H43 -> 0 | I28: =SA34b!I43 -> 0 | J28: =SA34b!J43 -> 0 | K28: =SA34b!K43 -> 0
A29: =A14 -> Investment properties | C29: =SA34b!C47 -> 195462663 | D29: =SA34b!D47 -> 186957340 | E29: =SA34b!E47 -> 264396373.3 | F29: =SA34b!F47 -> 401394230 | G29: =SA34b!G47 -> 175910725 | H29: =SA34b!H47 -> 175910725 | I29: =SA34b!I47 -> 144000000 | J29: =SA34b!J47 -> 163630000 | K29: =SA34b!K47 -> 166311500
A30: =A15 -> Other assets | B30: 6 | C30: =SA34b!C51 -> 64450498 | D30: =SA34b!D51 -> 64132546 | E30: =SA34b!E51 -> 90966550 | F30: =SA34b!F51 -> 82996000 | G30: =SA34b!G51 -> 69427114 | H30: =SA34b!H51 -> 69427114 | I30: =SA34b!I51 -> 92538900 | J30: =SA34b!J51 -> 105944500 | K30: =SA34b!K51 -> 106405000
A31: Agricultural Assets | C31: =SA34b!C65 -> 0 | D31: =SA34b!D65 -> 0 | E31: =SA34b!E65 -> 0 | F31: =SA34b!F65 -> 0 | G31: =SA34b!G65 -> 0 | H31: =SA34b!H65 -> 0 | I31: =SA34b!I65 -> 0 | J31: =SA34b!J65 -> 0 | K31: =SA34b!K65 -> 0
A32: =A17 -> Biological assets | C32: =SA34b!C69 -> 0 | D32: =SA34b!D69 -> 0 | E32: =SA34b!E69 -> 0 | F32: =SA34b!F69 -> 0 | G32: =SA34b!G69 -> 0 | H32: =SA34b!H69 -> 0 | I32: =SA34b!I69 -> 0 | J32: =SA34b!J69 -> 0 | K32: =SA34b!K69 -> 0
A33: =A18 -> Intangibles | C33: =SA34b!C73 -> 3092242 | D33: =SA34b!D73 -> 0 | E33: =SA34b!E73 -> 0 | F33: =SA34b!F73 -> 700000 | G33: =SA34b!G73 -> 500000 | H33: =SA34b!H73 -> 500000 | I33: =SA34b!I73 -> 900000 | J33: =SA34b!J73 -> 900000 | K33: =SA34b!K73 -> 1500000
A35: Total Capital Expenditure | B35: 4
A36: Infrastructure - Road transport | C36: =C6+C21 -> 237972714 | D36: =D6+D21 -> 446023635 | E36: 548910780.8 | F36: 563497168 | G36: 539611235 | H36: 539611235 | I36: 485064667 | J36: 598199000 | K36: 521400806
A37: Infrastructure - Electricity | C37: =C7+C22 -> 317417891 | D37: =D7+D22 -> 398567457 | E37: 469907260.8 | F37: 607995000 | G37: 565561666 | H37: 565561666 | I37: 595235667 | J37: 572270000 | K37: 580544000
A38: Infrastructure - Water | C38: =C8+C23 -> 151355670 | D38: 304859778 | E38: 408899422 | F38: 372401000 | G38: 295139000 | H38: 295139000 | I38: 211472907 | J38: 338821685 | K38: 347457509
A39: Infrastructure - Sanitation | C39: =C9+C24 -> 158541854 | D39: =D9+D24 -> 165424075 | E39: =E9+E24 -> 291974566 | F39: 386000000 | G39: 349704667 | H39: 349704667 | I39: 481694666 | J39: 471599571 | K39: 513239000
A40: Infrastructure - Other | C40: =C10+C25 -> 78411169 | D40: 59545378 | E40: 270989300.7 | F40: 689972812 | G40: 417588032 | H40: 417588032 | I40: 378069000 | J40: 594300000 | K40: 355792000
A41: =$A$11 -> Infrastructure | C41: =SUM(C36:C40) -> 943699298 | D41: =SUM(D36:D40) -> 1374420323 | E41: 1990681330 | F41: 2619865980 | G41: 2167604600 | H41: 2167604600 | I41: 2151536907 | J41: 2575190256 | K41: 2318433315
A42: =SA34a!A27 -> Community | C42: =C12+C27 -> 159139304 | D42: =D12+D27 -> 120814505 | E42: 275280254.5 | F42: 308370126 | G42: 233717026 | H42: 233717026 | I42: 207041000 | J42: 276114400 | K42: 308489140
A43: =SA34a!A43 -> Heritage assets | C43: 0 | D43: =D13+D28 -> 0 | E43: 0 | F43: 0 | G43: 0 | H43: 0 | I43: 0 | J43: 0 | K43: 0
A44: =SA34a!A47 -> Investment properties | C44: 195462663 | D44: =D14+D29 -> 186957340 | E44: 283756661.3 | F44: 431394230 | G44: 189910725 | H44: 189910725 | I44: 144000000 | J44: 163630000 | K44: 166311500
A45: =SA34a!A51 -> Other assets | C45: 64450498 | D45: =D15+D30 -> 75683681 | E45: 128568168 | F45: 117139778 | G45: 85200745 | H45: 85200745 | I45: 110971040 | J45: 120279067 | K45: 123391296
A46: Agricultural Assets | C46: 0 | D46: =D16+D31 -> 0 | E46: 0 | F46: 0 | G46: 0 | H46: 0 | I46: 0 | J46: 0 | K46: 0
A47: =A32 -> Biological assets | C47: 0 | D47: =D17+D32 -> 0 | E47: 0 | F47: 0 | G47: 0 | H47: 0 | I47: 0 | J47: 0 | K47: 0
A48: =A33 -> Intangibles | C48: 3092242 | D48: =D18+D33 -> 0 | E48: 0 | F48: 700000 | G48: 500000 | H48: 500000 | I48: 900000 | J48: 900000 | K48: 1500000
A49: TOTAL CAPITAL EXPENDITURE - Asset class | B49: 2 | C49: =SUM(C41:C48) -> 1365844005 | D49: 1757875849 | E49: 2678286414 | F49: 3477470114 | G49: 2676933096 | H49: 2676933096 | I49: 2614448947 | J49: 3136113723 | K49: 2918125251
A51: ASSET REGISTER SUMMARY - PPE (WDV) | B51: 5
A52: Infrastructure - Road transport | C52: 1466948147 | D52: 2182902976 | E52: 2715218102 | F52: 3115946847 | G52: 3083683041 | H52: 3083683041 | I52: 3412143537 | J52: 3826411116 | K52: 4161939741
A53: Infrastructure - Electricity | C53: 1142107813 | D53: 1692696666 | E53: 2009192775 | F53: 2406852433 | G53: 2389704353 | H53: 2389704353 | I53: 2779596379 | J53: 3192128646 | K53: 3521157263
A54: Infrastructure - Water | C54: 679791153 | D54: 1707593424 | E54: 2575363794 | F54: 2994173777 | G54: 2896122363 | H54: 2896122363 | I54: 3158487974 | J54: 3403070636 | K54: 3758092391
A55: Infrastructure - Sanitation | C55: 525649922 | D55: 0 | E55: 0 | F55: 171495157.2 | G55: 111356787.1 | H55: 111356787.1 | I55: 401389819.4 | J55: 680422623.5 | K55: 949733157.6
A56: Infrastructure - Other | C56: 1521332617 | D56: 1087723258 | E56: 1412076673 | F56: 1908560523 | G56: 1693908194 | H56: 1693908194 | I56: 2096223400 | J56: 2498758994 | K56: 2925270301
A57: =A41 -> Infrastructure | C57: =SUM(C52:C56) -> 5335829652 | D57: =SUM(D52:D56) -> 6670916324 | E57: 8711851344 | F57: 1.059702874e+10 | G57: 1.017477474e+10 | H57: 1.017477474e+10 | I57: 1.184784111e+10 | J57: 1.360079202e+10 | K57: 1.531619285e+10
A58: =A12 -> Community | C58: 768131439 | D58: 851302282 | E58: 1126867133 | F58: 1348761075 | G58: 1284603514 | H58: 1284603514 | I58: 1424800882 | J58: 1611820693 | K58: 1810337718
A59: =A13 -> Heritage assets | C59: 3733442 | D59: 3694747 | E59: 3656431 | F59: 3656431 | G59: 3656431 | H59: 3656431 | I59: 3656431 | J59: 3656431 | K59: 3656431
A60: =A14 -> Investment properties | C60: ='A6-FinPos'!C17 -> 306474263 | D60: ='A6-FinPos'!D17 -> 10571024 | E60: ='A6-FinPos'!E17 -> 8027162 | F60: ='A6-FinPos'!F17 -> 318445578.9 | G60: ='A6-FinPos'!G17 -> 136198527.9 | H60: ='A6-FinPos'!H17 -> 136198527.9 | I60: ='A6-FinPos'!J17 -> 233707818.3 | J60: ='A6-FinPos'!K17 -> 344538878.6 | K60: ='A6-FinPos'!L17 -> 451562627.5
A61: =A15 -> Other assets | C61: 2591544580 | D61: 2375331564 | E61: 2799402974 | F61: 2883693263 | G61: 2856905234 | H61: 2856905234 | I61: 2932049035 | J61: 3013517326 | K61: 3092921331
A62: Agricultural Assets | C62: ='A6-FinPos'!C20 -> 0 | D62: ='A6-FinPos'!D20 -> 0 | E62: ='A6-FinPos'!E20 -> 0 | F62: ='A6-FinPos'!F20 -> 0 | G62: ='A6-FinPos'!G20 -> 0 | H62: ='A6-FinPos'!H20 -> 0 | I62: ='A6-FinPos'!J20 -> 0 | J62: ='A6-FinPos'!K20 -> 0 | K62: ='A6-FinPos'!L20 -> 0
A63: =A17 -> Biological assets | C63: ='A6-FinPos'!C21 -> 11014558 | D63: ='A6-FinPos'!D21 -> 14741255 | E63: ='A6-FinPos'!E21 -> 17007999 | F63: ='A6-FinPos'!F21 -> 14741000 | G63: ='A6-FinPos'!G21 -> 17007999 | H63: ='A6-FinPos'!H21 -> 17007999 | I63: ='A6-FinPos'!J21 -> 16345000 | J63: ='A6-FinPos'!K21 -> 18377000 | K63: ='A6-FinPos'!L21 -> 21400000
A64: =A18 -> Intangibles | C64: ='A6-FinPos'!C22 -> 121572306 | D64: ='A6-FinPos'!D22 -> 98035111 | E64: ='A6-FinPos'!E22 -> 156190747 | F64: ='A6-FinPos'!F22 -> 0 | G64: ='A6-FinPos'!G22 -> 0 | H64: ='A6-FinPos'!H22 -> 0 | I64: ='A6-FinPos'!J22 -> 131806000 | J64: ='A6-FinPos'!K22 -> 141000000 | K64: ='A6-FinPos'!L22 -> 146000000
A65: TOTAL ASSET REGISTER SUMMARY - PPE (WDV) | B65: 5 | C65: =SUM(C57:C64) -> 9138300240 | D65: 10024592307 | E65: 12823003790 | F65: 1.516632609e+10 | G65: 1.447314644e+10 | H65: 1.447314644e+10 | I65: 1.659020628e+10 | J65: 1.873370234e+10 | K65: 2.084207096e+10
A67: EXPENDITURE OTHER ITEMS
A68: ='A4-FinPerf RE'!A28 -> Depreciation & asset impairment | C68: ='A4-FinPerf RE'!C28 -> 707591089 | D68: ='A4-FinPerf RE'!D28 -> 661291521 | E68: ='A4-FinPerf RE'!E28 -> 601797034 | F68: ='A4-FinPerf RE'!F28 -> 905625307 | G68: ='A4-FinPerf RE'!G28 -> 841709274.8 | H68: ='A4-FinPerf RE'!H28 -> 841709274.8 | I68: ='A4-FinPerf RE'!J28 -> 912331480 | J68: ='A4-FinPerf RE'!K28 -> 978067000 | K68: ='A4-FinPerf RE'!L28 -> 1139451218
A69: Repairs and Maintenance by Asset Class | B69: 3 | C69: =SUM(C75:C79) -> 727352320 | D69: =SUM(D75:D79) -> 894628918 | E69: 1125506274 | F69: 1609286770 | G69: 1545030020 | H69: 1545030020 | I69: 1690116431 | J69: 1809429886 | K69: 1935894431
A70: Infrastructure - Road transport | C70: =SA34c!C7 -> 75368525.9 | D70: =SA34c!D7 -> 85998397 | E70: =SA34c!E7 -> 94166836 | F70: =SA34c!F7 -> 280430344.5 | G70: =SA34c!G7 -> 270452844.5 | H70: =SA34c!H7 -> 270452844.5 | I70: =SA34c!I7 -> 279801819.3 | J70: =SA34c!J7 -> 293901201.9 | K70: =SA34c!K7 -> 310311564.9
A71: Infrastructure - Electricity | C71: =SA34c!C10 -> 153324820.4 | D71: =SA34c!D10 -> 205507737 | E71: =SA34c!E10 -> 321375170 | F71: =SA34c!F10 -> 416057719.5 | G71: =SA34c!G10 -> 380027719.5 | H71: =SA34c!H10 -> 380027719.5 | I71: =SA34c!I10 -> 463722617.5 | J71: =SA34c!J10 -> 499139258.3 | K71: =SA34c!K10 -> 537308279.1
A72: Infrastructure - Water | C72: =SA34c!C14 -> 118167436.5 | D72: =SA34c!D14 -> 136919880 | E72: =SA34c!E14 -> 140150487 | F72: =SA34c!F14 -> 177096279.5 | G72: =SA34c!G14 -> 174449587.5 | H72: =SA34c!H14 -> 174449587.5 | I72: =SA34c!I14 -> 186483473.5 | J72: =SA34c!J14 -> 199935329.3 | K72: =SA34c!K14 -> 214263896.2
A73: Infrastructure - Sanitation | C73: =SA34c!C18 -> 7919267.8 | D73: =SA34c!D18 -> 8898835 | E73: =SA34c!E18 -> 12777325 | F73: =SA34c!F18 -> 33209775 | G73: =SA34c!G18 -> 32937819 | H73: =SA34c!H18 -> 32937819 | I73: =SA34c!I18 -> 39006097.33 | J73: =SA34c!J18 -> 41059985.87 | K73: =SA34c!K18 -> 43207363.81
A74: Infrastructure - Other | C74: =SA34c!C21 -> 3225717.38 | D74: =SA34c!D21 -> 3394892 | E74: =SA34c!E21 -> 4615456 | F74: =SA34c!F21 -> 4445266.5 | G74: =SA34c!G21 -> 8445266.5 | H74: =SA34c!H21 -> 8445266.5 | I74: =SA34c!I21 -> 9048454 | J74: =SA34c!J21 -> 9772328 | K74: =SA34c!K21 -> 10554118
A75: =$A$11 -> Infrastructure | C75: =SUM(C70:C74) -> 358005768 | D75: =SUM(D70:D74) -> 440719741 | E75: 573085274 | F75: 911239385 | G75: 866313237 | H75: 866313237 | I75: 978062461.7 | J75: 1043808103 | K75: 1115645222
A76: =A12 -> Community | C76: =SA34c!C27 -> 122884321.4 | D76: =SA34c!D27 -> 130677406 | E76: =SA34c!E27 -> 134553220 | F76: =SA34c!F27 -> 291333061.1 | G76: =SA34c!G27 -> 294386243.1 | H76: =SA34c!H27 -> 294386243.1 | I76: =SA34c!I27 -> 351102426.5 | J76: =SA34c!J27 -> 377079052.6 | K76: =SA34c!K27 -> 404061805.9
A77: =A13 -> Heritage assets | C77: =SA34c!C43 -> 0 | D77: =SA34c!D43 -> 0 | E77: =SA34c!E43 -> 0 | F77: =SA34c!F43 -> 0 | G77: =SA34c!G43 -> 0 | H77: =SA34c!H43 -> 0 | I77: =SA34c!I43 -> 0 | J77: =SA34c!J43 -> 0 | K77: =SA34c!K43 -> 0
A78: =A14 -> Investment properties | C78: =SA34c!C47 -> 0 | D78: =SA34c!D47 -> 0 | E78: =SA34c!E47 -> 0 | F78: =SA34c!F47 -> 0 | G78: =SA34c!G47 -> 0 | H78: =SA34c!H47 -> 0 | I78: =SA34c!I47 -> 0 | J78: =SA34c!J47 -> 0 | K78: =SA34c!K47 -> 0
A79: =A15 -> Other assets | B79: 6, 7 | C79: =SA34c!C51+SA34c!C65+SA34c!C69+SA34c!C73 -> 246462230.5 | D79: =SA34c!D51+SA34c!D65+SA34c!D69+SA34c!D73 -> 323231771 | E79: =SA34c!E51+SA34c!E65+SA34c!E69+SA34c!E73 -> 417867780 | F79: =SA34c!F51+SA34c!F65+SA34c!F69+SA34c!F73 -> 406714323.6 | G79: =SA34c!G51+SA34c!G65+SA34c!G69+SA34c!G73 -> 384330539.6 | H79: =SA34c!H51+SA34c!H65+SA34c!H69+SA34c!H73 -> 384330539.6 | I79: =SA34c!I51+SA34c!I65+SA34c!I69+SA34c!I73 -> 360951542.3 | J79: =SA34c!J51+SA34c!J65+SA34c!J69+SA34c!J73 -> 388542730.5 | K79: =SA34c!K51+SA34c!K65+SA34c!K69+SA34c!K73 -> 416187403.2
A80: TOTAL EXPENDITURE OTHER ITEMS | C80: =SUM(C68:C69) -> 1434943409 | D80: 1555920439 | E80: 1727303308 | F80: 2514912077 | G80: 2386739295 | H80: 2386739295 | I80: 2602447911 | J80: 2787496886 | K80: 3075345649
A82: % of capital exp on renewal of assets | C82: =IF(ISERROR(C20/C49),0,(C20/C49)) -> 0.9011031322 | D82: =IF(ISERROR(D20/D49),0,(D20/D49)) -> 0.8037629755 | E82: 0.653903563 | F82: 0.5149761077 | G82: 0.5575015185 | H82: 0.5575015185 | I82: 0.4654189715 | J82: 0.5086531602 | K82: 0.5426155058
A83: Renewal of Existing Assets as % of deprecn" | C83: =IF(ISERROR(C20/C68),0,(C20/C68)) -> 1.739375086 | D83: 2.13660009 | E83: 2.910185544 | F83: 1.977433725 | G83: 1.773051944 | H83: 1.773051944 | I83: 1.333741263 | J83: 1.630966136 | K83: 1.389633873
A84: R&M as a % of PPE | C84: =IF(ISERROR(ROUND(C69/'A6-FinPos'!C19,3)),0,(ROUND(C69/'A6-FinPos'!C19,3))) -> 0.08 | D84: =IF(ISERROR(ROUND(D69/'A6-FinPos'!D19,3)),0,(ROUND(D69/'A6-FinPos'!D19,3))) -> 0.089 | E84: =IF(ISERROR(ROUND(E69/'A6-FinPos'!E19,3)),0,(ROUND(E69/'A6-FinPos'!E19,3))) -> 0.088 | F84: =IF(ISERROR(ROUND(F69/'A6-FinPos'!F19,3)),0,(ROUND(F69/'A6-FinPos'!F19,3))) -> 0.106 | G84: =IF(ISERROR(ROUND(G69/'A6-FinPos'!G19,3)),0,(ROUND(G69/'A6-FinPos'!G19,3))) -> 0.107 | H84: =IF(ISERROR(ROUND(H69/'A6-FinPos'!H19,3)),0,(ROUND(H69/'A6-FinPos'!H19,3))) -> 0.107 | I84: =IF(ISERROR(ROUND(I69/'A6-FinPos'!J19,3)),0,(ROUND(I69/'A6-FinPos'!J19,3))) -> 0.102 | J84: =IF(ISERROR(ROUND(J69/'A6-FinPos'!K19,3)),0,(ROUND(J69/'A6-FinPos'!K19,3))) -> 0.097 | K84: =IF(ISERROR(ROUND(K69/'A6-FinPos'!L19,3)),0,(ROUND(K69/'A6-FinPos'!L19,3))) -> 0.093
A85: Renewal and R&M as a % of PPE | C85: =IF(ISERROR(ROUND((C20+C69)/C65,2)),0,(ROUND((C20+C69)/C65,2))) -> 0.21 | D85: 0.23 | E85: 0.22 | F85: 0.22 | G85: 0.21 | H85: 0.21 | I85: 0.18 | J85: 0.18 | K85: 0.17
A87: =head27a -> References
A88: 1. Detail of new assets provided in Table SA34a
A89: 2. Detail of renewal of existing assets provided in Table SA34b
A90: 3. Detail of Repairs and Maintenance by Asset Class provided in Table SA34c
A91: 4. Must reconcile to total capital expenditure on Budgeted Capital Expenditure
A92: 5. Must reconcile to 'Budgeted Financial Position' (written down value)
A93: 6. Donated/contributed and assets funded by finance leases to be allocated to the respective category
A94: 7. Including repairs and maintenance to agricultural, biological and intangible assets
A95: Check balance to SFPos | C95: =C65-'A6-FinPos'!C17-'A6-FinPos'!C19-'A6-FinPos'!C21-'A6-FinPos'!C22 -> -439061355 | D95: =D65-'A6-FinPos'!D17-'A6-FinPos'!D19-'A6-FinPos'!D21-'A6-FinPos'!D22 -> -123347727 | E95: =E65-'A6-FinPos'!E17-'A6-FinPos'!E19-'A6-FinPos'!E21-'A6-FinPos'!E22 -> -181225903 | F95: =F65-'A6-FinPos'!F17-'A6-FinPos'!F19-'A6-FinPos'!F21-'A6-FinPos'!F22 -> -333186472.7 | G95: =G65-'A6-FinPos'!G17-'A6-FinPos'!G19-'A6-FinPos'!G21-'A6-FinPos'!G22 -> -153206431.4 | H95: =H65-'A6-FinPos'!H17-'A6-FinPos'!H19-'A6-FinPos'!H21-'A6-FinPos'!H22 -> -153206431.4 | I95: =I65-'A6-FinPos'!J17-'A6-FinPos'!J19-'A6-FinPos'!J21-'A6-FinPos'!J22 -> -381858351.1 | J95: =J65-'A6-FinPos'!K17-'A6-FinPos'!K19-'A6-FinPos'!K21-'A6-FinPos'!K22 -> -503915820.9 | K95: =K65-'A6-FinPos'!L17-'A6-FinPos'!L19-'A6-FinPos'!L21-'A6-FinPos'!L22 -> -618962490.6

Sheet A10-SerDel
A1: =muni&" - "&Approve10 -> GT485 Batho Pele City - Table A10 Basic service delivery measurement
A2: =desc -> Description | B2: =head27 -> Ref | C2: =head1b -> 2007/8 | D2: =head1A -> 2008/9 | E2: =Head1 -> 2009/10 | F2: =Head2 -> Current Year 2010/11 | I2: =Head3 -> 2011/12 Medium Term Revenue & Expenditure Framework
C3: =Head5A -> Outcome | D3: =Head5A -> Outcome | E3: =Head5A -> Outcome | F3: =Head6 -> Original Budget | G3: =Head7 -> Adjusted Budget | H3: =Head8 -> Full Year Forecast | I3: =Head9 -> Budget Year 2011/12 | J3: =Head10 -> Budget Year +1 2012/13 | K3: =Head11 -> Budget Year +2 2013/14
A4: Household service targets (000) | B4: 1
A5: Water:
A6: Piped water inside dwelling | C6: 429150 | D6: 524541 | E6: 619951 | F6: 658790 | G6: 658790 | H6: 658790 | I6: 695417 | J6: 729855 | K6: 764101
A7: Piped water inside yard (but not in dwelling) | C7: 124968 | D7: 105654 | E7: 86322 | F7: 72943 | G7: 72943 | H7: 72943 | I7: 61636 | J7: 52391 | K7: 44532
A8: Using public tap (at least min.service level) | B8: 2 | C8: 112609 | D8: 57732 | E8: 2854 | F8: 1464 | G8: 1464 | H8: 1464 | I8: 751 | J8: 385 | K8: 198
A9: Other water supply (at least min.service level) | B9: 4 | C9: 4120 | D9: 2060 | E9: 0 | F9: 0 | G9: 0 | H9: 0 | I9: 0 | J9: 0 | K9: 0
A10: Minimum Service Level and Above sub-total | C10: =SUM(C6:C9) -> 670847 | D10: =SUM(D6:D9) -> 689987 | E10: 709127 | F10: 733197 | G10: 733197 | H10: 733197 | I10: 757804 | J10: 782631 | K10: 808831
A11: Using public tap (< min.service level) | B11: 3 | C11: 0 | D11: 0 | E11: 0 | F11: 0 | G11: 0 | H11: 0 | I11: 0 | J11: 0 | K11: 0
A12: Other water supply (< min.service level) | B12: =B9 -> 4 | C12: 15793 | D12: 10037 | E12: 4280 | F12: 2722 | G12: 2722 | H12: 2722 | I12: 1731 | J12: 1101 | K12: 700
A13: No water supply | C13: 0 | D13: 0 | E13: 0 | F13: 0 | G13: 0 | H13: 0 | I13: 0 | J13: 0 | K13: 0
A14: Below Minimum Service Level sub-total | C14: =SUM(C11:C13) -> 15793 | D14: =SUM(D11:D13) -> 10037 | E14: 4280 | F14: 2722 | G14: 2722 | H14: 2722 | I14: 1731 | J14: 1101 | K14: 700
A15: Total number of households | B15: 5 | C15: =C10+C14 -> 686640 | D15: =D10+D14 -> 700024 | E15: 713407 | F15: 735919 | G15: 735919 | H15: 735919 | I15: 759535 | J15: 783732 | K15: 809531
A16: Sanitation/sewerage:
A17: Flush toilet (connected to sewerage) | C17: 489574 | D17: 508778 | E17: 527981 | F17: 555429 | G17: 555429 | H17: 555429 | I17: 583728 | J17: 612362 | K17: 642368
A18: Flush toilet (with septic tank) | C18: 12360 | D18: 11971 | E18: 11582 | F18: 11211 | G18: 11211 | H18: 11211 | I18: 10852 | J18: 10505 | K18: 10169
A19: Chemical toilet | C19: 10300 | D19: 9976 | E19: 9651 | F19: 9343 | G19: 9343 | H19: 9343 | I19: 9044 | J19: 8754 | K19: 8474
A20: Pit toilet (ventilated) | C20: 138701 | D20: 134334 | E20: 129966 | F20: 125936 | G20: 125936 | H20: 125936 | I20: 122033 | J20: 118250 | K20: 114584
A21: Other toilet provisions (> min.service level) | C21: 20599 | D21: 21269 | E21: 21938 | F21: 22640 | G21: 22640 | H21: 22640 | I21: 23365 | J21: 24113 | K21: 24884
A22: =$A$10 -> Minimum Service Level and Above sub-total | C22: =SUM(C17:C21) -> 671534 | D22: =SUM(D17:D21) -> 686328 | E22: 701118 | F22: 724559 | G22: 724559 | H22: 724559 | I22: 749022 | J22: 773984 | K22: 800479
A23: Bucket toilet | C23: 5493 | D23: 4798 | E23: 4102 | F23: 3581 | G23: 3581 | H23: 3581 | I23: 3126 | J23: 2729 | K23: 2382
A24: Other toilet provisions (< min.service level) | C24: 0 | D24: 0 | E24: 0 | F24: 0 | G24: 0 | H24: 0 | I24: 0 | J24: 0 | K24: 0
A25: No toilet provisions | C25: 9613 | D25: 8900 | E25: 8187 | F25: 7778 | G25: 7778 | H25: 7778 | I25: 7388 | J25: 7019 | K25: 6668
A26: =$A$14 -> Below Minimum Service Level sub-total | C26: =SUM(C23:C25) -> 15106 | D26: =SUM(D23:D25) -> 13698 | E26: 12289 | F26: 11359 | G26: 11359 | H26: 11359 | I26: 10514 | J26: 9748 | K26: 9050
A27: =$A$15 -> Total number of households | B27: =$B$15 -> 5 | C27: =C22+C26 -> 686640 | D27: =D22+D26 -> 700026 | E27: 713407 | F27: 735918 | G27: 735918 | H27: 735918 | I27: 759536 | J27: 783732 | K27: 809529
A28: Energy:
A29: Electricity (at least min.service level) | C29: 482621 | D29: 502619 | E29: 522617 | F29: 535393 | G29: 535393 | H29: 535393 | I29: 548508 | J29: 561364 | K29: 578715
A30: Electricity - prepaid (min.service level) | C30: 126424 | D30: 132211 | E30: 137998 | F30: 149452 | G30: 149452 | H30: 149452 | I30: 161856 | J30: 175290 | K30: 189840
A31: =$A$10 -> Minimum Service Level and Above sub-total | C31: =SUM(C29:C30) -> 609045 | D31: =SUM(D29:D30) -> 634830 | E31: 660615 | F31: 684845 | G31: 684845 | H31: 684845 | I31: 710364 | J31: 736654 | K31: 768555
A32: Electricity (< min.service level) | C32: 0 | D32: 0 | E32: 0 | F32: 0 | G32: 0 | H32: 0 | I32: 0 | J32: 0 | K32: 0
A33: Electricity - prepaid (< min. service level) | C33: 0 | D33: 0 | E33: 0 | F33: 0 | G33: 0 | H33: 0 | I33: 0 | J33: 0 | K33: 0
A34: Other energy sources | C34: 77595 | D34: 65194 | E34: 52792 | F34: 51073 | G34: 51073 | H34: 51073 | I34: 49172 | J34: 47078 | K34: 40976
A35: =$A$14 -> Below Minimum Service Level sub-total | C35: =SUM(C32:C34) -> 77595 | D35: =SUM(D32:D34) -> 65194 | E35: 52792 | F35: 51073 | G35: 51073 | H35: 51073 | I35: 49172 | J35: 47078 | K35: 40976
A36: =$A$15 -> Total number of households | B36: =$B$15 -> 5 | C36: =C31+C35 -> 686640 | D36: =D31+D35 -> 700024 | E36: 713407 | F36: 735918 | G36: 735918 | H36: 735918 | I36: 759536 | J36: 783732 | K36: 809531
A37: Refuse:
A38: Removed at least once a week | C38: 518413 | D38: 554915 | E38: 591416 | F38: 629909 | G38: 629909 | H38: 629909 | I38: 664967 | J38: 697096 | K38: 728087
A39: =$A$10 -> Minimum Service Level and Above sub-total | C39: =SUM(C38) -> 518413 | D39: =SUM(D38) -> 554915 | E39: 591416 | F39: 629909 | G39: 629909 | H39: 629909 | I39: 664967 | J39: 697096 | K39: 728087
A40: Removed less frequently than once a week | C40: 10986 | D40: 25112 | E40: 39237 | F40: 41984 | G40: 41984 | H40: 41984 | I40: 44923 | J40: 48067 | K40: 51432
A41: Using communal refuse dump | C41: 14419 | D41: 9350 | E41: 4280 | F41: 2774 | G41: 2774 | H41: 2774 | I41: 1798 | J41: 1165 | K41: 755
A42: Using own refuse dump | C42: 100250 | D42: 79018 | E42: 57786 | F42: 45651 | G42: 45651 | H42: 45651 | I42: 36064 | J42: 28491 | K42: 22508
A43: Other rubbish disposal | C43: 4120 | D43: 2417 | E43: 713 | F43: 419 | G43: 419 | H43: 419 | I43: 246 | J43: 144 | K43: 85
A44: No rubbish disposal | C44: 38452 | D44: 29214 | E44: 19975 | F44: 15181 | G44: 15181 | H44: 15181 | I44: 11538 | J44: 8769 | K44: 6664
A45: =$A$14 -> Below Minimum Service Level sub-total | C45: =SUM(C40:C44) -> 168227 | D45: 145111 | E45: 121991 | F45: 106009 | G45: 106009 | H45: 106009 | I45: 94569 | J45: 86636 | K45: 81444
A46: =$A$15 -> Total number of households | B46: =$B$15 -> 5 | C46: =C39+C45 -> 686640 | D46: =D39+D45 -> 700026 | E46: 713407 | F46: 735918 | G46: 735918 | H46: 735918 | I46: 759536 | J46: 783732 | K46: 809531
A48: Households receiving Free Basic Service | B48: 7
A49: Water (6 kilolitres per household per month) | C49: 671000 | D49: 689987 | E49: 709127 | F49: 733197 | G49: 733197 | H49: 733197 | I49: 757804 | J49: 782631 | K49: 808831
A50: Sanitation (free minimum level service) | C50: 42000 | D50: 47474 | E50: 53366 | F50: 90000 | G50: 90000 | H50: 90000 | I50: 90000 | J50: 95000 | K50: 105000
A51: Electricity/other energy (50kwh per household per month) | C51: 42000 | D51: 47474 | E51: 53366 | F51: 90000 | G51: 90000 | H51: 90000 | I51: 90000 | J51: 95000 | K51: 105000
A52: Refuse (removed at least once a week) | C52: 42000 | D52: 47474 | E52: 53366 | F52: 90000 | G52: 90000 | H52: 90000 | I52: 90000 | J52: 95000 | K52: 105000
A54: Cost of Free Basic Services provided (R'000) | B54: 8 | D54: 0 | E54: 0 | F54: 0 | G54: 0 | H54: 0 | I54: 0 | J54: 0 | K54: 0
A55: Water (6 kilolitres per household per month) | C55: 169092000 | D55: 223560000 | E55: 255240000 | F55: 296755200 | G55: 296755200 | H55: 296755200 | I55: 300168000 | J55: 338256000 | K55: 379080000
A56: Sanitation (free sanitation service) | C56: 4106401 | D56: 5002203 | E56: 6314299.96 | F56: 10315589.76 | G56: 10315589.76 | H56: 10315589.76 | I56: 12582936.58 | J56: 14363080.7 | K56: 17283248.64
A57: Electricity/other energy (50kwh per household per month) | C57: 18560479 | D57: 23466322 | E57: 29251247.29 | F57: 64589616 | G57: 64589616 | H57: 64589616 | I57: 78579936 | J57: 95470256.69 | K57: 121558401.7
A58: Refuse (removed once a week) | C58: 10060257 | D58: 12411413 | E58: 16071764.33 | F58: 31709831.4 | G58: 31709831.4 | H58: 31709831.4 | I58: 34570411.2 | J58: 39403416 | K58: 47470746.96
A59: Total cost of FBS provided (minimum social package) | C59: =SUM(C54:C58) -> 201819137 | D59: =SUM(D54:D58) -> 264439938 | E59: 306877311.6 | F59: 403370237.2 | G59: 403370237.2 | H59: 403370237.2 | I59: 425901283.8 | J59: 487492753.4 | K59: 565392397.3
A61: Highest level of free service provided
A62: Property rates (R value threshold) | C62: 10000 | D62: 10000 | E62: 150000 | F62: 150000 | G62: 150000 | H62: 150000 | I62: 150000 | J62: 150000 | K62: 150000
A63: Water (kilolitres per household per month) | C63: 6 | D63: 6 | E63: 6 | F63: 6 | G63: 6 | H63: 6 | I63: 6 | J63: 6 | K63: 6
A64: Sanitation (kilolitres per household per month) | C64: 6 | D64: 6 | E64: 6 | F64: 6 | G64: 6 | H64: 6 | I64: 6 | J64: 6 | K64: 6
A65: Sanitation (Rand per household per month) | C65: 14.94 | D65: 14.94 | E65: 16.11 | F65: 18.23 | G65: 18.23 | H65: 18.23 | I65: 20.23 | J65: 21.87 | K65: 23.81
A66: Electricity (kwh per household per month) | C66: 50 | D66: 50 | E66: 50 | F66: 50 | G66: 50 | H66: 50 | I66: 50 | J66: 50 | K66: 50
A67: Refuse (average litres per week) | C67: 85 | D67: 85 | E67: 85 | F67: 85 | G67: 85 | H67: 85 | I67: 85 | J67: 85 | K67: 85
A68: Revenue cost of free services provided (R'000) | B68: 9
A69: Property rates (R15 000 threshold rebate) | C69: 6197120 | D69: 6735740 | E69: 7204410 | F69: 13729500 | G69: 13729500 | H69: 13729500 | I69: 15106500 | J69: 17228250 | K69: 20755507
A70: Property rates (other exemptions, reductions and rebates) | C70: 54869610 | D70: 59357129 | E70: 64839690 | F70: 123565500 | G70: 123565500 | H70: 123565500 | I70: 135958500 | J70: 155054250 | K70: 186799567
A71: Water | C71: 197551720 | D71: 258662000 | E71: 294699000 | F71: 371929401 | G71: 371929407 | H71: 371929401 | I71: 382881320 | J71: 432603801 | K71: 492746630
A72: Sanitation | C72: 7997520 | D72: 8508404 | E72: 10317483.59 | F72: 19686240 | G72: 19686240 | H72: 19686240 | I72: 21845376 | J72: 24935904 | K72: 30005640
A73: Electricity/other energy | C73: 22304913 | D73: 24741549 | E73: 34740198.68 | F73: 80136000 | G73: 80136000 | H73: 80136000 | I73: 95364000 | J73: 115861962 | K73: 147522332
A74: Refuse | C74: 10493505 | D74: 11222853 | E74: 14544583.1 | F74: 28696680 | G74: 28696680 | H74: 28696680 | I74: 31285440 | J74: 35659200 | K74: 42959952
A75: Municipal Housing - rental rebates | D75: 0 | E75: 0 | F75: 0 | G75: 0 | H75: 0 | I75: 0 | J75: 0 | K75: 0
A76: Housing - top structure subsidies | B76: 6 | D76: 0 | E76: 0 | F76: 0 | G76: 0 | H76: 0 | I76: 0 | J76: 0 | K76: 0
A77: Other | D77: 0 | E77: 0 | F77: 0 | G77: 0 | H77: 0 | I77: 0 | J77: 0 | K77: 0
A78: Total revenue cost of free services provided (total social package) | C78: =SUM(C69:C77) -> 299414388 | D78: 369227675 | E78: 426345365.4 | F78: 637743321 | G78: 637743327 | H78: 637743321 | I78: 682441136 | J78: =SUM(J69:J77) -> 781343367 | K78: =SUM(K69:K77) -> 920789628
A79: =head27a -> References
A80: 1. Include services provided by another entity; e.g. Eskom
A81: 2. Stand distance <= 200m from dwelling
A82: 3. Stand distance > 200m from dwelling
A83: 4. Borehole, spring, rain-water tank etc.
A84: 5. Must agree to total number of households in municipal area
A85: 6. Include value of subsidy provided by municipality above provincial subsidy level
A86: 7. Show number of households receiving at least these levels of services completely free
A87: 8. Must reflect the cost to the municipality of providing the Free Basic Service
A88: 9. Reflect the cost to the municipality in terms of 'revenue foregone' of providing free services (note this will not equal 'Revenue Foregone' on SA1)

Sheet SA1
A1: =muni&" - "&TableA1 -> GT485 Batho Pele City - Supporting Table SA1 Supportinging detail to 'Budgeted Financial Performance'
A2: =desc -> Description | B2: =head27 -> Ref | C2: =head1b -> 2007/8 | D2: =head1A -> 2008/9 | E2: =Head1 -> 2009/10 | F2: =Head2 -> Current Year 2010/11 | J2: =Head3 -> 2011/12 Medium Term Revenue & Expenditure Framework
C3: =Head5 -> Audited Outcome | D3: =Head5 -> Audited Outcome | E3: =Head5 -> Audited Outcome | F3: =Head6 -> Original Budget | G3: =Head7 -> Adjusted Budget | H3: =Head8 -> Full Year Forecast | I3: =Head5b -> Pre-audit outcome | J3: =Head9 -> Budget Year 2011/12 | K3: =Head10 -> Budget Year +1 2012/13 | L3: =Head11 -> Budget Year +2 2013/14
A4: R thousand
A5: REVENUE ITEMS:
A6: ='A4-FinPerf RE'!A5 -> Property rates | B6: 6
A7: Total Property Rates | C7: 1764014465 | D7: 2246505594 | E7: 2364463948 | F7: 3039297000 | G7: 2913031000 | H7: 2913031000 | I7: 0 | J7: 3157833644 | K7: 3524444228 | L7: 3943670104
A8: less Revenue Foregone | C8: 44790000 | D8: 61440568 | E8: 64840000 | F8: 123566000 | G8: 123566000 | H8: 123566000 | I8: 0 | J8: 135959000 | K8: 155054000 | L8: 186800000
A9: Net Property Rates | C9: =C7-C8 -> 1719224465 | D9: =D7-D8 -> 2185065026 | E9: 2299623948 | F9: 2915731000 | G9: 2789465000 | H9: 2789465000 | I9: 0 | J9: 3021874644 | K9: 3369390228 | L9: 3756870104
A11: ='A4-FinPerf RE'!A7 -> Service charges - electricity revenue | B11: 6
A12: ="Total "&A11 -> Total Service charges - electricity revenue | C12: 2695796291 | D12: 2951235063 | E12: 3501346518 | F12: 5010136000 | G12: 5000136000 | H12: 5000136000 | I12: 0 | J12: 6105364000 | K12: 7177612000 | L12: 8445078250
A13: =$A$8 -> less Revenue Foregone | C13: 21406036 | D13: 24742000 | E13: 34740000 | F13: 80136000 | G13: 80136000 | H13: 80136000 | I13: 0 | J13: 95364000 | K13: 115862000 | L13: 147522000
A14: ="Net "& A11 -> Net Service charges - electricity revenue | C14: =C12-C13 -> 2674390255 | D14: 2926493063 | E14: 3466606518 | F14: 4930000000 | G14: 4920000000 | H14: 4920000000 | I14: 0 | J14: 6010000000 | K14: 7061750000 | L14: 8297556250
A16: ='A4-FinPerf RE'!A8 -> Service charges - water revenue | B16: 6
A17: ="Total "&A16 -> Total Service charges - water revenue | C17: 1062141119 | D17: 1264264384 | E17: 1360593613 | F17: 1542198000 | G17: 1552198000 | H17: 1552198000 | I17: 0 | J17: 1692336760 | K17: 1905036730 | L17: 2149893196
A18: =$A$8 -> less Revenue Foregone | C18: 25440273 | D18: 31378000 | E18: 35273000 | F18: 67198000 | G18: 67198000 | H18: 67198000 | I18: 0 | J18: 73937000 | K18: 84337000 | L18: 101606000
A19: ="Net "& A16 -> Net Service charges - water revenue | C19: =C17-C18 -> 1036700846 | D19: 1232886384 | E19: 1325320613 | F19: 1475000000 | G19: 1485000000 | H19: 1485000000 | I19: 0 | J19: 1618399760 | K19: 1820699730 | L19: 2048287196
A21: ='A4-FinPerf RE'!A9 -> Service charges - sanitation revenue
A22: ="Total "&A21 -> Total Service charges - sanitation revenue | C22: 256239787.7 | D22: 311913994 | E22: 348069826 | F22: 374466000.1 | G22: 374466000 | H22: 374466000 | I22: 0 | J22: 414388113 | K22: 458696139 | L22: 509310954
A23: =$A$8 -> less Revenue Foregone | C23: 6672824 | D23: 8508000 | E23: 10317000 | F23: 19686000 | G23: 19686000 | H23: 19686000 | I23: 0 | J23: 21845000 | K23: 24936000 | L23: 30006000
A24: ="Net "& A21 -> Net Service charges - sanitation revenue | C24: =C22-C23 -> 249566963.7 | D24: 303405994 | E24: 337752826 | F24: 354780000.1 | G24: 354780000 | H24: 354780000 | I24: 0 | J24: 392543113 | K24: 433760139 | L24: 479304954
A26: ='A4-FinPerf RE'!A10 -> Service charges - refuse revenue | B26: 6
A27: Total refuse removal revenue | C27: 261309605.4 | D27: 278912295 | E27: 332550383 | F27: 412522000 | G27: 412522000 | H27: 412522000 | J27: 461169000 | K27: 540772700 | L27: 636468597
A28: Total landfill revenue | C28: 15424176.25 | D28: 16235975 | E28: 17090500 | F28: 17990000 | G28: 18533983 | H28: 18533983 | J28: 17895809 | K28: 18907611 | L28: 19978882
A29: =$A$8 -> less Revenue Foregone | C29: 10609943 | D29: 11223000 | E29: 14545000 | F29: 28697000 | G29: 28697000 | H29: 28697000 | J29: 31285000 | K29: 35659000 | L29: 42960000
A30: ="Net "& A26 -> Net Service charges - refuse revenue | C30: =SUM(C27:C28)-C29 -> 266123838.6 | D30: =SUM(D27:D28)-D29 -> 283925270 | E30: 335095883 | F30: 401815000 | G30: 402358983 | H30: 402358983 | I30: 0 | J30: 447779809 | K30: 524021311 | L30: 613487479
A32: Other Revenue by source
A33: Fuel levy | C33: 701694000 | D33: 801935000 | E33: 902177000 | F33: 969463000 | G33: 969463000 | H33: 969463000 | I33: 0 | J33: 1085816000 | K33: 1171009000 | L33: 1239214000
A34: Other revenue | B34: 3 | C34: 541903034.4 | D34: 611312098 | E34: 667320232 | F34: 617293314 | G34: 637235366.2 | H34: 637235366.2 | I34: 0 | J34: 753789811 | K34: 793383715 | L34: 833521292
A35: Total 'Other' Revenue | B35: 1 | C35: =SUM(C33:C34) -> 1243597034 | D35: 1413247098 | E35: 1569497232 | F35: 1586756314 | G35: 1606698366 | H35: 1606698366 | I35: 0 | J35: 1839605811 | K35: 1964392715 | L35: 2072735292
A37: EXPENDITURE ITEMS:
A38: ='A4-FinPerf RE'!A25 -> Employee related costs
A39: Salaries and Wages | B39: 2 | C39: 1558317394 | D39: 1780568901 | E39: 1893846013 | F39: 2127872347 | G39: 2164299814 | H39: 2164299814 | J39: 2514231601 | K39: 2715437995 | L39: 2932744963
A40: Contributions to UIF, pensions, medical aid | C40: 483651880.5 | D40: 521636171.6 | E40: 567939772.5 | F40: 674838008.9 | G40: 674494477 | H40: 674494477 | J40: 707466974.3 | K40: 763496761.2 | L40: 823980416.5
A41: Travel, motor car, accom; & other allowances | C41: 274140673 | D41: 295155843.3 | E41: 329540308.4 | F41: 353188290 | G41: 352922632 | H41: 352922632 | J41: 419242603.6 | K41: 443196543.2 | L41: 468586764.8
A42: Housing benefits and allowances | C42: 22155161.03 | D42: 27853336.4 | E42: 32723669.5 | F42: 31378756.11 | G42: 31429816.3 | H42: 31429816.3 | J42: 26120033.88 | K42: 27426785.92 | L42: 28798792.21
A43: Overtime | C43: 135966584 | D43: 166269047.4 | E43: 225764495.5 | F43: 136808439.7 | G43: 138879156.8 | H43: 138879156.8 | J43: 152319338.2 | K43: 159939371.9 | L43: 167940452.4
A44: Performance bonus | C44: 127691241.8 | D44: 133644165 | E44: 146640296.6 | F44: 177353033.8 | G44: 177201827.2 | H44: 177201827.2 | J44: 204541145.1 | K44: 220909993.4 | L44: 238588603.2
A45: Long service awards | C45: 8628793.858 | D45: 8708101.418 | E45: 8725785.282 | F45: 4647071.963 | G45: 4636753.906 | H45: 4636753.906 | J45: 5507421.43 | K45: 5948295.816 | L45: 6424168.417
A46: Payments in lieu of leave | C46: 65491104.33 | D46: 72341998.19 | E46: 96868172.97 | F46: 48409547.84 | G46: 48373257.68 | H46: 48373257.68 | J46: 58005454.75 | K46: 62647462.44 | L46: 67660859.2
A47: Post-retirement benefit obligations | B47: 4 | C47: 36908570.34 | D47: 42751850.56 | E47: 47481569.46 | F47: 49055119.99 | G47: 49364662.4 | H47: 49364662.4 | J47: 59082442.21 | K47: 61817914.27 | L47: 64733598.6
A48: sub-total | B48: 5 | C48: =SUM(C39:C47) -> 2712951403 | D48: =SUM(D39:D47) -> 3048929415 | E48: 3349530083 | F48: 3603550615 | G48: 3641602397 | H48: 3641602397 | I48: 0 | J48: 4146517014 | K48: 4460821123 | L48: 4799458618
A49: Less: Employees costs capitalised to PPE | C49: 45142054.65 | D49: 49802006.38 | E49: 53786166.92 | F49: 82895406.36 | G49: 79172577.4 | H49: 79172577.4 | J49: 98030827.54 | K49: 106222696.9 | L49: 113495341.2
A50: ="Total "&A38 -> Total Employee related costs | B50: 1 | C50: =C48-C49 -> 2667809348 | D50: =D48-D49 -> 2999127409 | E50: 3295743916 | F50: 3520655209 | G50: 3562429820 | H50: 3562429820 | I50: 0 | J50: 4048486186 | K50: 4354598426 | L50: 4685963277
A52: Contributions recognised - capital
A53: Developer ABC | C53: 4523000 | D53: 2712555 | E53: 0 | F53: 0 | G53: 0 | H53: 0 | J53: 1365000 | K53: 1698000 | L53: 1890540
A54: Developer DEF | C54: 6879523 | D54: 0 | E54: 5480980 | F54: 0 | G54: 0 | H54: 0 | J54: 8654000 | K54: 0 | L54: 0
A55: Developer GHI | C55: 0 | D55: 5698553 | E55: 0 | F55: 0 | G55: 0 | H55: 0 | J55: 0 | K55: 0 | L55: 0
A56: Developer JKL | C56: 0 | D56: 0 | E56: 8950400 | F56: 27540120 | G56: 7540000 | H56: 7540000 | J56: 7890540 | K56: 11254000 | L56: 28978000
A57: Developer MNO | C57: 32540198 | D57: 33870125 | E57: 34500000 | F57: 45489700 | G57: 17650456 | H57: 17650456 | J57: 35460452 | K57: 36789000 | L57: 37500400
A58: Developer PQR | C58: 2890780 | D58: 2159233 | E58: 2678000 | F58: 4560000 | G58: 2560452 | H58: 2560452 | J58: 2890700 | K58: 0 | L58: 0
A59: ="Total "&A52 -> Total Contributions recognised - capital | C59: =SUM(C53:C58) -> 46833501 | D59: 44440466 | E59: 51609380 | F59: 77589820 | G59: 27750908 | H59: 27750908 | I59: 0 | J59: 56260692 | K59: 49741000 | L59: 68368940
A61: ='A4-FinPerf RE'!A28 -> Depreciation & asset impairment
A62: Depreciation of Property, Plant & Equipment | C62: 628929880 | D62: 574906651 | E62: 507005789 | F62: 783925517 | G62: 723030923.8 | H62: 723030923.8 | J62: 785789000 | K62: 842892000 | L62: 984464000
A63: Lease amortisation | C63: 72781709 | D63: 79979000 | E63: 87889995 | F63: 96652895 | G63: 96652895 | H63: 96652895 | J63: 105042480 | K63: 112675000 | L63: 131487218
A64: Capital asset impairment | C64: 5879500 | D64: 6405870 | E64: 6901250 | F64: 25046895 | G64: 22025456 | H64: 22025456 | J64: 21500000 | K64: 22500000 | L64: 23500000
A65: ="Total "&LEFT(A61,35) -> Total Depreciation & asset impairment | B65: 1 | C65: =SUM(C62:C64) -> 707591089 | D65: 661291521 | E65: 601797034 | F65: 905625307 | G65: 841709274.8 | H65: 841709274.8 | I65: 0 | J65: 912331480 | K65: 978067000 | L65: 1139451218
A67: ='A4-FinPerf RE'!A30 -> Bulk purchases
A68: Electricity Bulk Purchases | C68: 1392657406 | D68: 1524446697 | E68: 2069423005 | F68: 2754106207 | G68: 2735206207 | H68: 2735206207 | I68: 0 | J68: 3638409874 | K68: 4594971594 | L68: 5794185200
A69: Water Bulk Purchases | C69: 469065699.7 | D69: 429516574.8 | E69: 351719635.6 | F69: 352764150.6 | G69: 350659489.6 | H69: 350659489.6 | I69: 0 | J69: 437921973.6 | K69: 497559424.9 | L69: 558869234.4
A70: Total bulk purchases | B70: 1 | C70: =SUM(C68:C69) -> 1861723106 | D70: =SUM(D68:D69) -> 1953963272 | E70: 2421142640 | F70: 3106870358 | G70: 3085865697 | H70: 3085865697 | I70: 0 | J70: 4076331847 | K70: 5092531019 | L70: 6353054435
A72: ='A4-FinPerf RE'!A32 -> Contracted services
A73: SPCA | C73: 5200000 | D73: 5300000 | E73: 5500000 | F73: 5800000 | G73: 5800000 | H73: 5800000 | J73: 6000000 | K73: 6300000 | L73: 6600000
A74: Management Information Services | C74: 8239006 | D74: 11004700 | E74: 13110000 | F74: 14250000 | G74: 11248977 | H74: 11248977 | J74: 11688417.74 | K74: 12357649.21 | L74: 13102249.43
A75: Internal, External and Forensic Audit | C75: 16400090 | D75: 17840000 | E75: 19920600 | F75: 22134000 | G75: 20785000 | H75: 20785000 | J75: 21596965.02 | K75: 22833519.78 | L75: 24209335.16
A76: Tanker Water Services | C76: 6789000 | D76: 8400000 | E76: 8480188.56 | F76: 16500000 | G76: 15993489 | H76: 15993489 | J76: 16600000 | K76: 17500000 | L76: 18500000
A77: CCTV | C77: 7890040 | D77: 9120012 | E77: 9415579.055 | F77: 18320000 | G77: 16729904 | H77: 16729904 | J77: 17383456.89 | K77: 18378763.24 | L77: 19486160.84
A78: Cleaning Services | C78: 16513200 | D78: 16897000 | E78: 17199000 | F78: 18900000 | G78: 17997314 | H78: 17997314 | J78: 18700378.2 | K78: 19771086.13 | L78: 20962377.03
A79: Water Care: Private Contractors | C79: 13754000 | D79: 14532000 | E79: 14522142.51 | F79: 28255899 | G79: 28255899 | H79: 28255899 | J79: 29359714.32 | K79: 31040732.68 | L79: 32911067.07
A80: Temporary Services | C80: 30299560 | D80: 31316800 | E80: 34040000 | F80: 37000000 | G80: 29100000 | H80: 29100000 | J80: 30000000 | K80: 30500000 | L80: 31000000
A81: Internet Fees and Lease of Computer Equipment | C81: 34789123 | D81: 38307090 | E81: 40020000 | F81: 43500000 | G81: 34415997 | H81: 34415997 | J81: 35760456.25 | K81: 37807955.17 | L81: 40086043.11
A82: Implementation of One Integrated Transaction Processing System | C82: 35988741 | D82: 35787123 | E82: 29552172.25 | F82: 57500000 | G82: 50500000 | H82: 50500000 | J82: 51000000 | K82: 51500000 | L82: 52000000
A83: Household Refuse Removal | C83: 20403898.72 | D83: 23889010 | E83: 37890124 | F83: 51899147 | G83: 51899147 | H83: 51899147 | J83: 53926584.66 | K83: 57014202.53 | L83: 60449547.47
A84: Private Sector Labour | C84: 51537577.3 | D84: 53209808 | E84: 58420000 | F84: 63500000 | G84: 59477325 | H84: 59477325 | J84: 61800000 | K84: 65300000 | L84: 69200000
A85: Electricity Disconnections | C85: 19754391.44 | D85: 38790124 | E85: 42518792 | F85: 56474433 | G85: 56474433 | H85: 56474433 | J85: 58680603.99 | K85: 62040417.75 | L85: 65778613.24
A86: Service Providers | C86: 17890000 | D86: 42100670 | E86: 54789123 | F86: 85300000 | G86: 77976599 | H86: 77976599 | J86: 81022751.06 | K86: 85661785.7 | L86: 90823267.72
A87: Security and Watchman Services | C87: 21631753.1 | D87: 44123789 | E87: 58715123 | F87: 87200000 | G87: 84458985 | H87: 84458985 | J87: 87758371.15 | K87: 92783060.12 | L87: 98373628.81
A88: Rental Plant and Equipment | C88: 158178123 | D88: 178145123 | E88: 249789125 | F88: 304250000 | G88: 292409503 | H88: 292409503 | J88: 293441816.5 | K88: 310243106.7 | L88: 328936555.7
A89: Lease of Vehicles | C89: 16787000 | D89: 69784156 | E89: 80000000 | F89: 178250000 | G89: 131146719 | H89: 131146719 | J89: 136269959.2 | K89: 144072225.3 | L89: 152753181.4
A90: sub-total | B90: 1 | C90: =SUM(C73:C89) -> 482045503.6 | D90: 638547405 | E90: 773881969.4 | F90: 1089033479 | G90: 984669291 | H90: 984669291 | I90: 0 | J90: 1010989475 | K90: 1065104504 | L90: 1125172027
A91: Allocations to organs of state:
A92: Electricity
A93: Water
A94: Sanitation
A95: Other
A96: Total contracted services | C96: =SUM(C90:C95) -> 482045503.6 | D96: =SUM(D90:D95) -> 638547405 | E96: 773881969.4 | F96: 1089033479 | G96: 984669291 | H96: 984669291 | I96: 0 | J96: 1010989475 | K96: 1065104504 | L96: 1125172027
A98: Other Expenditure By Type
A99: Collection Fees | C99: 62993550 | D99: 68471250 | E99: 72075000 | F99: 77500000 | G99: 76617597 | H99: 76617597 | J99: 79610659.71 | K99: 84168843.72 | L99: 89240369.72
A100: Subsistence and Travelling | C100: 6509160 | D100: 7232400 | E100: 7809000 | F100: 14500000 | G100: 5000000 | H100: 5000000 | J100: 5100000 | K100: 5200000 | L100: 5300000
A101: Legal Costs | C101: 19876500 | D101: 24789065 | E101: 22123000 | F101: 27450000 | G101: 23449186 | H101: 23449186 | J101: 24365227.31 | K101: 25760281.57 | L101: 27312446.62
A102: Licenses | C102: 26572922.29 | D102: 29201013.5 | E102: 30737908.95 | F102: 33051515 | G102: 33051515 | H102: 33051515 | J102: 34342670.83 | K102: 36308993.1 | L102: 38496762.28
A103: Stationery | B103: 3 | C103: 39760688 | D103: 45182600 | E103: 46580000 | F103: 83200450 | G103: 55816188 | H103: 55816188 | J103: 57996644.68 | K103: 61317297.71 | L103: 65011922.18
A104: Telecommunication | C104: 57455307 | D104: 63137700 | E104: 67890000 | F104: 94500000 | G104: 68540626 | H104: 68540626 | J104: 71218162.23 | K104: 75295825.82 | L104: 79832715.26
A105: Printing | C105: 9689000 | D105: 9778090 | E105: 9760090 | F105: 10500000 | G105: 8635153 | H105: 8635153 | J105: 8972484.833 | K105: 9486212.982 | L105: 10057797.12
A106: Postage | C106: 11257120 | D106: 12236000 | E106: 12880000 | F106: 14000000 | G106: 13842930 | H106: 13842930 | J106: 14383703.39 | K106: 15207256 | L106: 16123556.98
A107: Advertising, Marketing and Publications | C107: 27654000 | D107: 31456075 | E107: 31400000 | F107: 48500000 | G107: 25818187 | H107: 25818187 | J107: 26826773.22 | K107: 28362765.63 | L107: 30071741.27
A108: Training Board Fees | C108: 20674971.89 | D108: 22719749.33 | E108: 24429837.99 | F108: 26268643 | G108: 26268643 | H108: 26268643 | J108: 27294826.26 | K108: 28857617.49 | L108: 30596410.03
A109: City Offical Entertainments, Refreshments and Imbizo | C109: 13289000 | D109: 17655000 | E109: 17800600 | F109: 22300000 | G109: 9971518 | H109: 9971518 | J109: 10361054.87 | K109: 10954286.91 | L109: 11614328.66
A110: Post Employment Benefits, Supplementary Pensions and Medical Aid Fund | C110: 125234163 | D110: 137619959.4 | E110: 147978451 | F110: 157423884 | G110: 168423884 | H110: 168423884 | J110: 181701360 | K110: 194420045 | L110: 209001989
A111: Membership Fees: Municipal Associations | C111: 10768640 | D111: 11456000 | E111: 11870000 | F111: 13500000 | G111: 10500000 | H111: 10500000 | J111: 10910181.99 | K111: 11534854.83 | L111: 12229878.24
A112: Insurance Premiums and Excesses | C112: 83400790 | D112: 122670000 | E112: 130500000 | F112: 145000000 | G112: 93223806 | H112: 93223806 | J112: 100681920 | K112: 110750112 | L112: 124040125
A113: Compensation Commissioner (IOD) | C113: 24825435.72 | D113: 26410038 | E113: 27800040 | F113: 45000000 | G113: 30029173 | H113: 30029173 | J113: 31202261.19 | K113: 32988776.31 | L113: 34976488.51
A114: Project Linked Housing Top Strucutres | C114: 44320909 | D114: 66789600 | E114: 67890000 | F114: 68967350 | G114: 68967350 | H114: 68967350 | J114: 71661556.18 | K114: 75764606.71 | L114: 80329742.17
A115: Locomotion Allowance Casual | C115: 3898431.168 | D115: 4147267.2 | E115: 4320070 | F115: 7800000 | G115: 5497078 | H115: 5497078 | J115: 5711821.085 | K115: 6038856.832 | L115: 6402723.295
A116: Uniforms and Protective Clothing | C116: 8976543 | D116: 12532065 | E116: 14789030 | F116: 27500000 | G116: 19234735 | H116: 19234735 | J116: 19986138.99 | K116: 21130464.38 | L116: 22403663.52
A117: Consultant and Professional Services | C117: 27890654 | D117: 34090872 | E117: 36789000 | F117: 87500000 | G117: 56956836 | H117: 56956836 | J117: 59181852.04 | K117: 62570365.24 | L117: 66340492.29
A118: Feasibility Studies/Environmental Impact Assessments | C118: 18786403 | D118: 31467078 | E118: 32345000 | F118: 45000000 | G118: 35787602 | H118: 35787602 | J118: 26794993.42 | K118: 28329166.24 | L118: 30036117.38
A119: General expenses | C119: 350237464 | D119: 773548573.5 | E119: 861169051.6 | F119: 1040752832 | G119: 998013233 | H119: 998013233 | J119: 1057893780 | K119: 1121367000 | L119: 1177435777
A120: Total 'Other' Expenditure | B120: 1 | C120: =SUM(C99:C119) -> 994071652.1 | D120: 1552590396 | E120: 1678936079 | F120: 2090214674 | G120: 1833645240 | H120: 1833645240 | I120: 0 | J120: 1926198072 | K120: 2045813628 | L120: 2166855047
A122: Repairs and Maintenance by Expenditure Item | B122: 8
A123: Employee related costs | C123: 300947031 | D123: 315202572 | E123: 719975087 | F123: 563914329 | G123: 573714329 | H123: 573714329 | J123: 695254096 | K123: 748047161 | L123: 804931498
A124: Other materials | C124: 396811611 | D124: 478125450 | E124: 367325000 | F124: 829158000 | G124: 764850000 | H124: 764850000 | J124: 766120000 | K124: 801890000 | L124: 845320120
A125: Contracted Services | C125: 29593000 | D125: 101301000 | E125: 38206000 | F125: =265244000-49029000 -> 216215000 | G125: 206466000 | H125: 206466000 | J125: 228742000 | K125: =260000000-507000 -> 259493000 | L125: =285638000+4000 -> 285642000
A126: Other Expenditure | C126: 0 | D126: 0 | E126: 0 | F126: 0 | G126: 0 | H126: 0 | J126: 0 | K126: 0 | L126: 0
A127: Total Repairs and Maintenance Expenditure | B127: 9 | C127: =SUM(C123:C126) -> 727351642 | D127: =SUM(D123:D126) -> 894629022 | E127: 1125506087 | F127: 1609287329 | G127: 1545030329 | H127: 1545030329 | I127: 0 | J127: 1690116096 | K127: 1809430161 | L127: 1935893618
A129: check | C129: =SA34c!C77 -> 727352320 | D129: =SA34c!D77 -> 894628918 | E129: =SA34c!E77 -> 1125506274 | F129: =SA34c!F77 -> 1609286770 | G129: =SA34c!G77 -> 1545030020 | H129: =SA34c!H77 -> 1545030020 | J129: =SA34c!I77 -> 1690116431 | K129: =SA34c!J77 -> 1809429886 | L129: =SA34c!K77 -> 1935894431
A132: =head27a -> References
A133: 1. Must reconcile with 'Budgeted Financial Performance (Revenue and Expenditure)
A134: 2. Must reconcile to supporting documentation on staff salaries
A135: 3. Insert other categories where revenue or expenditure is of a material nature (list separate items until 'General expenses' is not > 10% of Total Expenditure)
A136: 4. Expenditure to meet any 'unfunded obligations'
A137: 5 This sub-total must agree with the total on SA22, but excluding councillor and board member items
A138: 6. Include a note for each revenue item that is affected by 'revenue foregone'
A139: 7. Special consideration may have to be given to including 'goodwill arising' or 'joint venture' budgets where circumstances require this (include separately under relevant notes)
A140: 8. Repairs and Maintenance is not a GRAP item. However to facilitate transparency, municipalities must provide a breakdown of the amounts included in the relevant GRAP items that will be spent on Repairs and Maintenance.
A141: 9. Must reconcile with Repairs and Maintenance by Asset Class (Total Repairs and Maintenance) on Table SA34c.

Sheet SA2
A1: =muni&" - "&TableA2 -> GT485 Batho Pele City - Supporting Table SA2 Matrix Financial Performance Budget (revenue source/expenditure type and dept.)
A2: =desc -> Description | B2: =head27 -> Ref | C2: ='A3-FinPerf V'!A5 -> Vote1 - Governance and Administration | D2: ='A3-FinPerf V'!A6 -> Vote2 - Corporate Services | E2: ='A3-FinPerf V'!A7 -> Vote3 - Assessment Rates and Other | F2: ='A3-FinPerf V'!A8 -> Vote4 - Finance Services | G2: ='A3-FinPerf V'!A9 -> Vote5 - Safety and Security | H2: ='A3-FinPerf V'!A10 -> Vote6 - Planning and Economic Development | I2: ='A3-FinPerf V'!A11 -> Vote7 - Health and Social Development | J2: ='A3-FinPerf V'!A12 -> Vote8 - Sport, Recreation and Community Services | K2: ='A3-FinPerf V'!A13 -> Vote9 - Housing | L2: ='A3-FinPerf V'!A14 -> Vote10 - Environmental Management and Agriculture | M2: ='A3-FinPerf V'!A15 -> Vote11 - Transport and Roads | N2: ='A3-FinPerf V'!A16 -> Vote12 - Electricity | O2: ='A3-FinPerf V'!A17 -> Vote13 - Waste Water | P2: ='A3-FinPerf V'!A18 -> Vote14 - Water | Q2: ='A3-FinPerf V'!#REF! ->  | R2: Total
A3: R thousand | B3: 1 | C3: R'000 | D3: R'000 | E3: R'000 | F3: R'000 | G3: R'000 | H3: R'000 | Q3: R'000 | R3: R'000
A4: ='A4-FinPerf RE'!A4 -> Revenue By Source
A5: ='A4-FinPerf RE'!A5 -> Property rates | C5: 0 | D5: 0 | E5: 3021875000 | F5: 0 | G5: 0 | H5: 0 | I5: 0 | J5: 0 | K5: 0 | L5: 0 | M5: 0 | N5: 0 | O5: 0 | P5: 0 | R5: =SUM(C5:Q5) -> 3021875000
A6: ='A4-FinPerf RE'!A6 -> Property rates - penalties & collection charges | C6: 0 | D6: 0 | E6: 66481000 | F6: 0 | G6: 0 | H6: 0 | I6: 0 | J6: 0 | K6: 0 | L6: 0 | M6: 0 | N6: 0 | O6: 0 | P6: 0 | R6: =SUM(C6:Q6) -> 66481000
A7: ='A4-FinPerf RE'!A7 -> Service charges - electricity revenue | C7: 0 | D7: 0 | E7: 0 | F7: 0 | G7: 0 | H7: 0 | I7: 0 | J7: 0 | K7: 0 | L7: 0 | M7: 0 | N7: 6010000000 | O7: 0 | P7: 0 | R7: 6010000000
A8: ='A4-FinPerf RE'!A8 -> Service charges - water revenue | C8: 0 | D8: 0 | E8: 0 | F8: 0 | G8: 0 | H8: 0 | I8: 0 | J8: 0 | K8: 0 | L8: 0 | M8: 0 | N8: 0 | O8: 0 | P8: 1618400000 | R8: 1618400000
A9: ='A4-FinPerf RE'!A9 -> Service charges - sanitation revenue | C9: 0 | D9: 0 | E9: 0 | F9: 0 | G9: 0 | H9: 0 | I9: 0 | J9: 0 | K9: 0 | L9: 0 | M9: 0 | N9: 0 | O9: 392543000 | P9: 0 | R9: 392543000
A10: ='A4-FinPerf RE'!A10 -> Service charges - refuse revenue | C10: 0 | D10: 0 | E10: 0 | F10: 0 | G10: 0 | H10: 0 | I10: 0 | J10: 0 | K10: 0 | L10: 447780000 | M10: 0 | N10: 0 | O10: 0 | P10: 0 | R10: 447780000
A11: ='A4-FinPerf RE'!A11 -> Service charges - other | C11: 0 | D11: 0 | E11: 0 | F11: 0 | G11: 0 | H11: 0 | I11: 0 | J11: 0 | K11: 0 | L11: 0 | M11: 0 | N11: 12106000 | O11: 4500000 | P11: 7500000 | R11: 24106000
A12: ='A4-FinPerf RE'!A12 -> Rental of facilities and equipment | C12: 0 | D12: 41200042 | E12: 0 | F12: 0 | G12: 153111 | H12: 167787 | I12: 0 | J12: 12338000 | K12: 0 | L12: 2989504 | M12: =21461992+86000+27107000 -> 48654992 | N12: 0 | O12: 0 | P12: 0 | R12: 105503436
A13: ='A4-FinPerf RE'!A13 -> Interest earned - external investments | C13: 0 | D13: 0 | E13: 118818528 | F13: 64583 | G13: 0 | H13: 0 | I13: 1162313 | J13: 0 | K13: 0 | L13: 0 | M13: 34806 | N13: 0 | O13: 0 | P13: 0 | R13: 120080230
A14: ='A4-FinPerf RE'!A14 -> Interest earned - outstanding debtors | C14: 0 | D14: 0 | E14: 132160000 | F14: =89996382+238487000-179523000-29907000+650000-715000 -> 118988382 | G14: 0 | H14: 0 | I14: 0 | J14: 0 | K14: 0 | L14: 0 | M14: 0 | N14: 45000000 | O14: 20000000 | P14: 35000000 | R14: 351148382
A15: ='A4-FinPerf RE'!A15 -> Dividends received | C15: 0 | D15: 0 | E15: 0 | F15: 0 | G15: 0 | H15: 0 | I15: 0 | J15: 0 | K15: 0 | L15: 0 | M15: 0 | N15: 0 | O15: 0 | P15: 0 | R15: 0
A16: ='A4-FinPerf RE'!A16 -> Fines | C16: 0 | D16: 0 | E16: 0 | F16: 0 | G16: =63393418+35000 -> 63428418 | H16: 750000 | I16: 3484 | J16: 0 | K16: 0 | L16: 1504164 | M16: 0 | N16: 0 | O16: 0 | P16: 0 | R16: 65686066
A17: ='A4-FinPerf RE'!A17 -> Licences and permits | C17: 0 | D17: 250000 | E17: 0 | F17: 0 | G17: 31754492 | H17: 2200000 | I17: 578678 | J17: 0 | K17: 0 | L17: 0 | M17: 0 | N17: 0 | O17: 0 | P17: 0 | R17: 34783170
A18: ='A4-FinPerf RE'!A18 -> Agency services | C18: 0 | D18: 0 | E18: 0 | F18: 0 | G18: 34208000 | H18: 0 | I18: 0 | J18: 0 | K18: 0 | L18: 0 | M18: 0 | N18: 0 | O18: 0 | P18: 0 | R18: 34208000
A19: ='A4-FinPerf RE'!A20 -> Other revenue | C19: 0 | D19: 19478844 | E19: 0 | F19: 29906934 | G19: 15356000 | H19: =68977413+4000000+36680000 -> 109657413 | I19: =76563126+1421000+20000000+30000000+11430000 -> 139414126 | J19: 0 | K19: 0 | L19: =88741000+20000000 -> 108741000 | M19: 813149000 | N19: 170125789 | O19: 245789000 | P19: 187987400 | R19: =SUM(C19:Q19) -> 1839605506
A20: ='A4-FinPerf RE'!A19 -> Transfers recognised - operational | C20: 25500000 | D20: 0 | E20: 0 | F20: 0 | G20: 0 | H20: 35412000 | I20: 15400000 | J20: 0 | K20: 58970000 | L20: 62200000 | M20: =655878000+5304000 -> 661182000 | N20: 0 | O20: 143254123 | P20: 0 | R20: 1001918123
A21: ='A4-FinPerf RE'!A21 -> Gains on disposal of PPE | C21: 0 | D21: 0 | E21: 0 | F21: 0 | G21: 0 | H21: 0 | I21: 0 | J21: 0 | K21: 0 | L21: 0 | M21: 4500000 | N21: 0 | O21: 0 | P21: 0 | R21: 4500000
A22: ='A4-FinPerf RE'!A22 -> Total Revenue (excluding capital transfers and contributions) | C22: =SUM(C5:C21) -> 25500000 | D22: 60928886 | E22: =SUM(E5:E21) -> 3339334528 | F22: 148959899 | G22: 144900021 | H22: 148187200 | I22: 156558601 | J22: 12338000 | K22: 58970000 | L22: 623214668 | M22: 1527520798 | N22: 6237231789 | O22: 806086123 | P22: 1848887400 | Q22: 0 | R22: 15138617913
A24: ='A4-FinPerf RE'!A24 -> Expenditure By Type
A25: ='A4-FinPerf RE'!A25 -> Employee related costs | C25: 51607105 | D25: 330833452 | E25: 180332338 | F25: 304460000 | G25: 697413000 | H25: 220869584 | I25: 211563000 | J25: 88745000 | K25: 269780000 | L25: 384154000 | M25: 346658444 | N25: 423361456 | O25: 230189123 | P25: 308520000 | R25: =SUM(C25:Q25) -> 4048486502
A26: ='A4-FinPerf RE'!A26 -> Remuneration of councillors | C26: 56588859 | D26: 757629 | E26: 757629 | F26: 757629 | G26: 757629 | H26: 757629 | I26: 757629 | J26: 757629 | K26: 757629 | L26: 757629 | M26: 757629 | N26: 757629 | O26: 758000 | P26: 757629 | R26: =SUM(C26:Q26) -> 66438407
A27: ='A4-FinPerf RE'!A27 -> Debt impairment | C27: 0 | D27: 0 | E27: 999999 | F27: 206587683 | G27: 0 | H27: 0 | I27: 13356498 | J27: 190771 | K27: 999999 | L27: 0 | M27: 999999 | N27: 109252000 | O27: 15478000 | P27: 84522000 | R27: 432386949
A28: ='A4-FinPerf RE'!A28 -> Depreciation & asset impairment | C28: 4941830 | D28: 84339819 | E28: 9495741 | F28: 96112116 | G28: 50863492 | H28: 28585972 | I28: 60956029 | J28: 97900000 | K28: 12659393 | L28: 31013095 | M28: 174180000 | N28: 127031000 | O28: 45623120 | P28: 88630000 | R28: 912331607
A29: ='A4-FinPerf RE'!A29 -> Finance charges | C29: 2150856 | D29: 18480527 | E29: 167206227 | F29: 163878 | G29: 10603576 | H29: 1491514 | I29: 34335180 | J29: 12034120 | K29: 4630538 | L29: 20764697 | M29: 89520000 | N29: 219599000 | O29: 32852000 | P29: 101785125 | R29: 715617238
A30: ='A4-FinPerf RE'!A30 -> Bulk purchases | C30: 0 | D30: 0 | E30: 0 | F30: 0 | G30: 0 | H30: 0 | I30: 0 | J30: 0 | K30: 0 | L30: 0 | M30: 0 | N30: 3638409874 | O30: 0 | P30: 437921973.6 | R30: 4076331847
A31: ='A4-FinPerf RE'!A31 -> Other materials | C31: 0 | D31: 20000000 | E31: 0 | F31: 2424000 | G31: 4744000 | H31: 9323000 | I31: 0 | J31: 20011000 | K31: 684000 | L31: 214696000 | M31: 189745123 | N31: 449780000 | O31: 26451000 | P31: 59385000 | R31: 997243123
A32: ='A4-FinPerf RE'!A32 -> Contracted services | C32: 0 | D32: 49644000 | E32: 0 | F32: 92203000 | G32: 49789000 | H32: 19784100 | I32: 12611000 | J32: 1604000 | K32: 32473000 | L32: 378452123 | M32: 296098000 | N32: 58331000 | O32: 4312000 | P32: 15688000 | R32: 1010989223
A33: ='A4-FinPerf RE'!A33 -> Transfers and grants | C33: 0 | D33: 0 | E33: 0 | F33: 0 | G33: 0 | H33: 0 | I33: 0 | J33: 0 | K33: 0 | L33: 34570000 | M33: 0 | N33: 78580000 | O33: 12583000 | P33: 300168000 | R33: 425901000
A34: ='A4-FinPerf RE'!A34 -> Other expenditure | C34: 220919000 | D34: =428145000+68000000 -> 496145000 | E34: 145487000 | F34: 98745120 | G34: 44712400 | H34: 32458700 | I34: 24563000 | J34: 26510120 | K34: 23341000 | L34: 290855123 | M34: 156821232 | N34: 300935000 | O34: 36163000 | P34: 96542000 | R34: 1994197695
A35: ='A4-FinPerf RE'!A35 -> Loss on disposal of PPE | R35: 0
A36: Total Expenditure | C36: =SUM(C25:C35) -> 336207650 | D36: 1000200427 | E36: 504278934 | F36: 801453426 | G36: 858883097 | H36: 313270499 | I36: 358142336 | J36: 247752640 | K36: 345325559 | L36: 1355262667 | M36: 1254780427 | N36: 5406036959 | O36: 404409243 | P36: 1493919728 | Q36: 0 | R36: 1.467992359e+10
A38: ='A4-FinPerf RE'!A38 -> Surplus/(Deficit) | C38: =C22-C36 -> -310707650 | D38: -939271541 | E38: 2835055594 | F38: -652493527 | G38: -713983076 | H38: -165083299 | I38: =I22-I36 -> -201583735 | J38: -235414640 | K38: -286355559 | L38: -732047999 | M38: 272740371 | N38: 831194830.4 | O38: 401676880 | P38: 354967672.4 | Q38: 0 | R38: =R22-R36 -> 458694321.8
A39: ='A4-FinPerf RE'!A39 -> Transfers recognised - capital | C39: 0 | D39: 50000 | E39: 69021000 | F39: 0 | G39: 15000 | H39: 0 | I39: 8082000 | J39: 0 | K39: 0 | L39: 20506000 | M39: =486601000-56261000 -> 430340000 | N39: 88224000 | O39: =289085000+52000 -> 289137000 | P39: 135676000 | R39: =SUM(C39:Q39) -> 1041051000
A40: ='A4-FinPerf RE'!A40 -> Contributions recognised - capital | C40: 0 | D40: 0 | E40: 0 | F40: 0 | G40: 0 | H40: 0 | I40: 0 | J40: 0 | K40: 0 | L40: 0 | M40: 56260692 | N40: 0 | O40: 0 | P40: 0 | R40: =SUM(C40:Q40) -> 56260692
A41: ='A4-FinPerf RE'!A41 -> Contributed assets | C41: 0 | D41: 0 | E41: 0 | F41: 0 | G41: 0 | H41: 0 | I41: 0 | J41: 0 | K41: 0 | L41: 0 | M41: 0 | N41: 0 | O41: 0 | P41: 0 | R41: =SUM(C41:Q41) -> 0
A42: ='A4-FinPerf RE'!A42 -> Surplus/(Deficit) after capital transfers & contributions | C42: =SUM(C38:C41) -> -310707650 | D42: -939221541 | E42: 2904076594 | F42: -652493527 | G42: -713968076 | H42: -165083299 | I42: -193501735 | J42: -235414640 | K42: -286355559 | L42: -711541999 | M42: 759341063 | N42: 919418830.4 | O42: 690813880 | P42: 490643672.4 | Q42: =SUM(Q38:Q41) -> 0 | R42: =SUM(R38:R41) -> 1556006014
A43: =head27a -> References
A44: 1. Departmental columns to be based on municipal organisation structure
A45: check balance | R45: ='A4-FinPerf RE'!L46-'SA2'!R42 -> 267353772

Sheet SA3
A1: =muni&" - "&TableA3 -> GT485 Batho Pele City - Supporting Table SA3 Supportinging detail to 'Budgeted Financial Position'
A2: =desc -> Description | B2: =head27 -> Ref | C2: =head1b -> 2007/8 | D2: =head1A -> 2008/9 | E2: =Head1 -> 2009/10 | F2: =Head2 -> Current Year 2010/11 | J2: =Head3 -> 2011/12 Medium Term Revenue & Expenditure Framework
C3: =Head5 -> Audited Outcome | D3: =Head5 -> Audited Outcome | E3: =Head5 -> Audited Outcome | F3: =Head6 -> Original Budget | G3: =Head7 -> Adjusted Budget | H3: =Head8 -> Full Year Forecast | I3: =Head5b -> Pre-audit outcome | J3: =Head9 -> Budget Year 2011/12 | K3: =Head10 -> Budget Year +1 2012/13 | L3: =Head11 -> Budget Year +2 2013/14
A4: R thousand
A5: ASSETS
A6: ='A6-FinPos'!A7 -> Call investment deposits
A7: Call deposits < 90 days | C7: 451350000 | D7: 104631000 | E7: 66159000 | F7: 287038455.5 | G7: =200150000+5958000+238379000 -> 444487000 | H7: 444487000 | J7: =665833000-276513000 -> 389320000 | K7: =695456000-217303000 -> 478153000 | L7: 728153000
A8: Other current investments > 90 days | C8: 0 | D8: 0 | E8: 0 | F8: 0 | G8: 0 | H8: 0 | I8: 0 | J8: 0 | K8: 0 | L8: 0
A9: ="Total "&A6 -> Total Call investment deposits | B9: 2 | C9: =SUM(C7:C8) -> 451350000 | D9: =SUM(D7:D8) -> 104631000 | E9: 66159000 | F9: 287038455.5 | G9: 444487000 | H9: 444487000 | I9: 0 | J9: 389320000 | K9: 478153000 | L9: 728153000
A11: ='A6-FinPos'!A8 -> Consumer debtors
A12: =A11 -> Consumer debtors | C12: 2925944653 | D12: 3307346377 | E12: 3760217160 | F12: 3788196000 | G12: 4201691325 | H12: 4201691325 | I12: 0 | J12: 4354541000 | K12: 4572268000 | L12: 4850881000
A13: Less: Provision for debt impairment | C13: =-C20 -> -1024162256 | D13: -1162204955 | E13: -1290568852 | F13: -1184689664 | G13: -1281419023 | H13: -1281419023 | I13: 0 | J13: =-J20 -> -1344995977 | K13: =-K20 -> -1389297677 | L13: =-L20 -> -1490790677
A14: ="Total "&A11 -> Total Consumer debtors | B14: 2 | C14: =SUM(C12:C13) -> 1901782397 | D14: =SUM(D12:D13) -> 2145141422 | E14: 2469648308 | F14: =SUM(F12:F13) -> 2603506336 | G14: 2920272302 | H14: 2920272302 | I14: 0 | J14: 3009545023 | K14: 3182970323 | L14: 3360090323
A16: Debt impairment provision
A17: Balance at the beginning of the year | C17: 830673256 | D17: 881557955 | E17: 914443852 | F17: 1046217664 | G17: 1102727977 | H17: 1102727977 | I17: 0 | J17: 1212608977 | K17: 1255847677 | L17: 1330847677
A18: Contributions to the provision | C18: 193489000 | D18: 280647000 | E18: 376125000 | F18: 138472000 | G18: 351601000 | H18: 351601000 | I18: 0 | J18: 482387000 | K18: 533450000 | L18: 609943000
A19: Bad debts written off | C19: 0 | D19: 0 | E19: 0 | F19: 0 | G19: -172909954 | H19: -172909954 | I19: 0 | J19: =-350000000 -> -350000000 | K19: -400000000 | L19: -450000000
A20: Balance at end of year | C20: =SUM(C17:C19) -> 1024162256 | D20: =SUM(D17:D19) -> 1162204955 | E20: 1290568852 | F20: 1184689664 | G20: 1281419023 | H20: 1281419023 | I20: 0 | J20: 1344995977 | K20: 1389297677 | L20: 1490790677
A22: ='A6-FinPos'!A19&" (PPE)" -> Property, plant and equipment (PPE)
A23: PPE at cost/valuation (excl. finance leases) | C23: =10783728691+1120605000 -> 11904333691 | D23: =13304091515+16858000 -> 13320949515 | E23: =16691120643-74097000 -> 16617023643 | F23: =20163259008-413179000 -> 19750080008 | G23: =19773475037-933642000 -> 18839833037 | H23: =18839833037 -> 18839833037 | I23: 0 | J23: =21342800000+383582000 -> 21726382000 | K23: =23742500000+953319000 -> 24695819000 | L23: =26342200000+1428822000 -> 27771022000
A24: Leases recognised as PPE | B24: 3 | C24: 203197558 | D24: 247780561 | E24: 257123363 | F24: 251314709.4 | G24: 407487455.6 | H24: 407487455.6 | I24: 0 | J24: 423786953.8 | K24: 440738431.9 | L24: 458367969.2
A25: Less: Accumulated depreciation | C25: 2969230781 | D25: 3544137432 | E25: 4051143221 | F25: 4835068738 | G25: 4774174145 | H25: 4774174145 | J25: 5559963145 | K25: 6402855145 | L25: 7387319145
A26: ="Total "&A22 -> Total Property, plant and equipment (PPE) | B26: 2 | C26: =SUM(C23:C24)-C25 -> 9138300468 | D26: =SUM(D23:D24)-D25 -> 10024592644 | E26: 12823003785 | F26: 1.516632598e+10 | G26: 1.447314635e+10 | H26: 1.447314635e+10 | I26: 0 | J26: 1.659020581e+10 | K26: 1.873370229e+10 | L26: 2.084207082e+10
A28: LIABILITIES
A29: ='A6-FinPos'!A28&" - "&'A6-FinPos'!A30 -> Current liabilities - Borrowing
A30: Short term loans (other than bank overdraft) | C30: 0 | D30: 0 | E30: 0 | F30: 0 | G30: 0 | H30: 0 | I30: 0 | J30: 0 | K30: 0 | L30: 0
A31: Current portion of long-term liabilities | C31: 204827000 | D31: 346522000 | E31: 285390000 | F31: 392520000 | G31: 392520000 | H31: 392520000 | J31: 706348000 | K31: 792800000 | L31: 845810000
A32: ="Total "&A29 -> Total Current liabilities - Borrowing | C32: =SUM(C30:C31) -> 204827000 | D32: =SUM(D30:D31) -> 346522000 | E32: 285390000 | F32: 392520000 | G32: 392520000 | H32: 392520000 | I32: 0 | J32: 706348000 | K32: 792800000 | L32: 845810000
A34: ='A6-FinPos'!A32 -> Trade and other payables
A35: Trade and other creditors | C35: 1830232854 | D35: 1755705926 | E35: 2642490386 | F35: 2409566094 | G35: 2656933299 | H35: 2656933299 | I35: 0 | J35: 3227144000 | K35: 3620855500 | L35: 3946733000
A36: Unspent conditional transfers | C36: 210990931 | D36: 328760232 | E36: 420555629 | F36: 407786572 | G36: 407786572 | H36: 407786572 | I36: 0 | J36: 0 | K36: 0 | L36: 0
A37: VAT | C37: 58214444 | D37: 104380809 | E37: 164585154 | F37: 204383010 | G37: 204383010 | H37: 204383010 | I37: 0 | J37: 260689000 | K37: 308189000 | L37: 357202000
A38: ="Total "&A34 -> Total Trade and other payables | B38: 2 | C38: =SUM(C35:C37) -> 2099438229 | D38: 2188846967 | E38: 3227631169 | F38: 3021735676 | G38: 3269102881 | H38: 3269102881 | I38: 0 | J38: 3487833000 | K38: 3929044500 | L38: =SUM(L35:L37) -> 4303935000
A40: ='A6-FinPos'!A36&" - "&'A6-FinPos'!A37 -> Non current liabilities - Borrowing
A41: Borrowing | B41: 4 | C41: 2602026465 | D41: =2705771524-151296000 -> 2554475524 | E41: =4203274984-315341000 -> 3887933984 | F41: =4704061365-467735000 -> 4236326365 | G41: =4861755000-311343000 -> 4550412000 | H41: 4550412000 | I41: 0 | J41: =5155407000-314989000 -> 4840418000 | K41: =5349059000-305233000 -> 5043826000 | L41: =5442711000-248638000 -> 5194073000
A42: Finance leases (including PPP asset element) | C42: 110119278 | D42: 107048837 | E42: 95143635 | F42: 154231408 | G42: 91146420.75 | H42: 91146420.75 | I42: 0 | J42: 94792277.58 | K42: 98583968.68 | L42: 102527327.4
A43: ="Total "&A40 -> Total Non current liabilities - Borrowing | C43: =SUM(C41:C42) -> 2712145743 | D43: =SUM(D41:D42) -> 2661524361 | E43: 3983077619 | F43: 4390557773 | G43: 4641558421 | H43: 4641558421 | I43: 0 | J43: 4935210278 | K43: 5142409969 | L43: 5296600327
A45: ='A6-FinPos'!A38&" - non-current" -> Provisions - non-current
A46: Retirement benefits | C46: 0 | D46: 838893000 | E46: 1004196000 | F46: 1050699000 | G46: 1104283000 | H46: 1104283000 | I46: 0 | J46: 1170539980 | K46: 1240772379 | L46: 1315218722
A47: List other major provision items
A48: Rehabilitation of Landfill Sites | C48: 0 | D48: 63360000 | E48: 174511962 | F48: 215000000 | G48: 224178168.2 | H48: 224178168.2 | I48: 0 | J48: 276824346.9 | K48: 332629296.2 | L48: 391782542.5
A49: Rehabilitation of Quarries and Cleaning of Alien Vegetation | C49: 0 | D49: 23851449 | E49: 30472571 | F49: 6327945 | G49: 35156939.64 | H49: 35156939.64 | I49: 0 | J49: 39533108.2 | K49: 44508813.51 | L49: 49469576.72
A50: ="Total "&A45 -> Total Provisions - non-current | C50: =SUM(C46:C49) -> 0 | D50: 926104449 | E50: 1209180533 | F50: 1272026945 | G50: 1363618108 | H50: 1363618108 | I50: 0 | J50: 1486897435 | K50: 1617910489 | L50: 1756470841
A52: CHANGES IN NET ASSETS | D52: =D48+D49 -> 87211449 | E52: =E48+E49 -> 204984533 | F52: =F48+F49 -> 221327945 | G52: =G48+G49 -> 259335107.9 | H52: =H48+H49 -> 259335107.9 | J52: =J48+J49 -> 316357455.1 | K52: =K48+K49 -> 377138109.7 | L52: =L48+L49 -> 441252119.2
A53: ='A6-FinPos'!A45 -> Accumulated Surplus/(Deficit)
A54: =A53&" - opening balance" -> Accumulated Surplus/(Deficit) - opening balance | C54: =524027798+300000000+544300000-61322000+8191000+100000 -> 1315296798 | D54: =351508000+58711000+10844000 -> 421063000 | E54: =398705120+68626000+325174000-137252000 -> 655253120 | F54: =1108782000+456315000-123776000 -> 1441321000 | G54: =1017424824-519167000+484075000 -> 982332824 | H54: 982332824 | I54: 0 | J54: =2692565565-512717000-330222000 -> 1849626565 | K54: =4457266665-307113000-504028000 -> 3646125665 | L54: =6146534757-439645000-171774000-699999000 -> 4835116757
A55: GRAP adjustments | C55: 0 | D55: -36239000 | E55: =-9102000 -> -9102000 | F55: 0 | G55: 0 | H55: 0 | I55: 0 | J55: 0 | K55: 0 | L55: 0
A56: Restated balance | C56: =SUM(C54:C55) -> 1315296798 | D56: =SUM(D54:D55) -> 384824000 | E56: =SUM(E54:E55) -> 646151120 | F56: =SUM(F54:F55) -> 1441321000 | G56: 982332824 | H56: 982332824 | I56: 0 | J56: 1849626565 | K56: 3646125665 | L56: 4835116757
A57: ='A4-FinPerf RE'!A38 -> Surplus/(Deficit) | C57: ='A4-FinPerf RE'!C46 -> 389577925.6 | D57: ='A4-FinPerf RE'!D46 -> 382481843.7 | E57: ='A4-FinPerf RE'!E46 -> 955273768.1 | F57: ='A4-FinPerf RE'!F46 -> 2026240494 | G57: ='A4-FinPerf RE'!G46 -> 1582291595 | H57: ='A4-FinPerf RE'!H46 -> 1582291595 | I57: ='A4-FinPerf RE'!I46 -> 0 | J57: ='A4-FinPerf RE'!J46 -> 1556006046 | K57: ='A4-FinPerf RE'!K46 -> 1723939075 | L57: ='A4-FinPerf RE'!L46 -> 1823359786
A58: Appropriations to Reserves | C58: -237803040 | D58: -184720548 | E58: -177593327 | F58: =-692456000 -> -692456000 | G58: =-1002564000 -> -1002564000 | H58: -1002564000 | I58: 0 | K58: =-827476000 -> -827476000 | L58: =-917108000 -> -917108000
A59: Transfers from Reserves | C59: 72229152 | D59: -151081000 | E59: 38334949 | F59: 14552631.45 | G59: 0 | H59: 0 | I59: 0 | J59: 270773000 | K59: 0 | L59: 0
A60: Depreciation offsets | C60: 397171559 | D60: =395991454 -> 395991454 | E60: 222767014 | F60: 833263000 | G60: 273344440 | H60: 273344440 | I60: 0 | J60: 326345480 | K60: 369852400 | L60: 428918040
A61: Other adjustments | C61: -284259508 | D61: -369986002 | E61: -646016646 | F61: =-1060165000+243186000 -> -816979000 | G61: 0 | H61: 0 | I61: 0 | J61: 0 | K61: 0 | L61: 0
A62: Accumulated Surplus/(Deficit) | B62: 1 | C62: =SUM(C56:C61) -> 1652212887 | D62: =SUM(D56:D61) -> 457509747.7 | E62: =SUM(E56:E61) -> 1038916878 | F62: 2805942125 | G62: 1835404859 | H62: 1835404859 | I62: 0 | J62: 4002751091 | K62: 4912441140 | L62: 6170286583
A63: Reserves
A64: Housing Development Fund | C64: 141152353 | D64: 128919887 | E64: 128849720 | F64: 128920000 | G64: 128849720 | H64: 128849720 | I64: 0 | J64: 128849720 | K64: 128849720 | L64: 128849720
A65: Capital replacement | C65: 501152806 | D65: 307157479 | E65: 219591247 | F65: 1006840500 | G65: 352172726.4 | H65: 352172726.4 | I65: 0 | J65: 226084000 | K65: 229475000 | L65: 232917000
A66: Capitalisation | C66: 2008028104 | D66: 2239732907 | E66: 2220940742 | F66: 1383599000 | G66: 2123426985 | H66: 2123426985 | I66: 0 | J66: 1665000000 | K66: 1705000000 | L66: 1747635000
A67: Government grant | C67: 3506835333 | D67: 3803343643 | E67: 4360651367 | F67: 5100365000 | G67: 5322258500 | H67: 5322258500 | I67: 0 | J67: 5528765000 | K67: 6219860000 | L67: 6997342000
A68: Donations and public contributions | C68: 0 | D68: 0 | E68: 138621637 | F68: 155200000 | G68: 155200000 | H68: 155200000 | I68: 0 | J68: 270000000 | K68: 330000000 | L68: 390000000
A69: Self-insurance | C69: 65637380 | D69: 228950846 | E69: 190945799 | F69: 170000000 | G69: 170000000 | H69: 170000000 | I69: 0 | J69: 150000000 | K69: 170000000 | L69: 190000000
A70: COID and Self Insurance Reserve | C70: 63027450 | D70: 69161916 | E70: 77229104 | F70: 84361000 | G70: 87485622.52 | H70: 87485622.52 | I70: 0 | J70: 99922000 | K70: 112912000 | L70: 126461000
A71: Revaluation | C71: 0 | D71: 0 | E71: 0 | F71: 0 | G71: 0 | H71: 0 | I71: 0 | J71: 0 | K71: 0 | L71: 0
A72: Total Reserves | B72: 2 | C72: =SUM(C64:C71) -> 6285833426 | D72: 6777266678 | E72: 7336829616 | F72: 8029285500 | G72: 8339393554 | H72: 8339393554 | I72: 0 | J72: 8068620720 | K72: 8896096720 | L72: 9813204720
A73: ='A6-FinPos'!A48 -> TOTAL COMMUNITY WEALTH/EQUITY | B73: 2 | C73: =C62+C72 -> 7938046313 | D73: 7234776426 | E73: 8375746494 | F73: 1.083522763e+10 | G73: 1.017479841e+10 | H73: 1.017479841e+10 | I73: 0 | J73: 1.207137181e+10 | K73: 1.380853786e+10 | L73: 1.59834913e+10
A75: Total capital expenditure includes expenditure on nationally significant priorities:
I76: 0
A79: =head27a -> References
A80: ="1. Must reconcile with "&'Template names'!F103 -> 1. Must reconcile with Table A4 Budgeted Financial Performance (revenue and expenditure)
A81: ="2. Must reconcile with "&'Template names'!F105 -> 2. Must reconcile with Table A6 Budgeted Financial Position
A82: 3. Leases treated as assets to be depreciated as the same as purchased/constructed assets. Includes PPP asset element accounted for as finance leases
A83: 4. Borrowing must reconcile to Table A17
A84: check | C84: =C73-'A6-FinPos'!C48 -> 0 | D84: =D73-'A6-FinPos'!D48 -> 0 | E84: =E73-'A6-FinPos'!E48 -> 0 | F84: =F73-'A6-FinPos'!F48 -> 0 | G84: =G73-'A6-FinPos'!G48 -> 0 | H84: =H73-'A6-FinPos'!H48 -> 0 | I84: =I73-'A6-FinPos'!I48 -> 0 | J84: =J73-'A6-FinPos'!J48 -> 0 | K84: =K73-'A6-FinPos'!K48 -> 0 | L84: =L73-'A6-FinPos'!L48 -> 0
C85: =TREND(D85:H85) -> 0 | D85: =TREND(E85:H85) -> 0 | E85: =E76 -> 0 | F85: =H76 -> 0 | G85: =J76 -> 0 | H85: =K76 -> 0 | I85: =L76 -> 0
C86: 1713535532 | D86: 364925259 | E86: 792201803 | F86: 2400095318 | G86: 1363893256 | H86: 1363893256 | J86: 4400973415 | K86: 5485767994 | L86: 7132059919
C87: =C86-C62 -> 61322645.37 | D87: =D86-D62 -> -92584488.7 | E87: -246715075.1 | F87: -405846807.3 | G87: -471511602.7 | H87: -471511602.7 | I87: 0 | J87: 398222323.6 | K87: 573326854.4 | L87: 961773336.5

Sheet SA4
A1: =muni&" - "&TableA4 -> GT485 Batho Pele City - Supporting Table SA4 Reconciliation of IDP strategic objectives and budget (revenue)
A2: Strategic Objective | B2: Goal | C2: =head27 -> Ref | D2: =head1b -> 2007/8 | E2: =head1A -> 2008/9 | F2: =Head1 -> 2009/10 | G2: =Head2 -> Current Year 2010/11 | J2: =Head3 -> 2011/12 Medium Term Revenue & Expenditure Framework
A3: R thousand | D3: =Head5 -> Audited Outcome | E3: =Head5 -> Audited Outcome | F3: =Head5 -> Audited Outcome | G3: =Head6 -> Original Budget | H3: =Head7 -> Adjusted Budget | I3: =Head8 -> Full Year Forecast | J3: =Head9 -> Budget Year 2011/12 | K3: =Head10 -> Budget Year +1 2012/13 | L3: =Head11 -> Budget Year +2 2013/14
A4: Provide quality basic services and infrastructure | B4: Provision of electricity; water; sanitation; waste removal; housing; roads and storm water; public transport; city planning services; and maintaining the infrastructure of the City. | D4: =4794194206+7963000-398844000 -> 4403313206 | E4: =5747840523-283753000-452995000 -> 5011092523 | F4: =7050624394-218428000-801878000 -> 6030318394 | G4: =8404754691-159750000-1427907000 -> 6817097691 | H4: =8635396378-173363000-988955000 -> 7473078378 | I4: 7473078378 | J4: =9267885124+583669000-1097312000 -> 8754242124 | K4: =10688041109+542190000-1164763000 -> 10065468109 | L4: =12336811820+572144000-1300265000 -> 11608690820
A5: Economic growth and development that leads to sustainable job creation | B5: Ensuring there is a clear structural plan for the City; ensuring planning processes function in accordance with set timeframes and facilitating the use of labour intensive approaches in the delivery of services and the building of infrastructure. | D5: 179620282.8 | E5: 214046365 | F5: 250136350 | G5: 289187102 | H5: 309396572 | I5: 309396572 | J5: 406333149 | K5: =324117308+100000000 -> 424117308 | L5: =342836925+120000000 -> 462836925
A6: Fight poverty and build clean, healthy, safe sustainable communities as well as ensure integrated social services for empowered and sustainable communities | B6: Effective implementation of the Indigent Policy; working with the provincial department of health to provide primary health care services; extending waste removal services and ensuring effective city cleansing; ensuring all waste water treatment works are operating optimally; working with strategic partners such as SAPS to address crime; ensuring save working environments by effective enforcement of building and health regulations; promote viable, sustainable communities through proper zoning; and promote environmental sustainability by protecting wetlands and key open spaces. | D6: 264988482.3 | E6: 437350360 | F6: 357293656 | G6: 487094752 | H6: 457647402 | I6: 457647402 | J6: 560580210 | K6: =327993916+280000000 -> 607993916 | L6: =348937338+290000000 -> 638937338
A7: Foster Participatory democracy and Batho Pele through caring, accessible and accountable service | B7: Optimising effective community participation in the ward committee system; and the implementation Batho Pele in the revenue management strategy | D7: 26119463.75 | E7: 26586102 | F7: 40689683 | G7: 33503911 | H7: 33986846 | I7: 33986846 | J7: 37687019 | K7: 40743615 | L7: 42994013
A8: Promote sound governance, financial sustainability and optimal institutional transformation | B8: Publishing the outcomes of all tender processes on the municipal website; reviewing the use of contracted services; continuing to implement the infrastructure renewal strategy and the repairs and maintenance plan; and review of the organizational structure to optimize the use of personnel | D8: 3285204768 | E8: 3862248831 | F8: 4176381779 | G8: 5557567246 | H8: 4837317128 | I8: 4837317128 | J8: 5379775213 | K8: =5609411122+350000000 -> 5959411122 | L8: =6182822341+400000000 -> 6582822341
A9: ='A4-FinPerf RE'!A22 -> Total Revenue (excluding capital transfers and contributions) | C9: 1 | D9: =SUM(D4:D8) -> 8159246202 | E9: 9551324181 | F9: 10854819862 | G9: 1.31844507e+10 | H9: 1.311142633e+10 | I9: 1.311142633e+10 | J9: 15138617715 | K9: 17097734070 | L9: 19336281437
A10: =head27a -> References
A11: ="1. Total revenue must reconcile to "&'Template names'!F103 -> 1. Total revenue must reconcile to Table A4 Budgeted Financial Performance (revenue and expenditure)
A12: check op revenue balance | D12: =D9-'A4-FinPerf RE'!C60 -> -398843861.5 | E12: =E9-'A4-FinPerf RE'!D60 -> -452994741 | F12: =F9-'A4-FinPerf RE'!E60 -> -801878284 | G12: =G9-'A4-FinPerf RE'!F60 -> -1427906620 | H12: =H9-'A4-FinPerf RE'!G60 -> -988955004.3 | I12: =I9-'A4-FinPerf RE'!H60 -> -988955004.3 | J12: =J9-'A4-FinPerf RE'!J60 -> -1097311942 | K12: =K9-'A4-FinPerf RE'!K60 -> -1164762737 | L12: =L9-'A4-FinPerf RE'!L60 -> -1300264910

Sheet SA5
A1: =muni&" - "&TableA5 -> GT485 Batho Pele City - Supporting Table SA5 Reconciliation of IDP strategic objectives and budget (operating expenditure)
A2: Strategic Objective | B2: Goal | C2: =head27 -> Ref | D2: =head1b -> 2007/8 | E2: =head1A -> 2008/9 | F2: =Head1 -> 2009/10 | G2: =Head2 -> Current Year 2010/11 | J2: =Head3 -> 2011/12 Medium Term Revenue & Expenditure Framework
A3: R thousand | D3: =Head5 -> Audited Outcome | E3: =Head5 -> Audited Outcome | F3: =Head5 -> Audited Outcome | G3: =Head6 -> Original Budget | H3: =Head7 -> Adjusted Budget | I3: =Head8 -> Full Year Forecast | J3: =Head9 -> Budget Year 2011/12 | K3: =Head10 -> Budget Year +1 2012/13 | L3: =Head11 -> Budget Year +2 2013/14
A4: Provide quality basic services and infrastructure | B4: Provision of electricity; water; sanitation; waste removal; housing; roads and storm water; public transport; city planning services; and maintaining the infrastructure of the City. | D4: =4434004091-128337000+8291000 -> 4313958091 | E4: =4935471374+11585000 -> 4947056374 | F4: =6080943278-226994000+9833000 -> 5863782278 | G4: =7093229019-376806000+13564000 -> 6729987019 | H4: =7184972972-339952000+12564000 -> 6857584972 | I4: 6857584972 | J4: =8762552887-219797000+68001000 -> 8610756887 | K4: =10169725004-180968000+69299000 -> 10058056004 | L4: =11849105351-58888000+90000000 -> 11880217351
A5: Economic growth and development that leads to sustainable job creation | B5: Ensuring there is a clear structural plan for the City; ensuring planning processes function in accordance with set timeframes and facilitating the use of labour intensive approaches in the delivery of services and the building of infrastructure. | D5: 549112344.5 | E5: 622731903 | F5: 738419243 | G5: 844036329.2 | H5: 827677064.1 | I5: 827677064.1 | J5: 1012059271 | K5: 1083746901 | L5: 1161275830
A6: Fight poverty and build clean, healthy, safe sustainable communities as well as ensure integrated social services for empowered and sustainable communities | B6: Effective implementation of the Indigent Policy; working with the provincial department of health to provide primary health care services; extending waste removal services and ensuring effective city cleansing; ensuring all waste water treatment works are operating optimally; working with strategic partners such as SAPS to address crime; ensuring save working environments by effective enforcement of building and health regulations; promote viable, sustainable communities through proper zoning; and promote environmental sustainability by protecting wetlands and key open spaces. | D6: 1264035028 | E6: 1451408792 | F6: 1639978110 | G6: 1804440309 | H6: 1735226777 | I6: 1735226777 | J6: 1952641115 | K6: 2091538089 | L6: 2238222335
A7: Foster Participatory democracy and Batho Pele through caring, accessible and accountable service | B7: Optimising effective community participation in the ward committee system; and the implementation Batho Pele in the revenue management strategy | D7: 633637479.5 | E7: 717234088 | F7: 795852491 | G7: 1047070997 | H7: 1008829751 | I7: 1008829751 | J7: 1146598544 | K7: 1227240415 | L7: 1313144478
A8: Promote sound governance, financial sustainability and optimal institutional transformation | B8: Publishing the outcomes of all tender processes on the municipal website; reviewing the use of contracted services; continuing to implement the infrastructure renewal strategy and the repairs and maintenance plan; and review of the organizational structure to optimize the use of personnel | D8: 1407768619 | E8: =2121881757-238476000 -> 1883405757 | F8: 1663391704 | G8: =2710582277-550000000 -> 2160582277 | H8: 2088771472 | I8: 2088771472 | J8: 1957868453 | K8: 2077976495 | L8: 2220326599
C9: 1 | D9: =SUM(D4:D8) -> 8168511562 | E9: 9621836914 | F9: 10701423826 | G9: 1.258611693e+10 | H9: 1.251809004e+10 | I9: 1.251809004e+10 | J9: 1.467992427e+10 | K9: 1.65385579e+10 | L9: 1.881318659e+10
A10: =head27a -> References
A11: ="1. Total expenditure must reconcile to "&'Template names'!F103 -> 1. Total expenditure must reconcile to Table A4 Budgeted Financial Performance (revenue and expenditure)
A12: check op expenditure balance | D12: =D9-'A4-FinPerf RE'!C36 -> -576.163661 | E12: =E9-'A4-FinPerf RE'!D36 -> -164.3027706 | F12: =F9-'A4-FinPerf RE'!E36 -> -551.9225025 | G12: =G9-'A4-FinPerf RE'!F36 -> 102.9929981 | H12: =H9-'A4-FinPerf RE'!G36 -> 300.3219986 | I12: =I9-'A4-FinPerf RE'!H36 -> 300.3219986 | J12: =J9-'A4-FinPerf RE'!J36 -> 658.6057949 | K12: =K9-'A4-FinPerf RE'!K36 -> 172.2523727 | L12: =L9-'A4-FinPerf RE'!L36 -> 30.6867218

Sheet SA6
A1: =muni&" - "&TableA6 -> GT485 Batho Pele City - Supporting Table SA6 Reconciliation of IDP strategic objectives and budget (capital expenditure)
A2: Strategic Objective | B2: Goal | C2: Goal Code | D2: =head27 -> Ref | E2: =head1b -> 2007/8 | F2: =head1A -> 2008/9 | G2: =Head1 -> 2009/10 | H2: =Head2 -> Current Year 2010/11 | K2: =Head3 -> 2011/12 Medium Term Revenue & Expenditure Framework
A3: R thousand | E3: =Head5 -> Audited Outcome | F3: =Head5 -> Audited Outcome | G3: =Head5 -> Audited Outcome | H3: =Head6 -> Original Budget | I3: =Head7 -> Adjusted Budget | J3: =Head8 -> Full Year Forecast | K3: =Head9 -> Budget Year 2011/12 | L3: =Head10 -> Budget Year +1 2012/13 | M3: =Head11 -> Budget Year +2 2013/14
A4: Provide quality basic services and infrastructure | B4: Provision of electricity; water; sanitation; waste removal; housing; roads and storm water; public transport; city planning services; and maintaining the infrastructure of the City. | C4: 1 | E4: 817302898 | F4: 1222296661 | G4: 1812618200 | H4: 2519597120 | I4: 1867699445 | J4: 1867699445 | K4: 1836711047 | L4: 2251322356 | M4: 1965087573
A5: Economic growth and development that leads to sustainable job creation | B5: Ensuring there is a clear structural plan for the City; ensuring planning processes function in accordance with set timeframes and facilitating the use of labour intensive approaches in the delivery of services and the building of infrastructure. | C5: 2 | E5: 15586793 | F5: 26827841 | G5: 51579304 | H5: 49434126 | I5: 34827126 | J5: 34827126 | K5: 70454000 | L5: 129274000 | M5: 141522000
A6: Fight poverty and build clean, healthy, safe sustainable communities as well as ensure integrated social services for empowered and sustainable communities | B6: Effective implementation of the Indigent Policy; working with the provincial department of health to provide primary health care services; extending waste removal services and ensuring effective city cleansing; ensuring all waste water treatment works are operating optimally; working with strategic partners such as SAPS to address crime; ensuring save working environments by effective enforcement of building and health regulations; promote viable, sustainable communities through proper zoning; and promote environmental sustainability by protecting wetlands and key open spaces. | C6: 3.1 & 3.2 | E6: 445158923 | F6: 447604248 | G6: 722067505.5 | H6: 790028989 | I6: 685139402 | J6: 685139402 | K6: 588521697 | L6: 634836585 | M6: 692152009
A7: Foster Participatory democracy and Batho Pele through caring, accessible and accountable service | B7: Optimising effective community participation in the ward committee system; and the implementation Batho Pele in the revenue management strategy | C7: 4 | E7: 0 | F7: 0 | G7: 0 | H7: 0 | I7: 0 | J7: 0 | K7: 0 | L7: 0 | M7: 0
A8: Promote sound governance, financial sustainability and optimal institutional transformation | B8: Publishing the outcomes of all tender processes on the municipal website; reviewing the use of contracted services; continuing to implement the infrastructure renewal strategy and the repairs and maintenance plan; and review of the organizational structure to optimize the use of personnel | C8: 5.1, 5.2 & 5.3 | E8: 87795840 | F8: 61147289 | G8: 92021022.76 | H8: 118409337 | I8: 89267337 | J8: 89267337 | K8: 118762000 | L8: 120681367 | M8: 119363176
D9: 1 | E9: =SUM(E4:E8) -> 1365844454 | F9: 1757876039 | G9: 2678286032 | H9: 3477469572 | I9: 2676933310 | J9: 2676933310 | K9: 2614448744 | L9: 3136114308 | M9: 2918124758
A10: =head27a -> References
A11: 1. Total capital expenditure must reconcile to Budgeted Capital Expenditure
A12: 2. Goal code must be used on Table A36
A13: check capital balance | E13: =E9-'A5-Capex'!C40 -> 0 | F13: =F9-'A5-Capex'!D40 -> 0 | G13: =G9-'A5-Capex'!E40 -> 0 | H13: =H9-'A5-Capex'!F40 -> 0 | I13: =I9-'A5-Capex'!G40 -> 0 | J13: =J9-'A5-Capex'!H40 -> 0 | K13: =K9-'A5-Capex'!J40 -> 0 | L13: =L9-'A5-Capex'!K40 -> 0 | M13: =M9-'A5-Capex'!L40 -> 0

Sheet SA7
A1: =muni&" - "&TableA7 -> GT485 Batho Pele City - Supporting Table SA7 Measureable performance objectives
A2: Description | B2: Unit of measurement | C2: =head1b -> 2007/8 | D2: =head1A -> 2008/9 | E2: =Head1 -> 2009/10 | F2: =Head2 -> Current Year 2010/11 | I2: =Head3 -> 2011/12 Medium Term Revenue & Expenditure Framework
C3: =Head5 -> Audited Outcome | D3: =Head5 -> Audited Outcome | E3: =Head5 -> Audited Outcome | F3: =Head6 -> Original Budget | G3: =Head7 -> Adjusted Budget | H3: =Head8 -> Full Year Forecast | I3: =Head9 -> Budget Year 2011/12 | J3: =Head10 -> Budget Year +1 2012/13 | K3: =Head11 -> Budget Year +2 2013/14
A4: Public Works: Roads and Stormwater
A5: Function - Roads
A6: Sub-function - Eradication of Backlogs
A7: Reduce roads backlogs | B7: Kilometer | C7: 40.46 | D7: 71.1 | E7: 69.6 | F7: 97.5 | G7: 64.95 | H7: 64.95 | I7: 78.7 | J7: 87.1 | K7: 87.5
A8: Sub-function - Roads Maintained
A9: Surfaced roads resurfaced/rehabilitated | B9: Kilometer | C9: 586.6 | D9: 486.32 | E9: 214.08 | F9: 126 | G9: 145 | H9: 145 | I9: 122 | J9: 141 | K9: 130
A10: Sub-function - Roads for growth
A11: New roads to be contructed | B11: Kilometer | C11: 37.5 | D11: 49.7 | E11: 29.7 | F11: 16.9 | G11: 15.7 | H11: 15.7 | I11: 34.6 | J11: 29.55 | K11: 22.8
A12: Function - Stormwater
A13: Sub-function - Reduction of backlog
A14: Stormwater drainage to reduce backlogs | B14: Kilometer | C14: 74.18 | D14: 88.9 | E14: 50 | F14: 19.68 | G14: 24 | H14: 24 | I14: 86.87 | J14: 68.1 | K14: 81.66
A15: Sub-function - Stormwater for growth
A16: Stormwater drainage to stimulate growth | B16: Kilometer | C16: 34.48 | D16: 49.7 | E16: 24.1 | F16: 4.96 | G16: 10 | H16: 10 | I16: 23.8 | J16: 19.2 | K16: 16.4
A17: Public Works: Water and Sanitation
A18: Function - Water
A19: Sub-function - Eradicdation of water backlogs
A20: Households provided with a water connection | B20: Number | C20: 942 | D20: 11168 | E20: 10935 | F20: 13400 | G20: 11289 | H20: 11289 | I20: 3700 | J20: 3200 | K20: 3550
A21: New bulk water pipelines | B21: Meters | C21: 2500 | D21: 9135 | E21: 9235 | F21: 10500 | G21: 10032 | H21: 10032 | I21: 3300 | J21: 3450 | K21: 3200
A22: New internal water pipelines | B22: Meters | C22: 5762 | D22: 30024 | E22: 28913 | F22: 32500 | G22: 27892 | H22: 27892 | I22: 5500 | J22: 6400 | K22: 6200
A23: Sub-function - Maintanance of water infrastructure
A24: Upgrade & replace of bulk water pipelines | B24: Meters | C24: 2035 | D24: 10109 | E24: 12332 | F24: 14500 | G24: 13890 | H24: 13890 | I24: 5150 | J24: 42000 | K24: 17890
A25: Upgrade & replace of internal water pipelines | B25: Meters | C25: 100419 | D25: 287362 | E25: 198745 | F25: 245000 | G25: 204789 | H25: 204789 | I25: 98520 | J25: 115380 | K25: 120400
A26: Function - Sanitation
A27: Sub-function - Eradication of sanitation backlog
A28: Households provided with a sanitation connection | B28: Number | C28: 1473 | D28: 1217 | E28: 1385 | F28: 2000 | G28: 1852 | H28: 1820 | I28: 26500 | J28: 27500 | K28: 28500
A29: New bulk sewer pipelines | B29: Meters | C29: 1125 | D29: 1089 | E29: 1645 | F29: 2500 | G29: 1980 | H29: 1980 | I29: 2000 | J29: 2500 | K29: 2500
A30: New internal sewer pipelines | B30: Meters | C30: 3134 | D30: 3259 | E30: 3568 | F30: 6800 | G30: 4850 | H30: 4850 | I30: 86000 | J30: 25000 | K30: 25000
A31: Sub-function - Maintanance of sanitation infrastructure
A32: Upgrade & replace of bulk sewer pipelines | B32: Meters | C32: 8851 | D32: 6597 | E32: 6325 | F32: 7500 | G32: 6345 | H32: 6345 | I32: 15400 | J32: 16500 | K32: 17500
A33: Upgrade & replace of internal sewer pipelines | B33: Meters | C33: 18041 | D33: 47425 | E33: 46458 | F33: 54500 | G33: 52120 | H33: 52120 | I33: 95720 | J33: 115980 | K33: 121000
A34: Public Works: Energy and Electricity
A35: Function - Electricity
A36: Sub-function - Provide higher levels of electricity
A37: Houses electrified to eradicate backlogs | B37: Households | C37: 420812 | D37: 19011 | E37: 19870 | F37: 23500 | G37: 22140 | H37: 22140 | I37: 24500 | J37: 25000 | K37: 25500
A38: Sub-function - New Connections
A39: Completed and occupied houses electrified to cater for growth | B39: Households | C39: 523 | D39: 562 | E39: 602 | F39: 750 | G39: 723 | H39: 723 | I39: 600 | J39: 750 | K39: 850
A40: Sub-function - Access to alternative energy sources
A41: Areas provided with access to alternative energy sources | B41: Households | C41: 0 | D41: 70 | E41: 78 | F41: 1500 | G41: 1235 | H41: 1235 | I41: 1500 | J41: 1800 | K41: 2000
A42: Sub-function - Provide public lighting
A43: New street lights as per ward | B43: Wards | C43: 1235 | D43: 1655 | E43: 1689 | F43: 1750 | G43: 1563 | H43: 1563 | I43: 2000 | J43: 2200 | K43: 2300
A44: Sub-function - Provide public lighting
A45: High masts lights per ward | B45: Wards | C45: 13 | D45: 18 | E45: 19 | F45: 25 | G45: 23 | H45: 23 | I45: 25 | J45: 25 | K45: 25
A46: Sub-function - Maintain electricity infrastructure
A47: Electricity repairs and maintenance | B47: % Repaired | C47: 0.11 | D47: 0.105 | E47: 0.102 | F47: 0.14 | G47: 0.108 | H47: 0.108 | I47: 0.115 | J47: 0.12 | K47: 0.125
A49: And so on for the rest of the Votes
A50: 1. Include a measurable performance objective for each revenue source (within a relevant function) and each vote (MFMA s17(3)(b))
A51: 2. Include all Basic Services performance targets from 'Basic Service Delivery' to ensure Table SA7 represents all strategic responsibilities
A52: 3. Only include prior year comparative information for individual measures where relevant activity occurred in that year/s
A54: =muni&" - "&"Entities measureable performance objectives" -> GT485 Batho Pele City - Entities measureable performance objectives
A55: =A2 -> Description | B55: Unit of measurement | C55: =head1b -> 2007/8 | D55: =head1A -> 2008/9 | E55: =Head1 -> 2009/10 | F55: =Head2 -> Current Year 2010/11 | I55: =Head3 -> 2011/12 Medium Term Revenue & Expenditure Framework
C56: =Head5 -> Audited Outcome | D56: =Head5 -> Audited Outcome | E56: =Head5 -> Audited Outcome | F56: =Head6 -> Original Budget | G56: =Head7 -> Adjusted Budget | H56: =Head8 -> Full Year Forecast | I56: =Head9 -> Budget Year 2011/12 | J56: =Head10 -> Budget Year +1 2012/13 | K56: =Head11 -> Budget Year +2 2013/14
A57: Entity 1 - (name of entity)
A58: Insert measure/s description
A61: Entity 2 - (name of entity)
A62: =$A$9 -> Surfaced roads resurfaced/rehabilitated
A65: Entity 3 - (name of entity)
A66: =$A$9 -> Surfaced roads resurfaced/rehabilitated
A69: And so on for the rest of the Entities
A70: 1. Include a measurable performance objective as agreed with the parent municipality (MFMA s87(5)(d))
A71: 2. Only include prior year comparative information for individual measures where relevant activity occurred in that year/s

Sheet SA8
A1: =muni&" - "&TableA8 -> GT485 Batho Pele City - Supporting Table SA8 Performance indicators and benchmarks
A2: Description of financial indicator | B2: Basis of calculation | C2: =head1b -> 2007/8 | D2: =head1A -> 2008/9 | E2: =Head1 -> 2009/10 | F2: =Head2 -> Current Year 2010/11 | J2: =Head3 -> 2011/12 Medium Term Revenue & Expenditure Framework
C3: =Head5 -> Audited Outcome | D3: =Head5 -> Audited Outcome | E3: =Head5 -> Audited Outcome | F3: =Head6 -> Original Budget | G3: =Head7 -> Adjusted Budget | H3: =Head8 -> Full Year Forecast | I3: =Head5b -> Pre-audit outcome | J3: =Head9 -> Budget Year 2011/12 | K3: =Head10 -> Budget Year +1 2012/13 | L3: =Head11 -> Budget Year +2 2013/14
A4: Borrowing Management
A5: Borrowing to Asset Ratio | B5: Total Long-Term Borrowing/Total Assets | C5: =IF(ISERROR(('A6-FinPos'!C37/'A6-FinPos'!C25)),0,('A6-FinPos'!C37/'A6-FinPos'!C25)) -> 0.2052783997 | D5: =IF(ISERROR(('A6-FinPos'!D37/'A6-FinPos'!D25)),0,('A6-FinPos'!D37/'A6-FinPos'!D25)) -> 0.1951959308 | E5: =IF(ISERROR(('A6-FinPos'!E37/'A6-FinPos'!E25)),0,('A6-FinPos'!E37/'A6-FinPos'!E25)) -> 0.2291686895 | F5: =IF(ISERROR(('A6-FinPos'!F37/'A6-FinPos'!F25)),0,('A6-FinPos'!F37/'A6-FinPos'!F25)) -> 0.2168156623 | G5: =IF(ISERROR(('A6-FinPos'!G37/'A6-FinPos'!G25)),0,('A6-FinPos'!G37/'A6-FinPos'!G25)) -> 0.2300110735 | H5: =IF(ISERROR(('A6-FinPos'!H37/'A6-FinPos'!H25)),0,('A6-FinPos'!H37/'A6-FinPos'!H25)) -> 0.2300110735 | I5: =IF(ISERROR(('A6-FinPos'!I37/'A6-FinPos'!I25)),0,('A6-FinPos'!I37/'A6-FinPos'!I25)) -> 0 | J5: =IF(ISERROR(('A6-FinPos'!J37/'A6-FinPos'!J25)),0,('A6-FinPos'!J37/'A6-FinPos'!J25)) -> 0.2139904435 | K5: =IF(ISERROR(('A6-FinPos'!K37/'A6-FinPos'!K25)),0,('A6-FinPos'!K37/'A6-FinPos'!K25)) -> 0.2000680697 | L5: =IF(ISERROR(('A6-FinPos'!L37/'A6-FinPos'!L25)),0,('A6-FinPos'!L37/'A6-FinPos'!L25)) -> 0.1849571418
A6: Credit Rating | C6: A+ | D6: A+ | E6: A+ | F6: A+ | G6: A+ | H6: A+ | I6: A+ | J6: 0 | K6: 0 | L6: 0
A7: Capital Charges to Operating Expenditure | B7: Interest & Principal Paid /Operating Expenditure | C7: =IF(ISERROR(('A4-FinPerf RE'!C29-'A7-CFlow'!C33)/'A4-FinPerf RE'!C36),0,(('A4-FinPerf RE'!C29-'A7-CFlow'!C33)/'A4-FinPerf RE'!C36)) -> 0.06968349417 | D7: =IF(ISERROR(('A4-FinPerf RE'!D29-'A7-CFlow'!D33)/'A4-FinPerf RE'!D36),0,(('A4-FinPerf RE'!D29-'A7-CFlow'!D33)/'A4-FinPerf RE'!D36)) -> 0.07473286548 | E7: =IF(ISERROR(('A4-FinPerf RE'!E29-'A7-CFlow'!E33)/'A4-FinPerf RE'!E36),0,(('A4-FinPerf RE'!E29-'A7-CFlow'!E33)/'A4-FinPerf RE'!E36)) -> 0.0752165532 | F7: =IF(ISERROR(('A4-FinPerf RE'!F29-'A7-CFlow'!F33)/'A4-FinPerf RE'!F36),0,(('A4-FinPerf RE'!F29-'A7-CFlow'!F33)/'A4-FinPerf RE'!F36)) -> 0.07235532177 | G7: =IF(ISERROR(('A4-FinPerf RE'!G29-'A7-CFlow'!G33)/'A4-FinPerf RE'!G36),0,(('A4-FinPerf RE'!G29-'A7-CFlow'!G33)/'A4-FinPerf RE'!G36)) -> 0.08184920295 | H7: =IF(ISERROR(('A4-FinPerf RE'!H29-'A7-CFlow'!H33)/'A4-FinPerf RE'!H36),0,(('A4-FinPerf RE'!H29-'A7-CFlow'!H33)/'A4-FinPerf RE'!H36)) -> 0.08184920295 | I7: =IF(ISERROR(('A4-FinPerf RE'!I29-'A7-CFlow'!I33)/'A4-FinPerf RE'!I36),0,(('A4-FinPerf RE'!I29-'A7-CFlow'!I33)/'A4-FinPerf RE'!I36)) -> 0 | J7: =IF(ISERROR(('A4-FinPerf RE'!J29-'A7-CFlow'!J33)/'A4-FinPerf RE'!J36),0,(('A4-FinPerf RE'!J29-'A7-CFlow'!J33)/'A4-FinPerf RE'!J36)) -> 0.09686463157 | K7: =IF(ISERROR(('A4-FinPerf RE'!K29-'A7-CFlow'!K33)/'A4-FinPerf RE'!K36),0,(('A4-FinPerf RE'!K29-'A7-CFlow'!K33)/'A4-FinPerf RE'!K36)) -> 0.09405511135 | L7: =IF(ISERROR(('A4-FinPerf RE'!L29-'A7-CFlow'!L33)/'A4-FinPerf RE'!L36),0,(('A4-FinPerf RE'!L29-'A7-CFlow'!L33)/'A4-FinPerf RE'!L36)) -> 0.08776258215
A8: Borrowed funding of 'own' capital expenditure | B8: Borrowing/Capital expenditure excl. transfers and grants and contributions | C8: =IF(ISERROR(C44/C43),0,(C44/C43)) -> 0.6633402597 | D8: =IF(ISERROR(D44/D43),0,(D44/D43)) -> 0.2267638299 | E8: =IF(ISERROR(E44/E43),0,(E44/E43)) -> 0.856393701 | F8: 0.3903271952 | G8: 0.6226383449 | H8: 0.6226383449 | I8: 0 | J8: 0.6408082657 | K8: 0.6408082657 | L8: 0.6408082657
A9: Safety of Capital
A10: Debt to Equity | B10: Loans, Creditors, Overdraft & Tax Provision/ Funds & Reserves | C10: =IF(ISERROR('A6-FinPos'!C40/'A6-FinPos'!C48),0,('A6-FinPos'!C40/'A6-FinPos'!C48)) -> 0.6643939647 | D10: =IF(ISERROR('A6-FinPos'!D40/'A6-FinPos'!D48),0,('A6-FinPos'!D40/'A6-FinPos'!D48)) -> 0.8846666988 | E10: =IF(ISERROR('A6-FinPos'!E40/'A6-FinPos'!E48),0,('A6-FinPos'!E40/'A6-FinPos'!E48)) -> 1.075104449 | F10: =IF(ISERROR('A6-FinPos'!F40/'A6-FinPos'!F48),0,('A6-FinPos'!F40/'A6-FinPos'!F48)) -> 0.8689212373 | G10: =IF(ISERROR('A6-FinPos'!G40/'A6-FinPos'!G48),0,('A6-FinPos'!G40/'A6-FinPos'!G48)) -> 0.9833038459 | H10: =IF(ISERROR('A6-FinPos'!H40/'A6-FinPos'!H48),0,('A6-FinPos'!H40/'A6-FinPos'!H48)) -> 0.9833038459 | I10: =IF(ISERROR('A6-FinPos'!I40/'A6-FinPos'!I48),0,('A6-FinPos'!I40/'A6-FinPos'!I48)) -> 0 | J10: =IF(ISERROR('A6-FinPos'!J40/'A6-FinPos'!J48),0,('A6-FinPos'!J40/'A6-FinPos'!J48)) -> 0.910533441 | K10: =IF(ISERROR('A6-FinPos'!K40/'A6-FinPos'!K48),0,('A6-FinPos'!K40/'A6-FinPos'!K48)) -> 0.8614064775 | L10: =IF(ISERROR('A6-FinPos'!L40/'A6-FinPos'!L48),0,('A6-FinPos'!L40/'A6-FinPos'!L48)) -> 0.7916552728
